Workbook

Sheet LDC Info
Z3: 1 | AA3: Alectra Utilities Corporation-Brampton Rate Zone
Z4: 2 | AA4: Alectra Utilities Corporation-Enersource Rate Zone
Z5: 3 | AA5: Alectra Utilities Corporation-Horizon Utilities Rate Zone
Z6: 4 | AA6: Alectra Utilities Corporation-PowerStream Rate Zone
Z7: 5 | AA7: Alectra Utilities Corporation-Guelph Rate Zone
Z8: 6 | AA8: Algoma Power Inc.
Z9: 7 | AA9: Atikokan Hydro Inc.
Z10: 8 | AA10: Bluewater Power Distribution Corporation
Z11: 9 | AA11: Brantford Power Inc.
Z12: 10 | AA12: Burlington Hydro Inc.
Z13: 11 | AA13: Canadian Niagara Power Inc.
D14: Utility Name | E14: E.L.K. Energy Inc. | Z14: 12 | AA14: Centre Wellington Hydro Ltd.
Z15: 13 | AA15: Chapleau Public Utilities Corporation
D16: Assigned EB Number | E16: EB-2021-0016 | Z16: 14 | AA16: Cooperative Hydro Embrun Inc.
Z17: 15 | AA17: E.L.K. Energy Inc.
D18: Name of Contact and Title | E18: Cheryl Tratechaud, Chief Financial Officer, Director Stakeholder Relations | Z18: 16 | AA18: Elexicon Energy Inc.-Whitby Rate Zone
Z19: 17 | AA19: Elexicon Energy Inc.-Veridian Rate Zone
D20: Phone Number | E20: 519-776-5291 Ext 205 | Z20: 18 | AA20: Energy+ Inc.
Z21: 19 | AA21: Entegrus Powerlines Inc.-For Entegrus-Main Rate Zone
D22: Email Address | E22: ctratechaud@elkenergy.com | Z22: 20 | AA22: Entegrus Powerlines Inc.-For Former St. Thomas Energy Rate Zone
Z23: 21 | AA23: ENWIN Utilities Ltd.
D24: Test Year | E24: 2022 | Z24: 22 | AA24: EPCOR Electricity Distribution Ontario Inc.
Z25: 23 | AA25: ERTH Power Corporation - ERTH Power Main Rate Zone
D26: Bridge Year | E26: =IF(ISBLANK(E24), "", E24-1) -> 2021 | Z26: 24 | AA26: ERTH POWER CORPORATION – GODERICH RATE ZONE
Z27: 25 | AA27: Essex Powerlines Corporation
D28: Last Rebasing Year | E28: 2012 | Z28: 26 | AA28: Festival Hydro Inc.
Z29: 27 | AA29: Fort Frances Power Corporation
A30: Identify the accounting standard used for the test year | Z30: 28 | AA30: Greater Sudbury Hydro Inc.
E31: MIFRS | Z31: 29 | AA31: Grimsby Power Incorporated
Z32: 30 | AA32: Halton Hills Hydro Inc.
A33: ="Did "& E14 &" update its depreciation and capitalization policies?" -> Did E.L.K. Energy Inc. update its depreciation and capitalization policies? | Z33: 31 | AA33: Hearst Power Distribution Co. Ltd.
E34: Yes | Z34: 32 | AA34: Hydro 2000 Inc.
Z35: 33 | AA35: Hydro Hawkesbury Inc.
A36: If "yes" to cell E34, were the changes in policies reflected in a prior rebasing application? | Z36: 34 | AA36: Hydro One Networks Inc.
E37: Yes | Z37: 35 | AA37: Hydro One Networks Inc.-Former Haldimand County Hydro Inc. Service Area
Z38: 36 | AA38: Hydro One Networks Inc.-Former Norfolk Power Distribution Inc. Service Area
A39: ="When did "&E14&" update its actual depreciation and capitalization policies?" -> When did E.L.K. Energy Inc. update its actual depreciation and capitalization policies? | Z39: 37 | AA39: Hydro One Networks Inc.-Former Woodstock Hydro Services Inc. Service Area
E40: 2001-01-01 | F40: 2013 | Z40: 38 | AA40: Hydro One Remote Communites Inc.
Z41: 39 | AA41: Hydro Ottawa Limited
A42: Identify the year the applicant adopted IFRS for financial reporting purposes | Z42: 40 | AA42: InnPower Corporation
E43: 2015 | Z43: 41 | AA43: Kingston Hydro Corporation
Z44: 42 | AA44: Kitchener-Wilmot Hydro Inc.
Z45: 43 | AA45: Lakefront Utilities Inc.
A46: ="Is " & E14 & " applying for cost recovery for the test and/or future year(s) for Green Energy initiatives?" -> Is E.L.K. Energy Inc. applying for cost recovery for the test and/or future year(s) for Green Energy initiatives? | Z46: 44 | AA46: Lakeland Power Distribution Ltd.
E47: No | Z47: 45 | AA47: Lakeland Power Distribution Ltd.-Parry Sound Service Area
Z48: 46 | AA48: London Hydro Inc.
A49: ="Is " & E14 & " an embedded distributor?" -> Is E.L.K. Energy Inc. an embedded distributor? | E49: Yes | Z49: 47 | AA49: Milton Hydro Distribution Inc.
Z50: 48 | AA50: Newmarket-Tay Power Distribution Ltd.-For Former Midland Power Utility Rate Zone
Z51: 49 | AA51: Newmarket-Tay Power Distribution Ltd.-For Newmarket-Tay Power Main Rate Zone
B52: Notes | Z52: 50 | AA52: Niagara Peninsula Energy Inc.
Z53: 51 | AA53: Niagara-on-the-Lake Hydro Inc.
C54: Pale green cells represent input cells. | Z54: 52 | AA54: North Bay Hydro Distribution Limited - Espanola service territory
Z55: 53 | AA55: North Bay Hydro Distribution Limited - North Bay service territory
C56: Pale blue cells represent drop-down lists. The applicant should select the appropriate item from the drop-down list. | Z56: 54 | AA56: Northern Ontario Wires Inc.
Z57: 55 | AA57: Oakville Hydro Electricity Distribution Inc.
C58: White cells contain fixed values, automatically generated values or formulae. | N58: =IF(LEN($G58)>1, (SUMPRODUCT(--($C$81:$C$1003=$C58),--($A$81:$A$1003=$D58), --($B$81:$B$1003=$B58&"_TOTAL"), $L$1:$L$889)), "") ->  | O58: =IF(LEN($G58)>1, (SUMPRODUCT(--($C$81:$C$1003=$C58),--($A$81:$A$1003=$D58), --($B$81:$B$1003=$B58&"_TOTAL"), $M$1:$M$889)), "") ->  | Z58: 56 | AA58: Orangeville Hydro Limited
Z59: 57 | AA59: Orillia Power Distribution Corporation
Z60: 58 | AA60: Oshawa PUC Networks Inc.
Z61: 59 | AA61: Ottawa River Power Corporation
Z62: 60 | AA62: Peterborough Distribution Incorporated
Z63: 61 | AA63: PUC Distribution Inc.
Z64: 62 | AA64: Renfrew Hydro Inc.
Z65: 63 | AA65: Rideau St. Lawrence Distribution Inc.
Z66: 64 | AA66: Sioux Lookout Hydro Inc.
Z67: 65 | AA67: Synergy North Corporation-Kenora Rate Zone
Z68: 66 | AA68: Synergy North Corporation-Thunder Bay Rate Zone
Z69: 67 | AA69: Tillsonburg Hydro Inc.
Z70: 68 | AA70: Toronto Hydro-Electric System Limited
Z71: 69 | AA71: Wasaga Distribution Inc.
Z72: 70 | AA72: Waterloo North Hydro Inc.
Z73: 71 | AA73: Welland Hydro-Electric System Corp.
Z74: 72 | AA74: Wellington North Power Inc.
Z75: 73 | AA75: Westario Power Inc.

Sheet Index
A15: 1 | B15: LDC Information Sheet | E15: 20 | F15: App.2-G: Service Reliability Indicators
A16: 2 | B16: Index | E16: 21 | F16: App.2-H: Other Operating Revenue (TO BE UPDATED AT THE DRAFT RATE ORDER STAGE)
A17: 3 | B17: Cost of Service Application Flowchart | E17: 22 | F17: App.2-I: Load Forecast CDM Adjustment Workform
A18: 4 | B18: List of Key References | E18: 23 | F18: App.2-IA: Load Forecast Data Instructions
A19: 5 | B19: App.2-A: List of Requested Approvals | E19: 24 | F19: App.2-IB: Actual and Forecast Load and Customer Data
A20: 6 | B20: App.2-AA: Capital Projects Table | E20: 25 | F20: App.2-JA: OM&A Summary Analysis (TO BE UPDATED AT THE DRAFT RATE ORDER STAGE)
A21: 7 | B21: App.2-AB: Capital Expenditures (TO BE UPDATED AT THE DRAFT RATE ORDER STAGE) | E21: 26 | F21: App.2-JB: Recoverable OM&A Cost Driver Table
A22: 8 | B22: App. 2-AC: Customer Engagement Worksheet | E22: 27 | F22: App.2-JC: OM&A Programs Table
A23: 9 | B23: App.2-B: General Accounting Instructions | E23: 28 | F23: App.2-K: Employee Costs (TO BE UPDATED AT THE DRAFT RATE ORDER STAGE)
A24: 10 | B24: App.2-BA: Fixed Asset Continuity Schedule | E24: 29 | F24: App.2-L: Recoverable OM&A Cost per Customer and per FTE
A25: 11 | B25: Appendix 2-BB: Service Life Comparison | E25: 30 | F25: App.2-M: Regulatory Costs Schedule (TO BE UPDATED AT THE DRAFT RATE ORDER STAGE)
A26: 12 | B26: App.2-C_DepExp: Depreciation and Amortization Expense | E26: 31 | F26: App.2-N: Shared Services and Corporate Cost Allocation
A27: 13 | B27: App.2-D: Overhead Expenses | E27: 32 | F27: App.2-OA: Capital Structure and Cost of Capital
A28: 14 | B28: App.2-EA: Account 1575 PP&E Deferral Account (2015 IFRS Adopters) - CONTACT OEB STAFF IF TAB REQUIRED | E28: 33 | F28: App.2-OB: Debt Instruments
A29: 15 | B29: App.2-EB: Account 1576 - Accounting Changes Under CGAAP (2012 Changes) - CONTACT OEB STAFF IF TAB REQUIRED | E29: 34 | F29: App.2-Q: Cost of Serving Embedded Distributor(s)
A30: 16 | B30: App.2-EC: Account 1576 - Accounting Changes Under CGAAP (2013 Changes) - CONTACT OEB STAFF IF TAB REQUIRED | E30: 35 | F30: App.2-R: Loss Factors
A31: 17 | B31: App.2-FA: Renewable Generation Connection Investment Summary (TO BE UPDATED AT THE DRAFT RATE ORDER STAGE) | E31: 36 | F31: App.2-S: Stranded Meter Treatment- CONTACT OEB STAFF IF TAB REQUIRED
A32: 18 | B32: App.2-FB: Calculation of Renewable Generation Connection Direct Benefits/Provincial Amount: Renewable Enabling Improvement Investments (TO BE UPDATED AT THE DRAFT RATE ORDER STAGE) | E32: 37 | F32: App.2-Y: Transition to MIFRS Summary Impact - CONTACT OEB STAFF IF TAB REQUIRED
A33: 19 | B33: App.2-FC: Calculation of Renewable Generation Connection Direct Benefits/Provincial Amount: Renewable Expansion Investments (TO BE UPDATED AT THE DRAFT RATE ORDER STAGE) | E33: 38 | F33: App.2-YA: One-Time Incremental IFRS Transition Costs - CONTACT OEB STAFF IF TAB REQUIRED
E34: 39 | F34: App.2-ZA: Commodity Expense
E35: 40 | F35: App.2-ZB: Cost of Power
A42: Note: | B42: Appendices for the Tariff of Rates and Charges at Current and Proposed Rates, and for the Bill Impacts are now in a separate spreadsheet model. These appendices were formerly 2-Z and 2-W.

Sheet COS Flowchart
B4: Cost of Service Rate Application Schematic
B6: The Cost of Service Rate Application Schematic is a flowchart that is included as a guide for the components of an application. The schematic demonstrates how demand and costs interrelate to derive the revenue requirement and how the revenue requirement is allocated between classes and through fixed/variable splits to derive rates that will be compensatory for the annual revenue requirement, based on the the forecasted demand. There is no form to be filled out; therefore, this Schedule is not required to be filed.

Sheet List of Key References
B2: List of Key References
A4: A list of key references for understanding the Filing Requirements has been embedded in the document below. To access the list of references and associated hyperlinks double-click the icon below.

Sheet App.2-A_Requested_Approvals
G1: File Number: | H1: =EBNUMBER -> EB-2021-0016
G2: Exhibit:
G3: Tab:
G4: Schedule:
G5: Page:
G7: Date:
B9: Appendix 2-A
B10: List of Requested Approvals
B12: The distributor must fill out the following sheet with the complete list of specific approvals requested and relevant section(s) of the legislation must be provided. All approvals, including accounting orders (deferral and variance accounts) new rate classes, revised specific service charges or retail service charges which the applicant is seeking, must be separately identified, as well being clearly documented in the appropriate sections of the application.
B14: Additional requests may be added by copying and pasting blank input rows, as needed.
B16: If additional requests arise, or requested approvals are removed, during the processing of the application, the distributor should update this list.
B18: =CONCATENATE('LDC Info'!E14," is seeking the following approvals in this application:") -> E.L.K. Energy Inc. is seeking the following approvals in this application:
B20: 1 | F20: An Order or Orders approving the proposed distribution rates, to recover a base revenue requirement of $4,024,650 and other charges set out in Exhibit 8 to this Application as just and reasonable rates and charges pursuant to Section 78 of the OEB Act, to be effective effective May 1, 2022, in accordance with the Filing Requirements.
B22: 2 | F22: In the event that the OEB is unable to provide a Decision and Order in this application for implementation by the Applicant as of May 1, 2022, the Applicant requests that the OEB declare its current rates interim, effective May 1, 2022, pending the implementation of the OEB’s Rate Order for the 2022 rate year.
B24: 3 | D24: (i) | F24: Approval of the Adjusted Retail Transmission Network and Connection rates as detailed in Exhibit 8
B26: 3 | D26: (ii) | F26: Approval of the Adjusted Low Voltage rates detailed in Exhibit 8
B28: 3 | D28: (iii) | F28: Approval of the Adjusted Loss Factors as detailed in Exhibit 8
B30: 3 | D30: (iv) | F30: Approval of Continuance of Specific Service Charges as detailed in Exhibit 8
B32: 4 | D32: (i) | F32: Approval of the Rate riders for disposition of Group 1 and Group 2 Deferral and Variance Account balances as described in Exhibit 9
B34: 4 | D34: (ii) | F34: Approval for Continuance/Discontinuance of Group 2 accounts as described in Exhibit 9
B36: 5 | F36: Approval of an “Incremental PILs/Income Tax Variance Account” to record any PILs/Income Taxes payable by E.L.K. in the year after the Cost of Service rate re-set up until the effective date that rates are next adjusted through a Cost of Service application.

Sheet App.2-AA_Capital Projects
L1: File Number: | M1: =EBNUMBER -> EB-2021-0016
L2: Exhibit:
L3: Tab:
L4: Schedule:
L5: Page:
L7: Date:
A9: Appendix 2-AA
A10: Capital Projects Table
A13: Projects | B13: =C13-1 -> 2012 | C13: 2013 | D13: 2014 | E13: 2015 | F13: 2016 | G13: 2017 | H13: =I13-1 -> 2018 | I13: =J13-1 -> 2019 | J13: 2020 | K13: 2021 Bridge Year3 | L13: 2022 Test Year | M13: 2023 | N13: 2024 | O13: 2025 | P13: 2026
A14: Reporting Basis
A15: System Access
A16: Project Name #2
A17: FIT Contributions | B17: 60300 | C17: 45000 | D17: 28893 | E17: 42300
A22: Sub-Total | B22: =SUM(B17:B21) -> 60300 | C22: 45000 | D22: 28893 | E22: 42300 | F22: 0 | G22: 0 | H22: 0 | I22: 0 | J22: 0 | K22: 0 | L22: 0 | M22: 0 | N22: 0 | O22: 0 | P22: 0
A23: Project Name #4
A24: Smart Meters | B24: 57319
A29: Sub-Total | B29: =SUM(B24:B28) -> 57319 | C29: 0 | D29: 0 | E29: 0 | F29: 0 | G29: 0 | H29: 0 | I29: 0 | J29: 0 | K29: 0 | L29: 0 | M29: 0 | N29: 0 | O29: 0 | P29: 0
A30: Project Name #5
A31: Comber Solar | B31: 67810
A36: Sub-Total | B36: =SUM(B31:B35) -> 67810 | C36: 0 | D36: 0 | E36: 0 | F36: 0 | G36: 0 | H36: 0 | I36: 0 | J36: 0 | K36: 0 | L36: 0 | M36: 0 | N36: 0 | O36: 0 | P36: 0
A37: Project Name #6
A38: Cooper Estates Ph 4B | B38: 66701
A43: Sub-Total | B43: =SUM(B38:B42) -> 66701 | C43: 0 | D43: 0 | E43: 0 | F43: 0 | G43: 0 | H43: 0 | I43: 0 | J43: 0 | K43: 0 | L43: 0 | M43: 0 | N43: 0 | O43: 0 | P43: 0
A44: Project Name #7
A45: Cottam Woods Solar | B45: 125965
A50: Sub-Total | B50: =SUM(B45:B49) -> 125965 | C50: 0 | D50: 0 | E50: 0 | F50: 0 | G50: 0 | H50: 0 | I50: 0 | J50: 0 | K50: 0 | L50: 0 | M50: 0 | N50: 0 | O50: 0 | P50: 0
A51: Project Name #8
A52: Townsview Ph 3 | B52: 52865
A57: Sub-Total | B57: =SUM(B52:B56) -> 52865 | C57: 0 | D57: 0 | E57: 0 | F57: 0 | G57: 0 | H57: 0 | I57: 0 | J57: 0 | K57: 0 | L57: 0 | M57: 0 | N57: 0 | O57: 0 | P57: 0
A58: Project Name #9
A59: Timbercreek Estates Ph 1 | C59: 122068 | D59: 37754
A60: 3 Phase Pump Feed | C60: 25252
A64: Sub-Total | B64: =SUM(B59:B63) -> 0 | C64: 147320 | D64: 37754 | E64: 0 | F64: 0 | G64: 0 | H64: 0 | I64: 0 | J64: 0 | K64: 0 | L64: 0 | M64: 0 | N64: 0 | O64: 0 | P64: 0
A65: Project Name #10
A66: Jakana Phase 4 | C66: 161193
A71: Sub-Total | B71: =SUM(B66:B70) -> 0 | C71: 161193 | D71: 0 | E71: 0 | F71: 0 | G71: 0 | H71: 0 | I71: 0 | J71: 0 | K71: 0 | L71: 0 | M71: 0 | N71: 0 | O71: 0 | P71: 0
A72: Project Name #11
A73: ROATC Phase 7 | C73: 80885
A78: Sub-Total | B78: =SUM(B73:B77) -> 0 | C78: 80885 | D78: 0 | E78: 0 | F78: 0 | G78: 0 | H78: 0 | I78: 0 | J78: 0 | K78: 0 | L78: 0 | M78: 0 | N78: 0 | O78: 0 | P78: 0
A79: Project Name #12
A80: Tim Horton's Harrow | C80: 51328
A85: Sub-Total | B85: =SUM(B80:B84) -> 0 | C85: 51328 | D85: 0 | E85: 0 | F85: 0 | G85: 0 | H85: 0 | I85: 0 | J85: 0 | K85: 0 | L85: 0 | M85: 0 | N85: 0 | O85: 0 | P85: 0
A86: Project Name #13
A87: FIT 200 Clark Street | C87: 65634
A92: Sub-Total | B92: =SUM(B87:B91) -> 0 | C92: 65634 | D92: 0 | E92: 0 | F92: 0 | G92: 0 | H92: 0 | I92: 0 | J92: 0 | K92: 0 | L92: 0 | M92: 0 | N92: 0 | O92: 0 | P92: 0
A93: Project Name #14
A94: Kingsville Commercial Development | B94: 62729
A99: Sub-Total | B99: =SUM(B94:B98) -> 62729 | C99: 0 | D99: 0 | E99: 0 | F99: 0 | G99: 0 | H99: 0 | I99: 0 | J99: 0 | K99: 0 | L99: 0 | M99: 0 | N99: 0 | O99: 0 | P99: 0
A100: Project Name #15
A101: Notre Dame Street Project Phase 2 | C101: 620528
A106: Sub-Total | B106: =SUM(B101:B105) -> 0 | C106: 620528 | D106: 0 | E106: 0 | F106: 0 | G106: 0 | H106: 0 | I106: 0 | J106: 0 | K106: 0 | L106: 0 | M106: 0 | N106: 0 | O106: 0 | P106: 0
A107: Project Name #16
A108: Kimball Estates Phase 4 | D108: 39500
A113: Sub-Total | B113: =SUM(B108:B112) -> 0 | C113: 0 | D113: 39500 | E113: 0 | F113: 0 | G113: 0 | H113: 0 | I113: 0 | J113: 0 | K113: 0 | L113: 0 | M113: 0 | N113: 0 | O113: 0 | P113: 0
A114: Project Name #17
A115: Woodview Phase 2 | D115: 103369
A120: Sub-Total | B120: =SUM(B115:B119) -> 0 | C120: 0 | D120: 103369 | E120: 0 | F120: 0 | G120: 0 | H120: 0 | I120: 0 | J120: 0 | K120: 0 | L120: 0 | M120: 0 | N120: 0 | O120: 0 | P120: 0
A121: Project Name #18
A122: Bacon Development Phase 4E | D122: 92733
A127: Sub-Total | B127: =SUM(B122:B126) -> 0 | C127: 0 | D127: 92733 | E127: 0 | F127: 0 | G127: 0 | H127: 0 | I127: 0 | J127: 0 | K127: 0 | L127: 0 | M127: 0 | N127: 0 | O127: 0 | P127: 0
A128: Project Name #19
A129: Woodslee Solar Garden | D129: 69148 | E129: 56870
A134: Sub-Total | B134: =SUM(B129:B133) -> 0 | C134: 0 | D134: 69148 | E134: 56870 | F134: 0 | G134: 0 | H134: 0 | I134: 0 | J134: 0 | K134: 0 | L134: 0 | M134: 0 | N134: 0 | O134: 0 | P134: 0
A135: Project Name #20
A136: JV Energy | D136: 57145
A141: Sub-Total | B141: =SUM(B136:B140) -> 0 | C141: 0 | D141: 57145 | E141: 0 | F141: 0 | G141: 0 | H141: 0 | I141: 0 | J141: 0 | K141: 0 | L141: 0 | M141: 0 | N141: 0 | O141: 0 | P141: 0
A142: Project Name #21
A143: Notre Dame Street Phase 3 | D143: 89944
A148: Sub-Total | B148: =SUM(B143:B147) -> 0 | C148: 0 | D148: 89944 | E148: 0 | F148: 0 | G148: 0 | H148: 0 | I148: 0 | J148: 0 | K148: 0 | L148: 0 | M148: 0 | N148: 0 | O148: 0 | P148: 0
A149: Project Name #22
A150: ROATC Phase 8A | D150: 102047
A155: Sub-Total | B155: =SUM(B150:B154) -> 0 | C155: 0 | D155: 102047 | E155: 0 | F155: 0 | G155: 0 | H155: 0 | I155: 0 | J155: 0 | K155: 0 | L155: 0 | M155: 0 | N155: 0 | O155: 0 | P155: 0
A156: Project Name #23
A157: Truax FIT | C157: 53027
A162: Sub-Total | B162: =SUM(B157:B161) -> 0 | C162: 53027 | D162: 0 | E162: 0 | F162: 0 | G162: 0 | H162: 0 | I162: 0 | J162: 0 | K162: 0 | L162: 0 | M162: 0 | N162: 0 | O162: 0 | P162: 0
A163: Project Name #24
A164: Shoppers Harrow | E164: 72206
A169: Sub-Total | B169: =SUM(B164:B168) -> 0 | C169: 0 | D169: 0 | E169: 72206 | F169: 0 | G169: 0 | H169: 0 | I169: 0 | J169: 0 | K169: 0 | L169: 0 | M169: 0 | N169: 0 | O169: 0 | P169: 0
A170: ="Project Name #"&RIGHT(A163,2)+1 -> Project Name #25
A171: Agris | E171: 84647
A176: Sub-Total | B176: =SUM(B171:B175) -> 0 | C176: 0 | D176: 0 | E176: 84647 | F176: 0 | G176: 0 | H176: 0 | I176: 0 | J176: 0 | K176: 0 | L176: 0 | M176: =SUM(M171:M175) -> 0 | N176: 0 | O176: 0 | P176: 0
A177: ="Project Name #"&RIGHT(A170,2)+1 -> Project Name #26
A178: Tesla | E178: 72916
A183: Sub-Total | B183: =SUM(B178:B182) -> 0 | C183: 0 | D183: 0 | E183: 72916 | F183: 0 | G183: 0 | H183: 0 | I183: 0 | J183: 0 | K183: 0 | L183: 0 | M183: =SUM(M178:M182) -> 0 | N183: 0 | O183: 0 | P183: 0
A184: ="Project Name #"&RIGHT(A177,2)+1 -> Project Name #27
A185: Smart Meter KPMG Reclass | E185: 366021
A190: Sub-Total | B190: =SUM(B185:B189) -> 0 | C190: 0 | D190: 0 | E190: 366021 | F190: 0 | G190: 0 | H190: 0 | I190: 0 | J190: 0 | K190: 0 | L190: 0 | M190: =SUM(M185:M189) -> 0 | N190: 0 | O190: 0 | P190: 0
A191: ="Project Name #"&RIGHT(A184,2)+1 -> Project Name #28
A192: Amico Properties - ROATC Ph 5 | F192: 130632.67
A197: Sub-Total | B197: =SUM(B192:B196) -> 0 | C197: 0 | D197: 0 | E197: 0 | F197: 130632.67 | G197: 0 | H197: 0 | I197: 0 | J197: 0 | K197: 0 | L197: 0 | M197: =SUM(M192:M196) -> 0 | N197: 0 | O197: 0 | P197: 0
A198: ="Project Name #"&RIGHT(A191,2)+1 -> Project Name #29
A199: Cottam Woods Ph 3A | F199: 94130.38
A204: Sub-Total | B204: =SUM(B199:B203) -> 0 | C204: 0 | D204: 0 | E204: 0 | F204: 94130.38 | G204: 0 | H204: 0 | I204: 0 | J204: 0 | K204: 0 | L204: 0 | M204: =SUM(M199:M203) -> 0 | N204: 0 | O204: 0 | P204: 0
A205: ="Project Name #"&RIGHT(A198,2)+1 -> Project Name #30
A206: Belle River Public | F206: 16061.61
A211: Sub-Total | B211: =SUM(B206:B210) -> 0 | C211: 0 | D211: 0 | E211: 0 | F211: 16061.61 | G211: 0 | H211: 0 | I211: 0 | J211: 0 | K211: 0 | L211: 0 | M211: =SUM(M206:M210) -> 0 | N211: 0 | O211: 0 | P211: 0
A212: ="Project Name #"&RIGHT(A205,2)+1 -> Project Name #31
A213: Belle River High | F213: 19293.31
A218: Sub-Total | B218: =SUM(B213:B217) -> 0 | C218: 0 | D218: 0 | E218: 0 | F218: 19293.31 | G218: 0 | H218: 0 | I218: 0 | J218: 0 | K218: 0 | L218: 0 | M218: =SUM(M213:M217) -> 0 | N218: 0 | O218: 0 | P218: 0
A219: ="Project Name #"&RIGHT(A212,2)+1 -> Project Name #32
A220: Harrow Senior Public | F220: 16061.61
A225: Sub-Total | B225: =SUM(B220:B224) -> 0 | C225: 0 | D225: 0 | E225: 0 | F225: 16061.61 | G225: 0 | H225: 0 | I225: 0 | J225: 0 | K225: 0 | L225: 0 | M225: =SUM(M220:M224) -> 0 | N225: 0 | O225: 0 | P225: 0
A226: ="Project Name #"&RIGHT(A219,2)+1 -> Project Name #33
A227: Town of Essex Sanitary Pump | F227: 87841.23
A232: Sub-Total | B232: =SUM(B227:B231) -> 0 | C232: 0 | D232: 0 | E232: 0 | F232: 87841.23 | G232: 0 | H232: 0 | I232: 0 | J232: 0 | K232: 0 | L232: 0 | M232: =SUM(M227:M231) -> 0 | N232: 0 | O232: 0 | P232: 0
A233: ="Project Name #"&RIGHT(A226,2)+1 -> Project Name #34
A234: Sellick | F234: 83795.81
A239: Sub-Total | B239: =SUM(B234:B238) -> 0 | C239: 0 | D239: 0 | E239: 0 | F239: 83795.81 | G239: 0 | H239: 0 | I239: 0 | J239: 0 | K239: 0 | L239: 0 | M239: =SUM(M234:M238) -> 0 | N239: 0 | O239: 0 | P239: 0
A240: ="Project Name #"&RIGHT(A233,2)+1 -> Project Name #35
A241: Brady & Vella's Professional | F241: 45374.56
A246: Sub-Total | B246: =SUM(B241:B245) -> 0 | C246: 0 | D246: 0 | E246: 0 | F246: 45374.56 | G246: 0 | H246: 0 | I246: 0 | J246: 0 | K246: 0 | L246: 0 | M246: =SUM(M241:M245) -> 0 | N246: 0 | O246: 0 | P246: 0
A247: ="Project Name #"&RIGHT(A240,2)+1 -> Project Name #36
A248: 225 Prince Albert | F248: 46946.62
A253: Sub-Total | B253: =SUM(B248:B252) -> 0 | C253: 0 | D253: 0 | E253: 0 | F253: 46946.62 | G253: 0 | H253: 0 | I253: 0 | J253: 0 | K253: 0 | L253: 0 | M253: =SUM(M248:M252) -> 0 | N253: 0 | O253: 0 | P253: 0
A254: ="Project Name #"&RIGHT(A247,2)+1 -> Project Name #37
A255: 141 Main St E- Gary Anthony | F255: 13358.61
A260: Sub-Total | B260: =SUM(B255:B259) -> 0 | C260: 0 | D260: 0 | E260: 0 | F260: 13358.61 | G260: 0 | H260: 0 | I260: 0 | J260: 0 | K260: 0 | L260: 0 | M260: =SUM(M255:M259) -> 0 | N260: 0 | O260: 0 | P260: 0
A261: ="Project Name #"&RIGHT(A254,2)+1 -> Project Name #38
A262: 1156722 Ont Limited- Bernath | G262: 197300
A267: Sub-Total | B267: =SUM(B262:B266) -> 0 | C267: 0 | D267: 0 | E267: 0 | F267: 0 | G267: 197300 | H267: 0 | I267: 0 | J267: 0 | K267: 0 | L267: 0 | M267: =SUM(M262:M266) -> 0 | N267: 0 | O267: 0 | P267: 0
A268: ="Project Name #"&RIGHT(A261,2)+1 -> Project Name #39
A269: Hopgood Developments- Brotto | G269: 61645.46
A274: Sub-Total | B274: =SUM(B269:B273) -> 0 | C274: 0 | D274: 0 | E274: 0 | F274: 0 | G274: 61645.46 | H274: 0 | I274: 0 | J274: 0 | K274: 0 | L274: 0 | M274: =SUM(M269:M273) -> 0 | N274: 0 | O274: 0 | P274: 0
A275: ="Project Name #"&RIGHT(A268,2)+1 -> Project Name #40
A276: Colio | G276: 86676.97
A281: Sub-Total | B281: =SUM(B276:B280) -> 0 | C281: 0 | D281: 0 | E281: 0 | F281: 0 | G281: 86676.97 | H281: 0 | I281: 0 | J281: 0 | K281: 0 | L281: 0 | M281: =SUM(M276:M280) -> 0 | N281: 0 | O281: 0 | P281: 0
A282: ="Project Name #"&RIGHT(A275,2)+1 -> Project Name #41
A283: Kimball Estates Ph 5 | G283: 151526.76
A288: Sub-Total | B288: =SUM(B283:B287) -> 0 | C288: 0 | D288: 0 | E288: 0 | F288: 0 | G288: 151526.76 | H288: 0 | I288: 0 | J288: 0 | K288: 0 | L288: 0 | M288: =SUM(M283:M287) -> 0 | N288: 0 | O288: 0 | P288: 0
A289: ="Project Name #"&RIGHT(A282,2)+1 -> Project Name #42
A290: Amico Properties- ROATC 8B | G290: 117074.71
A295: Sub-Total | B295: =SUM(B290:B294) -> 0 | C295: 0 | D295: 0 | E295: 0 | F295: 0 | G295: 117074.71 | H295: 0 | I295: 0 | J295: 0 | K295: 0 | L295: 0 | M295: =SUM(M290:M294) -> 0 | N295: 0 | O295: 0 | P295: 0
A296: ="Project Name #"&RIGHT(A289,2)+1 -> Project Name #43
A297: Townsview Ph 4 | H297: 125464.6
A302: Sub-Total | B302: =SUM(B297:B301) -> 0 | C302: 0 | D302: 0 | E302: 0 | F302: 0 | G302: 0 | H302: 125464.6 | I302: 0 | J302: 0 | K302: 0 | L302: 0 | M302: =SUM(M297:M301) -> 0 | N302: 0 | O302: 0 | P302: 0
A303: ="Project Name #"&RIGHT(A296,2)+1 -> Project Name #44
A304: Amico Properties- ROATC 9 | H304: 176743.87
A309: Sub-Total | B309: =SUM(B304:B308) -> 0 | C309: 0 | D309: 0 | E309: 0 | F309: 0 | G309: 0 | H309: 176743.87 | I309: 0 | J309: 0 | K309: 0 | L309: 0 | M309: =SUM(M304:M308) -> 0 | N309: 0 | O309: 0 | P309: 0
A310: ="Project Name #"&RIGHT(A303,2)+1 -> Project Name #45
A311: 6 Park | H311: 82016.09
A316: Sub-Total | B316: =SUM(B311:B315) -> 0 | C316: 0 | D316: 0 | E316: 0 | F316: 0 | G316: 0 | H316: 82016.09 | I316: 0 | J316: 0 | K316: 0 | L316: 0 | M316: =SUM(M311:M315) -> 0 | N316: 0 | O316: 0 | P316: 0
A317: ="Project Name #"&RIGHT(A310,2)+1 -> Project Name #46
A318: Car Wash & Valvoline | H318: 47501.07
A323: Sub-Total | B323: =SUM(B318:B322) -> 0 | C323: 0 | D323: 0 | E323: 0 | F323: 0 | G323: 0 | H323: 47501.07 | I323: 0 | J323: 0 | K323: 0 | L323: 0 | M323: =SUM(M318:M322) -> 0 | N323: 0 | O323: 0 | P323: 0
A324: ="Project Name #"&RIGHT(A317,2)+1 -> Project Name #47
A325: Kingsville Condo | H325: 78574.89
A330: Sub-Total | B330: =SUM(B325:B329) -> 0 | C330: 0 | D330: 0 | E330: 0 | F330: 0 | G330: 0 | H330: 78574.89 | I330: 0 | J330: 0 | K330: 0 | L330: 0 | M330: =SUM(M325:M329) -> 0 | N330: 0 | O330: 0 | P330: 0
A331: ="Project Name #"&RIGHT(A324,2)+1 -> Project Name #48
A332: Town of Kingsville 103 Park | H332: 47485
A337: Sub-Total | B337: =SUM(B332:B336) -> 0 | C337: 0 | D337: 0 | E337: 0 | F337: 0 | G337: 0 | H337: 47485 | I337: 0 | J337: 0 | K337: 0 | L337: 0 | M337: =SUM(M332:M336) -> 0 | N337: 0 | O337: 0 | P337: 0
A338: ="Project Name #"&RIGHT(A331,2)+1 -> Project Name #49
A339: 106 Wigle | I339: 43580.19
A344: Sub-Total | B344: =SUM(B339:B343) -> 0 | C344: 0 | D344: 0 | E344: 0 | F344: 0 | G344: 0 | H344: 0 | I344: 43580.19 | J344: 0 | K344: 0 | L344: 0 | M344: =SUM(M339:M343) -> 0 | N344: 0 | O344: 0 | P344: 0
A345: ="Project Name #"&RIGHT(A338,2)+1 -> Project Name #50
A346: Forest Hills Ph 4A | I346: 352266.5
A351: Sub-Total | B351: =SUM(B346:B350) -> 0 | C351: 0 | D351: 0 | E351: 0 | F351: 0 | G351: 0 | H351: 0 | I351: 352266.5 | J351: 0 | K351: 0 | L351: 0 | M351: =SUM(M346:M350) -> 0 | N351: 0 | O351: 0 | P351: 0
A352: ="Project Name #"&RIGHT(A345,2)+1 -> Project Name #51
A353: Southpoint | I353: 42407.74
A358: Sub-Total | B358: =SUM(B353:B357) -> 0 | C358: 0 | D358: 0 | E358: 0 | F358: 0 | G358: 0 | H358: 0 | I358: 42407.74 | J358: 0 | K358: 0 | L358: 0 | M358: =SUM(M353:M357) -> 0 | N358: 0 | O358: 0 | P358: 0
A359: ="Project Name #"&RIGHT(A352,2)+1 -> Project Name #52
A360: Canadian Tire A & W | I360: 39570.92
A365: Sub-Total | B365: =SUM(B360:B364) -> 0 | C365: 0 | D365: 0 | E365: 0 | F365: 0 | G365: 0 | H365: 0 | I365: 39570.92 | J365: 0 | K365: 0 | L365: 0 | M365: =SUM(M360:M364) -> 0 | N365: 0 | O365: 0 | P365: 0
A366: ="Project Name #"&RIGHT(A359,2)+1 -> Project Name #53
A367: Townsview Ph 5 | I367: 135870.41
A372: Sub-Total | B372: =SUM(B367:B371) -> 0 | C372: 0 | D372: 0 | E372: 0 | F372: 0 | G372: 0 | H372: 0 | I372: 135870.41 | J372: 0 | K372: 0 | L372: 0 | M372: =SUM(M367:M371) -> 0 | N372: 0 | O372: 0 | P372: 0
A373: ="Project Name #"&RIGHT(A366,2)+1 -> Project Name #54
A374: 2243893 Ont Ltd (Tracey) | I374: 213324
A379: Sub-Total | B379: =SUM(B374:B378) -> 0 | C379: 0 | D379: 0 | E379: 0 | F379: 0 | G379: 0 | H379: 0 | I379: 213324 | J379: 0 | K379: 0 | L379: 0 | M379: =SUM(M374:M378) -> 0 | N379: 0 | O379: 0 | P379: 0
A380: ="Project Name #"&RIGHT(A373,2)+1 -> Project Name #55
A381: Alium Investments | I381: 48033.78
A386: Sub-Total | B386: =SUM(B381:B385) -> 0 | C386: 0 | D386: 0 | E386: 0 | F386: 0 | G386: 0 | H386: 0 | I386: 48033.78 | J386: 0 | K386: 0 | L386: 0 | M386: =SUM(M381:M385) -> 0 | N386: 0 | O386: 0 | P386: 0
A387: ="Project Name #"&RIGHT(A380,2)+1 -> Project Name #56
A388: Jakana Ph 3B - I | J388: 108300
A393: Sub-Total | B393: =SUM(B388:B392) -> 0 | C393: 0 | D393: 0 | E393: 0 | F393: 0 | G393: 0 | H393: 0 | I393: 0 | J393: 108300 | K393: 0 | L393: 0 | M393: =SUM(M388:M392) -> 0 | N393: 0 | O393: 0 | P393: 0
A394: ="Project Name #"&RIGHT(A387,2)+1 -> Project Name #57
A395: Jakana Ph 3B - II | J395: 48510
A400: Sub-Total | B400: =SUM(B395:B399) -> 0 | C400: 0 | D400: 0 | E400: 0 | F400: 0 | G400: 0 | H400: 0 | I400: 0 | J400: 48510 | K400: 0 | L400: 0 | M400: =SUM(M395:M399) -> 0 | N400: 0 | O400: 0 | P400: 0
A401: ="Project Name #"&RIGHT(A394,2)+1 -> Project Name #58
A402: Kingsville Medical | J402: 98537
A407: Sub-Total | B407: =SUM(B402:B406) -> 0 | C407: 0 | D407: 0 | E407: 0 | F407: 0 | G407: 0 | H407: 0 | I407: 0 | J407: 98537 | K407: 0 | L407: 0 | M407: =SUM(M402:M406) -> 0 | N407: 0 | O407: 0 | P407: 0
A408: ="Project Name #"&RIGHT(A401,2)+1 -> Project Name #59
A409: Westons | J409: 73581
A414: Sub-Total | B414: =SUM(B409:B413) -> 0 | C414: 0 | D414: 0 | E414: 0 | F414: 0 | G414: 0 | H414: 0 | I414: 0 | J414: 73581 | K414: 0 | L414: 0 | M414: =SUM(M409:M413) -> 0 | N414: 0 | O414: 0 | P414: 0
A415: ="Project Name #"&RIGHT(A408,2)+1 -> Project Name #60
A416: Crawford Packaging | J416: 46166
A421: Sub-Total | B421: =SUM(B416:B420) -> 0 | C421: 0 | D421: 0 | E421: 0 | F421: 0 | G421: 0 | H421: 0 | I421: 0 | J421: 46166 | K421: 0 | L421: 0 | M421: =SUM(M416:M420) -> 0 | N421: 0 | O421: 0 | P421: 0
A422: ="Project Name #"&RIGHT(A415,2)+1 -> Project Name #61
A423: Anderdon -230 Centre St | J423: 202885
A428: Sub-Total | B428: =SUM(B423:B427) -> 0 | C428: 0 | D428: 0 | E428: 0 | F428: 0 | G428: 0 | H428: 0 | I428: 0 | J428: 202885 | K428: 0 | L428: 0 | M428: =SUM(M423:M427) -> 0 | N428: 0 | O428: 0 | P428: 0
A429: ="Project Name #"&RIGHT(A422,2)+1 -> Project Name #62
A430: Woodbridge Ph 1 | J430: 140879
A435: Sub-Total | B435: =SUM(B430:B434) -> 0 | C435: 0 | D435: 0 | E435: 0 | F435: 0 | G435: 0 | H435: 0 | I435: 0 | J435: 140879 | K435: 0 | L435: 0 | M435: =SUM(M430:M434) -> 0 | N435: 0 | O435: 0 | P435: 0
A436: ="Project Name #"&RIGHT(A538,2)+1 -> Project Name #64
A437: Jasperson Relocation | K437: 7175.5
K438: 0
A442: Sub-Total | B442: =SUM(B437:B441) -> 0 | C442: 0 | D442: 0 | E442: 0 | F442: 0 | G442: 0 | H442: 0 | I442: 0 | J442: 0 | K442: 7175.5 | L442: 0 | M442: =SUM(M437:M441) -> 0 | N442: 0 | O442: 0 | P442: 0
A443: ="Project Name #"&RIGHT(A436,2)+1 -> Project Name #65
A444: MTO HWY 3- Maidstone Relocation | K444: 54669.28
A449: Sub-Total | B449: =SUM(B444:B448) -> 0 | C449: 0 | D449: 0 | E449: 0 | F449: 0 | G449: 0 | H449: 0 | I449: 0 | J449: 0 | K449: 54669.28 | L449: 0 | M449: =SUM(M444:M448) -> 0 | N449: 0 | O449: 0 | P449: 0
A450: ="Project Name #"&RIGHT(A443,2)+1 -> Project Name #66
... 71 more rows

Sheet App.2-AB_Capital Expenditures
AH1: File Number: | AJ1: =EBNUMBER -> EB-2021-0016
AH2: Exhibit:
AH3: Tab:
AH4: Schedule:
A5: TO BE UPDATED AT THE DRAFT RATE ORDER STAGE | AH5: Page:
AH7: Date:
A9: Appendix 2-AB
A10: Table 2 - Capital Expenditure Summary from Chapter 5 Consolidated Distribution System Plan Filing Requirements
A11: First year of Forecast Period:
A12: =TestYear -> 2022
A13: CATEGORY | B13: Historical Period (previous plan1 & actual) | AF13: Forecast Period (planned)
B14: =E14-1 -> 2012 | E14: =H14-1 -> 2013 | H14: =K14-1 -> 2014 | K14: =N14-1 -> 2015 | N14: =Q14-1 -> 2016 | Q14: =T14-1 -> 2017 | T14: =W14-1 -> 2018 | W14: =Z14-1 -> 2019 | Z14: =AC14-1 -> 2020 | AC14: =AF14-1 -> 2021 | AF14: =A12 -> 2022 | AG14: =AF14+1 -> 2023 | AH14: =AG14+1 -> 2024 | AI14: =AH14+1 -> 2025 | AJ14: =AI14+1 -> 2026
B15: Plan | C15: Actual | D15: Var | E15: Plan | F15: Actual | G15: Var | H15: Plan | I15: Actual | J15: Var | K15: Plan | L15: Actual | M15: Var | N15: Plan | O15: Actual | P15: Var | Q15: Plan | R15: Actual | S15: Var | T15: Plan | U15: Actual | V15: Var | W15: Plan | X15: Actual | Y15: Var | Z15: Plan | AA15: Actual | AB15: Var | AC15: Plan | AD15: Actual2 | AE15: Var
B16: $ '000 | D16: % | E16: $ '000 | G16: % | H16: $ '000 | J16: % | K16: $ '000 | M16: % | N16: $ '000 | P16: % | Q16: $ '000 | S16: % | T16: $ '000 | V16: % | W16: $ '000 | Y16: % | Z16: $ '000 | AB16: % | AC16: $ '000 | AE16: % | AF16: $ '000
A17: System Access | C17: 566.654 | D17: =IF(ISERROR((C17-B17)/B17),"--",(C17-B17)/B17) -> -- | F17: 1316.405 | G17: =IF(ISERROR((F17-E17)/E17),"--",(F17-E17)/E17) -> -- | I17: 734.364 | J17: =IF(ISERROR((I17-H17)/H17),"--",(I17-H17)/H17) -> -- | L17: 793.896 | M17: =IF(ISERROR((L17-K17)/K17),"--",(L17-K17)/K17) -> -- | O17: 553.496 | P17: =IF(ISERROR((O17-N17)/N17),"--",(O17-N17)/N17) -> -- | Q17: 560.21 | R17: 614.224 | S17: =IF(ISERROR((R17-Q17)/Q17),"--",(R17-Q17)/Q17) -> 0.0964174149 | T17: 677.053 | U17: 557.786 | V17: =IF(ISERROR((U17-T17)/T17),"--",(U17-T17)/T17) -> -0.1761560764 | W17: 693.979 | X17: 875.054 | Y17: =IF(ISERROR((X17-W17)/W17),"--",(X17-W17)/W17) -> 0.260922881 | Z17: 711.329 | AA17: 872.817 | AB17: =IF(ISERROR((AA17-Z17)/Z17),"--",(AA17-Z17)/Z17) -> 0.2270229388 | AC17: 729.112 | AD17: 564.65 | AE17: =IF(ISERROR((AD17-AC17)/AC17),"--",(AD17-AC17)/AC17) -> -0.2255647966 | AF17: 1132.708 | AG17: 942.997 | AH17: 1107.53 | AI17: 1144.189 | AJ17: 1183.298
A18: System Renewal | C18: 206.859 | D18: =IF(ISERROR((C18-B18)/B18),"--",(C18-B18)/B18) -> -- | F18: 109.702 | G18: =IF(ISERROR((F18-E18)/E18),"--",(F18-E18)/E18) -> -- | I18: 133.322 | J18: =IF(ISERROR((I18-H18)/H18),"--",(I18-H18)/H18) -> -- | L18: 494.469 | M18: =IF(ISERROR((L18-K18)/K18),"--",(L18-K18)/K18) -> -- | O18: 213.50855 | P18: =IF(ISERROR((O18-N18)/N18),"--",(O18-N18)/N18) -> -- | Q18: 261.793 | R18: 173.52524 | S18: =IF(ISERROR((R18-Q18)/Q18),"--",(R18-Q18)/Q18) -> -0.3371662344 | T18: 295.149 | U18: 513.4019 | V18: =IF(ISERROR((U18-T18)/T18),"--",(U18-T18)/T18) -> 0.7394668456 | W18: 459.279 | X18: 45.3849 | Y18: =IF(ISERROR((X18-W18)/W18),"--",(X18-W18)/W18) -> -0.9011822879 | Z18: 476.214 | AA18: 344.795 | AB18: =IF(ISERROR((AA18-Z18)/Z18),"--",(AA18-Z18)/Z18) -> -0.2759662673 | AC18: 301.272 | AD18: 460.683 | AE18: =IF(ISERROR((AD18-AC18)/AC18),"--",(AD18-AC18)/AC18) -> 0.5291265036 | AF18: 346.566 | AG18: 369.703 | AH18: 452.291 | AI18: 493.994 | AJ18: 539.012
A19: System Service | C19: 0 | D19: -- | F19: 0 | G19: -- | I19: 0 | J19: -- | L19: 0 | M19: -- | O19: 0 | P19: -- | Q19: 0 | R19: 0 | S19: -- | T19: 0 | U19: 0 | V19: -- | W19: 0 | X19: 0 | Y19: -- | Z19: 0 | AA19: 0 | AB19: -- | AC19: 0 | AD19: 0 | AE19: -- | AF19: 41.6 | AG19: 41.6 | AH19: 41.6 | AI19: 41.6 | AJ19: 83.2
A20: General Plant | C20: 11.101 | D20: -- | F20: 52.779 | G20: -- | I20: 118.492 | J20: -- | L20: 39.655 | M20: -- | O20: 131.85194 | P20: -- | Q20: 491.5 | R20: 28.04018 | S20: -0.9429497864 | T20: 457 | U20: 33.84962 | V20: -0.9259308096 | W20: 457 | X20: 174.13031 | Y20: -0.6189708753 | Z20: 177 | AA20: 539.42707 | AB20: 2.047610565 | AC20: 337 | AD20: 488.144 | AE20: 0.4484985163 | AF20: 529 | AG20: 719.079 | AH20: 243.724 | AI20: 116.893 | AJ20: 56.109
A21: TOTAL EXPENDITURE | B21: =SUM(B17:B20) -> 0 | C21: =SUM(C17:C20) -> 784.614 | D21: -- | E21: =SUM(E17:E20) -> 0 | F21: =SUM(F17:F20) -> 1478.886 | G21: -- | H21: =SUM(H17:H20) -> 0 | I21: =SUM(I17:I20) -> 986.178 | J21: -- | K21: =SUM(K17:K20) -> 0 | L21: =SUM(L17:L20) -> 1328.02 | M21: -- | N21: =SUM(N17:N20) -> 0 | O21: =SUM(O17:O20) -> 898.85649 | P21: -- | Q21: =SUM(Q17:Q20) -> 1313.503 | R21: =SUM(R17:R20) -> 815.78942 | S21: -0.378920779 | T21: 1429.202 | U21: 1105.03752 | V21: -0.2268150199 | W21: 1610.258 | X21: 1094.56921 | Y21: -0.3202522763 | Z21: 1364.543 | AA21: 1757.03907 | AB21: 0.2876392096 | AC21: 1367.384 | AD21: 1513.477 | AE21: 0.1068412385 | AF21: 2049.874 | AG21: 2073.379 | AH21: 1845.145 | AI21: 1796.676 | AJ21: =SUM(AJ17:AJ20) -> 1861.619
A22: Capital Contributions | C22: -445.52717 | D22: -- | F22: -1175.443 | G22: -- | I22: -603.122 | J22: -- | L22: -247.033 | M22: -- | O22: -438.39882 | P22: -- | Q22: -614 | R22: -242.70899 | S22: -0.6047084853 | T22: -557 | U22: -172.75361 | V22: -0.6898498923 | W22: -875 | X22: -701.5071 | Y22: -0.1982776 | Z22: -1081 | AA22: -529.593 | AB22: -0.5100897317 | AC22: -972 | AD22: -467.951 | AE22: -0.51856893 | AF22: -875.985 | AG22: -695.6 | AH22: -709.512 | AI22: -723.703 | AJ22: -738.177
A23: Net Capital Expenditures | C23: 339.08683 | D23: -- | F23: 303.443 | G23: -- | I23: 383.056 | J23: -- | L23: 1080.987 | M23: -- | O23: 460.45767 | P23: -- | Q23: 699.503 | R23: 573.08043 | S23: -0.1807319911 | T23: 872.202 | U23: 932.28391 | V23: 0.06888531556 | W23: 735.258 | X23: 393.06211 | Y23: -0.4654092713 | Z23: 283.543 | AA23: 1227.44607 | AB23: 3.32895917 | AC23: 395.384 | AD23: 1045.526 | AE23: 1.644330575 | AF23: 1173.889 | AG23: 1377.779 | AH23: 1135.633 | AI23: 1072.973 | AJ23: 1123.442
A24: System O&M | C24: 876.831 | D24: -- | F24: 725.313 | G24: -- | I24: 806.466 | J24: -- | L24: 1202.297 | M24: -- | O24: 931.33411 | P24: -- | Q24: 1542.3 | R24: 910.67757 | S24: -0.4095327952 | T24: 1413.195 | U24: 969.52192 | V24: -0.3139503607 | W24: 1477.747 | X24: 1085.80867 | Y24: -0.2652269502 | Z24: 1455.471 | AA24: 863.69902 | AB24: -0.4065845214 | AC24: 1461.609 | AD24: 1461.609 | AE24: 0 | AF24: 1446.573 | AG24: 1475.50446 | AH24: 1505.014549 | AI24: 1535.11484 | AJ24: 1565.817137
A26: Notes to the Table:
A27: 1. Historical “previous plan” data is not required unless a plan has previously been filed. However, use the last OEB-approved, at least on a Total (Capital) Expenditure basis for the last cost of service rebasing year, and the applicant should include their planned budget in each subsequent historical year up to and including the Bridge Year.
A28: 2. Indicate the number of months of 'actual' data included in the last year of the Historical Period (normally a 'bridge' year):
A30: Explanatory Notes on Variances (complete only if applicable)
A31: Notes on shifts in forecast vs. historical budgets by category
A34: Notes on year over year Plan vs. Actual variances for Total Expenditures
A37: Notes on Plan vs. Actual variance trends for individual expenditure categories

Sheet Hidden_CAPEX (hidden)
A1: Utility Name | B1: EB Number | C1: Test Year | D1: Bridge Year | E1: Last Rebasing Year | F1: Category | G1: Year | H1: Plan | I1: Actual
A2: ='LDC Info'!$E$14 -> E.L.K. Energy Inc. | B2: =EBNUMBER -> EB-2021-0016 | C2: =TestYear -> 2022 | D2: =BridgeYear -> 2021 | E2: =RebaseYear -> 2012 | F2: System Access | G2: ='App.2-AB_Capital Expenditures'!E14 -> 2013 | H2: ='App.2-AB_Capital Expenditures'!E17 -> 0 | I2: ='App.2-AB_Capital Expenditures'!F17 -> 1316.405
A3: ='LDC Info'!$E$14 -> E.L.K. Energy Inc. | B3: EB-2021-0016 | C3: 2022 | D3: 2021 | E3: 2012 | F3: System Renewal | G3: ='App.2-AB_Capital Expenditures'!E14 -> 2013 | H3: ='App.2-AB_Capital Expenditures'!E18 -> 0 | I3: ='App.2-AB_Capital Expenditures'!F18 -> 109.702
A4: ='LDC Info'!$E$14 -> E.L.K. Energy Inc. | B4: EB-2021-0016 | C4: 2022 | D4: 2021 | E4: 2012 | F4: System Service | G4: ='App.2-AB_Capital Expenditures'!E14 -> 2013 | H4: ='App.2-AB_Capital Expenditures'!E19 -> 0 | I4: ='App.2-AB_Capital Expenditures'!F19 -> 0
A5: ='LDC Info'!$E$14 -> E.L.K. Energy Inc. | B5: EB-2021-0016 | C5: 2022 | D5: 2021 | E5: 2012 | F5: General Plant | G5: ='App.2-AB_Capital Expenditures'!E14 -> 2013 | H5: ='App.2-AB_Capital Expenditures'!E20 -> 0 | I5: ='App.2-AB_Capital Expenditures'!F20 -> 52.779
A6: ='LDC Info'!$E$14 -> E.L.K. Energy Inc. | B6: EB-2021-0016 | C6: 2022 | D6: 2021 | E6: 2012 | F6: Total Expenditure | G6: ='App.2-AB_Capital Expenditures'!E14 -> 2013 | H6: ='App.2-AB_Capital Expenditures'!E21 -> 0 | I6: ='App.2-AB_Capital Expenditures'!F21 -> 1478.886
A7: ='LDC Info'!$E$14 -> E.L.K. Energy Inc. | B7: EB-2021-0016 | C7: 2022 | D7: 2021 | E7: 2012 | F7: Capital Contributions | G7: ='App.2-AB_Capital Expenditures'!E14 -> 2013 | H7: ='App.2-AB_Capital Expenditures'!E22 -> 0 | I7: ='App.2-AB_Capital Expenditures'!F22 -> -1175.443
A8: ='LDC Info'!$E$14 -> E.L.K. Energy Inc. | B8: EB-2021-0016 | C8: 2022 | D8: 2021 | E8: 2012 | F8: Net Capital Expenditures | G8: ='App.2-AB_Capital Expenditures'!E14 -> 2013 | H8: ='App.2-AB_Capital Expenditures'!E23 -> 0 | I8: ='App.2-AB_Capital Expenditures'!F23 -> 303.443
A9: ='LDC Info'!$E$14 -> E.L.K. Energy Inc. | B9: EB-2021-0016 | C9: 2022 | D9: 2021 | E9: 2012 | F9: System O&M | G9: ='App.2-AB_Capital Expenditures'!E14 -> 2013 | H9: ='App.2-AB_Capital Expenditures'!E24 -> 0 | I9: ='App.2-AB_Capital Expenditures'!F24 -> 725.313
A10: ='LDC Info'!$E$14 -> E.L.K. Energy Inc. | B10: EB-2021-0016 | C10: 2022 | D10: 2021 | E10: 2012 | F10: System Access | G10: ='App.2-AB_Capital Expenditures'!H14 -> 2014 | H10: ='App.2-AB_Capital Expenditures'!H17 -> 0 | I10: ='App.2-AB_Capital Expenditures'!I17 -> 734.364
A11: ='LDC Info'!$E$14 -> E.L.K. Energy Inc. | B11: EB-2021-0016 | C11: 2022 | D11: 2021 | E11: 2012 | F11: System Renewal | G11: ='App.2-AB_Capital Expenditures'!H14 -> 2014 | H11: ='App.2-AB_Capital Expenditures'!H18 -> 0 | I11: ='App.2-AB_Capital Expenditures'!I18 -> 133.322
A12: ='LDC Info'!$E$14 -> E.L.K. Energy Inc. | B12: EB-2021-0016 | C12: 2022 | D12: 2021 | E12: 2012 | F12: System Service | G12: ='App.2-AB_Capital Expenditures'!H14 -> 2014 | H12: ='App.2-AB_Capital Expenditures'!H19 -> 0 | I12: ='App.2-AB_Capital Expenditures'!I19 -> 0
A13: ='LDC Info'!$E$14 -> E.L.K. Energy Inc. | B13: EB-2021-0016 | C13: 2022 | D13: 2021 | E13: 2012 | F13: General Plant | G13: ='App.2-AB_Capital Expenditures'!H14 -> 2014 | H13: ='App.2-AB_Capital Expenditures'!H20 -> 0 | I13: ='App.2-AB_Capital Expenditures'!I20 -> 118.492
A14: ='LDC Info'!$E$14 -> E.L.K. Energy Inc. | B14: EB-2021-0016 | C14: 2022 | D14: 2021 | E14: 2012 | F14: Total Expenditure | G14: ='App.2-AB_Capital Expenditures'!H14 -> 2014 | H14: ='App.2-AB_Capital Expenditures'!H21 -> 0 | I14: ='App.2-AB_Capital Expenditures'!I21 -> 986.178
A15: ='LDC Info'!$E$14 -> E.L.K. Energy Inc. | B15: EB-2021-0016 | C15: 2022 | D15: 2021 | E15: 2012 | F15: Capital Contributions | G15: ='App.2-AB_Capital Expenditures'!H14 -> 2014 | H15: ='App.2-AB_Capital Expenditures'!H22 -> 0 | I15: ='App.2-AB_Capital Expenditures'!I22 -> -603.122
A16: ='LDC Info'!$E$14 -> E.L.K. Energy Inc. | B16: EB-2021-0016 | C16: 2022 | D16: 2021 | E16: 2012 | F16: Net Capital Expenditures | G16: ='App.2-AB_Capital Expenditures'!H14 -> 2014 | H16: ='App.2-AB_Capital Expenditures'!H23 -> 0 | I16: ='App.2-AB_Capital Expenditures'!I23 -> 383.056
A17: ='LDC Info'!$E$14 -> E.L.K. Energy Inc. | B17: EB-2021-0016 | C17: 2022 | D17: 2021 | E17: 2012 | F17: System O&M | G17: ='App.2-AB_Capital Expenditures'!H14 -> 2014 | H17: ='App.2-AB_Capital Expenditures'!H24 -> 0 | I17: ='App.2-AB_Capital Expenditures'!I24 -> 806.466
A18: ='LDC Info'!$E$14 -> E.L.K. Energy Inc. | B18: EB-2021-0016 | C18: 2022 | D18: 2021 | E18: 2012 | F18: System Access | G18: ='App.2-AB_Capital Expenditures'!K14 -> 2015 | H18: ='App.2-AB_Capital Expenditures'!K17 -> 0 | I18: ='App.2-AB_Capital Expenditures'!L17 -> 793.896
A19: ='LDC Info'!$E$14 -> E.L.K. Energy Inc. | B19: EB-2021-0016 | C19: 2022 | D19: 2021 | E19: 2012 | F19: System Renewal | G19: ='App.2-AB_Capital Expenditures'!K14 -> 2015 | H19: ='App.2-AB_Capital Expenditures'!K18 -> 0 | I19: ='App.2-AB_Capital Expenditures'!L18 -> 494.469
A20: ='LDC Info'!$E$14 -> E.L.K. Energy Inc. | B20: EB-2021-0016 | C20: 2022 | D20: 2021 | E20: 2012 | F20: System Service | G20: ='App.2-AB_Capital Expenditures'!K14 -> 2015 | H20: ='App.2-AB_Capital Expenditures'!K19 -> 0 | I20: ='App.2-AB_Capital Expenditures'!L19 -> 0
A21: ='LDC Info'!$E$14 -> E.L.K. Energy Inc. | B21: EB-2021-0016 | C21: 2022 | D21: 2021 | E21: 2012 | F21: General Plant | G21: ='App.2-AB_Capital Expenditures'!K14 -> 2015 | H21: ='App.2-AB_Capital Expenditures'!K20 -> 0 | I21: ='App.2-AB_Capital Expenditures'!L20 -> 39.655
A22: ='LDC Info'!$E$14 -> E.L.K. Energy Inc. | B22: EB-2021-0016 | C22: 2022 | D22: 2021 | E22: 2012 | F22: Total Expenditure | G22: ='App.2-AB_Capital Expenditures'!K14 -> 2015 | H22: ='App.2-AB_Capital Expenditures'!K21 -> 0 | I22: ='App.2-AB_Capital Expenditures'!L21 -> 1328.02
A23: ='LDC Info'!$E$14 -> E.L.K. Energy Inc. | B23: EB-2021-0016 | C23: 2022 | D23: 2021 | E23: 2012 | F23: Capital Contributions | G23: ='App.2-AB_Capital Expenditures'!K14 -> 2015 | H23: ='App.2-AB_Capital Expenditures'!K22 -> 0 | I23: ='App.2-AB_Capital Expenditures'!L22 -> -247.033
A24: ='LDC Info'!$E$14 -> E.L.K. Energy Inc. | B24: EB-2021-0016 | C24: 2022 | D24: 2021 | E24: 2012 | F24: Net Capital Expenditures | G24: ='App.2-AB_Capital Expenditures'!K14 -> 2015 | H24: ='App.2-AB_Capital Expenditures'!K23 -> 0 | I24: ='App.2-AB_Capital Expenditures'!L23 -> 1080.987
A25: ='LDC Info'!$E$14 -> E.L.K. Energy Inc. | B25: EB-2021-0016 | C25: 2022 | D25: 2021 | E25: 2012 | F25: System O&M | G25: ='App.2-AB_Capital Expenditures'!K14 -> 2015 | H25: ='App.2-AB_Capital Expenditures'!K24 -> 0 | I25: ='App.2-AB_Capital Expenditures'!L24 -> 1202.297
A26: ='LDC Info'!$E$14 -> E.L.K. Energy Inc. | B26: EB-2021-0016 | C26: 2022 | D26: 2021 | E26: 2012 | F26: System Access | G26: ='App.2-AB_Capital Expenditures'!N14 -> 2016 | H26: ='App.2-AB_Capital Expenditures'!N17 -> 0 | I26: ='App.2-AB_Capital Expenditures'!O17 -> 553.496
A27: ='LDC Info'!$E$14 -> E.L.K. Energy Inc. | B27: EB-2021-0016 | C27: 2022 | D27: 2021 | E27: 2012 | F27: System Renewal | G27: ='App.2-AB_Capital Expenditures'!N14 -> 2016 | H27: ='App.2-AB_Capital Expenditures'!N18 -> 0 | I27: ='App.2-AB_Capital Expenditures'!O18 -> 213.50855
A28: ='LDC Info'!$E$14 -> E.L.K. Energy Inc. | B28: EB-2021-0016 | C28: 2022 | D28: 2021 | E28: 2012 | F28: System Service | G28: ='App.2-AB_Capital Expenditures'!N14 -> 2016 | H28: ='App.2-AB_Capital Expenditures'!N19 -> 0 | I28: ='App.2-AB_Capital Expenditures'!O19 -> 0
A29: ='LDC Info'!$E$14 -> E.L.K. Energy Inc. | B29: EB-2021-0016 | C29: 2022 | D29: 2021 | E29: 2012 | F29: General Plant | G29: ='App.2-AB_Capital Expenditures'!N14 -> 2016 | H29: ='App.2-AB_Capital Expenditures'!N20 -> 0 | I29: ='App.2-AB_Capital Expenditures'!O20 -> 131.85194
A30: ='LDC Info'!$E$14 -> E.L.K. Energy Inc. | B30: EB-2021-0016 | C30: 2022 | D30: 2021 | E30: 2012 | F30: Total Expenditure | G30: ='App.2-AB_Capital Expenditures'!N14 -> 2016 | H30: ='App.2-AB_Capital Expenditures'!N21 -> 0 | I30: ='App.2-AB_Capital Expenditures'!O21 -> 898.85649
A31: ='LDC Info'!$E$14 -> E.L.K. Energy Inc. | B31: EB-2021-0016 | C31: 2022 | D31: 2021 | E31: 2012 | F31: Capital Contributions | G31: ='App.2-AB_Capital Expenditures'!N14 -> 2016 | H31: ='App.2-AB_Capital Expenditures'!N22 -> 0 | I31: ='App.2-AB_Capital Expenditures'!O22 -> -438.39882
A32: ='LDC Info'!$E$14 -> E.L.K. Energy Inc. | B32: EB-2021-0016 | C32: 2022 | D32: 2021 | E32: 2012 | F32: Net Capital Expenditures | G32: ='App.2-AB_Capital Expenditures'!N14 -> 2016 | H32: ='App.2-AB_Capital Expenditures'!N23 -> 0 | I32: ='App.2-AB_Capital Expenditures'!O23 -> 460.45767
A33: ='LDC Info'!$E$14 -> E.L.K. Energy Inc. | B33: EB-2021-0016 | C33: 2022 | D33: 2021 | E33: 2012 | F33: System O&M | G33: ='App.2-AB_Capital Expenditures'!N14 -> 2016 | H33: ='App.2-AB_Capital Expenditures'!N24 -> 0 | I33: ='App.2-AB_Capital Expenditures'!O24 -> 931.33411
A34: ='LDC Info'!$E$14 -> E.L.K. Energy Inc. | B34: =EBNUMBER -> EB-2021-0016 | C34: =TestYear -> 2022 | D34: =BridgeYear -> 2021 | E34: =RebaseYear -> 2012 | F34: System Access | G34: ='App.2-AB_Capital Expenditures'!Q14 -> 2017 | H34: ='App.2-AB_Capital Expenditures'!Q17 -> 560.21 | I34: ='App.2-AB_Capital Expenditures'!R17 -> 614.224
A35: ='LDC Info'!$E$14 -> E.L.K. Energy Inc. | B35: EB-2021-0016 | C35: 2022 | D35: 2021 | E35: 2012 | F35: System Renewal | G35: ='App.2-AB_Capital Expenditures'!Q14 -> 2017 | H35: ='App.2-AB_Capital Expenditures'!Q18 -> 261.793 | I35: ='App.2-AB_Capital Expenditures'!R18 -> 173.52524
A36: ='LDC Info'!$E$14 -> E.L.K. Energy Inc. | B36: EB-2021-0016 | C36: 2022 | D36: 2021 | E36: 2012 | F36: System Service | G36: ='App.2-AB_Capital Expenditures'!Q14 -> 2017 | H36: ='App.2-AB_Capital Expenditures'!Q19 -> 0 | I36: ='App.2-AB_Capital Expenditures'!R19 -> 0
A37: ='LDC Info'!$E$14 -> E.L.K. Energy Inc. | B37: EB-2021-0016 | C37: 2022 | D37: 2021 | E37: 2012 | F37: General Plant | G37: ='App.2-AB_Capital Expenditures'!Q14 -> 2017 | H37: ='App.2-AB_Capital Expenditures'!Q20 -> 491.5 | I37: ='App.2-AB_Capital Expenditures'!R20 -> 28.04018
A38: ='LDC Info'!$E$14 -> E.L.K. Energy Inc. | B38: EB-2021-0016 | C38: 2022 | D38: 2021 | E38: 2012 | F38: Total Expenditure | G38: ='App.2-AB_Capital Expenditures'!Q14 -> 2017 | H38: ='App.2-AB_Capital Expenditures'!Q21 -> 1313.503 | I38: ='App.2-AB_Capital Expenditures'!R21 -> 815.78942
A39: ='LDC Info'!$E$14 -> E.L.K. Energy Inc. | B39: EB-2021-0016 | C39: 2022 | D39: 2021 | E39: 2012 | F39: Capital Contributions | G39: ='App.2-AB_Capital Expenditures'!Q14 -> 2017 | H39: ='App.2-AB_Capital Expenditures'!Q22 -> -614 | I39: ='App.2-AB_Capital Expenditures'!R22 -> -242.70899
A40: ='LDC Info'!$E$14 -> E.L.K. Energy Inc. | B40: EB-2021-0016 | C40: 2022 | D40: 2021 | E40: 2012 | F40: Net Capital Expenditures | G40: ='App.2-AB_Capital Expenditures'!Q14 -> 2017 | H40: ='App.2-AB_Capital Expenditures'!Q23 -> 699.503 | I40: ='App.2-AB_Capital Expenditures'!R23 -> 573.08043
A41: ='LDC Info'!$E$14 -> E.L.K. Energy Inc. | B41: EB-2021-0016 | C41: 2022 | D41: 2021 | E41: 2012 | F41: System O&M | G41: ='App.2-AB_Capital Expenditures'!Q14 -> 2017 | H41: ='App.2-AB_Capital Expenditures'!Q24 -> 1542.3 | I41: ='App.2-AB_Capital Expenditures'!R24 -> 910.67757
A42: ='LDC Info'!$E$14 -> E.L.K. Energy Inc. | B42: EB-2021-0016 | C42: 2022 | D42: 2021 | E42: 2012 | F42: System Access | G42: ='App.2-AB_Capital Expenditures'!T14 -> 2018 | H42: ='App.2-AB_Capital Expenditures'!T17 -> 677.053 | I42: ='App.2-AB_Capital Expenditures'!U17 -> 557.786
A43: ='LDC Info'!$E$14 -> E.L.K. Energy Inc. | B43: EB-2021-0016 | C43: 2022 | D43: 2021 | E43: 2012 | F43: System Renewal | G43: ='App.2-AB_Capital Expenditures'!T14 -> 2018 | H43: ='App.2-AB_Capital Expenditures'!T18 -> 295.149 | I43: ='App.2-AB_Capital Expenditures'!U18 -> 513.4019
A44: ='LDC Info'!$E$14 -> E.L.K. Energy Inc. | B44: EB-2021-0016 | C44: 2022 | D44: 2021 | E44: 2012 | F44: System Service | G44: ='App.2-AB_Capital Expenditures'!T14 -> 2018 | H44: ='App.2-AB_Capital Expenditures'!T19 -> 0 | I44: ='App.2-AB_Capital Expenditures'!U19 -> 0
A45: ='LDC Info'!$E$14 -> E.L.K. Energy Inc. | B45: EB-2021-0016 | C45: 2022 | D45: 2021 | E45: 2012 | F45: General Plant | G45: ='App.2-AB_Capital Expenditures'!T14 -> 2018 | H45: ='App.2-AB_Capital Expenditures'!T20 -> 457 | I45: ='App.2-AB_Capital Expenditures'!U20 -> 33.84962
A46: ='LDC Info'!$E$14 -> E.L.K. Energy Inc. | B46: EB-2021-0016 | C46: 2022 | D46: 2021 | E46: 2012 | F46: Total Expenditure | G46: ='App.2-AB_Capital Expenditures'!T14 -> 2018 | H46: ='App.2-AB_Capital Expenditures'!T21 -> 1429.202 | I46: ='App.2-AB_Capital Expenditures'!U21 -> 1105.03752
A47: ='LDC Info'!$E$14 -> E.L.K. Energy Inc. | B47: EB-2021-0016 | C47: 2022 | D47: 2021 | E47: 2012 | F47: Capital Contributions | G47: ='App.2-AB_Capital Expenditures'!T14 -> 2018 | H47: ='App.2-AB_Capital Expenditures'!T22 -> -557 | I47: ='App.2-AB_Capital Expenditures'!U22 -> -172.75361
A48: ='LDC Info'!$E$14 -> E.L.K. Energy Inc. | B48: EB-2021-0016 | C48: 2022 | D48: 2021 | E48: 2012 | F48: Net Capital Expenditures | G48: ='App.2-AB_Capital Expenditures'!T14 -> 2018 | H48: ='App.2-AB_Capital Expenditures'!T23 -> 872.202 | I48: ='App.2-AB_Capital Expenditures'!U23 -> 932.28391
A49: ='LDC Info'!$E$14 -> E.L.K. Energy Inc. | B49: EB-2021-0016 | C49: 2022 | D49: 2021 | E49: 2012 | F49: System O&M | G49: ='App.2-AB_Capital Expenditures'!T14 -> 2018 | H49: ='App.2-AB_Capital Expenditures'!T24 -> 1413.195 | I49: ='App.2-AB_Capital Expenditures'!U24 -> 969.52192
A50: ='LDC Info'!$E$14 -> E.L.K. Energy Inc. | B50: EB-2021-0016 | C50: 2022 | D50: 2021 | E50: 2012 | F50: System Access | G50: ='App.2-AB_Capital Expenditures'!W14 -> 2019 | H50: ='App.2-AB_Capital Expenditures'!W17 -> 693.979 | I50: ='App.2-AB_Capital Expenditures'!X17 -> 875.054
A51: ='LDC Info'!$E$14 -> E.L.K. Energy Inc. | B51: EB-2021-0016 | C51: 2022 | D51: 2021 | E51: 2012 | F51: System Renewal | G51: ='App.2-AB_Capital Expenditures'!W14 -> 2019 | H51: ='App.2-AB_Capital Expenditures'!W18 -> 459.279 | I51: ='App.2-AB_Capital Expenditures'!X18 -> 45.3849
A52: ='LDC Info'!$E$14 -> E.L.K. Energy Inc. | B52: EB-2021-0016 | C52: 2022 | D52: 2021 | E52: 2012 | F52: System Service | G52: ='App.2-AB_Capital Expenditures'!W14 -> 2019 | H52: ='App.2-AB_Capital Expenditures'!W19 -> 0 | I52: ='App.2-AB_Capital Expenditures'!X19 -> 0
A53: ='LDC Info'!$E$14 -> E.L.K. Energy Inc. | B53: EB-2021-0016 | C53: 2022 | D53: 2021 | E53: 2012 | F53: General Plant | G53: ='App.2-AB_Capital Expenditures'!W14 -> 2019 | H53: ='App.2-AB_Capital Expenditures'!W20 -> 457 | I53: ='App.2-AB_Capital Expenditures'!X20 -> 174.13031
A54: ='LDC Info'!$E$14 -> E.L.K. Energy Inc. | B54: EB-2021-0016 | C54: 2022 | D54: 2021 | E54: 2012 | F54: Total Expenditure | G54: ='App.2-AB_Capital Expenditures'!W14 -> 2019 | H54: ='App.2-AB_Capital Expenditures'!W21 -> 1610.258 | I54: ='App.2-AB_Capital Expenditures'!X21 -> 1094.56921
A55: ='LDC Info'!$E$14 -> E.L.K. Energy Inc. | B55: EB-2021-0016 | C55: 2022 | D55: 2021 | E55: 2012 | F55: Capital Contributions | G55: ='App.2-AB_Capital Expenditures'!W14 -> 2019 | H55: ='App.2-AB_Capital Expenditures'!W22 -> -875 | I55: ='App.2-AB_Capital Expenditures'!X22 -> -701.5071
A56: ='LDC Info'!$E$14 -> E.L.K. Energy Inc. | B56: EB-2021-0016 | C56: 2022 | D56: 2021 | E56: 2012 | F56: Net Capital Expenditures | G56: ='App.2-AB_Capital Expenditures'!W14 -> 2019 | H56: ='App.2-AB_Capital Expenditures'!W23 -> 735.258 | I56: ='App.2-AB_Capital Expenditures'!X23 -> 393.06211
A57: ='LDC Info'!$E$14 -> E.L.K. Energy Inc. | B57: EB-2021-0016 | C57: 2022 | D57: 2021 | E57: 2012 | F57: System O&M | G57: ='App.2-AB_Capital Expenditures'!W14 -> 2019 | H57: ='App.2-AB_Capital Expenditures'!W24 -> 1477.747 | I57: ='App.2-AB_Capital Expenditures'!X24 -> 1085.80867
A58: ='LDC Info'!$E$14 -> E.L.K. Energy Inc. | B58: EB-2021-0016 | C58: 2022 | D58: 2021 | E58: 2012 | F58: System Access | G58: ='App.2-AB_Capital Expenditures'!Z14 -> 2020 | H58: ='App.2-AB_Capital Expenditures'!Z17 -> 711.329 | I58: ='App.2-AB_Capital Expenditures'!AA17 -> 872.817
A59: ='LDC Info'!$E$14 -> E.L.K. Energy Inc. | B59: EB-2021-0016 | C59: 2022 | D59: 2021 | E59: 2012 | F59: System Renewal | G59: ='App.2-AB_Capital Expenditures'!Z14 -> 2020 | H59: ='App.2-AB_Capital Expenditures'!Z18 -> 476.214 | I59: ='App.2-AB_Capital Expenditures'!AA18 -> 344.795
A60: ='LDC Info'!$E$14 -> E.L.K. Energy Inc. | B60: EB-2021-0016 | C60: 2022 | D60: 2021 | E60: 2012 | F60: System Service | G60: ='App.2-AB_Capital Expenditures'!Z14 -> 2020 | H60: ='App.2-AB_Capital Expenditures'!Z19 -> 0 | I60: ='App.2-AB_Capital Expenditures'!AA19 -> 0
A61: ='LDC Info'!$E$14 -> E.L.K. Energy Inc. | B61: EB-2021-0016 | C61: 2022 | D61: 2021 | E61: 2012 | F61: General Plant | G61: ='App.2-AB_Capital Expenditures'!Z14 -> 2020 | H61: ='App.2-AB_Capital Expenditures'!Z20 -> 177 | I61: ='App.2-AB_Capital Expenditures'!AA20 -> 539.42707
A62: ='LDC Info'!$E$14 -> E.L.K. Energy Inc. | B62: EB-2021-0016 | C62: 2022 | D62: 2021 | E62: 2012 | F62: Total Expenditure | G62: ='App.2-AB_Capital Expenditures'!Z14 -> 2020 | H62: ='App.2-AB_Capital Expenditures'!Z21 -> 1364.543 | I62: ='App.2-AB_Capital Expenditures'!AA21 -> 1757.03907
A63: ='LDC Info'!$E$14 -> E.L.K. Energy Inc. | B63: EB-2021-0016 | C63: 2022 | D63: 2021 | E63: 2012 | F63: Capital Contributions | G63: ='App.2-AB_Capital Expenditures'!Z14 -> 2020 | H63: ='App.2-AB_Capital Expenditures'!Z22 -> -1081 | I63: ='App.2-AB_Capital Expenditures'!AA22 -> -529.593
A64: ='LDC Info'!$E$14 -> E.L.K. Energy Inc. | B64: EB-2021-0016 | C64: 2022 | D64: 2021 | E64: 2012 | F64: Net Capital Expenditures | G64: ='App.2-AB_Capital Expenditures'!Z14 -> 2020 | H64: ='App.2-AB_Capital Expenditures'!Z23 -> 283.543 | I64: ='App.2-AB_Capital Expenditures'!AA23 -> 1227.44607
A65: ='LDC Info'!$E$14 -> E.L.K. Energy Inc. | B65: EB-2021-0016 | C65: 2022 | D65: 2021 | E65: 2012 | F65: System O&M | G65: ='App.2-AB_Capital Expenditures'!Z14 -> 2020 | H65: ='App.2-AB_Capital Expenditures'!Z24 -> 1455.471 | I65: ='App.2-AB_Capital Expenditures'!AA24 -> 863.69902
A66: ='LDC Info'!$E$14 -> E.L.K. Energy Inc. | B66: =EBNUMBER -> EB-2021-0016 | C66: =TestYear -> 2022 | D66: =BridgeYear -> 2021 | E66: =RebaseYear -> 2012 | F66: System Access | G66: ='App.2-AB_Capital Expenditures'!AC14 -> 2021 | H66: ='App.2-AB_Capital Expenditures'!AC17 -> 729.112 | I66: ='App.2-AB_Capital Expenditures'!AD17 -> 564.65
A67: ='LDC Info'!$E$14 -> E.L.K. Energy Inc. | B67: EB-2021-0016 | C67: 2022 | D67: 2021 | E67: 2012 | F67: System Renewal | G67: ='App.2-AB_Capital Expenditures'!AC14 -> 2021 | H67: ='App.2-AB_Capital Expenditures'!AC18 -> 301.272 | I67: ='App.2-AB_Capital Expenditures'!AD18 -> 460.683
A68: ='LDC Info'!$E$14 -> E.L.K. Energy Inc. | B68: EB-2021-0016 | C68: 2022 | D68: 2021 | E68: 2012 | F68: System Service | G68: ='App.2-AB_Capital Expenditures'!AC14 -> 2021 | H68: ='App.2-AB_Capital Expenditures'!AC19 -> 0 | I68: ='App.2-AB_Capital Expenditures'!AD19 -> 0
A69: ='LDC Info'!$E$14 -> E.L.K. Energy Inc. | B69: EB-2021-0016 | C69: 2022 | D69: 2021 | E69: 2012 | F69: General Plant | G69: ='App.2-AB_Capital Expenditures'!AC14 -> 2021 | H69: ='App.2-AB_Capital Expenditures'!AC20 -> 337 | I69: ='App.2-AB_Capital Expenditures'!AD20 -> 488.144
A70: ='LDC Info'!$E$14 -> E.L.K. Energy Inc. | B70: EB-2021-0016 | C70: 2022 | D70: 2021 | E70: 2012 | F70: Total Expenditure | G70: ='App.2-AB_Capital Expenditures'!AC14 -> 2021 | H70: ='App.2-AB_Capital Expenditures'!AC21 -> 1367.384 | I70: ='App.2-AB_Capital Expenditures'!AD21 -> 1513.477
A71: ='LDC Info'!$E$14 -> E.L.K. Energy Inc. | B71: EB-2021-0016 | C71: 2022 | D71: 2021 | E71: 2012 | F71: Capital Contributions | G71: ='App.2-AB_Capital Expenditures'!AC14 -> 2021 | H71: ='App.2-AB_Capital Expenditures'!AC22 -> -972 | I71: ='App.2-AB_Capital Expenditures'!AD22 -> -467.951
A72: ='LDC Info'!$E$14 -> E.L.K. Energy Inc. | B72: EB-2021-0016 | C72: 2022 | D72: 2021 | E72: 2012 | F72: Net Capital Expenditures | G72: ='App.2-AB_Capital Expenditures'!AC14 -> 2021 | H72: ='App.2-AB_Capital Expenditures'!AC23 -> 395.384 | I72: ='App.2-AB_Capital Expenditures'!AD23 -> 1045.526
A73: ='LDC Info'!$E$14 -> E.L.K. Energy Inc. | B73: EB-2021-0016 | C73: 2022 | D73: 2021 | E73: 2012 | F73: System O&M | G73: ='App.2-AB_Capital Expenditures'!AC14 -> 2021 | H73: ='App.2-AB_Capital Expenditures'!AC24 -> 1461.609 | I73: ='App.2-AB_Capital Expenditures'!AD24 -> 1461.609
A74: ='LDC Info'!$E$14 -> E.L.K. Energy Inc. | B74: EB-2021-0016 | C74: 2022 | D74: 2021 | E74: 2012 | F74: System Access | G74: ='App.2-AB_Capital Expenditures'!AF14 -> 2022 | H74: ='App.2-AB_Capital Expenditures'!AF17 -> 1132.708
A75: ='LDC Info'!$E$14 -> E.L.K. Energy Inc. | B75: EB-2021-0016 | C75: 2022 | D75: 2021 | E75: 2012 | F75: System Renewal | G75: ='App.2-AB_Capital Expenditures'!AF14 -> 2022 | H75: ='App.2-AB_Capital Expenditures'!AF18 -> 346.566
A76: ='LDC Info'!$E$14 -> E.L.K. Energy Inc. | B76: EB-2021-0016 | C76: 2022 | D76: 2021 | E76: 2012 | F76: System Service | G76: ='App.2-AB_Capital Expenditures'!AF14 -> 2022 | H76: ='App.2-AB_Capital Expenditures'!AF19 -> 41.6
A77: ='LDC Info'!$E$14 -> E.L.K. Energy Inc. | B77: EB-2021-0016 | C77: 2022 | D77: 2021 | E77: 2012 | F77: General Plant | G77: ='App.2-AB_Capital Expenditures'!AF14 -> 2022 | H77: ='App.2-AB_Capital Expenditures'!AF20 -> 529
A78: ='LDC Info'!$E$14 -> E.L.K. Energy Inc. | B78: EB-2021-0016 | C78: 2022 | D78: 2021 | E78: 2012 | F78: Total Expenditure | G78: ='App.2-AB_Capital Expenditures'!AF14 -> 2022 | H78: ='App.2-AB_Capital Expenditures'!AF21 -> 2049.874
A79: ='LDC Info'!$E$14 -> E.L.K. Energy Inc. | B79: EB-2021-0016 | C79: 2022 | D79: 2021 | E79: 2012 | F79: Capital Contributions | G79: ='App.2-AB_Capital Expenditures'!AF14 -> 2022 | H79: ='App.2-AB_Capital Expenditures'!AF22 -> -875.985
A80: ='LDC Info'!$E$14 -> E.L.K. Energy Inc. | B80: EB-2021-0016 | C80: 2022 | D80: 2021 | E80: 2012 | F80: Net Capital Expenditures | G80: ='App.2-AB_Capital Expenditures'!AF14 -> 2022 | H80: ='App.2-AB_Capital Expenditures'!AF23 -> 1173.889
A81: ='LDC Info'!$E$14 -> E.L.K. Energy Inc. | B81: EB-2021-0016 | C81: 2022 | D81: 2021 | E81: 2012 | F81: System O&M | G81: ='App.2-AB_Capital Expenditures'!AF14 -> 2022 | H81: ='App.2-AB_Capital Expenditures'!AF24 -> 1446.573
A82: ='LDC Info'!$E$14 -> E.L.K. Energy Inc. | B82: EB-2021-0016 | C82: 2022 | D82: 2021 | E82: 2012 | F82: System Access | G82: ='App.2-AB_Capital Expenditures'!AG14 -> 2023 | H82: ='App.2-AB_Capital Expenditures'!AG17 -> 942.997
A83: ='LDC Info'!$E$14 -> E.L.K. Energy Inc. | B83: EB-2021-0016 | C83: 2022 | D83: 2021 | E83: 2012 | F83: System Renewal | G83: ='App.2-AB_Capital Expenditures'!AG14 -> 2023 | H83: ='App.2-AB_Capital Expenditures'!AG18 -> 369.703
A84: ='LDC Info'!$E$14 -> E.L.K. Energy Inc. | B84: EB-2021-0016 | C84: 2022 | D84: 2021 | E84: 2012 | F84: System Service | G84: ='App.2-AB_Capital Expenditures'!AG14 -> 2023 | H84: ='App.2-AB_Capital Expenditures'!AG19 -> 41.6
A85: ='LDC Info'!$E$14 -> E.L.K. Energy Inc. | B85: EB-2021-0016 | C85: 2022 | D85: 2021 | E85: 2012 | F85: General Plant | G85: ='App.2-AB_Capital Expenditures'!AG14 -> 2023 | H85: ='App.2-AB_Capital Expenditures'!AG20 -> 719.079
A86: ='LDC Info'!$E$14 -> E.L.K. Energy Inc. | B86: EB-2021-0016 | C86: 2022 | D86: 2021 | E86: 2012 | F86: Total Expenditure | G86: ='App.2-AB_Capital Expenditures'!AG14 -> 2023 | H86: ='App.2-AB_Capital Expenditures'!AG21 -> 2073.379
A87: ='LDC Info'!$E$14 -> E.L.K. Energy Inc. | B87: EB-2021-0016 | C87: 2022 | D87: 2021 | E87: 2012 | F87: Capital Contributions | G87: ='App.2-AB_Capital Expenditures'!AG14 -> 2023 | H87: ='App.2-AB_Capital Expenditures'!AG22 -> -695.6
A88: ='LDC Info'!$E$14 -> E.L.K. Energy Inc. | B88: EB-2021-0016 | C88: 2022 | D88: 2021 | E88: 2012 | F88: Net Capital Expenditures | G88: ='App.2-AB_Capital Expenditures'!AG14 -> 2023 | H88: ='App.2-AB_Capital Expenditures'!AG23 -> 1377.779
A89: ='LDC Info'!$E$14 -> E.L.K. Energy Inc. | B89: EB-2021-0016 | C89: 2022 | D89: 2021 | E89: 2012 | F89: System O&M | G89: ='App.2-AB_Capital Expenditures'!AG14 -> 2023 | H89: ='App.2-AB_Capital Expenditures'!AG24 -> 1475.50446
A90: ='LDC Info'!$E$14 -> E.L.K. Energy Inc. | B90: EB-2021-0016 | C90: 2022 | D90: 2021 | E90: 2012 | F90: System Access | G90: ='App.2-AB_Capital Expenditures'!AH14 -> 2024 | H90: ='App.2-AB_Capital Expenditures'!AH17 -> 1107.53
A91: ='LDC Info'!$E$14 -> E.L.K. Energy Inc. | B91: EB-2021-0016 | C91: 2022 | D91: 2021 | E91: 2012 | F91: System Renewal | G91: ='App.2-AB_Capital Expenditures'!AH14 -> 2024 | H91: ='App.2-AB_Capital Expenditures'!AH18 -> 452.291
A92: ='LDC Info'!$E$14 -> E.L.K. Energy Inc. | B92: EB-2021-0016 | C92: 2022 | D92: 2021 | E92: 2012 | F92: System Service | G92: ='App.2-AB_Capital Expenditures'!AH14 -> 2024 | H92: ='App.2-AB_Capital Expenditures'!AH19 -> 41.6
A93: ='LDC Info'!$E$14 -> E.L.K. Energy Inc. | B93: EB-2021-0016 | C93: 2022 | D93: 2021 | E93: 2012 | F93: General Plant | G93: ='App.2-AB_Capital Expenditures'!AH14 -> 2024 | H93: ='App.2-AB_Capital Expenditures'!AH20 -> 243.724
A94: ='LDC Info'!$E$14 -> E.L.K. Energy Inc. | B94: EB-2021-0016 | C94: 2022 | D94: 2021 | E94: 2012 | F94: Total Expenditure | G94: ='App.2-AB_Capital Expenditures'!AH14 -> 2024 | H94: ='App.2-AB_Capital Expenditures'!AH21 -> 1845.145
A95: ='LDC Info'!$E$14 -> E.L.K. Energy Inc. | B95: EB-2021-0016 | C95: 2022 | D95: 2021 | E95: 2012 | F95: Capital Contributions | G95: ='App.2-AB_Capital Expenditures'!AH14 -> 2024 | H95: ='App.2-AB_Capital Expenditures'!AH22 -> -709.512
A96: ='LDC Info'!$E$14 -> E.L.K. Energy Inc. | B96: EB-2021-0016 | C96: 2022 | D96: 2021 | E96: 2012 | F96: Net Capital Expenditures | G96: ='App.2-AB_Capital Expenditures'!AH14 -> 2024 | H96: ='App.2-AB_Capital Expenditures'!AH23 -> 1135.633
A97: ='LDC Info'!$E$14 -> E.L.K. Energy Inc. | B97: EB-2021-0016 | C97: 2022 | D97: 2021 | E97: 2012 | F97: System O&M | G97: ='App.2-AB_Capital Expenditures'!AH14 -> 2024 | H97: ='App.2-AB_Capital Expenditures'!AH24 -> 1505.014549
A98: ='LDC Info'!$E$14 -> E.L.K. Energy Inc. | B98: =EBNUMBER -> EB-2021-0016 | C98: =TestYear -> 2022 | D98: =BridgeYear -> 2021 | E98: =RebaseYear -> 2012 | F98: System Access | G98: ='App.2-AB_Capital Expenditures'!AI14 -> 2025 | H98: ='App.2-AB_Capital Expenditures'!AI17 -> 1144.189
A99: ='LDC Info'!$E$14 -> E.L.K. Energy Inc. | B99: EB-2021-0016 | C99: 2022 | D99: 2021 | E99: 2012 | F99: System Renewal | G99: ='App.2-AB_Capital Expenditures'!AI14 -> 2025 | H99: ='App.2-AB_Capital Expenditures'!AI18 -> 493.994
A100: ='LDC Info'!$E$14 -> E.L.K. Energy Inc. | B100: EB-2021-0016 | C100: 2022 | D100: 2021 | E100: 2012 | F100: System Service | G100: ='App.2-AB_Capital Expenditures'!AI14 -> 2025 | H100: ='App.2-AB_Capital Expenditures'!AI19 -> 41.6
A101: ='LDC Info'!$E$14 -> E.L.K. Energy Inc. | B101: EB-2021-0016 | C101: 2022 | D101: 2021 | E101: 2012 | F101: General Plant | G101: ='App.2-AB_Capital Expenditures'!AI14 -> 2025 | H101: ='App.2-AB_Capital Expenditures'!AI20 -> 116.893
A102: ='LDC Info'!$E$14 -> E.L.K. Energy Inc. | B102: EB-2021-0016 | C102: 2022 | D102: 2021 | E102: 2012 | F102: Total Expenditure | G102: ='App.2-AB_Capital Expenditures'!AI14 -> 2025 | H102: ='App.2-AB_Capital Expenditures'!AI21 -> 1796.676
A103: ='LDC Info'!$E$14 -> E.L.K. Energy Inc. | B103: EB-2021-0016 | C103: 2022 | D103: 2021 | E103: 2012 | F103: Capital Contributions | G103: ='App.2-AB_Capital Expenditures'!AI14 -> 2025 | H103: ='App.2-AB_Capital Expenditures'!AI22 -> -723.703
A104: ='LDC Info'!$E$14 -> E.L.K. Energy Inc. | B104: EB-2021-0016 | C104: 2022 | D104: 2021 | E104: 2012 | F104: Net Capital Expenditures | G104: ='App.2-AB_Capital Expenditures'!AI14 -> 2025 | H104: ='App.2-AB_Capital Expenditures'!AI23 -> 1072.973
A105: ='LDC Info'!$E$14 -> E.L.K. Energy Inc. | B105: EB-2021-0016 | C105: 2022 | D105: 2021 | E105: 2012 | F105: System O&M | G105: ='App.2-AB_Capital Expenditures'!AI14 -> 2025 | H105: ='App.2-AB_Capital Expenditures'!AI24 -> 1535.11484
A106: ='LDC Info'!$E$14 -> E.L.K. Energy Inc. | B106: EB-2021-0016 | C106: 2022 | D106: 2021 | E106: 2012 | F106: System Access | G106: ='App.2-AB_Capital Expenditures'!AJ14 -> 2026 | H106: ='App.2-AB_Capital Expenditures'!AJ17 -> 1183.298
A107: ='LDC Info'!$E$14 -> E.L.K. Energy Inc. | B107: EB-2021-0016 | C107: 2022 | D107: 2021 | E107: 2012 | F107: System Renewal | G107: ='App.2-AB_Capital Expenditures'!AJ14 -> 2026 | H107: ='App.2-AB_Capital Expenditures'!AJ18 -> 539.012
A108: ='LDC Info'!$E$14 -> E.L.K. Energy Inc. | B108: EB-2021-0016 | C108: 2022 | D108: 2021 | E108: 2012 | F108: System Service | G108: ='App.2-AB_Capital Expenditures'!AJ14 -> 2026 | H108: ='App.2-AB_Capital Expenditures'!AJ19 -> 83.2
A109: ='LDC Info'!$E$14 -> E.L.K. Energy Inc. | B109: EB-2021-0016 | C109: 2022 | D109: 2021 | E109: 2012 | F109: General Plant | G109: ='App.2-AB_Capital Expenditures'!AJ14 -> 2026 | H109: ='App.2-AB_Capital Expenditures'!AJ20 -> 56.109
A110: ='LDC Info'!$E$14 -> E.L.K. Energy Inc. | B110: EB-2021-0016 | C110: 2022 | D110: 2021 | E110: 2012 | F110: Total Expenditure | G110: ='App.2-AB_Capital Expenditures'!AJ14 -> 2026 | H110: ='App.2-AB_Capital Expenditures'!AJ21 -> 1861.619
A111: ='LDC Info'!$E$14 -> E.L.K. Energy Inc. | B111: EB-2021-0016 | C111: 2022 | D111: 2021 | E111: 2012 | F111: Capital Contributions | G111: ='App.2-AB_Capital Expenditures'!AJ14 -> 2026 | H111: ='App.2-AB_Capital Expenditures'!AJ22 -> -738.177
A112: ='LDC Info'!$E$14 -> E.L.K. Energy Inc. | B112: EB-2021-0016 | C112: 2022 | D112: 2021 | E112: 2012 | F112: Net Capital Expenditures | G112: ='App.2-AB_Capital Expenditures'!AJ14 -> 2026 | H112: ='App.2-AB_Capital Expenditures'!AJ23 -> 1123.442
A113: ='LDC Info'!$E$14 -> E.L.K. Energy Inc. | B113: EB-2021-0016 | C113: 2022 | D113: 2021 | E113: 2012 | F113: System O&M | G113: ='App.2-AB_Capital Expenditures'!AJ14 -> 2026 | H113: ='App.2-AB_Capital Expenditures'!AJ24 -> 1565.817137

Sheet App.2-AC_Customer Engagement
B1: File Number: | C1: =EBNUMBER -> EB-2021-0016
B2: Exhibit:
B3: Tab:
B4: Schedule:
B5: Page:
B7: Date:
A9: Appendix 2-AC
A10: Customer Engagement Activities Summary
A12: Provide a list of customer engagement activities | B12: Provide a list of customer needs and preferences identified through each engagement activity | C12: Actions taken to respond to identified needs and preferences. If no action was taken, explain why.
A13: Customer Letters, E-Blast, Bill Inserts | B13: Conservation and Usage Reduction for Small Business and Residential and Low Income. Programs available to manage peak demand. | C13: General Awareness is being promoted. Increase awareness, reduce consumption and cost.
A14: Outreach to Essex Chamber of Commerce, Local B.I.A. | B14: Conservation and Usage Reduction for Small Business and Residential and Low Income. Programs available to manage peak demand. | C14: General Awareness is being promoted. Increase awareness, reduce consumption and cost.
A15: Outreach to Local Area Foodbanks, Local Social Service Agency | B15: Conservation and Usage Reduction for Small Business and Residential and Low Income | C15: General Awareness is being promoted. Increase awareness, reduce consumption and cost.
A16: Complete Re-design of E.L.K. Energy Website | B16: Rate changes and impacts, great ability to research and gain greater understanding and awareness of industry and bill. | C16: e-Services portal enables future enhancement
A17: Customer Education Literature | B17: Rate changes and impacts, great ability to research and gain greater understanding and awareness of industry and bill. | C17: E.L.K. has created a Customer Education Section at the front of the office that has brochures, bill inserts, TOU info , Conservation info etc and staff are always willing and ready to answer questions.
A18: E-Billing/Customer Connect - Online Account Services | B18: E.L.K. provides access to customer bills and consumption data | C18: E.L.K. has offering to customers based on input received from customers. This also reduces E.L.K.'s carbon footprint.
A19: Financial Assistance Program | B19: E.L.K. provides support through partnerships with the provinces Low Income Energy Assistance Program. This emergency financial assistance program are designed to help low income customers who have difficulty making their electricity bill payments | C19: E.L.K. promotes and continues to promote verbally and in writing on a monthly basis about the financial assistance programs available.
A20: Regional Planning Engagements | B20: E.L.K. has participated in all Regional Planning Initiatives with Government and Municipalities.
A21: Increased Functionality with Phone System | B21: Greater communication ability | C21: Notification of rate changes, new e billing features
A22: Oraclepoll Research Group - Customer Survey Report 2020 | B22: This report represents the findings from a January 2020 customer satisfaction survey of E.L.K. Energy customers conducted by Oraclepoll Research Limited for the LDC. This represents the third wave of customer survey data collection. The results in this report are compared with the survey that first benchmarked satisfaction scores in June 2016 and was then tracked in January 2018. More than eight or 81% of E.L.K customers provided a good (32%) or very good (49%) rating for their overall satisfaction with the LDC as their provider, up 2% from the 79% score in 2018 and +6% stronger than in 2016. Only 9% accorded a poor (8%) or very poor (1%) rating down -1% from 2016 and 10% a satisfactory mark (-1%). | C22: E.L.K. Energy Inc to focus on customer engagement activities. Increased customer focus through timely response of customer emails, open office where customers can provide feedback to Supervisors one on one.
A23: E.L.K. Energy Distribution System Plan Customer Survey 2021 Report | B23: As part of E.L.K. Energy Inc (“E.L.K.”) developing their 2022-2026 Distribution System Plan (“DSP”), an online customer survey has been undertaken to gather feedback from E.L.K. customers on their proposed plan. In total, 290 residential and business customers responded to the survey, across its six service areas. Key questions and responses from the survey can be best categorized under the following categories, including (a) customer segmentation and demographics, (b) E.L.K. performance, and (c) capital investments and customer preferences. The survey results identified three clearly defined customer priorities: 1. ensuring reliable electric service, 2. reducing the overall number of outages, and 3. prioritizing investments that will help improve system reliability, power quality, efficiency, and operations | C23: E.L.K. Energy Inc will continue to focus on customer engagement activities to obtain customer’s feedback. Increased customer focus through timely response of customer emails, open office; social media promotion to rebrand the organization via a new upcoming website. E.L.K will send another survey in the spring of 2022 to further engage customers.
A45: Note: Use "ALT-ENTER" to go to the next line within a cell

Sheet App.2-B_Acctg Instructions
A1: General Instructions to MIFRS Appendices
A2: Types of Schedules to File
A4: The purpose of this tab is to provide general instructions. The specific instructions to each appendix are listed in footnotes of each appendix.
A6: The typical applicant is expected to have made capitalization and depreciation policy changes under CGAAP as permitted by the OEB on January 1, 2012 or mandated by the OEB by January 1, 2013, and adopted IFRS for reporting purposes on January 1, 2015 (transition date January 1, 2014). Most distributors filing for 2021 rates have rebased with these accounting changes reflected in a prior rebasing application. If that is the case, information relating to pre-accounting policy changes is not generally required. Most distributors may have rebased under MIFRS. If that is the case, information related to the accounting standard used prior to IFRS is not generally required. The information to be provided by applicants will depend on when the accounting policy changes were made and when they last rebased. In general, applicants should provide the following information in the appendices:
E9: Reflecting Accounting Policy Changes in Current Application | G9: Reflected Accounting Policy Changes in Prior Application3 | H9: Rebased under MIFRS in Prior Application3
E10: Accounting Policy Changes in 2012 and Adopted IFRS in 2015 | F10: Accounting Policy Changes in 2013 and Adopted IFRS in 2015 | G10: Adopted IFRS in 2015 | H10: IFRS Since 2015
B11: 2021 | C11: Test | E11: MIFRS | F11: MIFRS | G11: MIFRS | H11: MIFRS
A12: Information to be filed in 2019 CoS Application | B12: 2020 | C12: Bridge | E12: MIFRS | F12: MIFRS | G12: MIFRS | H12: MIFRS
B13: 2019 | C13: Bridge | E13: MIFRS | F13: MIFRS | G13: MIFRS | H13: MIFRS
B14: 2018 | C14: Bridge | E14: MIFRS | F14: MIFRS | G14: MIFRS | H14: MIFRS
B15: 2017 | C15: Historical | E15: MIFRS | F15: MIFRS | G15: MIFRS | H15: MIFRS
B16: 2016 | C16: Historical | E16: MIFRS | F16: MIFRS | G16: MIFRS | H16: MIFRS
B17: 2015 | C17: Historical | E17: MIFRS and Revised CGAAP1 | F17: MIFRS and Revised CGAAP1 | G17: MIFRS and Revised CGAAP1 | H17: N/A
B18: 2014 | C18: Historical | E18: Revised CGAAP | F18: CGAAP and Revised CGAAP2 | G18: N/A | H18: N/A
B19: 2013 | C19: Historical | E19: CGAAP and Revised CGAAP2 | F19: N/A | G19: N/A | H19: N/A
A21: 1) For the transition year (2014), the applicant may file two appendices, one under Revised CGAAP and one under MIFRS, depending on the materiality of impacts. See the specific instructions under each appendix below for further details.
A22: 2) For applicants that are reflecting accounting policy changes for the first time in a rebasing application, the applicant must file two appendices in the year that the applicant implemented changes to its capitalization and depreciation policies (2012 or 2013), one before and one after the policy changes.
A23: 3) Applicants should provide CGAAP and Revised CGAAP schedules (i.e. as indicated in the first two columns of the above table) to support balances in Account 1576 if the account has yet to be disposed of.
A26: Appendix 2-BA - Fixed Asset Schedule
A28: Applicants are to provide Appendix 2-BA in accordance with the years and corresponding accounting standards noted in the above table to provide a year over year continuity in fixed assets.
A29: If this is the first application where the applicant is rebasing under MIFRS, the applicant should file two appendices, one under Revised CGAAP and one under MIFRS for the transition year (2014), if the change between Revised CGAAP and MIFRS is material. If the change from the accounting standards is not material, the applicant may choose to only provide one appendix under MIFRS. However, the applicant must also indicate the fixed asset net book value balance under Revised CGAAP, the total dollar value of the change and explain why it is not material.
A33: The applicant must establish the continuity of historical cost for gross assets and accumulated depreciation by asset class by ensuring that the opening balance in the year agrees to the closing balance in the prior year.
A36: Appendix 2-Cx - Depreciation and Amortization
A38: Applicants are to provide Appendix 2-C in accordance with the years and corresponding accounting standards listed in the above table.
A39: Appendix 2-C is to be used under all of the scenarios presented in the table above. In the appendix, the applicant will need to indicate which scenario applies. The appendix is to be duplicated for each year and for each accounting standard required as per the above table.
A40: Depreciation accounting policy changes were mandated by the OEB by January 1, 2013. In general, no further changes to an applicant's depreciation policy (i.e. assets' service lives) are expected after the OEB mandated changes by January 1, 2013, unless a change is determined to be necessary in accordance with the depreciation review required under IFRS. If the applicant has made any changes to its depreciation policy subsequent to the OEB mandated changes, for the year of the change, applicants must quantify the change in depreciation. If there are significant changes to multiple asset classes, the applicant must complete Appendix 2-C before and after the change. Applicants must also explain the nature of the change, the reason for the change, quantify the impact of the change.
A42: Appendix 2-E - Account 1575, IFRS-CGAAP Transitional PP&E Amounts (2-EA), Account 1576, Accounting Changes Under CGAAP (2-EB, 2-EC) CONTACT OEB STAFF IF TAB REQUIRED
A44: 1) For an applicant that has a balance in Account 1576 to dispose:
A45: · | B45: If an applicant changed capitalization and depreciation policies effective January 1, 2012, the applicant must complete Appendix 2-EB
A46: · | B46: If an applicant changed capitalization and depreciation policies effective January 1, 2013, the applicant must complete Appendix 2-EC
A48: 2) For an applicant that has a balance in Account 1575 to dispose:
A49: · | B49: The applicant must complete 2-EA
A50: If the applicant did not make any further PP&E accounting policy changes beyond the capitalization and depreciation policy changes as mandated by the OEB by January 1, 2013 (i.e. no further changes made on transition to IFRS), the applicant must indicate this and does not need to complete Appendix 2-EA.
A54: Appendix 2-Y - Summary of Impacts to Revenue Requirement from Transition to MIFRS CONTACT OEB STAFF IF TAB REQUIRED
A56: Applicants must complete Appendix 2-Y if this is the first rebasing application under MIFRS. An applicant must provide a summary of the dollar impacts of MIFRS to each component of the revenue requirement (e.g. rate base, operating costs, etc.), including the overall impact on the proposed revenue requirement. Accordingly, the applicant must identify financial differences and resulting revenue requirement impacts arising from the adoption of MIFRS as compared to CGAAP. If the applicant is reflecting the changes in capitalization and depreciation policies for the first time in a rebasing application as well, then a comparison between MIFRS and CGAAP before the change in accounting policies should be completed. If the applicant changed capitalization and depreciation policies and reflected these changes in a prior rebasing application, then a comparison between MIFRS and CGAAP after the change in accounting policies should be completed.

Sheet App.2-BA_Fixed Asset Cont
L1: File Number: | M1: =EBNUMBER -> EB-2021-0016
L2: Exhibit:
L3: Tab:
L4: Schedule:
L5: Page:
L7: Date:
A9: Appendix 2-BA
A10: Fixed Asset Continuity Schedule 1
E12: Accounting Standard | F12: CGAAP
E13: Year | F13: 2012
D15: Cost | J15: Accumulated Depreciation
A16: CCA Class 2 | B16: OEB Account 3 | C16: Description 3 | D16: Opening Balance | E16: Additions 4 | F16: Disposals 6 | G16: Closing Balance | I16: Opening Balance | J16: Additions | K16: Disposals 6 | L16: Closing Balance | M16: Net Book Value
B17: 1609 | C17: Capital Contributions Paid | G17: =D17+E17+F17 -> 0 | L17: =I17+J17+K17 -> 0 | M17: =G17+L17 -> 0
A18: 12 | B18: 1611 | C18: Computer Software (Formally known as Account 1925) | D18: 239727.19 | E18: 1293.84 | F18: 0 | G18: =D18+E18+F18 -> 241021.03 | I18: -194361.68 | J18: -36534.86 | K18: 0 | L18: =I18+J18+K18 -> -230896.54 | M18: =G18+L18 -> 10124.49
A19: CEC | B19: 1612 | C19: Land Rights (Formally known as Account 1906) | D19: 2945 | E19: 0 | F19: 0 | G19: =D19+E19+F19 -> 2945 | I19: -2725 | J19: 0 | K19: 0 | L19: =I19+J19+K19 -> -2725 | M19: =G19+L19 -> 220
A20: N/A | B20: 1805 | C20: Land | D20: 2112 | E20: 0 | F20: 0 | G20: =D20+E20+F20 -> 2112 | I20: 0 | J20: 0 | K20: 0 | L20: =I20+J20+K20 -> 0 | M20: =G20+L20 -> 2112
A21: 47 | B21: 1808 | C21: Buildings | G21: =D21+E21+F21 -> 0 | L21: =I21+J21+K21 -> 0 | M21: =G21+L21 -> 0
A22: 13 | B22: 1810 | C22: Leasehold Improvements | D22: 0 | E22: 0 | F22: 0 | G22: 0 | I22: 0 | J22: 0 | K22: 0 | L22: 0 | M22: 0
A23: 47 | B23: 1815 | C23: Transformer Station Equipment >50 kV | D23: 0 | E23: 0 | F23: 0 | G23: 0 | I23: 0 | J23: 0 | K23: 0 | L23: 0 | M23: 0
A24: 47 | B24: 1820 | C24: Distribution Station Equipment <50 kV | D24: 142098 | E24: 0 | F24: 0 | G24: 142098 | I24: -140952.12 | J24: -61.97 | K24: 0 | L24: -141014.09 | M24: 1083.91
A25: 47 | B25: 1825 | C25: Storage Battery Equipment | D25: 0 | E25: 0 | F25: 0 | G25: 0 | I25: 0 | J25: 0 | K25: 0 | L25: 0 | M25: 0
A26: 47 | B26: 1830 | C26: Poles, Towers & Fixtures | D26: 888855.67 | E26: 23731.63 | F26: 0 | G26: 912587.3 | I26: -197609.72 | J26: -36038.84 | K26: 0 | L26: -233648.56 | M26: 678938.74
A27: 47 | B27: 1835 | C27: Overhead Conductors & Devices | D27: 6275032.81 | E27: 106130.69 | F27: 0 | G27: 6381163.5 | I27: -4306415.82 | J27: -248007.64 | K27: 0 | L27: -4554423.46 | M27: 1826740.04
A28: 47 | B28: 1840 | C28: Underground Conduit | D28: 1251541.71 | E28: 124330.6 | F28: 0 | G28: 1375872.31 | I28: -243929.59 | J28: -52553.43 | K28: 0 | L28: -296483.02 | M28: 1079389.29
A29: 47 | B29: 1845 | C29: Underground Conductors & Devices | D29: 7246992.79 | E29: 229403.76 | F29: 0 | G29: 7476396.55 | I29: -4537672.94 | J29: -277279.9 | K29: 0 | L29: -4814952.84 | M29: 2661443.71
A30: 47 | B30: 1850 | C30: Line Transformers | D30: 5511324.28 | E30: 216442.34 | F30: 0 | G30: 5727766.62 | I30: -3331320.24 | J30: -200371.24 | K30: 0 | L30: -3531691.48 | M30: 2196075.14
A31: 47 | B31: 1855 | C31: Services (Overhead & Underground) | D31: 699826.73 | E31: 72964.61 | F31: 0 | G31: 772791.34 | I31: -137902.48 | J31: -29461.61 | K31: 0 | L31: -167364.09 | M31: 605427.25
A32: 47 | B32: 1860 | C32: Meters | D32: 514261.66 | E32: 2402.23 | F32: 0 | G32: 516663.89 | I32: -70590.95 | J32: -12641.99 | K32: 0 | L32: -83232.94 | M32: 433430.95
A33: 47 | B33: 1860 | C33: Meters (Smart Meters) | D33: 0 | E33: 0 | F33: 0 | G33: 0 | I33: 0 | J33: 0 | K33: 0 | L33: 0 | M33: 0
A34: N/A | B34: 1905 | C34: Land | D34: 171765 | E34: 0 | F34: 0 | G34: 171765 | I34: 0 | J34: 0 | K34: 0 | L34: 0 | M34: 171765
A35: 47 | B35: 1908 | C35: Buildings & Fixtures | D35: 661839.77 | E35: 3031.29 | F35: 0 | G35: 664871.06 | I35: -429950.85 | J35: -14459.22 | K35: 0 | L35: -444410.07 | M35: 220460.99
A36: 13 | B36: 1910 | C36: Leasehold Improvements | D36: 0 | E36: 0 | F36: 0 | G36: 0 | I36: 0 | J36: 0 | K36: 0 | L36: 0 | M36: 0
A37: 8 | B37: 1915 | C37: Office Furniture & Equipment (10 years) | D37: 242909.09 | E37: 44.8 | F37: 0 | G37: 242953.89 | I37: -204574.88 | J37: -6978.95 | K37: 0 | L37: -211553.83 | M37: 31400.06
A38: 8 | B38: 1915 | C38: Office Furniture & Equipment (5 years) | G38: 0 | L38: 0 | M38: 0
A39: 10 | B39: 1920 | C39: Computer Equipment - Hardware | D39: 360968.58 | E39: 4642.92 | F39: 0 | G39: 365611.5 | I39: -347321.52 | J39: -11652.43 | K39: 0 | L39: -358973.95 | M39: 6637.55
A40: 45 | B40: 1920 | C40: Computer Equip.-Hardware(Post Mar. 22/04) | G40: 0 | L40: 0 | M40: 0
A41: 50 | B41: 1920 | C41: Computer Equip.-Hardware(Post Mar. 19/07) | G41: 0 | L41: 0 | M41: 0
A42: 10 | B42: 1930 | C42: Transportation Equipment | D42: 1886565.41 | E42: 0 | F42: 0 | G42: 1886565.41 | I42: -1562243.74 | J42: -83137.21 | K42: 0 | L42: -1645380.95 | M42: 241184.46
A43: 8 | B43: 1935 | C43: Stores Equipment | D43: 0 | E43: 0 | F43: 0 | G43: 0 | I43: 0 | J43: 0 | K43: 0 | L43: 0 | M43: 0
A44: 8 | B44: 1940 | C44: Tools, Shop & Garage Equipment | D44: 365316.94 | E44: 195.59 | F44: 0 | G44: 365512.53 | I44: -306442.86 | J44: -12668.95 | K44: 0 | L44: -319111.81 | M44: 46400.72
A45: 8 | B45: 1945 | C45: Measurement & Testing Equipment | D45: 0 | E45: 0 | F45: 0 | G45: 0 | I45: 0 | J45: 0 | K45: 0 | L45: 0 | M45: 0
A46: 8 | B46: 1950 | C46: Power Operated Equipment | D46: 0 | E46: 0 | F46: 0 | G46: 0 | I46: 0 | J46: 0 | K46: 0 | L46: 0 | M46: 0
A47: 8 | B47: 1955 | C47: Communications Equipment | D47: 35830.6 | E47: 0 | F47: 0 | G47: 35830.6 | I47: -23199.75 | J47: -1545.35 | K47: 0 | L47: -24745.1 | M47: 11085.5
A48: 8 | B48: 1955 | C48: Communication Equipment (Smart Meters) | G48: 0 | L48: 0 | M48: 0
A49: 8 | B49: 1960 | C49: Miscellaneous Equipment | D49: 0 | E49: 0 | F49: 0 | G49: 0 | I49: 0 | J49: 0 | K49: 0 | L49: 0 | M49: 0
A50: 47 | B50: 1970 | C50: Load Management Controls Customer Premises | D50: 0 | E50: 0 | F50: 0 | G50: 0 | I50: 0 | J50: 0 | K50: 0 | L50: 0 | M50: 0
A51: 47 | B51: 1975 | C51: Load Management Controls Utility Premises | D51: 0 | E51: 0 | F51: 0 | G51: 0 | I51: 0 | J51: 0 | K51: 0 | L51: 0 | M51: 0
A52: 47 | B52: 1980 | C52: System Supervisor Equipment | D52: 0 | E52: 0 | F52: 0 | G52: 0 | I52: 0 | J52: 0 | K52: 0 | L52: 0 | M52: 0
A53: 47 | B53: 1985 | C53: Miscellaneous Fixed Assets | D53: 15 | E53: 0 | F53: 0 | G53: 15 | I53: 0 | J53: -15.22 | K53: 0 | L53: -15.22 | M53: -0.22
A54: 47 | B54: 1990 | C54: Other Tangible Property | D54: 0 | E54: 0 | F54: 0 | G54: 0 | I54: 0 | J54: 0 | K54: 0 | L54: 0 | M54: 0
A55: 47 | B55: 1995 | C55: Contributions & Grants | D55: -3871421.12 | E55: -445527.17 | F55: 0 | G55: -4316948.29 | I55: 1064209.77 | J55: 165319.54 | K55: 0 | L55: 1229529.31 | M55: -3087418.98
A56: 47 | B56: 2440 | C56: Deferred Revenue5 | G56: 0 | L56: 0 | M56: 0
B57: 2005 | C57: Property Under Finance Lease7 | G57: 0 | L57: 0 | M57: 0
C58: Sub-Total | D58: =SUM(D17:D57) -> 22628507.11 | E58: =SUM(E17:E57) -> 339087.13 | F58: =SUM(F17:F57) -> 0 | G58: =SUM(G17:G57) -> 22967594.24 | I58: =SUM(I17:I57) -> -14973004.37 | J58: =SUM(J17:J57) -> -858089.27 | K58: =SUM(K17:K57) -> 0 | L58: =SUM(L17:L57) -> -15831093.64 | M58: =SUM(M17:M57) -> 7136500.6
C59: Less Socialized Renewable Energy Generation Investments (input as negative) | G59: =D59+E59+F59 -> 0 | L59: =I59+J59+K59 -> 0 | M59: =G59+L59 -> 0
C60: Less Other Non Rate-Regulated Utility Assets (input as negative) | G60: 0 | L60: =I60+J60+K60 -> 0 | M60: 0
C61: Total PP&E | D61: =SUM(D58:D60) -> 22628507.11 | E61: =SUM(E58:E60) -> 339087.13 | F61: =SUM(F58:F60) -> 0 | G61: =SUM(G58:G60) -> 22967594.24 | I61: =SUM(I58:I60) -> -14973004.37 | J61: =SUM(J58:J60) -> -858089.27 | K61: =SUM(K58:K60) -> 0 | L61: =SUM(L58:L60) -> -15831093.64 | M61: =SUM(M58:M60) -> 7136500.6
C62: Depreciation Expense adj. from gain or loss on the retirement of assets (pool of like assets), if applicable6
C63: Total | J63: =J61+J62 -> -858089.27
I65: Less: Fully Allocated Depreciation
A66: 10 | C66: Transportation | I66: Transportation | K66: =J42 -> -83137.21
A67: 8 | C67: Stores Equipment | I67: Stores Equipment | K67: =J47 -> -1545.35
A68: 47 | C68: Deferred Revenue | I68: Deferred Revenue
I69: Net Depreciation | K69: =J63-K66-K67-K68 -> -773406.71
A71: Notes:
A73: 1 | B73: Tables in the format outlined above covering all fixed asset accounts should be submitted for the Test Year, Bridge Year and all relevant historical years. At a minimum , the applicant must provide data for the earlier of: 1) all historical years back to its last rebasing; or 2) at least three years of historical actuals, in addition to Bridge Year and Test Year forecasts.
A76: 2 | B76: The "CCA Class" for fixed assets should generally agree with the CCA Class used for tax purposes in Tax Returns. Fixed Assets sub-components may be used where the underlying asset components are classified under multiple CCA Classes for tax purposes. If an applicant uses any different classes from those shown in the table, an explanation should be provided. (also see note 3).
A79: 3 | B79: The table may need to be customized for a utility's asset categories or for any new asset accounts announced or authorized by the OEB.
A81: 4 | B81: The additions in column (E) must not include construction work in progress (CWIP).
A83: 5 | B83: Effective on the date of IFRS adoption, customer contributions will no longer be recorded in Account 1995 Contributions & Grants, but will be recorded in Account 2440, Deferred Revenues. Amortization of deferred revenue will be removed from the depreciation expense shown on this fixed asset continuity schedule as it should be included as income in Appendix 2-H Other Revenues.
A85: 6 | B85: The applicant must ensure that all asset disposals have been clearly identified in the Chapter 2 Appendices for all historic, bridge and test years. Where a distributor for general financial reporting purposes under IFRS has accounted for the amount of gain or loss on the retirement of assets in a pool of like assets as a charge or credit to income, for reporting and rate application filings, the distributor shall reclassify such gains and losses as depreciation expense, and disclose the amount separately.
A89: 7 | B89: This account includes the amount recorded under finance leases for plant leased from others and used by the utility in its utility operations.
E93: Accounting Standard | F93: CGAAP
E94: Year | F94: 2013
D96: Cost | J96: Accumulated Depreciation
A97: CCA Class 2 | B97: OEB Account 3 | C97: Description 3 | D97: Opening Balance | E97: Additions 4 | F97: Disposals 6 | G97: Closing Balance | I97: Opening Balance | J97: Additions | K97: Disposals 6 | L97: Closing Balance | M97: Net Book Value
B98: 1609 | C98: Capital Contributions Paid | G98: =D98+E98+F98 -> 0 | L98: =I98+J98+K98 -> 0 | M98: =G98+L98 -> 0
A99: 12 | B99: 1611 | C99: Computer Software (Formally known as Account 1925) | D99: 241021.03 | E99: 2716 | F99: 0 | G99: =D99+E99+F99 -> 243737.03 | I99: -230896.54 | J99: -19361 | K99: 0 | L99: =I99+J99+K99 -> -250257.54 | M99: =G99+L99 -> -6520.51
A100: CEC | B100: 1612 | C100: Land Rights (Formally known as Account 1906) | D100: 2945 | E100: 0 | F100: 0 | G100: =D100+E100+F100 -> 2945 | I100: -2725 | J100: 0 | K100: 0 | L100: =I100+J100+K100 -> -2725 | M100: =G100+L100 -> 220
A101: N/A | B101: 1805 | C101: Land | D101: 2112 | E101: 0 | F101: 0 | G101: =D101+E101+F101 -> 2112 | I101: 0 | J101: 0 | K101: 0 | L101: =I101+J101+K101 -> 0 | M101: =G101+L101 -> 2112
A102: 47 | B102: 1808 | C102: Buildings | G102: =D102+E102+F102 -> 0 | L102: =I102+J102+K102 -> 0 | M102: =G102+L102 -> 0
A103: 13 | B103: 1810 | C103: Leasehold Improvements | D103: 0 | E103: 0 | F103: 0 | G103: 0 | I103: 0 | J103: 0 | K103: 0 | L103: 0 | M103: 0
A104: 47 | B104: 1815 | C104: Transformer Station Equipment >50 kV | D104: 0 | E104: 0 | F104: 0 | G104: 0 | I104: 0 | J104: 0 | K104: 0 | L104: 0 | M104: 0
A105: 47 | B105: 1820 | C105: Distribution Station Equipment <50 kV | D105: 142098 | E105: 0 | F105: 0 | G105: 142098 | I105: -141014.09 | J105: -62 | K105: 0 | L105: -141076.09 | M105: 1021.91
A106: 47 | B106: 1825 | C106: Storage Battery Equipment | D106: 0 | E106: 0 | F106: 0 | G106: 0 | I106: 0 | J106: 0 | K106: 0 | L106: 0 | M106: 0
A107: 47 | B107: 1830 | C107: Poles, Towers & Fixtures | D107: 912587.3 | E107: 88785 | F107: 0 | G107: 1001372.3 | I107: -233648.56 | J107: -18672 | K107: 0 | L107: -252320.56 | M107: 749051.74
A108: 47 | B108: 1835 | C108: Overhead Conductors & Devices | D108: 6381163.5 | E108: 76806 | F108: 0 | G108: 6457969.5 | I108: -4554423.46 | J108: -36380 | K108: 0 | L108: -4590803.46 | M108: 1867166.04
A109: 47 | B109: 1840 | C109: Underground Conduit | D109: 1375872.31 | E109: 425196 | F109: 0 | G109: 1801068.31 | I109: -296483.02 | J109: -28583 | K109: 0 | L109: -325066.02 | M109: 1476002.29
A110: 47 | B110: 1845 | C110: Underground Conductors & Devices | D110: 7476396.55 | E110: 440764 | F110: 0 | G110: 7917160.55 | I110: -4814952.84 | J110: -91845 | K110: 0 | L110: -4906797.84 | M110: 3010362.71
A111: 47 | B111: 1850 | C111: Line Transformers | D111: 5727766.62 | E111: 260570 | F111: 0 | G111: 5988336.62 | I111: -3531691.48 | J111: -72296 | K111: 0 | L111: -3603987.48 | M111: 2384349.14
A112: 47 | B112: 1855 | C112: Services (Overhead & Underground) | D112: 772791.34 | E112: 99790 | F112: 0 | G112: 872581.34 | I112: -167364.09 | J112: -32917 | K112: 0 | L112: -200281.09 | M112: 672300.25
A113: 47 | B113: 1860 | C113: Meters | D113: 941351.89 | E113: 9501 | F113: -516664 | G113: 434188.89 | I113: -83232.94 | J113: -37118 | K113: 83233 | L113: -37117.94 | M113: 397070.95
A114: 47 | B114: 1860 | C114: Meters (Smart Meters) | D114: 912143 | E114: 24695 | F114: 0 | G114: 936838 | I114: 0 | J114: -128350 | K114: 0 | L114: -128350 | M114: 808488
A115: N/A | B115: 1905 | C115: Land | D115: 171765 | E115: 0 | F115: 0 | G115: 171765 | I115: 0 | J115: 0 | K115: 0 | L115: 0 | M115: 171765
A116: 47 | B116: 1908 | C116: Buildings & Fixtures | D116: 664871.06 | E116: 0 | F116: 0 | G116: 664871.06 | I116: -346576.8 | J116: -14490 | K116: 0 | L116: -361066.8 | M116: 303804.26
A117: 13 | B117: 1910 | C117: Leasehold Improvements | D117: 0 | E117: 0 | F117: 0 | G117: 0 | I117: 0 | J117: 0 | K117: 0 | L117: 0 | M117: 0
A118: 8 | B118: 1915 | C118: Office Furniture & Equipment (10 years) | D118: 242953.89 | E118: 2223 | F118: 0 | G118: 245176.89 | I118: -211553.83 | J118: -6873 | K118: 0 | L118: -218426.83 | M118: 26750.06
A119: 8 | B119: 1915 | C119: Office Furniture & Equipment (5 years) | G119: 0 | L119: 0 | M119: 0
A120: 10 | B120: 1920 | C120: Computer Equipment - Hardware | D120: 365611.5 | E120: 2165 | F120: 0 | G120: 367776.5 | I120: -358973.95 | J120: -5837 | K120: 0 | L120: -364810.95 | M120: 2965.55
A121: 45 | B121: 1920 | C121: Computer Equip.-Hardware(Post Mar. 22/04) | G121: 0 | L121: 0 | M121: 0
A122: 50 | B122: 1920 | C122: Computer Equip.-Hardware(Post Mar. 19/07) | G122: 0 | L122: 0 | M122: 0
A123: 10 | B123: 1930 | C123: Transportation Equipment | D123: 2127749.41 | E123: 30000 | F123: -1891065 | G123: 266684.41 | I123: -1645380.95 | J123: -66861 | K123: 1645381 | L123: -66860.95 | M123: 199823.46
A124: 8 | B124: 1935 | C124: Stores Equipment | D124: 0 | E124: 0 | F124: 0 | G124: 0 | I124: 0 | J124: 0 | K124: 0 | L124: 0 | M124: 0
A125: 8 | B125: 1940 | C125: Tools, Shop & Garage Equipment | D125: 365512.53 | E125: 15400 | F125: 0 | G125: 380912.53 | I125: -319111.81 | J125: -13361 | K125: 0 | L125: -332472.81 | M125: 48439.72
A126: 8 | B126: 1945 | C126: Measurement & Testing Equipment | D126: 0 | E126: 0 | F126: 0 | G126: 0 | I126: 0 | J126: 0 | K126: 0 | L126: 0 | M126: 0
A127: 8 | B127: 1950 | C127: Power Operated Equipment | D127: 0 | E127: 0 | F127: 0 | G127: 0 | I127: 0 | J127: 0 | K127: 0 | L127: 0 | M127: 0
A128: 8 | B128: 1955 | C128: Communications Equipment | D128: 35830.6 | E128: 275 | F128: 0 | G128: 36105.6 | I128: -24745.1 | J128: -1483 | K128: 0 | L128: -26228.1 | M128: 9877.5
A129: 8 | B129: 1955 | C129: Communication Equipment (Smart Meters) | G129: 0 | L129: 0 | M129: 0
A130: 8 | B130: 1960 | C130: Miscellaneous Equipment | D130: 0 | E130: 0 | F130: 0 | G130: 0 | I130: 0 | J130: 0 | K130: 0 | L130: 0 | M130: 0
A131: 47 | B131: 1970 | C131: Load Management Controls Customer Premises | D131: 0 | E131: 0 | F131: 0 | G131: 0 | I131: 0 | J131: 0 | K131: 0 | L131: 0 | M131: 0
A132: 47 | B132: 1975 | C132: Load Management Controls Utility Premises | D132: 0 | E132: 0 | F132: 0 | G132: 0 | I132: 0 | J132: 0 | K132: 0 | L132: 0 | M132: 0
A133: 47 | B133: 1980 | C133: System Supervisor Equipment | D133: 0 | E133: 0 | F133: 0 | G133: 0 | I133: 0 | J133: 0 | K133: 0 | L133: 0 | M133: 0
A134: 47 | B134: 1985 | C134: Miscellaneous Fixed Assets | D134: 15 | E134: 0 | F134: 0 | G134: 15 | I134: -15.22 | J134: 0 | K134: 0 | L134: -15.22 | M134: -0.22
A135: 47 | B135: 1990 | C135: Other Tangible Property | D135: 0 | E135: 0 | F135: 0 | G135: 0 | I135: 0 | J135: 0 | K135: 0 | L135: 0 | M135: 0
A136: 47 | B136: 1995 | C136: Contributions & Grants | G136: 0 | L136: 0 | M136: 0
A137: 47 | B137: 2440 | C137: Deferred Revenue5 | D137: -4316948.29 | E137: -1175443 | F137: 0 | G137: -5492391.29 | I137: 1229529.31 | J137: 197739 | K137: 0 | L137: 1427268.31 | M137: -4065122.98
B138: 2005 | C138: Property Under Finance Lease7 | G138: 0 | L138: 0 | M138: 0
C139: Sub-Total | D139: =SUM(D98:D138) -> 24545609.24 | E139: =SUM(E98:E138) -> 303443 | F139: =SUM(F98:F138) -> -2407729 | G139: =SUM(G98:G138) -> 22441323.24 | I139: =SUM(I98:I138) -> -15733260.37 | J139: =SUM(J98:J138) -> -376750 | K139: =SUM(K98:K138) -> 1728614 | L139: =SUM(L98:L138) -> -14381396.37 | M139: =SUM(M98:M138) -> 8059926.87
C140: Less Socialized Renewable Energy Generation Investments (input as negative) | G140: =D140+E140+F140 -> 0 | L140: =I140+J140+K140 -> 0 | M140: =G140+L140 -> 0
C141: Less Other Non Rate-Regulated Utility Assets (input as negative) | G141: =D141+E141+F141 -> 0 | L141: =I141+J141+K141 -> 0 | M141: =G141+L141 -> 0
C142: Total PP&E | D142: =SUM(D139:D141) -> 24545609.24 | E142: =SUM(E139:E141) -> 303443 | F142: =SUM(F139:F141) -> -2407729 | G142: =SUM(G139:G141) -> 22441323.24 | I142: =SUM(I139:I141) -> -15733260.37 | J142: =SUM(J139:J141) -> -376750 | K142: =SUM(K139:K141) -> 1728614 | L142: =SUM(L139:L141) -> -14381396.37 | M142: =SUM(M139:M141) -> 8059926.87
C143: Depreciation Expense adj. from gain or loss on the retirement of assets (pool of like assets), if applicable6
C144: Total | J144: =J142+J143 -> -376750
I146: Less: Fully Allocated Depreciation
A147: 10 | C147: Transportation | I147: Transportation | K147: =J123 -> -66861
A148: 8 | C148: Stores Equipment | I148: Stores Equipment | K148: =J128 -> -1483
A149: 47 | C149: Deferred Revenue | I149: Deferred Revenue
I150: Net Depreciation | K150: =J144-K147-K148-K149 -> -308406
A152: Notes:
A154: 1 | B154: Tables in the format outlined above covering all fixed asset accounts should be submitted for the Test Year, Bridge Year and all relevant historical years. At a minimum , the applicant must provide data for the earlier of: 1) all historical years back to its last rebasing; or 2) at least three years of historical actuals, in addition to Bridge Year and Test Year forecasts.
A157: 2 | B157: The "CCA Class" for fixed assets should generally agree with the CCA Class used for tax purposes in Tax Returns. Fixed Assets sub-components may be used where the underlying asset components are classified under multiple CCA Classes for tax purposes. If an applicant uses any different classes from those shown in the table, an explanation should be provided. (also see note 3).
A160: 3 | B160: The table may need to be customized for a utility's asset categories or for any new asset accounts announced or authorized by the OEB.
A162: 4 | B162: The additions in column (E) must not include construction work in progress (CWIP).
A164: 5 | B164: Effective on the date of IFRS adoption, customer contributions will no longer be recorded in Account 1995 Contributions & Grants, but will be recorded in Account 2440, Deferred Revenues. Amortization of deferred revenue will be removed from the depreciation expense shown on this fixed asset continuity schedule as it should be included as income in Appendix 2-H Other Revenues.
A166: 6 | B166: The applicant must ensure that all asset disposals have been clearly identified in the Chapter 2 Appendices for all historic, bridge and test years. Where a distributor for general financial reporting purposes under IFRS has accounted for the amount of gain or loss on the retirement of assets in a pool of like assets as a charge or credit to income, for reporting and rate application filings, the distributor shall reclassify such gains and losses as depreciation expense, and disclose the amount separately.
A170: 7 | B170: This account includes the amount recorded under finance leases for plant leased from others and used by the utility in its utility operations.
E172: Accounting Standard | F172: CGAAP
E173: Year | F173: 2014
D175: Cost | J175: Accumulated Depreciation
A176: CCA Class 2 | B176: OEB Account 3 | C176: Description 3 | D176: Opening Balance | E176: Additions 4 | F176: Disposals 6 | G176: Closing Balance | I176: Opening Balance | J176: Additions | K176: Disposals 6 | L176: Closing Balance | M176: Net Book Value
B177: 1609 | C177: Capital Contributions Paid | G177: =D177+E177+F177 -> 0 | L177: =I177+J177+K177 -> 0 | M177: =G177+L177 -> 0
A178: 12 | B178: 1611 | C178: Computer Software (Formally known as Account 1925) | D178: 243737.03 | E178: 13313 | F178: 0 | G178: =D178+E178+F178 -> 257050.03 | I178: -250257.54 | J178: -2851 | K178: 0 | L178: =I178+J178+K178 -> -253108.54 | M178: =G178+L178 -> 3941.49
A179: CEC | B179: 1612 | C179: Land Rights (Formally known as Account 1906) | D179: 2945 | E179: 0 | F179: 0 | G179: =D179+E179+F179 -> 2945 | I179: -2725 | J179: 0 | K179: 0 | L179: =I179+J179+K179 -> -2725 | M179: =G179+L179 -> 220
A180: N/A | B180: 1805 | C180: Land | D180: 2112 | E180: 0 | F180: 0 | G180: =D180+E180+F180 -> 2112 | I180: 0 | J180: 0 | K180: 0 | L180: =I180+J180+K180 -> 0 | M180: =G180+L180 -> 2112
A181: 47 | B181: 1808 | C181: Buildings | G181: =D181+E181+F181 -> 0 | L181: =I181+J181+K181 -> 0 | M181: =G181+L181 -> 0
A182: 13 | B182: 1810 | C182: Leasehold Improvements | D182: 0 | E182: 0 | F182: 0 | G182: 0 | I182: 0 | J182: 0 | K182: 0 | L182: 0 | M182: 0
A183: 47 | B183: 1815 | C183: Transformer Station Equipment >50 kV | D183: 0 | E183: 0 | F183: 0 | G183: 0 | I183: 0 | J183: 0 | K183: 0 | L183: 0 | M183: 0
A184: 47 | B184: 1820 | C184: Distribution Station Equipment <50 kV | D184: 142098 | E184: 0 | F184: 0 | G184: 142098 | I184: -141076.09 | J184: -62 | K184: 0 | L184: -141138.09 | M184: 959.91
A185: 47 | B185: 1825 | C185: Storage Battery Equipment | D185: 0 | E185: 0 | F185: 0 | G185: 0 | I185: 0 | J185: 0 | K185: 0 | L185: 0 | M185: 0
A186: 47 | B186: 1830 | C186: Poles, Towers & Fixtures | D186: 1001372.3 | E186: 35549 | F186: 0 | G186: 1036921.3 | I186: -252320.56 | J186: -20053 | K186: 0 | L186: -272373.56 | M186: 764547.74
A187: 47 | B187: 1835 | C187: Overhead Conductors & Devices | D187: 6457969.5 | E187: 16269 | F187: 0 | G187: 6474238.5 | I187: -4590803.46 | J187: -37156 | K187: 0 | L187: -4627959.46 | M187: 1846279.04
A188: 47 | B188: 1840 | C188: Underground Conduit | D188: 1801068.31 | E188: 179440 | F188: 0 | G188: 1980508.31 | I188: -325066.02 | J188: -34629 | K188: 0 | L188: -359695.02 | M188: 1620813.29
A189: 47 | B189: 1845 | C189: Underground Conductors & Devices | D189: 7917160.55 | E189: 324572 | F189: 0 | G189: 8241732.55 | I189: -4906797.84 | J189: -101411 | K189: 0 | L189: -5008208.84 | M189: 3233523.71
A190: 47 | B190: 1850 | C190: Line Transformers | D190: 5988336.62 | E190: 184743 | F190: 0 | G190: 6173079.62 | I190: -3603987.48 | J190: -77718 | K190: 0 | L190: -3681705.48 | M190: 2491374.14
A191: 47 | B191: 1855 | C191: Services (Overhead & Underground) | D191: 872581.34 | E191: 96768 | F191: 0 | G191: 969349.34 | I191: -200281.09 | J191: -36848 | K191: 0 | L191: -237129.09 | M191: 732220.25
A192: 47 | B192: 1860 | C192: Meters | D192: 434188.89 | E192: 9198 | F192: 0 | G192: 443386.89 | I192: -37117.94 | J192: -37637 | K192: 0 | L192: -74754.94 | M192: 368631.95
A193: 47 | B193: 1860 | C193: Meters (Smart Meters) | D193: 936838 | E193: 21147 | F193: 0 | G193: 957985 | I193: -128350 | J193: -130642 | K193: 0 | L193: -258992 | M193: 698993
A194: N/A | B194: 1905 | C194: Land | D194: 171765 | E194: 0 | F194: 0 | G194: 171765 | I194: 0 | J194: 0 | K194: 0 | L194: 0 | M194: 171765
A195: 47 | B195: 1908 | C195: Buildings & Fixtures | D195: 664871.06 | E195: 336 | F195: 0 | G195: 665207.06 | I195: -361066.8 | J195: -14493 | K195: 0 | L195: -375559.8 | M195: 289647.26
A196: 13 | B196: 1910 | C196: Leasehold Improvements | D196: 0 | E196: 0 | F196: 0 | G196: 0 | I196: 0 | J196: 0 | K196: 0 | L196: 0 | M196: 0
A197: 8 | B197: 1915 | C197: Office Furniture & Equipment (10 years) | D197: 245176.89 | E197: 140 | F197: 0 | G197: 245316.89 | I197: -218426.83 | J197: -6651 | K197: 0 | L197: -225077.83 | M197: 20239.06
A198: 8 | B198: 1915 | C198: Office Furniture & Equipment (5 years) | G198: 0 | L198: 0 | M198: 0
A199: 10 | B199: 1920 | C199: Computer Equipment - Hardware | D199: 367776.5 | E199: 11279 | F199: 0 | G199: 379055.5 | I199: -364810.95 | J199: -4577 | K199: 0 | L199: -369387.95 | M199: 9667.55
A200: 45 | B200: 1920 | C200: Computer Equip.-Hardware(Post Mar. 22/04) | G200: 0 | L200: 0 | M200: 0
A201: 50 | B201: 1920 | C201: Computer Equip.-Hardware(Post Mar. 19/07) | G201: 0 | L201: 0 | M201: 0
A202: 10 | B202: 1930 | C202: Transportation Equipment | D202: 266684.41 | E202: 92468 | F202: -1200 | G202: 357952.41 | I202: -66860.95 | J202: -68707 | K202: 0 | L202: -135567.95 | M202: 222384.46
A203: 8 | B203: 1935 | C203: Stores Equipment | D203: 0 | E203: 0 | F203: 0 | G203: 0 | I203: 0 | J203: 0 | K203: 0 | L203: 0 | M203: 0
A204: 8 | B204: 1940 | C204: Tools, Shop & Garage Equipment | D204: 380912.53 | E204: 916 | F204: 0 | G204: 381828.53 | I204: -332472.81 | J204: -11912 | K204: 0 | L204: -344384.81 | M204: 37443.72
A205: 8 | B205: 1945 | C205: Measurement & Testing Equipment | D205: 0 | E205: 0 | F205: 0 | G205: 0 | I205: 0 | J205: 0 | K205: 0 | L205: 0 | M205: 0
A206: 8 | B206: 1950 | C206: Power Operated Equipment | D206: 0 | E206: 0 | F206: 0 | G206: 0 | I206: 0 | J206: 0 | K206: 0 | L206: 0 | M206: 0
A207: 8 | B207: 1955 | C207: Communications Equipment | D207: 36105.6 | E207: 40 | F207: 0 | G207: 36145.6 | I207: -26228.1 | J207: -1435 | K207: 0 | L207: -27663.1 | M207: 8482.5
A208: 8 | B208: 1955 | C208: Communication Equipment (Smart Meters) | G208: 0 | L208: 0 | M208: 0
A209: 8 | B209: 1960 | C209: Miscellaneous Equipment | D209: 0 | E209: 0 | F209: 0 | G209: 0 | I209: 0 | J209: 0 | K209: 0 | L209: 0 | M209: 0
A210: 47 | B210: 1970 | C210: Load Management Controls Customer Premises | D210: 0 | E210: 0 | F210: 0 | G210: 0 | I210: 0 | J210: 0 | K210: 0 | L210: 0 | M210: 0
A211: 47 | B211: 1975 | C211: Load Management Controls Utility Premises | D211: 0 | E211: 0 | F211: 0 | G211: 0 | I211: 0 | J211: 0 | K211: 0 | L211: 0 | M211: 0
A212: 47 | B212: 1980 | C212: System Supervisor Equipment | D212: 0 | E212: 0 | F212: 0 | G212: 0 | I212: 0 | J212: 0 | K212: 0 | L212: 0 | M212: 0
A213: 47 | B213: 1985 | C213: Miscellaneous Fixed Assets | D213: 15 | E213: 0 | F213: 0 | G213: 15 | I213: -15.22 | J213: 0 | K213: 0 | L213: -15.22 | M213: -0.22
A214: 47 | B214: 1990 | C214: Other Tangible Property | D214: 0 | E214: 0 | F214: 0 | G214: 0 | I214: 0 | J214: 0 | K214: 0 | L214: 0 | M214: 0
A215: 47 | B215: 1995 | C215: Contributions & Grants | G215: 0 | L215: 0 | M215: 0
A216: 47 | B216: 2440 | C216: Deferred Revenue5 | D216: -5492391.29 | E216: -603122 | F216: 0 | G216: -6095513.29 | I216: 1427268.31 | J216: 233310 | K216: 0 | L216: 1660578.31 | M216: -4434934.98
B217: 2005 | C217: Property Under Finance Lease7 | G217: 0 | L217: 0 | M217: 0
C218: Sub-Total | D218: =SUM(D177:D217) -> 22441323.24 | E218: =SUM(E177:E217) -> 383056 | F218: =SUM(F177:F217) -> -1200 | G218: =SUM(G177:G217) -> 22823179.24 | I218: =SUM(I177:I217) -> -14381396.37 | J218: =SUM(J177:J217) -> -353472 | K218: =SUM(K177:K217) -> 0 | L218: =SUM(L177:L217) -> -14734868.37 | M218: =SUM(M177:M217) -> 8088310.87
C219: Less Socialized Renewable Energy Generation Investments (input as negative) | G219: =D219+E219+F219 -> 0 | L219: =I219+J219+K219 -> 0 | M219: =G219+L219 -> 0
C220: Less Other Non Rate-Regulated Utility Assets (input as negative) | G220: =D220+E220+F220 -> 0 | L220: =I220+J220+K220 -> 0 | M220: =G220+L220 -> 0
C221: Total PP&E | D221: =SUM(D218:D220) -> 22441323.24 | E221: =SUM(E218:E220) -> 383056 | F221: =SUM(F218:F220) -> -1200 | G221: =SUM(G218:G220) -> 22823179.24 | I221: =SUM(I218:I220) -> -14381396.37 | J221: =SUM(J218:J220) -> -353472 | K221: =SUM(K218:K220) -> 0 | L221: =SUM(L218:L220) -> -14734868.37 | M221: =SUM(M218:M220) -> 8088310.87
C222: Depreciation Expense adj. from gain or loss on the retirement of assets (pool of like assets), if applicable6
C223: Total | J223: =J221+J222 -> -353472
I225: Less: Fully Allocated Depreciation
A226: 10 | C226: Transportation | I226: Transportation | K226: =J202 -> -68707
A227: 8 | C227: Stores Equipment | I227: Stores Equipment | K227: =J207 -> -1435
A228: 47 | C228: Deferred Revenue | I228: Deferred Revenue
I229: Net Depreciation | K229: =J223-K226-K227-K228 -> -283330
A231: Notes:
A233: 1 | B233: Tables in the format outlined above covering all fixed asset accounts should be submitted for the Test Year, Bridge Year and all relevant historical years. At a minimum , the applicant must provide data for the earlier of: 1) all historical years back to its last rebasing; or 2) at least three years of historical actuals, in addition to Bridge Year and Test Year forecasts.
A236: 2 | B236: The "CCA Class" for fixed assets should generally agree with the CCA Class used for tax purposes in Tax Returns. Fixed Assets sub-components may be used where the underlying asset components are classified under multiple CCA Classes for tax purposes. If an applicant uses any different classes from those shown in the table, an explanation should be provided. (also see note 3).
A239: 3 | B239: The table may need to be customized for a utility's asset categories or for any new asset accounts announced or authorized by the OEB.
A241: 4 | B241: The additions in column (E) must not include construction work in progress (CWIP).
A243: 5 | B243: Effective on the date of IFRS adoption, customer contributions will no longer be recorded in Account 1995 Contributions & Grants, but will be recorded in Account 2440, Deferred Revenues. Amortization of deferred revenue will be removed from the depreciation expense shown on this fixed asset continuity schedule as it should be included as income in Appendix 2-H Other Revenues.
A245: 6 | B245: The applicant must ensure that all asset disposals have been clearly identified in the Chapter 2 Appendices for all historic, bridge and test years. Where a distributor for general financial reporting purposes under IFRS has accounted for the amount of gain or loss on the retirement of assets in a pool of like assets as a charge or credit to income, for reporting and rate application filings, the distributor shall reclassify such gains and losses as depreciation expense, and disclose the amount separately.
A249: 7 | B249: This account includes the amount recorded under finance leases for plant leased from others and used by the utility in its utility operations.
... 512 more rows

Sheet Appendix 2-BB Service Life
N1: File Number: | P1: ='LDC Info'!E16 -> EB-2021-0016
N2: Exhibit:
N3: Tab:
N4: Schedule:
N5: Page:
N7: Date:
A9: Appendix 2-BB
A10: Service Life Comparison
A11: Table F-1 from Kinetrics Report1
C15: Asset Details | F15: Useful Life | J15: USoA Account Number | K15: USoA Account Description | L15: Current | N15: Proposed | P15: Outside Range of Min, Max TUL?
A16: Parent* | B16: # | C16: Category| Component | Type | F16: MIN UL | G16: TUL | H16: MAX UL | L16: Years | M16: Rate | N16: Years | O16: Rate | P16: Below Min TUL | Q16: Above Max TUL
A17: OH | B17: 1 | C17: Fully Dressed Wood Poles | D17: Overall | F17: 35 | G17: 45 | H17: 75 | J17: 1830 | K17: Overhead Poles, Tower & Fixtures | L17: 45 | M17: =IF(ISERROR(1/L17), "", 1/L17) -> 0.02222222222 | N17: 45 | O17: =IF(ISERROR(1/N17), "", 1/N17) -> 0.02222222222 | P17: =IF(ISBLANK(N17),"",IF(N17<F17,"Yes","No")) -> No | Q17: =IF(ISBLANK(N17),"",IF(N17>H17,"Yes","No")) -> No
D18: Cross Arm | E18: Wood | F18: 20 | G18: 40 | H18: 55 | M18: =IF(ISERROR(1/L18), "", 1/L18) ->  | O18: =IF(ISERROR(1/N18), "", 1/N18) ->  | P18: =IF(ISBLANK(N18),"",IF(N18<F18,"Yes","No")) ->  | Q18: =IF(ISBLANK(N18),"",IF(N18>H18,"Yes","No")) -> 
E19: Steel | F19: 30 | G19: 70 | H19: 95
B20: 2 | C20: Fully Dressed Concrete Poles | D20: Overall | F20: 50 | G20: 60 | H20: 80
D21: Cross Arm | E21: Wood | F21: 20 | G21: 40 | H21: 55
E22: Steel | F22: 30 | G22: 70 | H22: 95
B23: 3 | C23: Fully Dressed Steel Poles | D23: Overall | F23: 60 | G23: 60 | H23: 80
D24: Cross Arm | E24: Wood | F24: 20 | G24: 40 | H24: 55
E25: Steel | F25: 30 | G25: 70 | H25: 95
B26: 4 | C26: OH Line Switch | F26: 30 | G26: 45 | H26: 55
B27: 5 | C27: OH Line Switch Motor | F27: 15 | G27: 25 | H27: 25
B28: 6 | C28: OH Line Switch RTU | F28: 15 | G28: 20 | H28: 20
B29: 7 | C29: OH Integral Switches | F29: 35 | G29: 45 | H29: 60
B30: 8 | C30: OH Conductors | F30: 50 | G30: 60 | H30: 75 | J30: 1835 | K30: Overhead Line Switches, Conductors & Devices | L30: 60 | M30: 0.01666666667 | N30: 60 | O30: 0.01666666667 | P30: No | Q30: No
B31: 9 | C31: OH Transformers & Voltage Regulators | F31: 30 | G31: 40 | H31: 60 | J31: 1850 | K31: Line Transformers- OH & UG Transformers | L31: 40 | M31: 0.025 | N31: 40 | O31: 0.025 | P31: No | Q31: No
B32: 10 | C32: OH Shunt Capacitor Banks | F32: 25 | G32: 30 | H32: 40
B33: 11 | C33: Reclosers | F33: 25 | G33: 40 | H33: 55
A34: TS & MS | B34: 12 | C34: Power Transformers | D34: Overall | F34: 30 | G34: 45 | H34: 60
D35: Bushing | F35: 10 | G35: 20 | H35: 30
D36: Tap Changer | F36: 20 | G36: 30 | H36: 60
B37: 13 | C37: Station Service Transformer | F37: 30 | G37: 45 | H37: 55 | J37: 1820 | K37: Station Equipment | L37: 30 | M37: 0.03333333333 | N37: 30 | O37: 0.03333333333 | P37: No | Q37: No
B38: 14 | C38: Station Grounding Transformer | F38: 30 | G38: 40 | H38: 40
B39: 15 | C39: Station DC System | D39: Overall | F39: 10 | G39: 20 | H39: 30
D40: Battery Bank | F40: 10 | G40: 15 | H40: 15
D41: Charger | F41: 20 | G41: 20 | H41: 30
B42: 16 | C42: Station Metal Clad Switchgear | D42: Overall | F42: 30 | G42: 40 | H42: 60
D43: Removable Breaker | F43: 25 | G43: 40 | H43: 60
B44: 17 | C44: Station Independent Breakers | F44: 35 | G44: 45 | H44: 65
B45: 18 | C45: Station Switch | F45: 30 | G45: 50 | H45: 60
B46: 19 | C46: Electromechanical Relays | F46: 25 | G46: 35 | H46: 50
B47: 20 | C47: Solid State Relays | F47: 10 | G47: 30 | H47: 45
B48: 21 | C48: Digital & Numeric Relays | F48: 15 | G48: 20 | H48: 20
B49: 22 | C49: Rigid Busbars | F49: 30 | G49: 55 | H49: 60
B50: 23 | C50: Steel Structure | F50: 35 | G50: 50 | H50: 90
A51: UG | B51: 24 | C51: Primary Paper Insulated Lead Covered (PILC) Cables | F51: 60 | G51: 65 | H51: 75
B52: 25 | C52: Primary Ethylene-Propylene Rubber (EPR) Cables | F52: 20 | G52: 25 | H52: 25
B53: 26 | C53: Primary Non-Tree Retardant (TR) Cross Linked Polyethylene (XLPE) Cables Direct Buried | F53: 20 | G53: 25 | H53: 30
B54: 27 | C54: Primary Non-TR XLPE Cables in Duct | F54: 20 | G54: 25 | H54: 30
B55: 30 | C55: Secondary PILC Cables | F55: 70 | G55: 75 | H55: 80
B56: 31 | C56: Secondary Cables Direct Buried | F56: 25 | G56: 35 | H56: 40
B57: 32 | C57: Secondary Cables in Duct | F57: 35 | G57: 40 | H57: 60 | J57: 1845 | K57: Underground Conductors & devices | L57: 40 | M57: 0.025 | N57: 40 | O57: 0.025 | P57: No | Q57: No
B58: 33 | C58: Network Tranformers | D58: Overall | F58: 20 | G58: 35 | H58: 50
D59: Protector | F59: 20 | G59: 35 | H59: 40
B60: 34 | C60: Pad-Mounted Transformers | F60: 25 | G60: 40 | H60: 45
B61: 35 | C61: Submersible/Vault Transformers | F61: 25 | G61: 35 | H61: 45
B62: 36 | C62: UG Foundation | F62: 35 | G62: 55 | H62: 70 | J62: 1852 | K62: Line Transformers- UG Foundations & UG Vaults | L62: 60 | M62: 0.01666666667 | N62: 60 | O62: 0.01666666667 | P62: No | Q62: No
B63: 37 | C63: UG Vaults | D63: Overall | F63: 40 | G63: 60 | H63: 80
D64: Roof | F64: 20 | G64: 30 | H64: 45
B65: 38 | C65: UG Vault Switches | F65: 20 | G65: 35 | H65: 50
B66: 39 | C66: Pad-Mounted Switchgear | F66: 20 | G66: 30 | H66: 45 | J66: 1851 | K66: Line Transformers- Pad Mounted Switchgear | L66: 20 | M66: 0.05 | N66: 20 | O66: 0.05 | P66: No | Q66: No
B67: 40 | C67: Ducts | F67: 30 | G67: 50 | H67: 85 | J67: 1840 | K67: Undereground Conduit- Ducts & Concrete Encased Duct Banks | L67: 50 | M67: 0.02 | N67: 50 | O67: 0.02 | P67: No | Q67: No
B68: 41 | C68: Concrete Encased Duct Banks | F68: 35 | G68: 55 | H68: 80
B69: 42 | C69: Cable Chambers | F69: 50 | G69: 60 | H69: 80
A70: S | B70: 43 | C70: Remote SCADA | F70: 15 | G70: 20 | H70: 30
A73: Table F-2 from Kinetrics Report1
C75: Asset Details | F75: Useful Life Range | J75: USoA Account Number | K75: USoA Account Description | L75: Current | N75: Proposed | P75: Outside Range of Min, Max TUL?
B76: # | C76: Category| Component | Type | L76: Years | M76: Rate | N76: Years | O76: Rate | P76: Below Min Range | Q76: Above Max Range
B77: 1 | C77: Office Equipment | F77: 5 | G77: 15 | J77: 1915 | K77: Office Furniture & Equipment | L77: 10 | M77: =IF(ISERROR(1/L77), "", 1/L77) -> 0.1 | N77: 10 | O77: =IF(ISERROR(1/N77), "", 1/N77) -> 0.1 | P77: =IF(ISBLANK(N77),"",IF(N77<F77,"Yes","No")) -> No | Q77: =IF(ISBLANK(N77),"",IF(N77>G77,"Yes","No")) -> No
B78: 2 | C78: Vehicles | D78: Trucks & Buckets | F78: 5 | G78: 15 | J78: 1931 | K78: Transportation Equipment- Heavy | L78: 15 | M78: =IF(ISERROR(1/L78), "", 1/L78) -> 0.06666666667 | N78: 15 | O78: =IF(ISERROR(1/N78), "", 1/N78) -> 0.06666666667 | P78: =IF(ISBLANK(N78),"",IF(N78<F78,"Yes","No")) -> No | Q78: =IF(ISBLANK(N78),"",IF(N78>G78,"Yes","No")) -> No
D79: Trailers | F79: 5 | G79: 20 | J79: 1933 | K79: Transportation Equipment - Underground | L79: 10 | M79: 0.1 | N79: 10 | O79: 0.1 | P79: No | Q79: No
D80: Vans | F80: 5 | G80: 10 | J80: 1932 | K80: Transportation Equipment- Light | L80: 8 | M80: 0.125 | N80: 8 | O80: 0.125 | P80: No | Q80: No
B81: 3 | C81: Administrative Buildings | F81: 50 | G81: 75
B82: 4 | C82: Leasehold Improvements | F82: Lease dependent | P82: =IF(ISBLANK(N82),"",IF(N82<F82,"Yes","No")) ->  | Q82: =IF(ISBLANK(N82),"",IF(N82>G82,"Yes","No")) -> 
B83: 5 | C83: Station Buildings | D83: Station Buildings | F83: 50 | G83: 75 | J83: 1908 | K83: Building & Fixtures | L83: 50 | M83: 0.02 | N83: 50 | O83: 0.02 | P83: No | Q83: No
D84: Parking | F84: 25 | G84: 30
D85: Fence | F85: 25 | G85: 60
D86: Roof | F86: 20 | G86: 30
B87: 6 | C87: Computer Equipment | D87: Hardware | F87: 3 | G87: 5 | J87: 1920 | K87: Computer Equipment - Hardware | L87: 5 | M87: 0.2 | N87: 5 | O87: 0.2 | P87: No | Q87: No
D88: Software | F88: 2 | G88: 5 | J88: 1925 | K88: Computer Equipment - Software | L88: 5 | M88: 0.2 | N88: 5 | O88: 0.2 | P88: No | Q88: No
B89: 7 | C89: Equipment | D89: Power Operated | F89: 5 | G89: 10
D90: Stores | F90: 5 | G90: 10
D91: Tools, Shop, Garage Equipment | F91: 5 | G91: 10 | J91: 1940 | K91: Tools, Shop & Garage Equipment | L91: 10 | M91: 0.1 | N91: 10 | O91: 0.1 | P91: No | Q91: No
D92: Measurement & Testing Equipment | F92: 5 | G92: 10
B93: 8 | C93: Communication | D93: Towers | F93: 60 | G93: 70
D94: Wireless | F94: 2 | G94: 10 | J94: 1955 | K94: Communication Equipment | L94: 10 | M94: 0.1 | N94: 10 | O94: 0.1 | P94: No | Q94: No
B95: 9 | C95: Residential Energy Meters | F95: 25 | G95: 35
B96: 10 | C96: Industrial/Commercial Energy Meters | F96: 25 | G96: 35 | J96: 1862 | K96: Meters- Industrial/Commercial | L96: 15 | M96: 0.06666666667 | N96: 15 | O96: 0.06666666667 | P96: Yes | Q96: No
B97: 11 | C97: Wholesale Energy Meters | F97: 15 | G97: 30 | J97: 1863 | K97: Meters- Wholesale | L97: 15 | M97: 0.06666666667 | N97: 15 | O97: 0.06666666667 | P97: No | Q97: No
B98: 12 | C98: Current & Potential Transformer (CT & PT) | F98: 35 | G98: 50 | J98: 1864 | K98: Meters- CT's & PT's | L98: 40 | M98: 0.025 | N98: 40 | O98: 0.025 | P98: No | Q98: No
B99: 13 | C99: Smart Meters | F99: 5 | G99: 15 | J99: 1861 | K99: Meters- Residential SM | L99: 10 | M99: 0.1 | N99: 10 | O99: 0.1 | P99: No | Q99: No
B100: 14 | C100: Repeaters - Smart Metering | F100: 10 | G100: 15
B101: 15 | C101: Data Collectors - Smart Metering | F101: 15 | G101: 20
A104: * TS & MS = Transformer and Municipal Stations UG = Underground Systems S = Monitoring and Control Systems
A106: Note 1: | B106: Tables F-1 and F-2 above are to be used as a reference in order to complete columns J, K, L and N.
B107: See pages 17-19 of Kinetrics Report

Sheet App.2-C_DepExp
A9: Appendix 2-C | Y9: CGAAP
A10: Depreciation and Amortization Expense | Y10: Revised CGAAP
Y11: MIFRS
A12: This appendix is to be completed in conjunction with the accounting instructions in Appendix 2-B
A14: Scenario that applies | C14: Applicable Years and Accounting Standard | R14: Year Reflected in Schedule Below | S14: Accounting Standard Reflected in Schedule Below | Y14: 2012
A15: Rebasing for the first time with depreciation policy changes made in 2012. | C15: ="This appendix must be duplicated and completed for the years 2012 to " & TestYear & ". The appendix for 2012 is to be completed under CGAAP (prior to changes in depreciation policies)." &" The appendix for 2012 to 2014 must be completed under Revised CGAAP (after changes in depreciation policies). The appendix for 2014 to " & TestYear & " is to be completed under MIFRS (2014 if changes to MIFRS are material)." -> This appendix must be duplicated and completed for the years 2012 to 2022. The appendix for 2012 is to be completed under CGAAP (prior to changes in depreciation policies). The appendix for 2012 to 2014 must be completed under Revised CGAAP (after changes in depreciation policies). The appendix for 2014 to 2022 is to be completed under MIFRS (2014 if changes to MIFRS are material). | Y15: 2013
A16: Rebasing for the first time with depreciation policy changes made in 2013. | C16: ="This appendix must be duplicated and completed for the years 2013 to " & TestYear & ". The appendix for 2013 is to be completed under CGAAP (prior to changes in depreciation policies)."&" The appendix for 2013 to 2014 must be completed under Revised CGAAP (after changes in depreciation policies). The appendix for 2014 to " & TestYear & " is to be completed under MIFRS (2014 if changes to MIFRS are material)." -> This appendix must be duplicated and completed for the years 2013 to 2022. The appendix for 2013 is to be completed under CGAAP (prior to changes in depreciation policies). The appendix for 2013 to 2014 must be completed under Revised CGAAP (after changes in depreciation policies). The appendix for 2014 to 2022 is to be completed under MIFRS (2014 if changes to MIFRS are material). | Y16: 2014
A17: Already rebased with depreciation policy changes in a prior rate application and rebasing MIFRS for the first time. | C17: This appendix must be completed for 2014 to the test year. The appendix for 2014 is to be completed under Revised CGAAP (after changes in depreciation policies). The appendix for 2014 to the test year is to be completed under MIFRS (2014 if changes to MIFRS are material). | Y17: 2015
A18: Already rebased under MIFRS in a prior rate application | C18: ="This appendix must be completed under MIFRS for each year for the earlier of: 1) all historical years back to its last rebasing; or 2) at least three years of historical actuals, in addition to Bridge Year and Test Year forecasts." -> This appendix must be completed under MIFRS for each year for the earlier of: 1) all historical years back to its last rebasing; or 2) at least three years of historical actuals, in addition to Bridge Year and Test Year forecasts. | Y18: 2016
Y19: 2017
B20: 2012 | C20: Book Values | J20: Service Lives | N20: Depreciation Expense
A21: Account | B21: Description | C21: Opening Net Book Value of Existing Assets | D21: Less Fully Depreciated | E21: Net Amount of Existing Assets to be Depreciated | F21: Opening Gross Book Value of Assets Acquired After Policy Change 2 | G21: Less Fully Depreciated 8 | H21: Net Amount of Assets Acquired After Policy Change to be Depreciated | I21: Current Year Additions | J21: Average Remaining Life of Assets | K21: Depreciation Rate Assets | L21: Life of Assets (prior to Change) | M21: Depreciation Rate on New Additions | N21: Depreciation Expense on Assets | O21: Depreciation Expense on Assets Acquired After Policy Change | P21: Depreciation Expense on Current Year Additions 5 | Q21: Total Current Year Depreciation Expense | R21: Depreciation Expense per Appendix 2-BA Fixed Assets, Column J | S21: Variance 6
C22: a | D22: b | E22: c = a-b | F22: d | G22: e | H22: f = d- e | I22: g | J22: h | K22: i = 1/h | L22: j | M22: k = 1/j | N22: l = c/h | O22: m = f/j | P22: n = g*0.5/j | Q22: o = l+m+n | R22: p | S22: q = p-o
A23: 1611 | B23: Computer Software (Formally known as Account 1925) | C23: 239727.39 | D23: 183683.7 | E23: =C23-D23 -> 56043.69 | H23: =F23-G23 -> 0 | I23: 1293.84 | J23: 1.539430391 | K23: =IF(J23=0,0,1/J23) -> 0.6495909174 | L23: 5 | M23: =IF(L23=0,0,1/L23) -> 0.2 | N23: =IF(J23=0,0,+E23/J23) -> 36405.472 | O23: =IF(L23=0,0,+H23/L23) -> 0 | P23: =IF(L23=0,0,+(I23*0.5)/L23) -> 129.384 | Q23: =IF(ISERROR(+N23+O23+P23), 0, +N23+O23+P23) -> 36534.856 | R23: =-'App.2-BA_Fixed Asset Cont'!J18 -> 36534.86 | S23: =IF(ISERROR(+R23-Q23), 0, +R23-Q23) -> 0.004000000023
A24: 1612 | B24: Land Rights (Formally known as Account 1906) | E24: =C24-D24 -> 0 | H24: =F24-G24 -> 0 | K24: =IF(J24=0,0,1/J24) -> 0 | M24: =IF(L24=0,0,1/L24) -> 0 | N24: =IF(J24=0,0,+E24/J24) -> 0 | O24: =IF(L24=0,0,+H24/L24) -> 0 | P24: =IF(L24=0,0,+(I24*0.5)/L24) -> 0 | Q24: =IF(ISERROR(+N24+O24+P24), 0, +N24+O24+P24) -> 0 | S24: =IF(ISERROR(+R24-Q24), 0, +R24-Q24) -> 0
A25: 1805 | B25: Land | E25: 0 | H25: 0 | J25: 0 | K25: 0 | L25: 0 | M25: 0 | N25: 0 | O25: =IF(L25=0,0,+H25/L25) -> 0 | P25: 0 | Q25: 0 | S25: 0
A26: 1808 | B26: Buildings | E26: 0 | H26: 0 | J26: 0 | K26: 0 | L26: 0 | M26: 0 | N26: 0 | O26: 0 | P26: 0 | Q26: 0 | S26: 0
A27: 1810 | B27: Leasehold Improvements | E27: 0 | H27: 0 | J27: 0 | K27: 0 | L27: 0 | M27: 0 | N27: 0 | O27: 0 | P27: 0 | Q27: 0 | S27: 0
A28: 1815 | B28: Transformer Station Equipment >50 kV | E28: 0 | H28: 0 | J28: 0 | K28: 0 | L28: 0 | M28: 0 | N28: 0 | O28: 0 | P28: 0 | Q28: 0 | S28: 0
A29: 1820 | B29: Distribution Station Equipment <50 kV | C29: 15044.48 | D29: 13898.09667 | E29: 1146.383333 | H29: 0 | J29: 18.49994621 | K29: 0.05405421123 | L29: 30 | M29: 0.03333333333 | N29: 61.96684685 | O29: 0 | P29: 0 | Q29: 61.96684685 | R29: =-'App.2-BA_Fixed Asset Cont'!J24 -> 61.97 | S29: 0.00315315263
A30: 1825 | B30: Storage Battery Equipment | E30: 0 | H30: 0 | J30: 0 | K30: 0 | L30: 0 | M30: 0 | N30: 0 | O30: 0 | P30: 0 | Q30: 0 | S30: 0
A31: 1830 | B31: Poles, Towers & Fixtures | C31: 889105.83 | D31: 197609.727 | E31: 691496.103 | H31: 0 | I31: 23731.63 | J31: 19.443602 | K31: 0.0514307997 | L31: 25 | M31: 0.04 | N31: 35564.19757 | O31: 0 | P31: 474.6326 | Q31: 36038.83017 | R31: =-'App.2-BA_Fixed Asset Cont'!J26 -> 36038.84 | S31: 0.009833646975
A32: 1835 | B32: Overhead Conductors & Devices | C32: 4515647.99 | D32: 2546243.288 | E32: 1969404.702 | H32: 0 | I32: 106130.69 | J32: 8.009456013 | K32: 0.1248524242 | L32: 25 | M32: 0.04 | N32: 245884.9513 | O32: 0 | P32: 2122.6138 | Q32: 248007.5651 | R32: =-'App.2-BA_Fixed Asset Cont'!J27 -> 248007.64 | S32: 0.07486411009
A33: 1840 | B33: Underground Conduit | C33: 1251670.55 | D33: 243929.5766 | E33: 1007740.973 | H33: 0 | I33: 124330.6 | J33: 20.12792448 | K33: 0.04968222139 | L33: 25 | M33: 0.04 | N33: 50066.81015 | O33: 0 | P33: 2486.612 | Q33: 52553.42215 | R33: =-'App.2-BA_Fixed Asset Cont'!J28 -> 52553.43 | S33: 0.007854178046
A34: 1845 | B34: Underground Conductors & Devices | C34: 5430709.07 | D34: 2721219.261 | E34: 2709489.809 | H34: 0 | I34: 229403.76 | J34: 9.9360866 | K34: 0.1006432452 | L34: 25 | M34: 0.04 | N34: 272691.8472 | O34: 0 | P34: 4588.0752 | Q34: 277279.9224 | R34: =-'App.2-BA_Fixed Asset Cont'!J29 -> 277279.9 | S34: -0.02237836737
A35: 1850 | B35: Line Transformers | C35: 3949622.23 | D35: 1769557.753 | E35: 2180064.477 | H35: 0 | I35: 216442.34 | J35: 11.37146974 | K35: 0.08793938016 | L35: 25 | M35: 0.04 | N35: 191713.5188 | O35: 0 | P35: 4328.8468 | Q35: 196042.3656 | R35: =-'App.2-BA_Fixed Asset Cont'!J30 -> 200371.24 | S35: 4328.874375
A36: 1851 | B36: Line Transformers- Pad Mounted Switchgear | E36: 0 | H36: 0 | K36: 0 | M36: 0 | N36: 0 | O36: 0 | P36: 0 | Q36: 0 | S36: 0
A37: 1852 | B37: Line Transformers- Underground Foundations & Underground Vaults | E37: 0 | H37: 0 | K37: 0 | M37: 0 | N37: 0 | O37: 0 | P37: 0 | Q37: 0 | S37: 0
A38: 1855 | B38: Services (Overhead & Underground) | C38: 700057.94 | D38: 137902.4924 | E38: 562155.4476 | H38: 0 | I38: 72964.61 | J38: 20.07531855 | K38: 0.04981241007 | L38: 25 | M38: 0.04 | N38: 28002.31768 | O38: 0 | P38: 1459.2922 | Q38: 29461.60988 | R38: =-'App.2-BA_Fixed Asset Cont'!J31 -> 29461.61 | S38: 0.000120300152
A39: 1861 | B39: Meters- Residential SM (including repeaters) and data collectors | C39: 745950.75 | D39: 305764.4456 | E39: 440186.3044 | H39: 0 | I39: 2402.23 | J39: 34.9522269 | K39: 0.02861048032 | L39: 25 | M39: 0.04 | N39: 12593.9416 | O39: 0 | P39: 48.0446 | Q39: 12641.9862 | R39: =-'App.2-BA_Fixed Asset Cont'!J32 -> 12641.99 | S39: 0.003800000008
A40: 1862 | B40: Meters- Industrial/Commercial | E40: 0 | H40: 0 | K40: 0 | L40: 10 | M40: 0.1 | N40: 0 | O40: 0 | P40: 0 | Q40: 0 | S40: 0
A41: 1863 | B41: Meters-Wholesale | E41: 0 | H41: 0 | L41: 15 | M41: 0.06666666667 | N41: 0 | O41: 0 | P41: 0 | Q41: 0 | S41: 0
A42: 1864 | B42: Meters-CT's & PT's | E42: 0 | H42: 0 | L42: 15 | M42: 0.06666666667 | N42: 0 | O42: 0 | P42: 0 | Q42: 0 | S42: 0
A43: 1905 | B43: Land | E43: 0 | H43: 0 | K43: =IF(J43=0,0,1/J43) -> 0 | L43: 40 | M43: 0.025 | N43: 0 | O43: 0 | P43: 0 | Q43: 0 | S43: 0
A44: 1908 | B44: Buildings & Fixtures | E44: 0 | H44: 0 | K44: 0 | L44: 0 | M44: 0 | N44: 0 | O44: 0 | P44: 0 | Q44: 0 | S44: 0
A45: 1910 | B45: Leasehold Improvements | C45: 514743.84 | D45: 202069.8553 | E45: 312673.9847 | H45: 0 | I45: 3031.29 | J45: 21.66996817 | K45: 0.04614681445 | L45: 50 | M45: 0.02 | N45: 14428.90835 | O45: 0 | P45: 30.3129 | Q45: 14459.22125 | R45: =-'App.2-BA_Fixed Asset Cont'!J35 -> 14459.22 | S45: -0.00125394464
A46: 1915 | B46: Office Furniture & Equipment (10 years) | E46: 0 | H46: 0 | J46: 0 | K46: 0 | L46: 0 | M46: 0 | N46: 0 | O46: 0 | P46: 0 | Q46: 0 | S46: 0
A47: 1915 | B47: Office Furniture & Equipment (5 years) | C47: 148463.22 | D47: 110128.9985 | E47: 38334.2215 | H47: 0 | I47: 44.8 | J47: 5.494595773 | K47: 0.1819970097 | L47: 10 | M47: 0.1 | N47: 6976.713681 | O47: 0 | P47: 2.24 | Q47: 6978.953681 | R47: =-'App.2-BA_Fixed Asset Cont'!J37 -> 6978.95 | S47: -0.003681013456
A48: 1920 | B48: Computer Equipment - Hardware | E48: 0 | H48: 0 | J48: 0 | K48: 0 | L48: 0 | M48: 0 | N48: 0 | O48: 0 | P48: 0 | Q48: 0 | S48: 0
A49: 1920 | B49: Computer Equip.-Hardware(Post Mar. 22/04) | C49: 278042.73 | D49: 258844.359 | E49: 19198.371 | H49: 0 | I49: 4642.92 | J49: 1.715957919 | K49: 0.5827648737 | L49: 5 | M49: 0.2 | N49: 11188.13625 | O49: 0 | P49: 464.292 | Q49: 11652.42825 | R49: =-'App.2-BA_Fixed Asset Cont'!J39 -> 11652.43 | S49: 0.001748294599
A50: 1920 | B50: Computer Equip.-Hardware(Post Mar. 19/07) | E50: 0 | H50: 0 | J50: 0 | K50: 0 | L50: 0 | M50: 0 | N50: 0 | O50: 0 | P50: 0 | Q50: 0 | S50: 0
A51: 1930 | B51: Transportation Equipment | E51: 0 | H51: 0 | J51: 0 | K51: 0 | L51: 0 | M51: 0 | N51: 0 | O51: 0 | P51: 0 | Q51: 0 | S51: 0
A52: 1931 | B52: Transportation equipment- Heavy Vehicles - Including Trailers | C52: 1707843.87 | D52: 905563.6412 | E52: 802280.2288 | H52: 0 | I52: 0 | J52: 9.650073681 | K52: 0.1036261518 | M52: 0 | N52: 83137.21276 | O52: 0 | P52: 0 | Q52: 83137.21276 | R52: =-'App.2-BA_Fixed Asset Cont'!J42 -> 83137.21 | S52: -0.002759065421
A53: 1932 | B53: Transportation equipment- Light Vehicles | E53: 0 | H53: 0 | K53: 0 | L53: 15 | M53: 0.06666666667 | N53: 0 | O53: 0 | P53: 0 | Q53: 0 | S53: 0
A54: 1933 | B54: Transportation equipment- Underground Vehicles/Dump Trucks | E54: 0 | H54: 0 | K54: 0 | L54: 8 | M54: 0.125 | N54: 0 | O54: 0 | P54: 0 | Q54: 0 | S54: 0
A55: 1935 | B55: Stores Equipment | E55: 0 | H55: 0 | K55: 0 | M55: 0 | N55: 0 | O55: 0 | P55: 0 | Q55: 0 | S55: 0
A56: 1940 | B56: Tools, Shop & Garage Equipment | E56: 0 | H56: 0 | J56: 0 | K56: 0 | L56: 0 | M56: 0 | N56: 0 | O56: 0 | P56: 0 | Q56: 0 | S56: 0
A57: 1945 | B57: Measurement & Testing Equipment | C57: 205705.34 | D57: 146831.3385 | E57: 58874.0015 | H57: 0 | I57: 195.59 | J57: 4.650698748 | K57: 0.2150214525 | L57: 10 | M57: 0.1 | N57: 12659.17332 | O57: 0 | P57: 9.7795 | Q57: 12668.95282 | R57: =-'App.2-BA_Fixed Asset Cont'!J44 -> 12668.95 | S57: -0.002817382012
A58: 1950 | B58: Power Operated Equipment | E58: 0 | H58: 0 | J58: 0 | K58: 0 | L58: 0 | M58: 0 | N58: 0 | O58: 0 | P58: 0 | Q58: 0 | S58: 0
A59: 1955 | B59: Communications Equipment | E59: 0 | H59: 0 | J59: 0 | K59: 0 | L59: 0 | M59: 0 | N59: 0 | O59: 0 | P59: 0 | Q59: 0 | S59: 0
A60: 1955 | B60: Communication Equipment (Smart Meters) | C60: 32066.7 | D60: 21082.676 | E60: 10984.024 | H60: 0 | I60: 0 | J60: 7.107812784 | K60: 0.140690256 | L60: 10 | M60: 0.1 | N60: 1545.345148 | O60: 0 | P60: 0 | Q60: 1545.345148 | R60: =-'App.2-BA_Fixed Asset Cont'!J47 -> 1545.35 | S60: 0.00485172564
A61: 1960 | B61: Miscellaneous Equipment | E61: 0 | H61: 0 | J61: 0 | K61: 0 | L61: 0 | M61: 0 | N61: 0 | O61: 0 | P61: 0 | Q61: 0 | S61: 0
A62: 1970 | B62: Load Management Controls Customer Premises | E62: 0 | H62: 0 | J62: 0 | K62: 0 | L62: 0 | M62: 0 | N62: 0 | O62: 0 | P62: 0 | Q62: 0 | S62: 0
A63: 1975 | B63: Load Management Controls Utility Premises | E63: 0 | H63: 0 | J63: 0 | K63: 0 | L63: 0 | M63: 0 | N63: 0 | O63: 0 | P63: 0 | Q63: 0 | S63: 0
A64: 1980 | B64: System Supervisor Equipment | E64: 0 | H64: 0 | J64: 0 | K64: 0 | L64: 0 | M64: 0 | N64: 0 | O64: 0 | P64: 0 | Q64: 0 | S64: 0
A65: 1985 | B65: Miscellaneous Fixed Assets | E65: 0 | H65: 0 | J65: 0 | K65: 0 | L65: 0 | M65: 0 | N65: 0 | O65: 0 | P65: 0 | Q65: 0 | S65: 0
A66: 1990 | B66: Other Tangible Property | C66: 11560.37 | D66: 11545.152 | E66: 15.218 | H66: 0 | I66: 0 | J66: 1 | K66: 1 | L66: 10 | M66: 0.1 | N66: 15.218 | O66: 0 | P66: 0 | Q66: 15.218 | R66: =-'App.2-BA_Fixed Asset Cont'!J53 -> 15.22 | S66: 0.001999999997
A67: 1995 | B67: Contributions & Grants | E67: 0 | H67: 0 | J67: 0 | K67: 0 | L67: 0 | M67: 0 | N67: 0 | O67: 0 | P67: 0 | Q67: 0 | R67: =-'App.2-BA_Fixed Asset Cont'!J54 -> 0 | S67: 0
A68: 2005 | B68: Property Under Finance Lease | C68: -3910224.88 | D68: -1065033.584 | E68: -2845191.296 | H68: 0 | I68: -445527.17 | J68: 18.19071396 | K68: 0.05497310342 | L68: 25 | M68: 0.04 | N68: -156408.9954 | O68: =IF(L68=0,0,+H68/L68) -> 0 | P68: =IF(L68=0,0,+(I68*0.5)/L68) -> -8910.5434 | Q68: =IF(ISERROR(+N68+O68+P68), 0, +N68+O68+P68) -> -165319.5388 | R68: =-'App.2-BA_Fixed Asset Cont'!J55 -> -165319.54 | S68: -0.001235080766
B69: Total | E69: =SUM(E23:E68) -> 8014896.643 | F69: =SUM(F23:F68) -> 0 | G69: =SUM(G23:G68) -> 0 | H69: =SUM(H23:H68) -> 0 | N69: =SUM(N23:N68) -> 846526.7353 | O69: 0 | P69: 7233.5822 | Q69: 853760.3175 | R69: 858089.27 | S69: 4328.952475
R70: =-'App.2-BA_Fixed Asset Cont'!J61 -> 858089.27
B74: 2013 | C74: Book Values | J74: Service Lives | N74: Depreciation Expense | Y74: 2018
A75: Account | B75: Description | C75: Opening Net Book Value of Existing Assets as at Date of Policy Change (Jan. 1) 1 | D75: Less Fully Depreciated 7 | E75: Net Amount of Existing Assets Before Policy Change to be Depreciated | F75: Opening Gross Book Value of Assets Acquired After Policy Change 2 | G75: Less Fully Depreciated 8 | H75: Net Amount of Assets Acquired After Policy Change to be Depreciated | I75: Current Year Additions | J75: Average Remaining Life of Assets Existing Before Policy Change 3 | K75: Depreciation Rate Assets Acquired After Policy Change | L75: Life of Assets Acquired After Policy Change 4 | M75: Depreciation Rate on New Additions | N75: Depreciation Expense on Assets Existing Before Policy Change | O75: Depreciation Expense on Assets Acquired After Policy Change | P75: Depreciation Expense on Current Year Additions 5 | Q75: Total Current Year Depreciation Expense | R75: Depreciation Expense per Appendix 2-BA Fixed Assets, Column J | S75: Variance 6
C76: a | D76: b | E76: c = a-b | F76: d | G76: e | H76: f = d- e | I76: g | J76: h | K76: i = 1/h | L76: j | M76: k = 1/j | N76: l = c/h | O76: m = f/j | P76: n = g*0.5/j | Q76: o = l+m+n | R76: p | S76: q = p-o
A77: 1611 | B77: Computer Software (Formally known as Account 1925) | C77: 20802.674 | E77: =C77-D77 -> 20802.674 | H77: =F77-G77 -> 0 | I77: 2716.05 | J77: 1.089732151 | K77: =IF(J77=0,0,1/J77) -> 0.9176566916 | L77: 5 | M77: =IF(L77=0,0,1/L77) -> 0.2 | N77: =IF(J77=0,0,+E77/J77) -> 19089.713 | O77: =IF(L77=0,0,+H77/L77) -> 0 | P77: =IF(L77=0,0,+(I77*0.5)/L77) -> 271.605 | Q77: =IF(ISERROR(+N77+O77+P77), 0, +N77+O77+P77) -> 19361.318 | R77: =-'App.2-BA_Fixed Asset Cont'!J99 -> 19361 | S77: =IF(ISERROR(+R77-Q77), 0, +R77-Q77) -> -0.318
A78: 1612 | B78: Land Rights (Formally known as Account 1906) | E78: =C78-D78 -> 0 | H78: =F78-G78 -> 0 | K78: =IF(J78=0,0,1/J78) -> 0 | M78: =IF(L78=0,0,1/L78) -> 0 | N78: =IF(J78=0,0,+E78/J78) -> 0 | O78: =IF(L78=0,0,+H78/L78) -> 0 | P78: =IF(L78=0,0,+(I78*0.5)/L78) -> 0 | Q78: =IF(ISERROR(+N78+O78+P78), 0, +N78+O78+P78) -> 0 | S78: =IF(ISERROR(+R78-Q78), 0, +R78-Q78) -> 0
A79: 1805 | B79: Land | E79: 0 | H79: 0 | J79: 0 | K79: 0 | L79: 0 | M79: 0 | N79: 0 | O79: =IF(L79=0,0,+H79/L79) -> 0 | P79: 0 | Q79: 0 | S79: 0
A80: 1808 | B80: Buildings | E80: 0 | H80: 0 | J80: 0 | K80: 0 | L80: 0 | M80: 0 | N80: 0 | O80: 0 | P80: 0 | Q80: 0 | S80: 0
A81: 1810 | B81: Leasehold Improvements | E81: 0 | H81: 0 | J81: 0 | K81: 0 | L81: 0 | M81: 0 | N81: 0 | O81: 0 | P81: 0 | Q81: 0 | S81: 0
A82: 1815 | B82: Transformer Station Equipment >50 kV | E82: 0 | H82: 0 | J82: 0 | K82: 0 | L82: 0 | M82: 0 | N82: 0 | O82: 0 | P82: 0 | Q82: 0 | S82: 0
A83: 1820 | B83: Distribution Station Equipment <50 kV | C83: 1084.416667 | E83: 1084.416667 | H83: 0 | J83: 17.49994621 | K83: 0.05714303279 | L83: 30 | M83: 0.03333333333 | N83: 61.96685714 | O83: 0 | P83: 0 | Q83: 61.96685714 | R83: =-'App.2-BA_Fixed Asset Cont'!J105 -> 62 | S83: 0.03314285656
A84: 1825 | B84: Storage Battery Equipment | E84: 0 | H84: 0 | J84: 0 | K84: 0 | L84: 0 | M84: 0 | N84: 0 | O84: 0 | P84: 0 | Q84: 0 | S84: 0
A85: 1830 | B85: Poles, Towers & Fixtures | C85: 679188.8912 | E85: 679188.8912 | H85: 0 | I85: 88784.81 | J85: 38.40466563 | K85: 0.02603850297 | L85: 45 | M85: 0.02222222222 | N85: 17685.06196 | O85: 0 | P85: 986.4978889 | Q85: 18671.55985 | R85: =-'App.2-BA_Fixed Asset Cont'!J107 -> 18672 | S85: 0.4401518008
A86: 1835 | B86: Overhead Conductors & Devices | C86: 1827527.754 | E86: 1827527.754 | H86: 0 | I86: 76806.32 | J86: 51.13390748 | K86: 0.01955649488 | L86: 60 | M86: 0.01666666667 | N86: 35740.03717 | O86: 0 | P86: 640.0526667 | Q86: 36380.08984 | R86: =-'App.2-BA_Fixed Asset Cont'!J108 -> 36380 | S86: -0.08984151731
A87: 1840 | B87: Underground Conduit | C87: 1079518.139 | E87: 1079518.139 | H87: 0 | I87: 425196.23 | J87: 44.36885823 | K87: 0.02253833071 | L87: 50 | M87: 0.02 | N87: 24330.53683 | O87: 0 | P87: 4251.9623 | Q87: 28582.49913 | R87: =-'App.2-BA_Fixed Asset Cont'!J109 -> 28583 | S87: 0.5008688893
A88: 1845 | B88: Underground Conductors & Devices | C88: 2661613.671 | E88: 2661613.671 | H88: 0 | I88: 440764.14 | J88: 30.82887684 | K88: 0.03243712073 | L88: 40 | M88: 0.025 | N88: 86335.08398 | O88: 0 | P88: 5509.55175 | Q88: 91844.63573 | R88: =-'App.2-BA_Fixed Asset Cont'!J110 -> 91845 | S88: 0.364269601
A89: 1850 | B89: Line Transformers | C89: 2196135.573 | E89: 2196135.573 | H89: 0 | I89: 237823.68 | J89: 31.76655342 | K89: 0.03147965052 | L89: 40 | M89: 0.025 | N89: 69133.58033 | O89: 0 | P89: 2972.796 | Q89: 72106.37633 | R89: =-'App.2-BA_Fixed Asset Cont'!J111-R91 -> 72106.44617 | S89: 0.06983721533
A90: 1851 | B90: Line Transformers- Pad Mounted Switchgear | E90: 0 | H90: 0 | K90: 0 | L90: 20 | M90: 0.05 | N90: 0 | O90: 0 | P90: 0 | Q90: 0 | S90: 0
A91: 1852 | B91: Line Transformers- Underground Foundations & Underground Vaults | E91: 0 | H91: 0 | I91: 22746.46 | J91: 60 | K91: 0.01666666667 | L91: 60 | M91: 0.01666666667 | N91: 0 | O91: 0 | P91: 189.5538333 | Q91: 189.5538333 | R91: 189.5538333 | S91: 0
A92: 1855 | B92: Services (Overhead & Underground) | C92: 605658.4478 | E92: 605658.4478 | H92: 0 | I92: 99789.72 | J92: 19.5873473 | K92: 0.05105336546 | L92: 25 | M92: 0.04 | N92: 30920.90208 | O92: 0 | P92: 1995.7944 | Q92: 32916.69648 | R92: =-'App.2-BA_Fixed Asset Cont'!J112 -> 32917 | S92: 0.3035183146
A93: 1861 | B93: Meters- Residential SM (including repeaters) and data collectors | C93: 912144.4827 | E93: 912144.4827 | H93: 0 | I93: 24695.41 | J93: 7.175727226 | K93: 0.1393586975 | L93: 10 | M93: 0.1 | N93: 127115.2671 | O93: 0 | P93: 1234.7705 | Q93: 128350.0376 | R93: =-'App.2-BA_Fixed Asset Cont'!J114 -> 128350 | S93: -0.03755555559
A94: 1862 | B94: Meters- Industrial/Commercial | C94: 315846.6439 | E94: 315846.6439 | H94: 0 | I94: 7039.32 | J94: 9.370229747 | K94: 0.1067209692 | L94: 15 | M94: 0.06666666667 | N94: 33707.45994 | O94: 0 | P94: 234.644 | Q94: 33942.10394 | R94: =-'App.2-BA_Fixed Asset Cont'!J113-R96 -> 33941.90582 | S94: -0.198125926
A95: 1863 | B95: Meters-Wholesale | E95: 0 | H95: 0 | L95: 15 | M95: 0.06666666667 | N95: 0 | O95: 0 | P95: 0 | Q95: 0 | S95: 0
A96: 1864 | B96: Meters-CT's & PT's | C96: 108479.5534 | E96: 108479.5534 | H96: 0 | I96: 2461.75 | J96: 34.48916927 | L96: 40 | M96: 0.025 | N96: 3145.322307 | O96: 0 | P96: 30.771875 | Q96: 3176.094182 | R96: 3176.094182 | S96: 1.364242053e-12
A97: 1905 | B97: Land | E97: 0 | H97: 0 | J97: 0 | K97: 0 | L97: 0 | M97: 0 | N97: 0 | O97: 0 | P97: 0 | Q97: 0 | S97: 0
A98: 1908 | B98: Buildings & Fixtures | C98: 301246.0528 | E98: 301246.0528 | H98: 0 | I98: 0 | J98: 20.79059618 | K98: 0.04809866882 | L98: 50 | M98: 0.02 | N98: 14489.53413 | O98: 0 | P98: 0 | Q98: 14489.53413 | R98: =-'App.2-BA_Fixed Asset Cont'!J116 -> 14490 | S98: 0.4658733813
A99: 1910 | B99: Leasehold Improvements | E99: 0 | H99: 0 | J99: 0 | K99: 0 | L99: 0 | M99: 0 | N99: 0 | O99: 0 | P99: 0 | Q99: 0 | S99: 0
A100: 1915 | B100: Office Furniture & Equipment (10 years) | C100: 31400.067 | E100: 31400.067 | H100: 0 | I100: 2222.64 | J100: 4.643574867 | K100: 0.2153513249 | L100: 10 | M100: 0.1 | N100: 6762.046031 | O100: 0 | P100: 111.132 | Q100: 6873.178031 | R100: =-'App.2-BA_Fixed Asset Cont'!J118 -> 6873 | S100: -0.178030919
A101: 1915 | B101: Office Furniture & Equipment (5 years) | E101: 0 | H101: 0 | J101: 0 | K101: 0 | L101: 0 | M101: 0 | N101: 0 | O101: 0 | P101: 0 | Q101: 0 | R101: =-'App.2-BA_Fixed Asset Cont'!J119 -> 0 | S101: 0
A102: 1920 | B102: Computer Equipment - Hardware | C102: 12188.861 | E102: 12188.861 | H102: 0 | I102: 2164.88 | J102: 2.168571534 | K102: 0.4611330473 | L102: 5 | M102: 0.2 | N102: 5620.686617 | O102: 0 | P102: 216.488 | Q102: 5837.174617 | R102: =-'App.2-BA_Fixed Asset Cont'!J120 -> 5837 | S102: -0.1746166008
A103: 1920 | B103: Computer Equip.-Hardware(Post Mar. 22/04) | E103: 0 | H103: 0 | J103: 0 | K103: 0 | L103: 0 | M103: 0 | N103: 0 | O103: 0 | P103: 0 | Q103: 0 | S103: 0
A104: 1920 | B104: Computer Equip.-Hardware(Post Mar. 19/07) | E104: 0 | H104: 0 | J104: 0 | K104: 0 | L104: 0 | M104: 0 | N104: 0 | O104: 0 | P104: 0 | Q104: 0 | S104: 0
A105: 1930 | B105: Transportation Equipment | E105: 0 | H105: 0 | K105: 0 | M105: 0 | N105: 0 | O105: 0 | P105: 0 | Q105: 0 | S105: 0
A106: 1931 | B106: Transportation equipment- Heavy Vehicles - Including Trailers | C106: 94305.26 | E106: 94305.26 | H106: 0 | I106: 0 | J106: 9 | K106: 0.1111111111 | L106: 15 | M106: 0.06666666667 | N106: 10478.36222 | O106: 0 | P106: 0 | Q106: 10478.36222 | R106: 10478.36 | S106: -0.002222222221
A107: 1932 | B107: Transportation equipment- Light Vehicles | C107: 146879.1975 | E107: 146879.1975 | H107: 0 | I107: 25500 | J107: 2.680792571 | K107: 0.3730240119 | L107: 8 | M107: 0.125 | N107: 54789.46752 | O107: 0 | P107: 1593.75 | Q107: 56383.21752 | R107: =-'App.2-BA_Fixed Asset Cont'!L123-R106 -> 56382.59 | S107: -0.6275151404
A108: 1933 | B108: Transportation equipment- Underground Vehicles/Dump Trucks | E108: 0 | H108: 0 | K108: 0 | M108: 0 | N108: 0 | O108: 0 | P108: 0 | Q108: 0 | S108: 0
A109: 1935 | B109: Stores Equipment | E109: 0 | H109: 0 | J109: 0 | K109: 0 | L109: 0 | M109: 0 | N109: 0 | O109: 0 | P109: 0 | Q109: 0 | S109: 0
A110: 1940 | B110: Tools, Shop & Garage Equipment | C110: 46400.6375 | E110: 46400.6375 | H110: 0 | I110: 15399.96 | J110: 3.685189358 | K110: 0.2713564767 | L110: 10 | M110: 0.1 | N110: 12591.11351 | O110: 0 | P110: 769.998 | Q110: 13361.11151 | R110: =-'App.2-BA_Fixed Asset Cont'!J125 -> 13361 | S110: -0.1115075394
A111: 1945 | B111: Measurement & Testing Equipment | E111: 0 | H111: 0 | J111: 0 | K111: 0 | L111: 0 | M111: 0 | N111: 0 | O111: 0 | P111: 0 | Q111: 0 | S111: 0
A112: 1950 | B112: Power Operated Equipment | E112: 0 | H112: 0 | J112: 0 | K112: 0 | L112: 0 | M112: 0 | N112: 0 | O112: 0 | P112: 0 | Q112: 0 | S112: 0
A113: 1955 | B113: Communications Equipment | C113: 9438.6785 | E113: 9438.6785 | H113: 0 | I113: 274.99 | J113: 6.423397091 | K113: 0.1556808626 | L113: 10 | M113: 0.1 | N113: 1469.421611 | O113: 0 | P113: 13.7495 | Q113: 1483.171111 | R113: =-'App.2-BA_Fixed Asset Cont'!J128 -> 1483 | S113: -0.1711107978
A114: 1955 | B114: Communication Equipment (Smart Meters) | E114: 0 | H114: 0 | J114: 0 | K114: 0 | L114: 0 | M114: 0 | N114: 0 | O114: 0 | P114: 0 | Q114: 0 | S114: 0
A115: 1960 | B115: Miscellaneous Equipment | E115: 0 | H115: 0 | J115: 0 | K115: 0 | L115: 0 | M115: 0 | N115: 0 | O115: 0 | P115: 0 | Q115: 0 | S115: 0
A116: 1970 | B116: Load Management Controls Customer Premises | E116: 0 | H116: 0 | J116: 0 | K116: 0 | L116: 0 | M116: 0 | N116: 0 | O116: 0 | P116: 0 | Q116: 0 | S116: 0
A117: 1975 | B117: Load Management Controls Utility Premises | E117: 0 | H117: 0 | J117: 0 | K117: 0 | L117: 0 | M117: 0 | N117: 0 | O117: 0 | P117: 0 | Q117: 0 | S117: 0
A118: 1980 | B118: System Supervisor Equipment | E118: 0 | H118: 0 | J118: 0 | K118: 0 | L118: 0 | M118: 0 | N118: 0 | O118: 0 | P118: 0 | Q118: 0 | S118: 0
A119: 1985 | B119: Miscellaneous Fixed Assets | C119: -0.001999999997 | E119: -0.001999999997 | H119: 0 | J119: 10 | K119: 0.1 | L119: 10 | M119: 0.1 | N119: -0.0001999999997 | O119: 0 | P119: 0 | Q119: -0.0001999999997 | S119: 0.0001999999997
A120: 1990 | B120: Other Tangible Property | E120: 0 | H120: 0 | J120: 0 | K120: 0 | L120: 0 | M120: 0 | N120: 0 | O120: 0 | P120: 0 | Q120: 0 | S120: 0
A121: 1995 | B121: Contributions & Grants | C121: -3125398.927 | E121: -3125398.927 | H121: 0 | I121: -1175442.61 | J121: 17.93834273 | K121: 0.05574650987 | L121: 25 | M121: 0.04 | N121: -174230.0822 | O121: 0 | P121: -23508.8522 | Q121: -197738.9344 | R121: =-'App.2-BA_Fixed Asset Cont'!J137 -> -197739 | S121: -0.06563276038
A122: 2005 | B122: Property Under Finance Lease | E122: 0 | H122: 0 | K122: 0 | M122: 0 | N122: 0 | O122: =IF(L122=0,0,+H122/L122) -> 0 | P122: =IF(L122=0,0,+(I122*0.5)/L122) -> 0 | Q122: =IF(ISERROR(+N122+O122+P122), 0, +N122+O122+P122) -> 0 | S122: 0
B123: Total | C123: =SUM(C77:C122) -> 7924460.072 | D123: 0 | E123: 7924460.072 | F123: 0 | G123: 0 | H123: 0 | I123: 298943.75 | N123: =SUM(N77:N122) -> 379235.4808 | O123: 0 | P123: -2485.734486 | Q123: 376749.7463 | R123: 376749.95 | S123: 0.2037030799
R124: =-'App.2-BA_Fixed Asset Cont'!$J$144 -> 376750
A126: General: | B126: Applicants are to complete this appendix to show the reasonability of the depreciation expense that is included in rate base via. Accumulated depreciation and the revenue requirement.
B127: Applicants must provide a breakdown of depreciation and amortization expense in the above format for all relevant accounts. Balances presented in the table should exclude asset retirement obligations (AROs) and the related depreciation and accretion expense. These should be disclosed separately consistent with the Notes of historical Audited Financial Statements.
A130: Notes:
A131: 1 | B131: This is the net book value of assets that existed as at the date of the utility's change in depreciation policies (i.e. as at Jan. 1, 2012 or Jan. 1, 2013). These assets are to be depreciated at the average remaining service life. This amount will not change in years subsequent to the date of the utility's change in depreciation policies. This column is expected to be used until the assets that existed as at the date of the utility's change in depreciation policies are fully depreciated.
A132: 2 | B132: This is the opening gross book value of assets that have been acquired after the date of the utility's change in depreciation policies (i.e. additions starting in 2012/2013 for those who changed policies Jan. 1, 2012/2013). These assets are to be depreciated at the revised service life. The amount is expected to be equal to the opening gross book value of the prior year plus the prior year's additions.
A133: 3 | B133: A recalculation should be performed to determine the average remaining life of opening balance of assets (i.e. excluding current year's additions) under the change in policies under CGAAP. For example, Asset A had a useful life of 20 years under CGAAP without the change in policies. On January 1 of the year of policy changes, Asset A was 3 years depreciated. As a result, Asset A would have a remaining service life of 17 years (20 years less 3 years) as at January 1 of the year of policy changes. Due to making the change in policies under CGAAP, management re-assessed the asset useful lives and concluded that the revised useful life of Asset A is now 30 years. Therefore, the average remaining useful life of the opening balance of Asset A is determined to be 27 years (30 years less 3 years) under the revised CGAAP as at January 1 of the year of policy changes.
A134: 4 | B134: The useful life used should be consistent with the OEB's regulatory accounting policies as set out in the Accounting Procedures Handbook for Electricity Distributors, effective Jan. 1, 2012 and also with the Report of the Board, Transition to International Financial Reporting Standards, EB-2008-0408, and the Kinectrics Report.
A135: 5 | B135: OEB policy of the "half-year" rule - the applicant must ensure that additions in the year attract a half-year depreciation expense in the first year. Deviations from this standard practice must be supported in the application.
A136: 6 | B136: The applicant must provide an explanation of material variances in evidence.
A137: 7 | B137: This should include assets in column A (excel column C) that become fully depreciated since the date of the policy change. The amount input in b (excel column D) should equal the net book value of the asset as at the date of depreciation policy change
A138: 8 | B138: This should include assets in column D (excel column F) that have become fully depreciated. The amount input in e (excel column G) should equal the gross book value of the asset
B140: 2014 | C140: Book Values | J140: Service Lives | N140: Depreciation Expense
A141: Account | B141: Description | C141: Opening Net Book Value of Existing Assets as at Date of Policy Change (Jan. 1) 1 | D141: Less Fully Depreciated 7 | E141: Net Amount of Existing Assets Before Policy Change to be Depreciated | F141: Opening Gross Book Value of Assets Acquired After Policy Change 2 | G141: Less Fully Depreciated 8 | H141: Net Amount of Assets Acquired After Policy Change to be Depreciated | I141: Current Year Additions | J141: Average Remaining Life of Assets Existing Before Policy Change 3 | K141: Depreciation Rate Assets Acquired After Policy Change | L141: Life of Assets Acquired After Policy Change 4 | M141: Depreciation Rate on New Additions | N141: Depreciation Expense on Assets Existing Before Policy Change | O141: Depreciation Expense on Assets Acquired After Policy Change | P141: Depreciation Expense on Current Year Additions 5 | Q141: Total Current Year Depreciation Expense | R141: Depreciation Expense per Appendix 2-BA Fixed Assets, Column J | S141: Variance 6
C142: a | D142: b | E142: c = a-b | F142: d | G142: e | H142: f = d- e | I142: g | J142: h | K142: i = 1/h | L142: j | M142: k = 1/j | N142: l = c/h | O142: m = f/j | P142: n = g*0.5/j | Q142: o = l+m+n | R142: p | S142: q = p-o
A143: 1611 | B143: Computer Software (Formally known as Account 1925) | C143: =C77 -> 20802.674 | D143: 17574.527 | E143: =C143-D143 -> 3228.147 | F143: 2716.05 | H143: =F143-G143 -> 2716.05 | I143: 13312.57 | J143: 3.305803633 | K143: =IF(J143=0,0,1/J143) -> 0.3024983063 | L143: =L77 -> 5 | M143: =IF(L143=0,0,1/L143) -> 0.2 | N143: =IF(J143=0,0,+E143/J143) -> 976.509 | O143: =IF(L143=0,0,+H143/L143) -> 543.21 | P143: =IF(L143=0,0,+(I143*0.5)/L143) -> 1331.257 | Q143: =IF(ISERROR(+N143+O143+P143), 0, +N143+O143+P143) -> 2850.976 | R143: =-'App.2-BA_Fixed Asset Cont'!J178 -> 2851 | S143: =IF(ISERROR(+R143-Q143), 0, +R143-Q143) -> 0.02400000001
A144: 1612 | B144: Land Rights (Formally known as Account 1906) | C144: 0 | E144: =C144-D144 -> 0 | H144: =F144-G144 -> 0 | J144: =J78 -> 0 | K144: =IF(J144=0,0,1/J144) -> 0 | L144: 0 | M144: =IF(L144=0,0,1/L144) -> 0 | N144: =IF(J144=0,0,+E144/J144) -> 0 | O144: =IF(L144=0,0,+H144/L144) -> 0 | P144: =IF(L144=0,0,+(I144*0.5)/L144) -> 0 | Q144: =IF(ISERROR(+N144+O144+P144), 0, +N144+O144+P144) -> 0 | S144: =IF(ISERROR(+R144-Q144), 0, +R144-Q144) -> 0
A145: 1805 | B145: Land | C145: 0 | E145: 0 | H145: 0 | J145: =J79 -> 0 | K145: 0 | L145: 0 | M145: 0 | N145: 0 | O145: =IF(L145=0,0,+H145/L145) -> 0 | P145: 0 | Q145: 0 | S145: 0
A146: 1808 | B146: Buildings | C146: 0 | E146: 0 | H146: 0 | J146: 0 | K146: 0 | L146: 0 | M146: 0 | N146: 0 | O146: 0 | P146: 0 | Q146: 0 | S146: 0
A147: 1810 | B147: Leasehold Improvements | C147: 0 | E147: 0 | H147: 0 | J147: 0 | K147: 0 | L147: 0 | M147: 0 | N147: 0 | O147: 0 | P147: 0 | Q147: 0 | S147: 0
A148: 1815 | B148: Transformer Station Equipment >50 kV | C148: 0 | E148: 0 | H148: 0 | J148: 0 | K148: 0 | L148: 0 | M148: 0 | N148: 0 | O148: 0 | P148: 0 | Q148: 0 | S148: 0
A149: 1820 | B149: Distribution Station Equipment <50 kV | C149: 1084.416667 | E149: 1084.416667 | H149: 0 | J149: 17.49994621 | K149: 0.05714303279 | L149: 30 | M149: 0.03333333333 | N149: 61.96685714 | O149: 0 | P149: 0 | Q149: 61.96685714 | R149: =-'App.2-BA_Fixed Asset Cont'!J184 -> 62 | S149: 0.03314285656
A150: 1825 | B150: Storage Battery Equipment | C150: 0 | E150: 0 | H150: 0 | J150: =J84 -> 0 | K150: 0 | L150: 0 | M150: 0 | N150: 0 | O150: 0 | P150: 0 | Q150: 0 | S150: 0
A151: 1830 | B151: Poles, Towers & Fixtures | C151: 679188.8912 | E151: 679188.8912 | F151: 88784.81 | H151: 88784.81 | I151: 35549.45 | J151: 38.40466563 | K151: 0.02603850297 | L151: 45 | M151: 0.02222222222 | N151: 17685.06196 | O151: 1972.995778 | P151: 394.9938889 | Q151: 20053.05163 | R151: =-'App.2-BA_Fixed Asset Cont'!J186 -> 20053 | S151: -0.05162597695
A152: 1835 | B152: Overhead Conductors & Devices | C152: 1827527.754 | E152: 1827527.754 | F152: 76806.32 | H152: 76806.32 | I152: 16268.74 | J152: 51.13390748 | K152: 0.01955649488 | L152: 60 | M152: 0.01666666667 | N152: 35740.03717 | O152: 1280.105333 | P152: 135.5728333 | Q152: 37155.71534 | R152: =-'App.2-BA_Fixed Asset Cont'!J187 -> 37156 | S152: 0.2846584827
A153: 1840 | B153: Underground Conduit | C153: 1079518.139 | E153: 1079518.139 | F153: 425196.23 | H153: 425196.23 | I153: 179439.67 | J153: 44.36885823 | K153: 0.02253833071 | L153: 50 | M153: 0.02 | N153: 24330.53683 | O153: 8503.9246 | P153: 1794.3967 | Q153: 34628.85813 | R153: =-'App.2-BA_Fixed Asset Cont'!J188 -> 34629 | S153: 0.1418688893
A154: 1845 | B154: Underground Conductors & Devices | C154: 2661613.671 | E154: 2661613.671 | F154: 440764.14 | H154: 440764.14 | I154: 324572.4 | J154: 30.82887684 | K154: 0.03243712073 | L154: 40 | M154: 0.025 | N154: 86335.08398 | O154: 11019.1035 | P154: 4057.155 | Q154: 101411.3425 | R154: =-'App.2-BA_Fixed Asset Cont'!J189 -> 101411 | S154: -0.342480399
A155: 1850 | B155: Line Transformers | C155: 2196135.573 | E155: 2196135.573 | F155: 237823.68 | H155: 237823.68 | I155: 155110.74 | J155: 31.76655342 | K155: 0.03147965052 | L155: 40 | M155: 0.025 | N155: =IF(J155=0,0,+E155/J155) -> 69133.58033 | O155: 5945.592 | P155: 1938.88425 | Q155: 77018.05658 | R155: =-'App.2-BA_Fixed Asset Cont'!J190-R156-R157 -> 77017.837 | S155: -0.2195794513
A156: 1851 | B156: Line Transformers- Pad Mounted Switchgear | C156: 0 | E156: 0 | H156: 0 | I156: 4447.63 | J156: 0 | K156: 0 | L156: 20 | M156: 0.05 | N156: =IF(J156=0,0,+E156/J156) -> 0 | O156: 0 | P156: 111.19075 | Q156: 111.19075 | R156: 111.19075 | S156: 0
A157: 1852 | B157: Line Transformers- Underground Foundations & Underground Vaults | C157: 0 | E157: 0 | F157: 22746.46 | H157: 22746.46 | I157: 25183.75 | J157: 60 | K157: 0.01666666667 | L157: 60 | M157: 0.01666666667 | N157: =IF(J157=0,0,+E157/J157) -> 0 | O157: 379.1076667 | P157: 209.8645833 | Q157: 588.97225 | R157: 588.97225 | S157: 0
A158: 1855 | B158: Services (Overhead & Underground) | C158: 605658.4478 | E158: 605658.4478 | F158: 99789.72 | H158: 99789.72 | I158: 96767.52 | J158: 19.5873473 | K158: 0.05105336546 | L158: 25 | M158: 0.04 | N158: 30920.90208 | O158: 3991.5888 | P158: 1935.3504 | Q158: 36847.84128 | R158: =-'App.2-BA_Fixed Asset Cont'!J191 -> 36848 | S158: 0.1587183146
A159: 1861 | B159: Meters- Residential SM (including repeaters) and data collectors | C159: 912144.4827 | E159: 912144.4827 | F159: 24695.41 | H159: 24695.41 | I159: 21147.04 | J159: 7.175727226 | K159: 0.1393586975 | L159: 10 | M159: 0.1 | N159: 127115.2671 | O159: 2469.541 | P159: 1057.352 | Q159: 130642.1601 | R159: =-'App.2-BA_Fixed Asset Cont'!J193 -> 130642 | S159: -0.1600555556
A160: 1862 | B160: Meters- Industrial/Commercial | C160: 315846.6439 | E160: 315846.6439 | F160: 7039.32 | H160: 7039.32 | I160: 6630.52 | J160: 9.370229747 | K160: 0.1067209692 | L160: 15 | M160: 0.06666666667 | N160: 33707.45994 | O160: 469.288 | P160: 221.0173333 | Q160: 34397.76528 | R160: =-'App.2-BA_Fixed Asset Cont'!J192-R162 -> 34398.04244 | S160: 0.2771657406
A161: 1863 | B161: Meters-Wholesale | C161: 0 | E161: 0 | H161: 0 | J161: 0 | L161: 15 | M161: 0.06666666667 | N161: 0 | O161: 0 | P161: 0 | Q161: 0 | S161: 0
A162: 1864 | B162: Meters-CT's & PT's | C162: 108479.5534 | E162: 108479.5534 | F162: 2461.75 | H162: 2461.75 | I162: 2567.32 | J162: 34.48916927 | L162: 40 | M162: 0.025 | N162: 3145.322307 | O162: 61.54375 | P162: 32.0915 | Q162: 3238.957557 | R162: 3238.957557 | S162: 1.364242053e-12
A163: 1905 | B163: Land | C163: 0 | E163: 0 | H163: 0 | J163: 0 | K163: 0 | L163: =L97 -> 0 | M163: 0 | N163: 0 | O163: 0 | P163: 0 | Q163: 0 | S163: 0
A164: 1908 | B164: Buildings & Fixtures | C164: 301246.0528 | E164: 301246.0528 | F164: 0 | H164: 0 | I164: 0 | J164: 20.79059618 | K164: 0.04809866882 | L164: 50 | M164: 0.02 | N164: 14489.53413 | O164: 0 | P164: 0 | Q164: 14489.53413 | R164: =-'App.2-BA_Fixed Asset Cont'!J195 -> 14493 | S164: 3.465873381
A165: 1910 | B165: Leasehold Improvements | C165: 0 | E165: 0 | H165: 0 | J165: 0 | K165: 0 | L165: 0 | M165: 0 | N165: 0 | O165: 0 | P165: 0 | Q165: 0 | S165: 0
A166: 1915 | B166: Office Furniture & Equipment (10 years) | C166: 31400.067 | D166: 23.8635 | E166: 31376.2035 | F166: 2222.64 | H166: 2222.64 | I166: 140.38 | J166: 4.885729087 | K166: 0.2046777425 | L166: 10 | M166: 0.1 | N166: =IF(J166=0,0,+E166/J166) -> 6422.0105 | O166: 222.264 | P166: 7.019 | Q166: 6651.2935 | R166: =-'App.2-BA_Fixed Asset Cont'!J197 -> 6651 | S166: -0.2935
A167: 1915 | B167: Office Furniture & Equipment (5 years) | C167: 0 | E167: 0 | H167: 0 | J167: 0 | K167: 0 | L167: 0 | M167: 0 | N167: 0 | O167: 0 | P167: 0 | Q167: 0 | R167: =-'App.2-BA_Fixed Asset Cont'!J198 -> 0 | S167: 0
A168: 1920 | B168: Computer Equipment - Hardware | C168: 12188.861 | D168: 1781.944 | E168: 10406.917 | F168: 2164.88 | H168: 2164.88 | I168: 11279.25 | J168: 3.450612624 | K168: 0.2898036114 | L168: 5 | M168: 0.2 | N168: 3015.962131 | O168: 432.976 | P168: 1127.925 | Q168: 4576.863131 | R168: =-'App.2-BA_Fixed Asset Cont'!J199 -> 4577 | S168: 0.1368694109
A169: 1920 | B169: Computer Equip.-Hardware(Post Mar. 22/04) | C169: 0 | E169: 0 | H169: 0 | J169: 0 | K169: 0 | L169: 0 | M169: 0 | N169: 0 | O169: 0 | P169: 0 | Q169: 0 | S169: 0
A170: 1920 | B170: Computer Equip.-Hardware(Post Mar. 19/07) | C170: 0 | E170: 0 | H170: 0 | J170: 0 | K170: 0 | L170: 0 | M170: 0 | N170: 0 | O170: 0 | P170: 0 | Q170: 0 | S170: 0
A171: 1930 | B171: Transportation Equipment | C171: 0 | E171: 0 | H171: 0 | J171: 0 | K171: 0 | L171: 0 | M171: 0 | N171: 0 | O171: 0 | P171: 0 | Q171: 0 | S171: 0
A172: 1931 | B172: Transportation equipment- Heavy Vehicles - Including Trailers | C172: =C106 -> 94305.26 | E172: 94305.26 | H172: 0 | I172: 21755.72 | J172: 9 | K172: 0.1111111111 | L172: =L106 -> 15 | M172: 0.06666666667 | N172: 10478.36222 | O172: 0 | P172: 725.1906667 | Q172: 11203.55289 | R172: 11203.55067 | S172: -0.002222222221
A173: 1932 | B173: Transportation equipment- Light Vehicles | C173: =C107 -> 146879.1975 | D173: 3934.915625 | E173: 142944.2819 | F173: 25500 | H173: 25500 | I173: -1200 | J173: 2.810845403 | K173: 0.3557648524 | L173: =L107 -> 8 | M173: 0.125 | N173: 50854.55134 | O173: 3187.5 | P173: -75 | Q173: 53967.05134 | R173: =-'App.2-BA_Fixed Asset Cont'!J202-R172-R174 -> 53967.83933 | S173: 0.7879933287
A174: 1933 | B174: Transportation equipment- Underground Vehicles/Dump Trucks | C174: =C108 -> 0 | E174: 0 | H174: 0 | I174: 70712.2 | J174: 0 | K174: 0 | L174: 10 | M174: 0.1 | N174: 0 | O174: 0 | P174: 3535.61 | Q174: 3535.61 | R174: 3535.61 | S174: 0
A175: 1935 | B175: Stores Equipment | C175: =C109 -> 0 | E175: 0 | H175: 0 | J175: 0 | K175: 0 | L175: =L109 -> 0 | M175: 0 | N175: 0 | O175: 0 | P175: 0 | Q175: 0 | S175: 0
A176: 1940 | B176: Tools, Shop & Garage Equipment | C176: =C110 -> 46400.6375 | D176: 54.411 | E176: 46346.2265 | F176: 15399.96 | H176: 15399.96 | I176: 916.26 | J176: 4.488081504 | K176: 0.2228123529 | L176: =L110 -> 10 | M176: 0.1 | N176: 10326.51177 | O176: 1539.996 | P176: 45.813 | Q176: 11912.32077 | R176: =-'App.2-BA_Fixed Asset Cont'!J204 -> 11912 | S176: -0.320774532
A177: 1945 | B177: Measurement & Testing Equipment | C177: =C111 -> 0 | E177: 0 | H177: 0 | J177: 0 | K177: 0 | L177: =L111 -> 0 | M177: 0 | N177: 0 | O177: 0 | P177: 0 | Q177: 0 | S177: 0
A178: 1950 | B178: Power Operated Equipment | C178: 0 | E178: 0 | H178: 0 | J178: 0 | K178: 0 | L178: 0 | M178: 0 | N178: 0 | O178: 0 | P178: 0 | Q178: 0 | S178: 0
A179: 1955 | B179: Communications Equipment | C179: 9438.6785 | D179: 40.824 | E179: 9397.8545 | F179: 274.99 | H179: 274.99 | I179: 39.99 | J179: 6.687062351 | K179: 0.1495424968 | L179: 10 | M179: 0.1 | N179: 1405.378626 | O179: 27.499 | P179: 1.9995 | Q179: 1434.877126 | R179: =-'App.2-BA_Fixed Asset Cont'!J207 -> 1435 | S179: 0.1228738562
A180: 1955 | B180: Communication Equipment (Smart Meters) | C180: 0 | E180: 0 | H180: 0 | J180: =J114 -> 0 | K180: 0 | L180: 0 | M180: 0 | N180: 0 | O180: 0 | P180: 0 | Q180: 0 | S180: 0
A181: 1960 | B181: Miscellaneous Equipment | C181: 0 | E181: 0 | H181: 0 | J181: 0 | K181: 0 | L181: 0 | M181: 0 | N181: 0 | O181: 0 | P181: 0 | Q181: 0 | S181: 0
A182: 1970 | B182: Load Management Controls Customer Premises | C182: 0 | E182: 0 | H182: 0 | J182: 0 | K182: 0 | L182: 0 | M182: 0 | N182: 0 | O182: 0 | P182: 0 | Q182: 0 | S182: 0
A183: 1975 | B183: Load Management Controls Utility Premises | C183: 0 | E183: 0 | H183: 0 | J183: 0 | K183: 0 | L183: 0 | M183: 0 | N183: 0 | O183: 0 | P183: 0 | Q183: 0 | S183: 0
A184: 1980 | B184: System Supervisor Equipment | C184: 0 | E184: 0 | H184: 0 | J184: 0 | K184: 0 | L184: 0 | M184: 0 | N184: 0 | O184: 0 | P184: 0 | Q184: 0 | S184: 0
A185: 1985 | B185: Miscellaneous Fixed Assets | C185: -0.001999999997 | E185: -0.001999999997 | H185: 0 | J185: 10 | K185: 0.1 | L185: 10 | M185: 0.1 | N185: -0.0001999999997 | O185: 0 | P185: 0 | Q185: -0.0001999999997 | S185: 0.0001999999997
A186: 1990 | B186: Other Tangible Property | C186: 0 | E186: 0 | H186: 0 | J186: 0 | K186: 0 | L186: 0 | M186: 0 | N186: 0 | O186: 0 | P186: 0 | Q186: 0 | S186: 0
A187: 1995 | B187: Contributions & Grants | C187: -3125398.927 | E187: -3125398.927 | F187: -1175442.61 | H187: -1175442.61 | I187: -603122.33 | J187: 17.93834273 | K187: 0.05574650987 | L187: 25 | M187: 0.04 | N187: -174230.0822 | O187: -47017.7044 | P187: -12062.4466 | Q187: -233310.2332 | R187: =-'App.2-BA_Fixed Asset Cont'!J216 -> -233310 | S187: 0.2331672396
A188: 2005 | B188: Property Under Finance Lease | C188: 0 | E188: 0 | H188: 0 | J188: 0 | K188: 0 | L188: 0 | M188: 0 | N188: 0 | O188: =IF(L188=0,0,+H188/L188) -> 0 | P188: =IF(L188=0,0,+(I188*0.5)/L188) -> 0 | Q188: =IF(ISERROR(+N188+O188+P188), 0, +N188+O188+P188) -> 0 | S188: 0
B189: Total | C189: =SUM(C143:C188) -> 7924460.072 | D189: 23410.48512 | E189: 7901049.587 | F189: 298943.75 | G189: 0 | H189: 298943.75 | I189: 381518.82 | N189: =SUM(N143:N188) -> 351913.9559 | O189: -4971.468972 | P189: 6525.236806 | Q189: 353467.7237 | R189: 353472 | S189: 4.276293363
R190: =-'App.2-BA_Fixed Asset Cont'!$J$223 -> 353472
B192: 2015 | C192: Book Values | J192: Service Lives | N192: Depreciation Expense
A193: Account | B193: Description | C193: Opening Net Book Value of Existing Assets as at Date of Policy Change (Jan. 1) 1 | D193: Less Fully Depreciated 7 | E193: Net Amount of Existing Assets Before Policy Change to be Depreciated | F193: Opening Gross Book Value of Assets Acquired After Policy Change 2 | G193: Less Fully Depreciated 8 | H193: Net Amount of Assets Acquired After Policy Change to be Depreciated | I193: Current Year Additions | J193: Average Remaining Life of Assets Existing Before Policy Change 3 | K193: Depreciation Rate Assets Acquired After Policy Change | L193: Life of Assets Acquired After Policy Change 4 | M193: Depreciation Rate on New Additions | N193: Depreciation Expense on Assets Existing Before Policy Change | O193: Depreciation Expense on Assets Acquired After Policy Change | P193: Depreciation Expense on Current Year Additions 5 | Q193: Total Current Year Depreciation Expense | R193: Depreciation Expense per Appendix 2-BA Fixed Assets, Column J | S193: Variance 6
C194: a | D194: b | E194: c = a-b | F194: d | G194: e | H194: f = d- e | I194: g | J194: h | K194: i = 1/h | L194: j | M194: k = 1/j | N194: l = c/h | O194: m = f/j | P194: n = g*0.5/j | Q194: o = l+m+n | R194: p | S194: q = p-o
A195: 1611 | B195: Computer Software (Formally known as Account 1925) | C195: =C143 -> 20802.674 | D195: 19190.558 | E195: =C195-D195 -> 1612.116 | F195: 16028.62 | H195: =F195-G195 -> 16028.62 | I195: 2201.26 | J195: 4.628527132 | K195: =IF(J195=0,0,1/J195) -> 0.2160514504 | L195: =L143 -> 5 | M195: =IF(L195=0,0,1/L195) -> 0.2 | N195: =IF(J195=0,0,+E195/J195) -> 348.3 | O195: =IF(L195=0,0,+H195/L195) -> 3205.724 | P195: =IF(L195=0,0,+(I195*0.5)/L195) -> 220.126 | Q195: =IF(ISERROR(+N195+O195+P195), 0, +N195+O195+P195) -> 3774.15 | R195: =-'App.2-BA_Fixed Asset Cont'!J257 -> 3774 | S195: =IF(ISERROR(+R195-Q195), 0, +R195-Q195) -> -0.15
A196: 1612 | B196: Land Rights (Formally known as Account 1906) | C196: 0 | E196: =C196-D196 -> 0 | H196: =F196-G196 -> 0 | J196: =J144 -> 0 | K196: =IF(J196=0,0,1/J196) -> 0 | L196: 0 | M196: =IF(L196=0,0,1/L196) -> 0 | N196: =IF(J196=0,0,+E196/J196) -> 0 | O196: =IF(L196=0,0,+H196/L196) -> 0 | P196: =IF(L196=0,0,+(I196*0.5)/L196) -> 0 | Q196: =IF(ISERROR(+N196+O196+P196), 0, +N196+O196+P196) -> 0 | R196: =-'App.2-BA_Fixed Asset Cont'!J258 -> 0 | S196: =IF(ISERROR(+R196-Q196), 0, +R196-Q196) -> 0
A197: 1805 | B197: Land | C197: 0 | E197: 0 | H197: 0 | J197: 0 | K197: 0 | L197: 0 | M197: 0 | N197: 0 | O197: =IF(L197=0,0,+H197/L197) -> 0 | P197: 0 | Q197: 0 | R197: =-'App.2-BA_Fixed Asset Cont'!J259 -> 0 | S197: 0
A198: 1808 | B198: Buildings | C198: 0 | E198: 0 | H198: 0 | J198: 0 | K198: 0 | L198: 0 | M198: 0 | N198: 0 | O198: 0 | P198: 0 | Q198: 0 | R198: =-'App.2-BA_Fixed Asset Cont'!J260 -> 0 | S198: 0
A199: 1810 | B199: Leasehold Improvements | C199: 0 | E199: 0 | H199: 0 | J199: 0 | K199: 0 | L199: 0 | M199: 0 | N199: 0 | O199: 0 | P199: 0 | Q199: 0 | R199: =-'App.2-BA_Fixed Asset Cont'!J261 -> 0 | S199: 0
A200: 1815 | B200: Transformer Station Equipment >50 kV | C200: 0 | E200: 0 | H200: 0 | J200: 0 | K200: 0 | L200: 0 | M200: 0 | N200: 0 | O200: 0 | P200: 0 | Q200: 0 | R200: =-'App.2-BA_Fixed Asset Cont'!J262 -> 0 | S200: 0
A201: 1820 | B201: Distribution Station Equipment <50 kV | C201: 1084.416667 | E201: 1084.416667 | H201: 0 | J201: 17.49994621 | K201: 0.05714303279 | L201: 30 | M201: 0.03333333333 | N201: 61.96685714 | O201: 0 | P201: 0 | Q201: 61.96685714 | R201: =-'App.2-BA_Fixed Asset Cont'!J263 -> 62 | S201: 0.03314285656
A202: 1825 | B202: Storage Battery Equipment | C202: 0 | E202: 0 | H202: 0 | J202: 0 | K202: 0 | L202: 0 | M202: 0 | N202: 0 | O202: 0 | P202: 0 | Q202: 0 | R202: =-'App.2-BA_Fixed Asset Cont'!J264 -> 0 | S202: 0
A203: 1830 | B203: Poles, Towers & Fixtures | C203: 679188.8912 | E203: 679188.8912 | F203: 124334.26 | H203: 124334.26 | I203: 52491.79 | J203: 38.40466563 | K203: 0.02603850297 | L203: 45 | M203: 0.02222222222 | N203: 17685.06196 | O203: =IF(L203=0,0,+H203/L203) -> 2762.983556 | P203: =IF(L203=0,0,+(I203*0.5)/L203) -> 583.2421111 | Q203: 21031.28763 | R203: =-'App.2-BA_Fixed Asset Cont'!J265 -> 21031 | S203: -0.2876259769
A204: 1835 | B204: Overhead Conductors & Devices | C204: 1827527.754 | E204: 1827527.754 | F204: 93075.06 | H204: 93075.06 | I204: 27991.34 | J204: 51.13390748 | K204: 0.01955649488 | L204: 60 | M204: 0.01666666667 | N204: 35740.03717 | O204: =IF(L204=0,0,+H204/L204) -> 1551.251 | P204: =IF(L204=0,0,+(I204*0.5)/L204) -> 233.2611667 | Q204: 37524.54934 | R204: =-'App.2-BA_Fixed Asset Cont'!J266 -> 37525 | S204: 0.4506584827
A205: 1840 | B205: Underground Conduit | C205: 1079518.139 | E205: 1079518.139 | F205: 604635.9 | H205: 604635.9 | I205: 263063.7 | J205: 44.36885823 | K205: 0.02253833071 | L205: 50 | M205: 0.02 | N205: 24330.53683 | O205: =IF(L205=0,0,+H205/L205) -> 12092.718 | P205: 2630.637 | Q205: 39053.89183 | R205: =-'App.2-BA_Fixed Asset Cont'!J267 -> 39054 | S205: 0.1081688893
A206: 1845 | B206: Underground Conductors & Devices | C206: 2661613.671 | E206: 2661613.671 | F206: 765336.54 | H206: 765336.54 | I206: 126314.19 | J206: 30.82887684 | K206: 0.03243712073 | L206: 40 | M206: 0.025 | N206: 86335.08398 | O206: =IF(L206=0,0,+H206/L206) -> 19133.4135 | P206: 1578.927375 | Q206: 107047.4249 | R206: =-'App.2-BA_Fixed Asset Cont'!J268 -> 107047 | S206: -0.424855399
A207: 1850 | B207: Line Transformers | C207: 2196135.573 | E207: 2196135.573 | F207: 392934.42 | H207: 392934.42 | I207: 305721.68 | J207: 31.76655342 | K207: 0.03147965052 | L207: 40 | M207: 0.025 | N207: 69133.58033 | O207: 9823.3605 | P207: 3821.521 | Q207: 82778.46183 | R207: =-'App.2-BA_Fixed Asset Cont'!J269-R208-R209 -> 82777.53367 | S207: -0.9281627847
A208: 1851 | B208: Line Transformers- Pad Mounted Switchgear | C208: 0 | E208: 0 | F208: 4447.63 | H208: 4447.63 | I208: 4067.16 | J208: 0 | K208: 0 | L208: 20 | M208: 0.05 | N208: 0 | O208: 222.3815 | P208: 101.679 | Q208: 324.0605 | R208: 324.0605 | S208: 0
A209: 1852 | B209: Line Transformers- Underground Foundations & Underground Vaults | C209: 0 | E209: 0 | F209: 47930.21 | H209: 47930.21 | I209: 36068.28 | J209: 60 | K209: 0.01666666667 | L209: 60 | M209: 0.01666666667 | N209: 0 | O209: 798.8368333 | P209: 300.569 | Q209: 1099.405833 | R209: 1099.405833 | S209: 0
A210: 1855 | B210: Services (Overhead & Underground) | C210: 605658.4478 | E210: 605658.4478 | F210: 196557.24 | H210: 196557.24 | I210: 98935.83 | J210: 19.5873473 | K210: 0.05105336546 | L210: 25 | M210: 0.04 | N210: 30920.90208 | O210: 7862.2896 | P210: 1978.7166 | Q210: 40761.90828 | R210: =-'App.2-BA_Fixed Asset Cont'!J270 -> 40762 | S210: 0.09171831462
A211: 1861 | B211: Meters- Residential SM (including repeaters) and data collectors | C211: 912144.4827 | E211: 912144.4827 | F211: 45842.45 | H211: 45842.45 | I211: 10881.05 | J211: 7.175727226 | K211: 0.1393586975 | L211: 10 | M211: 0.1 | N211: 127115.2671 | O211: 4584.245 | P211: 544.0525 | Q211: 132243.5646 | R211: =-'App.2-BA_Fixed Asset Cont'!J272 -> 132244 | S211: 0.4354444444
A212: 1862 | B212: Meters- Industrial/Commercial | C212: 315846.6439 | D212: 485.4208121 | E212: 315361.2231 | F212: 13669.84 | H212: 13669.84 | I212: 5767.66 | J212: 9.423683948 | K212: 0.1061156131 | L212: 15 | M212: 0.06666666667 | N212: 33464.74954 | O212: 911.3226667 | P212: 192.2553333 | Q212: 34568.32754 | R212: =-'App.2-BA_Fixed Asset Cont'!J271-R214-R213 -> 34567.82115 | S212: -0.5063865644
A213: 1863 | B213: Meters-Wholesale | C213: 0 | E213: 0 | H213: 0 | I213: 1012.88 | J213: =J161 -> 0 | L213: 15 | M213: 0.06666666667 | N213: 0 | O213: 0 | P213: 33.76266667 | Q213: 33.76266667 | R213: 33.76266667 | S213: 0
A214: 1864 | B214: Meters-CT's & PT's | C214: 108479.5534 | E214: 108479.5534 | F214: 5029.07 | H214: 5029.07 | I214: 909.37 | J214: =J162 -> 34.48916927 | L214: 40 | M214: 0.025 | N214: 3145.322307 | O214: 125.72675 | P214: 11.367125 | Q214: 3282.416182 | R214: 3282.416182 | S214: 1.364242053e-12
A215: 1905 | B215: Land | C215: 0 | E215: 0 | H215: 0 | J215: =J163 -> 0 | K215: 0 | L215: =L163 -> 0 | M215: 0 | N215: 0 | O215: 0 | P215: 0 | Q215: 0 | S215: 0
A216: 1908 | B216: Buildings & Fixtures | C216: 301246.0528 | E216: 301246.0528 | F216: 336.18 | H216: 336.18 | I216: 235.85 | J216: =J164 -> 20.79059618 | K216: 0.04809866882 | L216: 50 | M216: 0.02 | N216: 14489.53413 | O216: 6.7236 | P216: 2.3585 | Q216: 14498.61623 | R216: =-'App.2-BA_Fixed Asset Cont'!J274 -> 14499 | S216: 0.3837733813
A217: 1910 | B217: Leasehold Improvements | C217: 0 | E217: 0 | H217: 0 | J217: =J165 -> 0 | K217: 0 | L217: 0 | M217: 0 | N217: 0 | O217: 0 | P217: 0 | Q217: 0 | R217: =-'App.2-BA_Fixed Asset Cont'!J275 -> 0 | S217: 0
... 381 more rows

Sheet App.2-D_Overhead
M1: File Number: | N1: =EBNUMBER -> EB-2021-0016
M2: Exhibit:
M3: Tab:
M4: Schedule:
M5: Page:
M7: Date:
A9: Appendix 2-D
A10: Overhead Expense
A12: Applicants are to provide a breakdown of OM&A before capitalization in the below table. OM&A before capitalization may be broken down by cost center, program, drivers or another format best suited to focus on capitalized vs. uncapitalized OM&A.
A14: OM&A Before Capitalization
B15: =F15-4 -> 2012 | C15: =F15-3 -> 2013 | D15: =F15-2 -> 2014 | E15: =I15-4 -> 2015 | F15: =I15-3 -> 2016 | G15: =I15-2 -> 2017 | H15: =I15-1 -> 2018 | I15: =L15-3 -> 2019 | J15: =L15-2 -> 2020 | K15: =L15-1 -> 2021 | L15: =TestYear -> 2022
B16: Historical Year | C16: Historical Year | D16: Historical Year | E16: Historical Year | F16: Historical Year | G16: Historical Year | H16: Bridge Year | I16: Historical Year | J16: Historical Year | K16: Bridge Year | L16: Test Year
A17: Operations and Maintenance | B17: 1254198 | C17: 1274583 | D17: 1220464 | E17: 1460346 | F17: 1313918 | G17: 1261799 | H17: 1377583 | I17: 1416933 | J17: 1228756 | K17: 1646772 | L17: 1910648
A18: Billing and Collecting | B18: 564380 | C18: 582645.85 | D18: 587255 | E18: 527861 | F18: 605235.88 | G18: 635070.61 | H18: 719649.17 | I18: 669849 | J18: 551626 | K18: 678651 | L18: 721707
A19: Community Relations | B19: 20659.3 | C19: 10391.43 | D19: 5499 | E19: -12807 | F19: 7584.86 | G19: 3497.13 | H19: 20966.53 | I19: 6065 | J19: 3438 | K19: 10000 | L19: 11537
A20: Administrative and General | B20: 724981.15 | C20: 836520.41 | D20: 843516.51 | E20: 876370.11 | F20: 1002115.22 | G20: 1099287.27 | H20: 942514.79 | I20: 1110166 | J20: 1029074 | K20: 1334836 | L20: 1351625
A27: Total OM&A Before Capitalization (B) | B27: =SUM(B17:B26) -> 2564218.45 | C27: 2704140.69 | D27: 2656734.51 | E27: 2851770.11 | F27: 2928853.96 | G27: 2999654.01 | H27: 3060713.49 | I27: 3203013 | J27: 2812894 | K27: 3670259 | L27: 3995517
A29: Applicants are to provide a breakdown of capitalized OM&A in the below table. Capitalized OM&A may be broken down using the categories listed in the table below if possible. Otherwise, applicants are to provide its own break down of capitalized OM&A.
A31: Capitalized OM&A | M31: Directly | N31: Explanation for Change in Overhead Capitalized
B32: =F32-4 -> 2012 | C32: =F32-3 -> 2013 | D32: =H32-4 -> 2014 | E32: =I32-4 -> 2015 | F32: =I32-3 -> 2016 | G32: =I32-2 -> 2017 | H32: =L32-4 -> 2018 | I32: =L32-3 -> 2019 | J32: =L32-2 -> 2020 | K32: =L32-1 -> 2021 | L32: =TestYear -> 2022 | M32: Attributable?
B33: Historical Year | C33: Historical Year | D33: Historical Year | E33: Historical Year | F33: Historical Year | G33: Historical Year | H33: Historical Year | I33: Historical Year | J33: Historical Year | K33: Bridge Year | L33: Test Year | M33: (Yes/No)
A34: Direct Labour and Benefits | B34: 320662 | C34: 464410 | D34: 335186 | E34: 224446 | F34: 323217.675 | G34: 295889.625 | H34: 352495.425 | I34: 284544.24 | J34: 322730.13 | K34: 384290.13 | L34: 391975.9326 | M34: Yes
A35: Fleet/Truck Time | B35: 56705 | C35: 84860 | D35: 78812 | E35: 33603 | F35: 59365.82116 | G35: 55231.36382 | H35: 55566.41797 | I35: 46580.11 | J35: 42327.28726 | K35: 70685.21065 | L35: 72098.91486 | M35: Yes
A45: Insert description of additional item(s) and new rows if needed
A47: Total Capitalized OM&A (A) | B47: =SUM(B34:B46) -> 377367 | C47: 549270 | D47: 413998 | E47: 258049 | F47: 382583.4962 | G47: 351120.9888 | H47: 408061.843 | I47: 331124.35 | J47: 365057.4173 | K47: 454975.3406 | L47: 464074.8475
A49: % of Capitalized OM&A (=A/B) | B49: =IF(ISERROR(B47/B27),"0%",B47/B27) -> 0.1471664787 | C49: 0.203121828 | D49: 0.1558296467 | E49: 0.0904873079 | F49: 0.130625665 | G49: 0.1170538294 | H49: 0.1333224571 | I49: 0.1033790216 | J49: 0.1297800121 | K49: 0.1239627341 | L49: 0.1161488857

Sheet App.2-EA_Account 1575 (2015) (hidden)
H1: File Number: | I1: =EBNUMBER -> EB-2021-0016
H2: Exhibit:
H3: Tab:
H4: Schedule:
H5: Page:
H7: Date:
A9: Appendix 2-EA
A10: Account 1575 - IFRS-CGAAP Transitional PP&E Amounts
A11: 2015 Adopters of IFRS for Financial Reporting Purposes
A13: For applicants that adopted IFRS on January 1, 2015 for financial reporting purposes
B17: 2014 | C17: =TestYear-3 -> 2019 | D17: =TestYear-2 -> 2020 | E17: =CONCATENATE(TestYear-1," Bridge Year") -> 2021 Bridge Year | F17: =CONCATENATE(TestYear," Rebasing Year") -> 2022 Rebasing Year
A18: Reporting Basis | B18: CGAAP | C18: CGAAP | D18: CGAAP | E18: MIFRS | F18: MIFRS
B19: Actual | C19: Actual | D19: Actual | E19: Forecast | F19: Forecast
D20: $ | E20: $
A21: PP&E Values under CGAAP
A22: Opening net PP&E - Note 1 | C22: =+B25 -> 0 | D22: =+C25 -> 0 | E22: =+D25 -> 0
A23: Net Additions - Note 4
A24: Net Depreciation (amounts should be negative) - Note 4
A25: Closing net PP&E (1) | B25: =SUM(B22:B24) -> 0 | C25: =SUM(C22:C24) -> 0 | D25: =SUM(D22:D24) -> 0 | E25: =SUM(E22:E24) -> 0
A27: PP&E Values under MIFRS (Starts from 2014, the transition year)
A28: Opening net PP&E - Note 1 | C28: =+B31 -> 0 | D28: =+C31 -> 0 | E28: =+D31 -> 0
A29: Net Additions - Note 4
A30: Net Depreciation (amounts should be negative) - Note 4
A31: Closing net PP&E (2) | B31: =SUM(B28:B30) -> 0 | C31: =SUM(C28:C30) -> 0 | D31: =SUM(D28:D30) -> 0 | E31: =SUM(E28:E30) -> 0
A33: Difference in Closing net PP&E, former CGAAP vs. revised CGAAP | B33: =B25-B31 -> 0 | C33: =C25-C31 -> 0 | D33: =D25-D31 -> 0 | E33: =E25-E31 -> 0
A36: Effect on Deferral and Variance Account Rate Riders
A37: Closing balance in Account 1575 | F37: =IF(ISERROR(E33), 0, E33) -> 0 | H37: WACC
A38: Return on Rate Base Associated with Account 1575 balance at WACC - Note 2 | F38: =E33*I37*I38 -> 0 | G38: # of years of rate rider disposition period
A39: Amount included in Deferral and Variance Account Rate Rider Calculation | F39: =F37+F38 -> 0
A41: Notes:
A42: 1 For an applicant that adopted IFRS on January 1, 2015, the PP&E values as of January 1, 2014 under both CGAAP and MIFRS should be the same.
A43: 2 Return on rate base associated with deferred balance is calculated as:
A44: the deferral account closing balance as of 2017 x WACC X # of years of rate rider disposition period
A45: * Please note that the calculation should be adjusted once WACC is updated and finalized in the rate application.
A46: 3 The PP&E deferral account is cleared by including the total balance in the deferral and variance account rate rider calculation.
A47: 4 Net additions are additions net of disposals; Net depreciation is additions to depreciation net of disposals.

Sheet App.2-EB_Account 1576 (2012) (hidden)
K1: File Number: | L1: =EBNUMBER -> EB-2021-0016
K2: Exhibit:
K3: Tab:
K4: Schedule:
K5: Page:
K7: Date:
A9: Appendix 2-EB
A10: Account 1576 - Accounting Changes under CGAAP
A11: 2012 Changes in Accounting Policies under CGAAP
A13: For applicants with a balance in Account 1576 and made capitalization and depreciation expense accounting policy changes under CGAAP effective January 1, 2012. This is the first time the applicant is rebasing with changes in these accounting policies.
B17: Prior Years Rebasing | C17: 2012 | D17: 2013 | E17: 2014 | F17: 2015 | G17: 2016 | H17: 2017 | I17: 2018 Rebasing Year
A18: Reporting Basis | B18: CGAAP | C18: CGAAP | D18: CGAAP | E18: CGAAP | F18: MIFRS - Note 5 | G18: MIFRS | H18: MIFRS | I18: MIFRS
B19: Forecast | C19: Actual | D19: Actual | E19: Actual | F19: Actual | G19: Actual | H19: Forecast | I19: Forecast
C20: $ | D20: $ | E20: $ | F20: $ | G20: $ | H20: $
A21: PP&E Values under former CGAAP
A22: Opening net PP&E - Note 1 | D22: =+C25 -> 0 | E22: =+D25 -> 0 | F22: =+E25 -> 0 | G22: =+F25 -> 0 | H22: =+G25 -> 0
A23: Net Additions - Note 4
A24: Net Depreciation (amounts should be negative) - Note 4
A25: Closing net PP&E (1) | C25: =C22+C23+C24 -> 0 | D25: 0 | E25: 0 | F25: 0 | G25: 0 | H25: 0
A27: PP&E Values under revised CGAAP (Starts from 2012)
A28: Opening net PP&E - Note 1 | D28: =+C31 -> 0 | E28: =+D31 -> 0 | F28: =+E31 -> 0 | G28: =+F31 -> 0 | H28: =+G31 -> 0
A29: Net Additions - Note 4
A30: Net Depreciation (amounts should be negative) - Note 4
A31: Closing net PP&E (2) | C31: =SUM(C28:C30) -> 0 | D31: 0 | E31: 0 | F31: 0 | G31: 0 | H31: 0
A33: Difference in Closing net PP&E, former CGAAP vs. revised CGAAP | C33: =C25-C31 -> 0 | D33: 0 | E33: 0 | F33: 0 | G33: 0 | H33: 0
A36: Effect on Deferral and Variance Account Rate Riders
A37: Closing balance in Account 1576 | I37: =IF(ISERROR(H33), 0, H33) -> 0 | K37: WACC
A38: Return on Rate Base Associated with Account 1576 balance at WACC - Note 2 | I38: =H33*L37*L38 -> 0 | J38: # of years of rate rider disposition period
A39: Amount included in Deferral and Variance Account Rate Rider Calculation | I39: =I37+I38 -> 0
A41: Notes:
A42: 1 For an applicant that made the capitalization and depreciation expense accounting policy changes on January 1, 2012, the PP&E values as of January 1, 2012 under both former CGAAP and revised CGAAP should be the same.
A43: 2 Return on rate base associated with Account 1576 balance is calculated as:
A44: the variance account ending balance as of 2017 x WACC X # of years of rate rider disposition period
A45: * Please note that the calculation should be adjusted once WACC is updated and finalized in the rate application.
A46: 3 Account 1576 is cleared by including the total balance in the deferral and variance account rate rider calculation.
A47: 4 Net additions are additions net of disposals; Net depreciation is additions to depreciation net of disposals.
A48: 5 Differences due to the adoption of MIFRS are to be shown separately in Account 1575 in Appendix 2-EA as Accounts 1575 and 1576 cannot be used interchangably.

Sheet App.2-EC_Account 1576 (2013) (hidden)
J1: File Number: | K1: =EBNUMBER -> EB-2021-0016
J2: Exhibit:
J3: Tab:
J4: Schedule:
J5: Page:
J7: Date:
A9: Appendix 2-EC
A10: Account 1576 - Accounting Changes under CGAAP
A11: 2013 Changes in Accounting Policies under CGAAP
A13: For applicants with a balance in Account 1576 and made capitalization and depreciation expense accounting policy changes under CGAAP effective January 1, 2013. This is the first time the applicant is rebasing with changes in these accounting policies.
B17: Prior Years Rebasing | C17: 2013 | D17: 2014 | E17: 2015 | F17: 2016 | G17: 2017 | H17: 2018 Rebasing Year
A18: Reporting Basis | B18: CGAAP | C18: CGAAP | D18: CGAAP | E18: MIFRS - Note 5 | F18: MIFRS | G18: MIFRS | H18: MIFRS
B19: Actual | C19: Actual | D19: Actual | E19: Actual | F19: Actual | G19: Forecast | H19: Forecast
C20: $ | D20: $ | F20: $
A21: PP&E Values under former CGAAP
A22: Opening net PP&E - Note 1 | D22: =+C25 -> 0 | E22: =+D25 -> 0 | F22: =+E25 -> 0 | G22: =+F25 -> 0
A23: Net Additions - Note 4
A24: Net Depreciation (amounts should be negative) - Note 4
A25: Closing net PP&E (1) | C25: =C22+C23+C24 -> 0 | D25: =D22+D23+D24 -> 0 | E25: =E22+E23+E24 -> 0 | F25: =F22+F23+F24 -> 0 | G25: =G22+G23+G24 -> 0
A27: PP&E Values under revised CGAAP (Starts from 2012)
A28: Opening net PP&E - Note 1 | D28: =+C31 -> 0 | E28: =+D31 -> 0 | F28: =+E31 -> 0 | G28: =+F31 -> 0
A29: Net Additions - Note 4
A30: Net Depreciation (amounts should be negative) - Note 4
A31: Closing net PP&E (2) | C31: =SUM(C28:C30) -> 0 | D31: =SUM(D28:D30) -> 0 | E31: =SUM(E28:E30) -> 0 | F31: =SUM(F28:F30) -> 0 | G31: =SUM(G28:G30) -> 0
A33: Difference in Closing net PP&E, former CGAAP vs. revised CGAAP | C33: =C25-C31 -> 0 | D33: =D25-D31 -> 0 | E33: =E25-E31 -> 0 | F33: =F25-F31 -> 0 | G33: =G25-G31 -> 0
A36: Effect on Deferral and Variance Account Rate Riders
A37: Closing balance in Account 1576 | H37: =IF(ISERROR(G33), 0, G33) -> 0 | J37: WACC
A38: Return on Rate Base Associated with Account 1576 balance at WACC - Note 2 | H38: =G33*K37*K38 -> 0 | I38: # of years of rate rider disposition period
A39: Amount included in Deferral and Variance Account Rate Rider Calculation | H39: =H37+H38 -> 0
A41: Notes:
A42: 1 For an applicant that made the capitalization and depreciation expense accounting policy changes on January 1, 2013, the PP&E values as of January 1, 2013 under both former CGAAP and revised CGAAP should be the same.
A43: 2 Return on rate base associated with Account 1576 balance is calculated as:
A44: the variance account ending balance as of 2017 x WACC X # of years of rate rider disposition period
A45: * Please note that the calculation should be adjusted once WACC is updated and finalized in the rate application.
A46: 3 Account 1576 is cleared by including the total balance in the deferral and variance account rate rider calculation.
A47: 4 Net additions are additions net of disposals; Net depreciation is additions to depreciation net of disposals.
A48: 5 Differences due to the adoption of MIFRS are to be shown separately in Account 1575 in Appendix 2-EA as Accounts 1575 and 1576 cannot be used interchangably.

Sheet Hidden_REG Invest. (hidden)
A1: Utility Name | B1: EB Number | C1: Test Year | D1: Bridge Year | E1: Last Rebasing Year | F1: Renewable Generation Connection Investment Summary | G1: Year | H1: Amount
A2: ='LDC Info'!$E$14 -> E.L.K. Energy Inc. | B2: =EBNUMBER -> EB-2021-0016 | C2: =TestYear -> 2022 | D2: =BridgeYear -> 2021 | E2: =RebaseYear -> 2012 | F2: REI Investments_A_Total Capital Costs | G2: ='App.2-FA Proposed REG Invest.'!$C$31 -> 2017 | H2: ='App.2-FA Proposed REG Invest.'!C62 -> 0
A3: ='LDC Info'!$E$14 -> E.L.K. Energy Inc. | B3: EB-2021-0016 | C3: 2022 | D3: 2021 | E3: 2012 | F3: REI Investments_A_Total OM&A Start-Up | G3: ='App.2-FA Proposed REG Invest.'!$C$31 -> 2017 | H3: ='App.2-FA Proposed REG Invest.'!$C63 -> 0
A4: ='LDC Info'!$E$14 -> E.L.K. Energy Inc. | B4: EB-2021-0016 | C4: 2022 | D4: 2021 | E4: 2012 | F4: REI Investments_A_Total OM&A Ongoing | G4: ='App.2-FA Proposed REG Invest.'!$C$31 -> 2017 | H4: ='App.2-FA Proposed REG Invest.'!$C64 -> 0
A5: ='LDC Info'!$E$14 -> E.L.K. Energy Inc. | B5: EB-2021-0016 | C5: 2022 | D5: 2021 | E5: 2012 | F5: REI Investments_A_Total Capital Costs | G5: ='App.2-FA Proposed REG Invest.'!$D$31 -> 2018 | H5: ='App.2-FA Proposed REG Invest.'!D62 -> 0
A6: ='LDC Info'!$E$14 -> E.L.K. Energy Inc. | B6: EB-2021-0016 | C6: 2022 | D6: 2021 | E6: 2012 | F6: REI Investments_A_Total OM&A Start-Up | G6: ='App.2-FA Proposed REG Invest.'!$D$31 -> 2018 | H6: ='App.2-FA Proposed REG Invest.'!D63 -> 0
A7: ='LDC Info'!$E$14 -> E.L.K. Energy Inc. | B7: EB-2021-0016 | C7: 2022 | D7: 2021 | E7: 2012 | F7: REI Investments_A_Total OM&A Ongoing | G7: ='App.2-FA Proposed REG Invest.'!$D$31 -> 2018 | H7: ='App.2-FA Proposed REG Invest.'!D64 -> 0
A8: ='LDC Info'!$E$14 -> E.L.K. Energy Inc. | B8: EB-2021-0016 | C8: 2022 | D8: 2021 | E8: 2012 | F8: REI Investments_A_Total Capital Costs | G8: ='App.2-FA Proposed REG Invest.'!$E$31 -> 2019 | H8: ='App.2-FA Proposed REG Invest.'!E62 -> 0
A9: ='LDC Info'!$E$14 -> E.L.K. Energy Inc. | B9: EB-2021-0016 | C9: 2022 | D9: 2021 | E9: 2012 | F9: REI Investments_A_Total OM&A Start-Up | G9: ='App.2-FA Proposed REG Invest.'!$E$31 -> 2019 | H9: ='App.2-FA Proposed REG Invest.'!E63 -> 0
A10: ='LDC Info'!$E$14 -> E.L.K. Energy Inc. | B10: EB-2021-0016 | C10: 2022 | D10: 2021 | E10: 2012 | F10: REI Investments_A_Total OM&A Ongoing | G10: ='App.2-FA Proposed REG Invest.'!$E$31 -> 2019 | H10: ='App.2-FA Proposed REG Invest.'!E64 -> 0
A11: ='LDC Info'!$E$14 -> E.L.K. Energy Inc. | B11: EB-2021-0016 | C11: 2022 | D11: 2021 | E11: 2012 | F11: REI Investments_A_Total Capital Costs | G11: ='App.2-FA Proposed REG Invest.'!$F$31 -> 2020 | H11: ='App.2-FA Proposed REG Invest.'!F62 -> 0
A12: ='LDC Info'!$E$14 -> E.L.K. Energy Inc. | B12: EB-2021-0016 | C12: 2022 | D12: 2021 | E12: 2012 | F12: REI Investments_A_Total OM&A Start-Up | G12: ='App.2-FA Proposed REG Invest.'!$F$31 -> 2020 | H12: ='App.2-FA Proposed REG Invest.'!F63 -> 0
A13: ='LDC Info'!$E$14 -> E.L.K. Energy Inc. | B13: EB-2021-0016 | C13: 2022 | D13: 2021 | E13: 2012 | F13: REI Investments_A_Total OM&A Ongoing | G13: ='App.2-FA Proposed REG Invest.'!$F$31 -> 2020 | H13: ='App.2-FA Proposed REG Invest.'!F64 -> 0
A14: ='LDC Info'!$E$14 -> E.L.K. Energy Inc. | B14: EB-2021-0016 | C14: 2022 | D14: 2021 | E14: 2012 | F14: REI Investments_A_Total Capital Costs | G14: ='App.2-FA Proposed REG Invest.'!$G$31 -> 2021 | H14: ='App.2-FA Proposed REG Invest.'!G62 -> 0
A15: ='LDC Info'!$E$14 -> E.L.K. Energy Inc. | B15: EB-2021-0016 | C15: 2022 | D15: 2021 | E15: 2012 | F15: REI Investments_A_Total OM&A Start-Up | G15: ='App.2-FA Proposed REG Invest.'!$G$31 -> 2021 | H15: ='App.2-FA Proposed REG Invest.'!G63 -> 0
A16: ='LDC Info'!$E$14 -> E.L.K. Energy Inc. | B16: EB-2021-0016 | C16: 2022 | D16: 2021 | E16: 2012 | F16: REI Investments_A_Total OM&A Ongoing | G16: ='App.2-FA Proposed REG Invest.'!$G$31 -> 2021 | H16: ='App.2-FA Proposed REG Invest.'!G64 -> 0
A17: ='LDC Info'!$E$14 -> E.L.K. Energy Inc. | B17: EB-2021-0016 | C17: 2022 | D17: 2021 | E17: 2012 | F17: REI Investments_A_Total Capital Costs | G17: ='App.2-FA Proposed REG Invest.'!$H$31 -> 2022 | H17: ='App.2-FA Proposed REG Invest.'!H62 -> 0
A18: ='LDC Info'!$E$14 -> E.L.K. Energy Inc. | B18: EB-2021-0016 | C18: 2022 | D18: 2021 | E18: 2012 | F18: REI Investments_A_Total OM&A Start-Up | G18: ='App.2-FA Proposed REG Invest.'!$H$31 -> 2022 | H18: ='App.2-FA Proposed REG Invest.'!H63 -> 0
A19: ='LDC Info'!$E$14 -> E.L.K. Energy Inc. | B19: EB-2021-0016 | C19: 2022 | D19: 2021 | E19: 2012 | F19: REI Investments_A_Total OM&A Ongoing | G19: ='App.2-FA Proposed REG Invest.'!$H$31 -> 2022 | H19: ='App.2-FA Proposed REG Invest.'!H64 -> 0
A20: ='LDC Info'!$E$14 -> E.L.K. Energy Inc. | B20: EB-2021-0016 | C20: 2022 | D20: 2021 | E20: 2012 | F20: REI Investments_A_Total Capital Costs | G20: ='App.2-FA Proposed REG Invest.'!$I$31 -> 2023 | H20: ='App.2-FA Proposed REG Invest.'!I62 -> 0
A21: ='LDC Info'!$E$14 -> E.L.K. Energy Inc. | B21: EB-2021-0016 | C21: 2022 | D21: 2021 | E21: 2012 | F21: REI Investments_A_Total OM&A Start-Up | G21: ='App.2-FA Proposed REG Invest.'!$I$31 -> 2023 | H21: ='App.2-FA Proposed REG Invest.'!I63 -> 0
A22: ='LDC Info'!$E$14 -> E.L.K. Energy Inc. | B22: EB-2021-0016 | C22: 2022 | D22: 2021 | E22: 2012 | F22: REI Investments_A_Total OM&A Ongoing | G22: ='App.2-FA Proposed REG Invest.'!$I$31 -> 2023 | H22: ='App.2-FA Proposed REG Invest.'!I64 -> 0
A23: ='LDC Info'!$E$14 -> E.L.K. Energy Inc. | B23: EB-2021-0016 | C23: 2022 | D23: 2021 | E23: 2012 | F23: REI Investments_A_Total Capital Costs | G23: ='App.2-FA Proposed REG Invest.'!$J$31 -> 2024 | H23: ='App.2-FA Proposed REG Invest.'!J62 -> 0
A24: ='LDC Info'!$E$14 -> E.L.K. Energy Inc. | B24: EB-2021-0016 | C24: 2022 | D24: 2021 | E24: 2012 | F24: REI Investments_A_Total OM&A Start-Up | G24: ='App.2-FA Proposed REG Invest.'!$J$31 -> 2024 | H24: ='App.2-FA Proposed REG Invest.'!J63 -> 0
A25: ='LDC Info'!$E$14 -> E.L.K. Energy Inc. | B25: EB-2021-0016 | C25: 2022 | D25: 2021 | E25: 2012 | F25: REI Investments_A_Total OM&A Ongoing | G25: ='App.2-FA Proposed REG Invest.'!$J$31 -> 2024 | H25: ='App.2-FA Proposed REG Invest.'!J64 -> 0
A26: ='LDC Info'!$E$14 -> E.L.K. Energy Inc. | B26: EB-2021-0016 | C26: 2022 | D26: 2021 | E26: 2012 | F26: REI Investments_A_Total Capital Costs | G26: ='App.2-FA Proposed REG Invest.'!$K$31 -> 2025 | H26: ='App.2-FA Proposed REG Invest.'!K62 -> 0
A27: ='LDC Info'!$E$14 -> E.L.K. Energy Inc. | B27: EB-2021-0016 | C27: 2022 | D27: 2021 | E27: 2012 | F27: REI Investments_A_Total OM&A Start-Up | G27: ='App.2-FA Proposed REG Invest.'!$K$31 -> 2025 | H27: ='App.2-FA Proposed REG Invest.'!K63 -> 0
A28: ='LDC Info'!$E$14 -> E.L.K. Energy Inc. | B28: EB-2021-0016 | C28: 2022 | D28: 2021 | E28: 2012 | F28: REI Investments_A_Total OM&A Ongoing | G28: ='App.2-FA Proposed REG Invest.'!$K$31 -> 2025 | H28: ='App.2-FA Proposed REG Invest.'!K64 -> 0
A29: ='LDC Info'!$E$14 -> E.L.K. Energy Inc. | B29: EB-2021-0016 | C29: 2022 | D29: 2021 | E29: 2012 | F29: REI Investments_A_Total Capital Costs | G29: ='App.2-FA Proposed REG Invest.'!$L$31 -> 2026 | H29: ='App.2-FA Proposed REG Invest.'!L62 -> 0
A30: ='LDC Info'!$E$14 -> E.L.K. Energy Inc. | B30: EB-2021-0016 | C30: 2022 | D30: 2021 | E30: 2012 | F30: REI Investments_A_Total OM&A Start-Up | G30: ='App.2-FA Proposed REG Invest.'!$L$31 -> 2026 | H30: ='App.2-FA Proposed REG Invest.'!L63 -> 0
A31: ='LDC Info'!$E$14 -> E.L.K. Energy Inc. | B31: EB-2021-0016 | C31: 2022 | D31: 2021 | E31: 2012 | F31: REI Investments_A_Total OM&A Ongoing | G31: ='App.2-FA Proposed REG Invest.'!$L$31 -> 2026 | H31: ='App.2-FA Proposed REG Invest.'!L64 -> 0
A32: ='LDC Info'!$E$14 -> E.L.K. Energy Inc. | B32: EB-2021-0016 | C32: 2022 | D32: 2021 | E32: 2012 | F32: Expansion Investments_B_Total Capital Costs | G32: ='App.2-FA Proposed REG Invest.'!$C$31 -> 2017 | H32: ='App.2-FA Proposed REG Invest.'!C99 -> 0
A33: ='LDC Info'!$E$14 -> E.L.K. Energy Inc. | B33: EB-2021-0016 | C33: 2022 | D33: 2021 | E33: 2012 | F33: Expansion Investments_B_Total OM&A Start-Up | G33: ='App.2-FA Proposed REG Invest.'!$C$31 -> 2017 | H33: ='App.2-FA Proposed REG Invest.'!C100 -> 0
A34: ='LDC Info'!$E$14 -> E.L.K. Energy Inc. | B34: EB-2021-0016 | C34: 2022 | D34: 2021 | E34: 2012 | F34: Expansion Investments_B_Total OM&A Ongoing | G34: ='App.2-FA Proposed REG Invest.'!$C$31 -> 2017 | H34: ='App.2-FA Proposed REG Invest.'!C101 -> 0
A35: ='LDC Info'!$E$14 -> E.L.K. Energy Inc. | B35: EB-2021-0016 | C35: 2022 | D35: 2021 | E35: 2012 | F35: Expansion Investments_B_Total Capital Costs | G35: ='App.2-FA Proposed REG Invest.'!$D$31 -> 2018 | H35: ='App.2-FA Proposed REG Invest.'!D99 -> 0
A36: ='LDC Info'!$E$14 -> E.L.K. Energy Inc. | B36: EB-2021-0016 | C36: 2022 | D36: 2021 | E36: 2012 | F36: Expansion Investments_B_Total OM&A Start-Up | G36: ='App.2-FA Proposed REG Invest.'!$D$31 -> 2018 | H36: ='App.2-FA Proposed REG Invest.'!D100 -> 0
A37: ='LDC Info'!$E$14 -> E.L.K. Energy Inc. | B37: EB-2021-0016 | C37: 2022 | D37: 2021 | E37: 2012 | F37: Expansion Investments_B_Total OM&A Ongoing | G37: ='App.2-FA Proposed REG Invest.'!$D$31 -> 2018 | H37: ='App.2-FA Proposed REG Invest.'!D101 -> 0
A38: ='LDC Info'!$E$14 -> E.L.K. Energy Inc. | B38: EB-2021-0016 | C38: 2022 | D38: 2021 | E38: 2012 | F38: Expansion Investments_B_Total Capital Costs | G38: ='App.2-FA Proposed REG Invest.'!$E$31 -> 2019 | H38: ='App.2-FA Proposed REG Invest.'!E99 -> 0
A39: ='LDC Info'!$E$14 -> E.L.K. Energy Inc. | B39: EB-2021-0016 | C39: 2022 | D39: 2021 | E39: 2012 | F39: Expansion Investments_B_Total OM&A Start-Up | G39: ='App.2-FA Proposed REG Invest.'!$E$31 -> 2019 | H39: ='App.2-FA Proposed REG Invest.'!E100 -> 0
A40: ='LDC Info'!$E$14 -> E.L.K. Energy Inc. | B40: EB-2021-0016 | C40: 2022 | D40: 2021 | E40: 2012 | F40: Expansion Investments_B_Total OM&A Ongoing | G40: ='App.2-FA Proposed REG Invest.'!$E$31 -> 2019 | H40: ='App.2-FA Proposed REG Invest.'!E101 -> 0
A41: ='LDC Info'!$E$14 -> E.L.K. Energy Inc. | B41: EB-2021-0016 | C41: 2022 | D41: 2021 | E41: 2012 | F41: Expansion Investments_B_Total Capital Costs | G41: ='App.2-FA Proposed REG Invest.'!$F$31 -> 2020 | H41: ='App.2-FA Proposed REG Invest.'!F99 -> 0
A42: ='LDC Info'!$E$14 -> E.L.K. Energy Inc. | B42: EB-2021-0016 | C42: 2022 | D42: 2021 | E42: 2012 | F42: Expansion Investments_B_Total OM&A Start-Up | G42: ='App.2-FA Proposed REG Invest.'!$F$31 -> 2020 | H42: ='App.2-FA Proposed REG Invest.'!F100 -> 0
A43: ='LDC Info'!$E$14 -> E.L.K. Energy Inc. | B43: EB-2021-0016 | C43: 2022 | D43: 2021 | E43: 2012 | F43: Expansion Investments_B_Total OM&A Ongoing | G43: ='App.2-FA Proposed REG Invest.'!$F$31 -> 2020 | H43: ='App.2-FA Proposed REG Invest.'!F101 -> 0
A44: ='LDC Info'!$E$14 -> E.L.K. Energy Inc. | B44: EB-2021-0016 | C44: 2022 | D44: 2021 | E44: 2012 | F44: Expansion Investments_B_Total Capital Costs | G44: ='App.2-FA Proposed REG Invest.'!$G$31 -> 2021 | H44: ='App.2-FA Proposed REG Invest.'!G99 -> 0
A45: ='LDC Info'!$E$14 -> E.L.K. Energy Inc. | B45: EB-2021-0016 | C45: 2022 | D45: 2021 | E45: 2012 | F45: Expansion Investments_B_Total OM&A Start-Up | G45: ='App.2-FA Proposed REG Invest.'!$G$31 -> 2021 | H45: ='App.2-FA Proposed REG Invest.'!G100 -> 0
A46: ='LDC Info'!$E$14 -> E.L.K. Energy Inc. | B46: EB-2021-0016 | C46: 2022 | D46: 2021 | E46: 2012 | F46: Expansion Investments_B_Total OM&A Ongoing | G46: ='App.2-FA Proposed REG Invest.'!$G$31 -> 2021 | H46: ='App.2-FA Proposed REG Invest.'!G101 -> 0
A47: ='LDC Info'!$E$14 -> E.L.K. Energy Inc. | B47: EB-2021-0016 | C47: 2022 | D47: 2021 | E47: 2012 | F47: Expansion Investments_B_Total Capital Costs | G47: ='App.2-FA Proposed REG Invest.'!$H$31 -> 2022 | H47: ='App.2-FA Proposed REG Invest.'!H99 -> 0
A48: ='LDC Info'!$E$14 -> E.L.K. Energy Inc. | B48: EB-2021-0016 | C48: 2022 | D48: 2021 | E48: 2012 | F48: Expansion Investments_B_Total OM&A Start-Up | G48: ='App.2-FA Proposed REG Invest.'!$H$31 -> 2022 | H48: ='App.2-FA Proposed REG Invest.'!H100 -> 0
A49: ='LDC Info'!$E$14 -> E.L.K. Energy Inc. | B49: EB-2021-0016 | C49: 2022 | D49: 2021 | E49: 2012 | F49: Expansion Investments_B_Total OM&A Ongoing | G49: ='App.2-FA Proposed REG Invest.'!$H$31 -> 2022 | H49: ='App.2-FA Proposed REG Invest.'!H101 -> 0
A50: ='LDC Info'!$E$14 -> E.L.K. Energy Inc. | B50: EB-2021-0016 | C50: 2022 | D50: 2021 | E50: 2012 | F50: Expansion Investments_B_Total Capital Costs | G50: ='App.2-FA Proposed REG Invest.'!$I$31 -> 2023 | H50: ='App.2-FA Proposed REG Invest.'!I99 -> 0
A51: ='LDC Info'!$E$14 -> E.L.K. Energy Inc. | B51: EB-2021-0016 | C51: 2022 | D51: 2021 | E51: 2012 | F51: Expansion Investments_B_Total OM&A Start-Up | G51: ='App.2-FA Proposed REG Invest.'!$I$31 -> 2023 | H51: ='App.2-FA Proposed REG Invest.'!I100 -> 0
A52: ='LDC Info'!$E$14 -> E.L.K. Energy Inc. | B52: EB-2021-0016 | C52: 2022 | D52: 2021 | E52: 2012 | F52: Expansion Investments_B_Total OM&A Ongoing | G52: ='App.2-FA Proposed REG Invest.'!$I$31 -> 2023 | H52: ='App.2-FA Proposed REG Invest.'!I101 -> 0
A53: ='LDC Info'!$E$14 -> E.L.K. Energy Inc. | B53: EB-2021-0016 | C53: 2022 | D53: 2021 | E53: 2012 | F53: Expansion Investments_B_Total Capital Costs | G53: ='App.2-FA Proposed REG Invest.'!$J$31 -> 2024 | H53: ='App.2-FA Proposed REG Invest.'!J99 -> 0
A54: ='LDC Info'!$E$14 -> E.L.K. Energy Inc. | B54: EB-2021-0016 | C54: 2022 | D54: 2021 | E54: 2012 | F54: Expansion Investments_B_Total OM&A Start-Up | G54: ='App.2-FA Proposed REG Invest.'!$J$31 -> 2024 | H54: ='App.2-FA Proposed REG Invest.'!J100 -> 0
A55: ='LDC Info'!$E$14 -> E.L.K. Energy Inc. | B55: EB-2021-0016 | C55: 2022 | D55: 2021 | E55: 2012 | F55: Expansion Investments_B_Total OM&A Ongoing | G55: ='App.2-FA Proposed REG Invest.'!$J$31 -> 2024 | H55: ='App.2-FA Proposed REG Invest.'!J101 -> 0
A56: ='LDC Info'!$E$14 -> E.L.K. Energy Inc. | B56: EB-2021-0016 | C56: 2022 | D56: 2021 | E56: 2012 | F56: Expansion Investments_B_Total Capital Costs | G56: ='App.2-FA Proposed REG Invest.'!$K$31 -> 2025 | H56: ='App.2-FA Proposed REG Invest.'!K99 -> 0
A57: ='LDC Info'!$E$14 -> E.L.K. Energy Inc. | B57: EB-2021-0016 | C57: 2022 | D57: 2021 | E57: 2012 | F57: Expansion Investments_B_Total OM&A Start-Up | G57: ='App.2-FA Proposed REG Invest.'!$K$31 -> 2025 | H57: ='App.2-FA Proposed REG Invest.'!K100 -> 0
A58: ='LDC Info'!$E$14 -> E.L.K. Energy Inc. | B58: EB-2021-0016 | C58: 2022 | D58: 2021 | E58: 2012 | F58: Expansion Investments_B_Total OM&A Ongoing | G58: ='App.2-FA Proposed REG Invest.'!$K$31 -> 2025 | H58: ='App.2-FA Proposed REG Invest.'!K101 -> 0
A59: ='LDC Info'!$E$14 -> E.L.K. Energy Inc. | B59: EB-2021-0016 | C59: 2022 | D59: 2021 | E59: 2012 | F59: Expansion Investments_B_Total Capital Costs | G59: ='App.2-FA Proposed REG Invest.'!$L$31 -> 2026 | H59: ='App.2-FA Proposed REG Invest.'!L99 -> 0
A60: ='LDC Info'!$E$14 -> E.L.K. Energy Inc. | B60: EB-2021-0016 | C60: 2022 | D60: 2021 | E60: 2012 | F60: Expansion Investments_B_Total OM&A Start-Up | G60: ='App.2-FA Proposed REG Invest.'!$L$31 -> 2026 | H60: ='App.2-FA Proposed REG Invest.'!L100 -> 0
A61: ='LDC Info'!$E$14 -> E.L.K. Energy Inc. | B61: EB-2021-0016 | C61: 2022 | D61: 2021 | E61: 2012 | F61: Expansion Investments_B_Total OM&A Ongoing | G61: ='App.2-FA Proposed REG Invest.'!$L$31 -> 2026 | H61: ='App.2-FA Proposed REG Invest.'!L101 -> 0

Sheet Hidden_REG Improvement (hidden)
A1: Utility Name | B1: EB Number | C1: Test Year | D1: Bridge Year | E1: Last Rebasing Year | F1: Renewable Generation Connection Direct Benefits/Provincial Amount Renewable Enabling Improvement Investments | G1: Year | H1: Amount
A2: ='LDC Info'!$E$14 -> E.L.K. Energy Inc. | B2: =EBNUMBER -> EB-2021-0016 | C2: =TestYear -> 2022 | D2: =BridgeYear -> 2021 | E2: =RebaseYear -> 2012 | F2: Provincial Rate Protection | G2: ='App.2-FB Calc of REG Improvemnt'!D17 -> 2017 | H2: ='App.2-FB Calc of REG Improvemnt'!F$44 -> 0
A3: ='LDC Info'!$E$14 -> E.L.K. Energy Inc. | B3: EB-2021-0016 | C3: 2022 | D3: 2021 | E3: 2012 | F3: Provincial Rate Protection | G3: ='App.2-FB Calc of REG Improvemnt'!G17 -> 2018 | H3: ='App.2-FB Calc of REG Improvemnt'!I$44 -> 0
A4: ='LDC Info'!$E$14 -> E.L.K. Energy Inc. | B4: EB-2021-0016 | C4: 2022 | D4: 2021 | E4: 2012 | F4: Provincial Rate Protection | G4: ='App.2-FB Calc of REG Improvemnt'!J17 -> 2019 | H4: ='App.2-FB Calc of REG Improvemnt'!L$44 -> 0
A5: ='LDC Info'!$E$14 -> E.L.K. Energy Inc. | B5: EB-2021-0016 | C5: 2022 | D5: 2021 | E5: 2012 | F5: Provincial Rate Protection | G5: ='App.2-FB Calc of REG Improvemnt'!M17 -> 2020 | H5: ='App.2-FB Calc of REG Improvemnt'!O$44 -> 0
A6: ='LDC Info'!$E$14 -> E.L.K. Energy Inc. | B6: EB-2021-0016 | C6: 2022 | D6: 2021 | E6: 2012 | F6: Provincial Rate Protection | G6: ='App.2-FB Calc of REG Improvemnt'!P17 -> 2021 | H6: ='App.2-FB Calc of REG Improvemnt'!R$44 -> 0
A7: ='LDC Info'!$E$14 -> E.L.K. Energy Inc. | B7: EB-2021-0016 | C7: 2022 | D7: 2021 | E7: 2012 | F7: Provincial Rate Protection | G7: ='App.2-FB Calc of REG Improvemnt'!S17 -> 2022 | H7: ='App.2-FB Calc of REG Improvemnt'!U$44 -> 0
A8: ='LDC Info'!$E$14 -> E.L.K. Energy Inc. | B8: EB-2021-0016 | C8: 2022 | D8: 2021 | E8: 2012 | F8: Provincial Rate Protection | G8: ='App.2-FB Calc of REG Improvemnt'!V17 -> 2023 | H8: ='App.2-FB Calc of REG Improvemnt'!X$44 -> 0
A9: ='LDC Info'!$E$14 -> E.L.K. Energy Inc. | B9: EB-2021-0016 | C9: 2022 | D9: 2021 | E9: 2012 | F9: Provincial Rate Protection | G9: ='App.2-FB Calc of REG Improvemnt'!Y17 -> 2024 | H9: ='App.2-FB Calc of REG Improvemnt'!AA$44 -> 0
A10: ='LDC Info'!$E$14 -> E.L.K. Energy Inc. | B10: EB-2021-0016 | C10: 2022 | D10: 2021 | E10: 2012 | F10: Provincial Rate Protection | G10: ='App.2-FB Calc of REG Improvemnt'!AB17 -> 2025 | H10: ='App.2-FB Calc of REG Improvemnt'!AD$44 -> 0
A11: ='LDC Info'!$E$14 -> E.L.K. Energy Inc. | B11: EB-2021-0016 | C11: 2022 | D11: 2021 | E11: 2012 | F11: Provincial Rate Protection | G11: ='App.2-FB Calc of REG Improvemnt'!AE17 -> 2026 | H11: ='App.2-FB Calc of REG Improvemnt'!AG$44 -> 0

Sheet Hidden_REG Expansion (hidden)
A1: Utility Name | B1: EB Number | C1: Test Year | D1: Bridge Year | E1: Last Rebasing Year | F1: Calculation of Renewable Generation Connection Direct Benefits/Provincial Amount Renewable Expansion Investments | G1: Year | H1: Amount
A2: ='LDC Info'!$E$14 -> E.L.K. Energy Inc. | B2: =EBNUMBER -> EB-2021-0016 | C2: =TestYear -> 2022 | D2: =BridgeYear -> 2021 | E2: =RebaseYear -> 2012 | F2: Provincial Rate Protection | G2: ='App.2-FC Calc of REG Expansion'!D$17 -> 2017 | H2: ='App.2-FC Calc of REG Expansion'!F$44 -> 0
A3: ='LDC Info'!$E$14 -> E.L.K. Energy Inc. | B3: EB-2021-0016 | C3: 2022 | D3: 2021 | E3: 2012 | F3: Provincial Rate Protection | G3: ='App.2-FC Calc of REG Expansion'!G$17 -> 2018 | H3: ='App.2-FC Calc of REG Expansion'!I$44 -> 0
A4: ='LDC Info'!$E$14 -> E.L.K. Energy Inc. | B4: EB-2021-0016 | C4: 2022 | D4: 2021 | E4: 2012 | F4: Provincial Rate Protection | G4: ='App.2-FC Calc of REG Expansion'!J$17 -> 2019 | H4: ='App.2-FC Calc of REG Expansion'!L$44 -> 0
A5: ='LDC Info'!$E$14 -> E.L.K. Energy Inc. | B5: EB-2021-0016 | C5: 2022 | D5: 2021 | E5: 2012 | F5: Provincial Rate Protection | G5: ='App.2-FC Calc of REG Expansion'!M$17 -> 2020 | H5: ='App.2-FC Calc of REG Expansion'!O$44 -> 0
A6: ='LDC Info'!$E$14 -> E.L.K. Energy Inc. | B6: EB-2021-0016 | C6: 2022 | D6: 2021 | E6: 2012 | F6: Provincial Rate Protection | G6: ='App.2-FC Calc of REG Expansion'!P$17 -> 2021 | H6: ='App.2-FC Calc of REG Expansion'!R$44 -> 0
A7: ='LDC Info'!$E$14 -> E.L.K. Energy Inc. | B7: EB-2021-0016 | C7: 2022 | D7: 2021 | E7: 2012 | F7: Provincial Rate Protection | G7: ='App.2-FC Calc of REG Expansion'!S$17 -> 2022 | H7: ='App.2-FC Calc of REG Expansion'!U$44 -> 0
A8: ='LDC Info'!$E$14 -> E.L.K. Energy Inc. | B8: EB-2021-0016 | C8: 2022 | D8: 2021 | E8: 2012 | F8: Provincial Rate Protection | G8: ='App.2-FC Calc of REG Expansion'!V$17 -> 2023 | H8: ='App.2-FC Calc of REG Expansion'!X$44 -> 0
A9: ='LDC Info'!$E$14 -> E.L.K. Energy Inc. | B9: EB-2021-0016 | C9: 2022 | D9: 2021 | E9: 2012 | F9: Provincial Rate Protection | G9: ='App.2-FC Calc of REG Expansion'!Y$17 -> 2024 | H9: ='App.2-FC Calc of REG Expansion'!AA$44 -> 0
A10: ='LDC Info'!$E$14 -> E.L.K. Energy Inc. | B10: EB-2021-0016 | C10: 2022 | D10: 2021 | E10: 2012 | F10: Provincial Rate Protection | G10: ='App.2-FC Calc of REG Expansion'!AB$17 -> 2025 | H10: ='App.2-FC Calc of REG Expansion'!AD$44 -> 0
A11: ='LDC Info'!$E$14 -> E.L.K. Energy Inc. | B11: EB-2021-0016 | C11: 2022 | D11: 2021 | E11: 2012 | F11: Provincial Rate Protection | G11: ='App.2-FC Calc of REG Expansion'!AE$17 -> 2026 | H11: ='App.2-FC Calc of REG Expansion'!AG$44 -> 0

Sheet App.2-FA Proposed REG Invest.
K1: File Number: | L1: 0
K2: Exhibit:
K3: Tab:
A4: TO BE UPDATED AT DRAFT RATE ORDER STAGE | K4: Schedule:
K5: Page:
K7: Date:
A9: Appendix 2-FA
A10: Renewable Generation Connection Investment Summary (past investments or over the future rate setting period)
A12: Enter the details of the Renewable Generation Connection projects as described in the appropriate section of the Filing Requirements.
A13: All costs entered on this page will be transferred to the appropriate cells in the appendices that follow.
A14: For Part A, Renewable Enabling Improvements (REI), these amounts will be transferred to Appendix 2 - FB
A15: For Part B, Expansions, these amounts will be transferred to Appendix 2 - FC
A17: If there are more than five projects proposed to be in-service in a certain year, please amend the tables below and ensure that the formulae for the Total Amounts in any given rate year are updated.
A18: Based on the current methodology and allocation, amounts allocated represent 6% for REI Connection Investments and 17% for Expansion Investments. (EB-2009-0349, 6-10-2010, p. 15, note 9)
A19: Ensure that OM&A costs below are not included in Recoverable OM&A (App. 2-JA)
A20: There are two scenarios described below. Separate sets of spreadsheets (2-FA, 2-FB, 2-FC) should be submited for each scenario as required.
A21: Scenario 1: | B21: Past Investments with No Recovery. The distributor has made investments in the past (during the IRM Years), but has not received approval for these projects and therefore did not receive
B22: revenue from the IESO under Regulation 330/09 and did not receive ratepayer revenue for the direct benefit portion of the investment.
B23: The WCA percentage, debt percentages, interest rates, kWh, tax rates, amortization period, CCA Class and percentage should correspond to the distributor's last Cost of Service approval.
B24: The Direct Benefit portion of the calculated Revenue Requirement for each year should be summed and can be applied for recovery from the distributor's ratepayers through a rate rider.
B25: The Provincial Recovery portion of the calculated Revenue Requirement for each year should be summed and can be applied for recovery from the IESO through a separate order.
A27: Scenario 2: | B27: Investments in the Test Year and Beyond. Distributor plans to make investments in 2021 and/or beyond. These investments should be added to 2-FA in the appropriate year.
B28: The WCA percentage, debt percentages, interest rates, kWh, tax rates, amortization period, CCA Class and percentage should correspond to the distributor's current application.
A30: Part A | H30: Test Year
A31: REI Investments (Direct Benefit at 6%) | C31: =D31-1 -> 2017 | D31: =E31-1 -> 2018 | E31: =F31-1 -> 2019 | F31: =G31-1 -> 2020 | G31: =H31-1 -> 2021 | H31: ='LDC Info'!$E$24 -> 2022 | I31: =H31+1 -> 2023 | J31: =I31+1 -> 2024 | K31: =J31+1 -> 2025 | L31: =K31+1 -> 2026
A32: Project 1
A33: Name: REI Connection Project
A34: Capital Costs | C34: 0 | D34: 0 | E34: 0 | F34: 0 | G34: 0 | H34: 0 | I34: 0 | J34: 0 | K34: 0 | L34: 0
A35: Incremental OM&A (Start-Up) | C35: 0 | D35: 0 | E35: 0 | F35: 0 | G35: 0 | H35: 0 | I35: 0 | J35: 0 | K35: 0 | L35: 0
A36: Incremental OM&A (Ongoing) | C36: 0 | D36: 0 | E36: 0 | F36: 0 | G36: 0 | H36: 0 | I36: 0 | J36: 0 | K36: 0 | L36: 0
A38: Project 2
A39: Name: REI Connection Project
A40: Capital Costs | C40: 0 | D40: 0 | E40: 0 | F40: 0 | G40: 0 | H40: 0 | I40: 0 | J40: 0 | K40: 0 | L40: 0
A41: Incremental OM&A (Start-Up) | C41: 0 | D41: 0 | E41: 0 | F41: 0 | G41: 0 | H41: 0 | I41: 0 | J41: 0 | K41: 0 | L41: 0
A42: Incremental OM&A (Ongoing) | C42: 0 | D42: 0 | E42: 0 | F42: 0 | G42: 0 | H42: 0 | I42: 0 | J42: 0 | K42: 0 | L42: 0
A44: Project 3
A45: Name: REI Connection Project
A46: Capital Costs | C46: 0 | D46: 0 | E46: 0 | F46: 0 | G46: 0 | H46: 0 | I46: 0 | J46: 0 | K46: 0 | L46: 0
A47: Incremental OM&A (Start-Up) | C47: 0 | D47: 0 | E47: 0 | F47: 0 | G47: 0 | H47: 0 | I47: 0 | J47: 0 | K47: 0 | L47: 0
A48: Incremental OM&A (Ongoing) | C48: 0 | D48: 0 | E48: 0 | F48: 0 | G48: 0 | H48: 0 | I48: 0 | J48: 0 | K48: 0 | L48: 0
A50: Project 4
A51: Name: REI Connection Project
A52: Capital Costs | C52: 0 | D52: 0 | E52: 0 | F52: 0 | G52: 0 | H52: 0 | I52: 0 | J52: 0 | K52: 0 | L52: 0
A53: Incremental OM&A (Start-Up) | C53: 0 | D53: 0 | E53: 0 | F53: 0 | G53: 0 | H53: 0 | I53: 0 | J53: 0 | K53: 0 | L53: 0
A54: Incremental OM&A (Ongoing) | C54: 0 | D54: 0 | E54: 0 | F54: 0 | G54: 0 | H54: 0 | I54: 0 | J54: 0 | K54: 0 | L54: 0
A56: Project 5
A57: Name: REI Connection Project
A58: Capital Costs | C58: 0 | D58: 0 | E58: 0 | F58: 0 | G58: 0 | H58: 0 | I58: 0 | J58: 0 | K58: 0 | L58: 0
A59: Incremental OM&A (Start-Up) | C59: 0 | D59: 0 | E59: 0 | F59: 0 | G59: 0 | H59: 0 | I59: 0 | J59: 0 | K59: 0 | L59: 0
A60: Incremental OM&A (Ongoing) | C60: 0 | D60: 0 | E60: 0 | F60: 0 | G60: 0 | H60: 0 | I60: 0 | J60: 0 | K60: 0 | L60: 0
A62: Total Capital Costs | C62: =SUM(C58,C52,C46,C40,C34) -> 0 | D62: 0 | E62: 0 | F62: 0 | G62: 0 | H62: 0 | I62: 0 | J62: 0 | K62: 0 | L62: 0
A63: Total Incremental OM&A (Start-Up) | C63: 0 | D63: 0 | E63: 0 | F63: 0 | G63: 0 | H63: 0 | I63: 0 | J63: 0 | K63: 0 | L63: 0
A64: Total Incremental OM&A (Ongoing) | C64: 0 | D64: 0 | E64: 0 | F64: 0 | G64: 0 | H64: 0 | I64: 0 | J64: 0 | K64: 0 | L64: 0
A67: Part B | H67: Test Year
A68: Expansion Investments (Direct Benefit at 17%) | C68: =D68-1 -> 2017 | D68: =E68-1 -> 2018 | E68: =F68-1 -> 2019 | F68: =G68-1 -> 2020 | G68: =H68-1 -> 2021 | H68: =H31 -> 2022 | I68: =H68+1 -> 2023 | J68: =I68+1 -> 2024 | K68: =J68+1 -> 2025 | L68: =K68+1 -> 2026
A69: Project 1
A70: Name: Expansion Connection Project
A71: Capital Costs | C71: 0 | D71: 0 | E71: 0 | F71: 0 | G71: 0 | H71: 0 | I71: 0 | J71: 0 | K71: 0 | L71: 0
A72: Incremental OM&A (Start-Up) | C72: 0 | D72: 0 | E72: 0 | F72: 0 | G72: 0 | H72: 0 | I72: 0 | J72: 0 | K72: 0 | L72: 0
A73: Incremental OM&A (Ongoing) | C73: 0 | D73: 0 | E73: 0 | F73: 0 | G73: 0 | H73: 0 | I73: 0 | J73: 0 | K73: 0 | L73: 0
A75: Project 2
A76: Name: Expansion Connection Project
A77: Capital Costs | C77: 0 | D77: 0 | E77: 0 | F77: 0 | G77: 0 | H77: 0 | I77: 0 | J77: 0 | K77: 0 | L77: 0
A78: Incremental OM&A (Start-Up) | C78: 0 | D78: 0 | E78: 0 | F78: 0 | G78: 0 | H78: 0 | I78: 0 | J78: 0 | K78: 0 | L78: 0
A79: Incremental OM&A (Ongoing) | C79: 0 | D79: 0 | E79: 0 | F79: 0 | G79: 0 | H79: 0 | I79: 0 | J79: 0 | K79: 0 | L79: 0
A81: Project 3
A82: Name: Expansion Connection Project
A83: Capital Costs | C83: 0 | D83: 0 | E83: 0 | F83: 0 | G83: 0 | H83: 0 | I83: 0 | J83: 0 | K83: 0 | L83: 0
A84: Incremental OM&A (Start-Up) | C84: 0 | D84: 0 | E84: 0 | F84: 0 | G84: 0 | H84: 0 | I84: 0 | J84: 0 | K84: 0 | L84: 0
A85: Incremental OM&A (Ongoing) | C85: 0 | D85: 0 | E85: 0 | F85: 0 | G85: 0 | H85: 0 | I85: 0 | J85: 0 | K85: 0 | L85: 0
A87: Project 4
A88: Name: Expansion Connection Project
A89: Capital Costs | C89: 0 | D89: 0 | E89: 0 | F89: 0 | G89: 0 | H89: 0 | I89: 0 | J89: 0 | K89: 0 | L89: 0
A90: Incremental OM&A (Start-Up) | C90: 0 | D90: 0 | E90: 0 | F90: 0 | G90: 0 | H90: 0 | I90: 0 | J90: 0 | K90: 0 | L90: 0
A91: Incremental OM&A (Ongoing) | C91: 0 | D91: 0 | E91: 0 | F91: 0 | G91: 0 | H91: 0 | I91: 0 | J91: 0 | K91: 0 | L91: 0
A93: Project 5
A94: Name: Expansion Connection Project
A95: Capital Costs | C95: 0 | D95: 0 | E95: 0 | F95: 0 | G95: 0 | H95: 0 | I95: 0 | J95: 0 | K95: 0 | L95: 0
A96: Incremental OM&A (Start-Up) | C96: 0 | D96: 0 | E96: 0 | F96: 0 | G96: 0 | H96: 0 | I96: 0 | J96: 0 | K96: 0 | L96: 0
A97: Incremental OM&A (Ongoing) | C97: 0 | D97: 0 | E97: 0 | F97: 0 | G97: 0 | H97: 0 | I97: 0 | J97: 0 | K97: 0 | L97: 0
A99: Total Capital Costs | C99: =SUM(C95,C89,C83,C77,C71) -> 0 | D99: 0 | E99: 0 | F99: 0 | G99: 0 | H99: 0 | I99: 0 | J99: 0 | K99: 0 | L99: 0
A100: Total Incremental OM&A (Start-Up) | C100: 0 | D100: 0 | E100: 0 | F100: 0 | G100: 0 | H100: 0 | I100: 0 | J100: 0 | K100: 0 | L100: 0
A101: Total Incremental OM&A (Ongoing) | C101: 0 | D101: 0 | E101: 0 | F101: 0 | G101: 0 | H101: 0 | I101: 0 | J101: 0 | K101: 0 | L101: 0

Sheet App.2-FB Calc of REG Improvemnt
R1: File Number: | S1: 0
R2: Exhibit:
R3: Tab:
A4: TO BE UPDATED AT DRAFT RATE ORDER STAGE | R4: Schedule:
R5: Page:
R7: Date:
A9: Appendix 2-FB
A10: Calculation of Renewable Generation Connection Direct Benefits/Provincial Amount: Renewable Enabling Improvement Investments
A12: This table will calculate the distributor/provincial shares of the investments entered in Part A of Appendix 2-FA.
A13: Enter values in green shaded cells: WCA percentage, debt percentages, interest rates, kWh, tax rates, amortization period, CCA Class and percentage.
A14: For historical investments, enter these variables that were approved in your last cost of service test year. For 2021 and beyond, enter variables as in the application.
A15: Rate Riders related to the direct benefit portion of the renewable investments are not calculated for the Test Year as these assets and costs are already in the distributor's rate base/revenue requirement.
S16: Test Year
D17: =G17-1 -> 2017 | G17: =J17-1 -> 2018 | J17: =M17-1 -> 2019 | M17: =P17-1 -> 2020 | P17: =S17-1 -> 2021 | S17: ='LDC Info'!$E$24 -> 2022 | V17: =S17+1 -> 2023 | Y17: =V17+1 -> 2024 | Z17: 2016 | AB17: =Y17+1 -> 2025 | AE17: =AB17+1 -> 2026 | AH17: =AE17+1 -> 2027
E18: Direct Benefit | F18: Provincial | H18: Direct Benefit | I18: Provincial | K18: Direct Benefit | L18: Provincial | N18: Direct Benefit | O18: Provincial | Q18: Direct Benefit | R18: Provincial | T18: Direct Benefit | U18: Provincial | W18: Direct Benefit | X18: Provincial | Z18: Direct Benefit | AA18: Provincial | AC18: Direct Benefit | AD18: Provincial | AF18: Direct Benefit | AG18: Provincial | AI18: Direct Benefit | AJ18: Provincial
D19: Total | E19: 0.06 | F19: 0.94 | G19: Total | H19: 0.06 | I19: 0.94 | J19: Total | K19: 0.06 | L19: 0.94 | M19: Total | N19: 0.06 | O19: 0.94 | P19: Total | Q19: 0.06 | R19: 0.94 | S19: Total | T19: 0.06 | U19: 0.94 | V19: Total | W19: 0.06 | X19: 0.94 | Y19: Total | Z19: 0.06 | AA19: 0.94 | AB19: Total | AC19: 0.06 | AD19: 0.94 | AE19: Total | AF19: 0.06 | AG19: 0.94 | AH19: Total | AI19: 0.06 | AJ19: 0.94
A20: Net Fixed Assets (average) | D20: =E83 -> 0 | E20: =D20*E19 -> 0 | F20: =D20*F19 -> 0 | G20: =F83 -> 0 | H20: =G20*H19 -> 0 | I20: =G20*I19 -> 0 | J20: =G83 -> 0 | K20: =J20*K19 -> 0 | L20: =J20*L19 -> 0 | M20: =H83 -> 0 | N20: =M20*N19 -> 0 | O20: =M20*O19 -> 0 | P20: =I83 -> 0 | Q20: =P20*Q19 -> 0 | R20: =P20*R19 -> 0 | S20: =J83 -> 0 | T20: =S20*T19 -> 0 | U20: =S20*U19 -> 0 | V20: =K83 -> 0 | W20: =V20*W19 -> 0 | X20: =V20*X19 -> 0 | Y20: =L83 -> 0 | Z20: =Y20*Z19 -> 0 | AA20: =Y20*AA19 -> 0 | AB20: =M83 -> 0 | AC20: =AB20*AC19 -> 0 | AD20: =AB20*AD19 -> 0 | AE20: =N83 -> 0 | AF20: =AE20*AF19 -> 0 | AG20: =AE20*AG19 -> 0 | AH20: =O83 -> 0 | AI20: =AH20*AI19 -> 0 | AJ20: =AH20*AJ19 -> 0
A21: Incremental OM&A (on-going, N/A for Provincial Recovery) | D21: 0 | E21: =D21*E19 -> 0 | F21: =D21*F19 -> 0 | G21: 0 | H21: =G21*H19 -> 0 | I21: =G21*I19 -> 0 | J21: 0 | K21: =J21*K19 -> 0 | L21: =J21*L19 -> 0 | M21: 0 | N21: =M21*N19 -> 0 | O21: =M21*O19 -> 0 | P21: 0 | Q21: =P21*Q19 -> 0 | R21: =P21*R19 -> 0 | S21: 0 | T21: =S21*T19 -> 0 | U21: =S21*U19 -> 0 | V21: 0 | W21: =V21*W19 -> 0 | X21: =V21*X19 -> 0 | Y21: 0 | Z21: =Y21*Z19 -> 0 | AA21: =Y21*AA19 -> 0 | AB21: 0 | AC21: =AB21*AC19 -> 0 | AD21: =AB21*AD19 -> 0 | AE21: 0 | AF21: =AE21*AF19 -> 0 | AG21: =AE21*AG19 -> 0 | AH21: 0 | AI21: =AH21*AI19 -> 0 | AJ21: =AH21*AJ19 -> 0
A22: Incremental OM&A (start-up, applicable for Provincial Recovery) | D22: 0 | E22: =D22*E19 -> 0 | F22: =D22*F19 -> 0 | G22: 0 | H22: =G22*H19 -> 0 | I22: =G22*I19 -> 0 | J22: 0 | K22: =J22*K19 -> 0 | L22: =J22*L19 -> 0 | M22: 0 | N22: =M22*N19 -> 0 | O22: =M22*O19 -> 0 | P22: 0 | Q22: =P22*Q19 -> 0 | R22: =P22*R19 -> 0 | S22: 0 | T22: =S22*T19 -> 0 | U22: =S22*U19 -> 0 | V22: 0 | W22: =V22*W19 -> 0 | X22: =V22*X19 -> 0 | Y22: 0 | Z22: =Y22*Z19 -> 0 | AA22: =Y22*AA19 -> 0 | AB22: 0 | AC22: =AB22*AC19 -> 0 | AD22: =AB22*AD19 -> 0 | AE22: 0 | AF22: =AE22*AF19 -> 0 | AG22: =AE22*AG19 -> 0 | AH22: 0 | AI22: =AH22*AI19 -> 0 | AJ22: =AH22*AJ19 -> 0
A23: Rebasing Year vs. Test Year | B23: ='LDC Info'!E28 -> 2012 | C23: ='LDC Info'!E24 -> 2022
A24: Allowance for Working Capital (enter rate) | E24: =IF(AND(D$17>=$B$23, D$17<$C$23),(E21+E22)*$B$24,(E21+E22)*$C$24) -> 0 | F24: =IF(AND(D$17>=$B$23, D$17<$C$23),(F22)*$B$24,(F22)*$C$24) -> 0 | H24: =IF(AND(G$17>=$B$23, G$17<$C$23),(H21+H22)*$B$24,(H21+H22)*$C$24) -> 0 | I24: =IF(AND(G$17>=$B$23, G$17<$C$23),(I22)*$B$24,(I22)*$C$24) -> 0 | K24: =IF(AND(J$17>=$B$23, J$17<$C$23),(K21+K22)*$B$24,(K21+K22)*$C$24) -> 0 | L24: =IF(AND(J$17>=$B$23, J$17<$C$23),(L22)*$B$24,(L22)*$C$24) -> 0 | N24: =IF(AND(M$17>=$B$23, M$17<$C$23),(N21+N22)*$B$24,(N21+N22)*$C$24) -> 0 | O24: =IF(AND(M$17>=$B$23, M$17<$C$23),(O22)*$B$24,(O22)*$C$24) -> 0 | Q24: =IF(AND(P$17>=$B$23, P$17<$C$23),(Q21+Q22)*$B$24,(Q21+Q22)*$C$24) -> 0 | R24: =IF(AND(P$17>=$B$23, P$17<$C$23),(R22)*$B$24,(R22)*$C$24) -> 0 | T24: =IF(AND(S$17>=$B$23, S$17<$C$23),(T21+T22)*$B$24,(T21+T22)*$C$24) -> 0 | U24: =IF(AND(S$17>=$B$23, S$17<$C$23),(U22)*$B$24,(U22)*$C$24) -> 0 | W24: =IF(AND(V$17>=$B$23, V$17<$C$23),(W21+W22)*$B$24,(W21+W22)*$C$24) -> 0 | X24: =IF(AND(V$17>=$B$23, V$17<$C$23),(X22)*$B$24,(X22)*$C$24) -> 0 | Z24: =IF(AND(Y$17>=$B$23, Y$17<$C$23),(Z21+Z22)*$B$24,(Z21+Z22)*$C$24) -> 0 | AA24: =IF(AND(Y$17>=$B$23, Y$17<$C$23),(AA22)*$B$24,(AA22)*$C$24) -> 0 | AC24: =IF(AND(AB$17>=$B$23, AB$17<$C$23),(AC21+AC22)*$B$24,(AC21+AC22)*$C$24) -> 0 | AD24: =IF(AND(AB$17>=$B$23, AB$17<$C$23),(AD22)*$B$24,(AD22)*$C$24) -> 0 | AF24: =IF(AND(AE$17>=$B$23, AE$17<$C$23),(AF21+AF22)*$B$24,(AF21+AF22)*$C$24) -> 0 | AG24: =IF(AND(AE$17>=$B$23, AE$17<$C$23),(AG22)*$B$24,(AG22)*$C$24) -> 0 | AI24: =IF(AND(AH$17>=$B$23, AH$17<$C$23),(AI21+AI22)*$B$24,(AI21+AI22)*$C$24) -> 0 | AJ24: =IF(AND(AH$17>=$B$23, AH$17<$C$23),(AJ22)*$B$24,(AJ22)*$C$24) -> 0
A25: Rate Base | E25: =SUM(E20+E24) -> 0 | F25: =SUM(F20+F24) -> 0 | H25: =SUM(H20+H24) -> 0 | I25: =SUM(I20+I24) -> 0 | K25: =SUM(K20+K24) -> 0 | L25: =SUM(L20+L24) -> 0 | N25: =SUM(N20+N24) -> 0 | O25: =SUM(O20+O24) -> 0 | Q25: =SUM(Q20+Q24) -> 0 | R25: =SUM(R20+R24) -> 0 | T25: =SUM(T20+T24) -> 0 | U25: =SUM(U20+U24) -> 0 | W25: =SUM(W20+W24) -> 0 | X25: =SUM(X20+X24) -> 0 | Z25: =SUM(Z20+Z24) -> 0 | AA25: =SUM(AA20+AA24) -> 0 | AC25: =SUM(AC20+AC24) -> 0 | AD25: =SUM(AD20+AD24) -> 0 | AF25: =SUM(AF20+AF24) -> 0 | AG25: =SUM(AG20+AG24) -> 0 | AI25: =SUM(AI20+AI24) -> 0 | AJ25: =SUM(AJ20+AJ24) -> 0
A27: Rebasing Year vs. Test Year | B27: =B23 -> 2012 | C27: =C23 -> 2022
A28: Deemed ST Debt | B28: 0.04 | C28: 0.04 | E28: =E25*$B$28 -> 0 | F28: =F25*$B$28 -> 0 | H28: =H25*$B$28 -> 0 | I28: =I25*$B$28 -> 0 | K28: =K25*$B$28 -> 0 | L28: =L25*$B$28 -> 0 | N28: =N25*$B$28 -> 0 | O28: =O25*$B$28 -> 0 | Q28: =Q25*$B$28 -> 0 | R28: =R25*$B$28 -> 0 | T28: =T25*$C$28 -> 0 | U28: =U25*$C$28 -> 0 | W28: =W25*$C$28 -> 0 | X28: =X25*$C$28 -> 0 | Z28: =Z25*$C$28 -> 0 | AA28: =AA25*$C$28 -> 0 | AC28: =AC25*$C$28 -> 0 | AD28: =AD25*$C$28 -> 0 | AF28: =AF25*$C$28 -> 0 | AG28: =AG25*$C$28 -> 0 | AI28: =AI25*$C$28 -> 0 | AJ28: =AJ25*$C$28 -> 0
A29: Deemed LT Debt | B29: 0.56 | C29: 0.56 | E29: =E25*$B$29 -> 0 | F29: =F25*$B$29 -> 0 | H29: =H25*$B$29 -> 0 | I29: =I25*$B$29 -> 0 | K29: =K25*$B$29 -> 0 | L29: =L25*$B$29 -> 0 | N29: =N25*$B$29 -> 0 | O29: =O25*$B$29 -> 0 | Q29: =Q25*$B$29 -> 0 | R29: =R25*$B$29 -> 0 | T29: =T25*$C$29 -> 0 | U29: =U25*$C$29 -> 0 | W29: =W25*$C$29 -> 0 | X29: =X25*$C$29 -> 0 | Z29: =Z25*$C$29 -> 0 | AA29: =AA25*$C$29 -> 0 | AC29: =AC25*$C$29 -> 0 | AD29: =AD25*$C$29 -> 0 | AF29: =AF25*$C$29 -> 0 | AG29: =AG25*$C$29 -> 0 | AI29: =AI25*$C$29 -> 0 | AJ29: =AJ25*$C$29 -> 0
A30: Deemed Equity | B30: 0.4 | C30: 0.4 | E30: =E25*$B$30 -> 0 | F30: =F25*$B$30 -> 0 | H30: =H25*$B$30 -> 0 | I30: =I25*$B$30 -> 0 | K30: =K25*$B$30 -> 0 | L30: =L25*$B$30 -> 0 | N30: =N25*$B$30 -> 0 | O30: =O25*$B$30 -> 0 | Q30: =Q25*$B$30 -> 0 | R30: =R25*$B$30 -> 0 | T30: =T25*$C$30 -> 0 | U30: =U25*$C$30 -> 0 | W30: =W25*$C$30 -> 0 | X30: =X25*$C$30 -> 0 | Z30: =Z25*$C$30 -> 0 | AA30: =AA25*$C$30 -> 0 | AC30: =AC25*$C$30 -> 0 | AD30: =AD25*$C$30 -> 0 | AF30: =AF25*$C$30 -> 0 | AG30: =AG25*$C$30 -> 0 | AI30: =AI25*$C$30 -> 0 | AJ30: =AJ25*$C$30 -> 0
A32: ST Interest (enter rate) | E32: =E28*$B32 -> 0 | F32: 0 | H32: 0 | I32: 0 | K32: 0 | L32: 0 | N32: 0 | O32: 0 | Q32: 0 | R32: 0 | T32: =T28*$C32 -> 0 | U32: 0 | W32: =W28*$C32 -> 0 | X32: 0 | Z32: =Z28*$C32 -> 0 | AA32: 0 | AC32: =AC28*$C32 -> 0 | AD32: 0 | AF32: =AF28*$C32 -> 0 | AG32: 0 | AI32: =AI28*$C32 -> 0 | AJ32: 0
A33: LT Interest (enter rate) | E33: 0 | F33: 0 | H33: 0 | I33: 0 | K33: 0 | L33: 0 | N33: 0 | O33: 0 | Q33: 0 | R33: 0 | T33: 0 | U33: 0 | W33: 0 | X33: 0 | Z33: 0 | AA33: 0 | AC33: 0 | AD33: 0 | AF33: 0 | AG33: 0 | AI33: 0 | AJ33: 0
A34: Return on Equity (enter rate) | E34: 0 | F34: 0 | H34: 0 | I34: 0 | K34: 0 | L34: 0 | N34: 0 | O34: 0 | Q34: 0 | R34: 0 | T34: 0 | U34: 0 | W34: 0 | X34: 0 | Z34: 0 | AA34: 0 | AC34: 0 | AD34: 0 | AF34: 0 | AG34: 0 | AI34: 0 | AJ34: 0
A35: Cost of Capital Total | E35: =SUM(E32:E34) -> 0 | F35: =SUM(F32:F34) -> 0 | H35: =SUM(H32:H34) -> 0 | I35: =SUM(I32:I34) -> 0 | K35: =SUM(K32:K34) -> 0 | L35: =SUM(L32:L34) -> 0 | N35: =SUM(N32:N34) -> 0 | O35: =SUM(O32:O34) -> 0 | Q35: =SUM(Q32:Q34) -> 0 | R35: =SUM(R32:R34) -> 0 | T35: =SUM(T32:T34) -> 0 | U35: =SUM(U32:U34) -> 0 | W35: =SUM(W32:W34) -> 0 | X35: =SUM(X32:X34) -> 0 | Z35: =SUM(Z32:Z34) -> 0 | AA35: =SUM(AA32:AA34) -> 0 | AC35: =SUM(AC32:AC34) -> 0 | AD35: =SUM(AD32:AD34) -> 0 | AF35: =SUM(AF32:AF34) -> 0 | AG35: =SUM(AG32:AG34) -> 0 | AI35: =SUM(AI32:AI34) -> 0 | AJ35: =SUM(AJ32:AJ34) -> 0
A37: OM&A | E37: =E21+E22 -> 0 | F37: =F22 -> 0 | H37: =H21+H22 -> 0 | I37: =I22 -> 0 | K37: =K21+K22 -> 0 | L37: =L22 -> 0 | N37: =N21+N22 -> 0 | O37: =O22 -> 0 | Q37: =Q21+Q22 -> 0 | R37: =R22 -> 0 | T37: =T21+T22 -> 0 | U37: =U22 -> 0 | W37: =W21+W22 -> 0 | X37: =X22 -> 0 | Z37: =Z21+Z22 -> 0 | AA37: =AA22 -> 0 | AC37: =AC21+AC22 -> 0 | AD37: =AD22 -> 0 | AF37: =AF21+AF22 -> 0 | AG37: =AG22 -> 0 | AI37: =AI21+AI22 -> 0 | AJ37: =AJ22 -> 0
A38: Amortization | D38: =+E77+E78 -> 0 | E38: =D38*E$19 -> 0 | F38: =D38*F$19 -> 0 | G38: =+F77+F78 -> 0 | H38: =G38*H$19 -> 0 | I38: =G38*I$19 -> 0 | J38: =+G77+G78 -> 0 | K38: =J38*K$19 -> 0 | L38: =J38*L$19 -> 0 | M38: =+H77+H78 -> 0 | N38: =M38*N$19 -> 0 | O38: =M38*O$19 -> 0 | P38: =+I77+I78 -> 0 | Q38: =P38*Q$19 -> 0 | R38: =P38*R$19 -> 0 | S38: =+J77+J78 -> 0 | T38: =S38*T$19 -> 0 | U38: =S38*U$19 -> 0 | V38: =+K77+K78 -> 0 | W38: =V38*W$19 -> 0 | X38: =V38*X$19 -> 0 | Y38: =+L77+L78 -> 0 | Z38: =Y38*Z$19 -> 0 | AA38: =Y38*AA$19 -> 0 | AB38: =+M77+M78 -> 0 | AC38: =AB38*AC$19 -> 0 | AD38: =AB38*AD$19 -> 0 | AE38: =+N77+N78 -> 0 | AF38: =AE38*AF$19 -> 0 | AG38: =AE38*AG$19 -> 0 | AH38: =+O77+O78 -> 0 | AI38: =AH38*AI$19 -> 0 | AJ38: =AH38*AJ$19 -> 0
A39: Grossed-up PILs | E39: =+E66 -> 0 | F39: =+F66 -> 0 | H39: =+H66 -> 0 | I39: =+I66 -> 0 | K39: =+K66 -> 0 | L39: =+L66 -> 0 | N39: =+N66 -> 0 | O39: =+O66 -> 0 | Q39: =+Q66 -> 0 | R39: =+R66 -> 0 | T39: =+T66 -> 0 | U39: =+U66 -> 0 | W39: =+W66 -> 0 | X39: =+X66 -> 0 | Z39: =+Z66 -> 0 | AA39: =+AA66 -> 0 | AC39: =+AC66 -> 0 | AD39: =+AD66 -> 0 | AF39: =+AF66 -> 0 | AG39: =+AG66 -> 0 | AI39: =+AI66 -> 0 | AJ39: =+AJ66 -> 0
A41: Revenue Requirement | E41: =SUM(E35:E39) -> 0 | F41: =SUM(F35:F39) -> 0 | H41: =SUM(H35:H39) -> 0 | I41: =SUM(I35:I39) -> 0 | K41: =SUM(K35:K39) -> 0 | L41: =SUM(L35:L39) -> 0 | N41: =SUM(N35:N39) -> 0 | O41: =SUM(O35:O39) -> 0 | Q41: =SUM(Q35:Q39) -> 0 | R41: =SUM(R35:R39) -> 0 | T41: =SUM(T35:T39) -> 0 | U41: =SUM(U35:U39) -> 0 | W41: =SUM(W35:W39) -> 0 | X41: =SUM(X35:X39) -> 0 | Z41: =SUM(Z35:Z39) -> 0 | AA41: =SUM(AA35:AA39) -> 0 | AC41: =SUM(AC35:AC39) -> 0 | AD41: =SUM(AD35:AD39) -> 0 | AF41: =SUM(AF35:AF39) -> 0 | AG41: =SUM(AG35:AG39) -> 0 | AI41: =SUM(AI35:AI39) -> 0 | AJ41: =SUM(AJ35:AJ39) -> 0
A44: Provincial Rate Protection | F44: =F41 -> 0 | I44: =I41 -> 0 | L44: =L41 -> 0 | O44: =O41 -> 0 | R44: =R41 -> 0 | U44: =U41 -> 0 | X44: =X41 -> 0 | AA44: =AA41 -> 0 | AD44: =AD41 -> 0 | AG44: =AG41 -> 0 | AJ44: =AJ41 -> 0
A46: Monthly Amount Paid by IESO | F46: =F44/12 -> 0 | I46: =I44/12 -> 0 | L46: =L44/12 -> 0 | O46: =O44/12 -> 0 | R46: =R44/12 -> 0 | U46: =U44/12 -> 0 | X46: =X44/12 -> 0 | AA46: =AA44/12 -> 0 | AD46: =AD44/12 -> 0 | AG46: =AG44/12 -> 0 | AJ46: =AJ44/12 -> 0
A48: Note 1: The distributor should follow the regulatory accounting set out in the Accounting Procedure Handbook Guidance FAQs issued in March 2015. Q10 of the APH FAQs states that: “For approved eligible investments as defined under O.Reg. 330/09 under the OEB Act, a variance account will continue to be used for the purpose of recording variances between the revenue requirement based on actual costs of approved eligible investments and the revenue received from the IESO.” The answer for Q10 provides the accounting guidance for this variance account: “Distributors that have included eligible investments to connect qualifying facilities in their DS plans are to establish the variance Account 1533 Renewable Generation Connection Funding Adder Deferral Account, Sub-account Provincial Rate Protection Payment Variances following OEB approval for investments forecast to enter service beyond the test year for purposes of implementing rate protection pursuant to O.Reg. 330/09. The purpose of this variance account is to track the variance between the distributor’s revenue requirement associated with the portion of the actual capital and/or operating costs that are eligible for rate protection, as incurred by the distributor for eligible renewable enabling and expansion investments, and the rate protection payments collected from the IESO.” The answer further provides the journal entries to record the variances. Distributors should follow the instructions in the answer for recording the journal entries in the variance account 1533.
A50: Note 2: For the Test Year, Costs and Revenues of the Direct Benefit are to be included in the test year applicant Rate Base and Revenues.
A52: PILs Calculation | T52: Test Year
E53: =G17-1 -> 2017 | H53: =G17 -> 2018 | K53: =J17 -> 2019 | N53: =M17 -> 2020 | Q53: =P17 -> 2021 | T53: =S17 -> 2022 | W53: =V17 -> 2023 | Z53: =Y17 -> 2024 | AC53: =AB17 -> 2025 | AF53: =AE17 -> 2026 | AI53: =AH17 -> 2027
A54: Income Tax | E54: Direct Benefit | F54: Provincial | H54: Direct Benefit | I54: Provincial | K54: Direct Benefit | L54: Provincial | N54: Direct Benefit | O54: Provincial | Q54: Direct Benefit | R54: Provincial | T54: Direct Benefit | U54: Provincial | W54: Direct Benefit | X54: Provincial | Z54: Direct Benefit | AA54: Provincial | AC54: Direct Benefit | AD54: Provincial | AF54: Direct Benefit | AG54: Provincial | AI54: Direct Benefit | AJ54: Provincial
AB55: Total | AE55: Total | AH55: Total
A56: Net Income - ROE on Rate Base | E56: =E34 -> 0 | F56: =F34 -> 0 | H56: =H34 -> 0 | I56: =I34 -> 0 | K56: =K34 -> 0 | L56: =L34 -> 0 | N56: =N34 -> 0 | O56: =O34 -> 0 | Q56: =Q34 -> 0 | R56: =R34 -> 0 | T56: =T34 -> 0 | U56: =U34 -> 0 | W56: =W34 -> 0 | X56: =X34 -> 0 | Z56: =Z34 -> 0 | AA56: =AA34 -> 0 | AC56: =AC34 -> 0 | AD56: =AD34 -> 0 | AF56: =AF34 -> 0 | AG56: =AG34 -> 0 | AI56: =AI34 -> 0 | AJ56: =AJ34 -> 0
A57: Amortization (6% DB and 94% P) | E57: =E38 -> 0 | F57: =F38 -> 0 | H57: =H38 -> 0 | I57: =I38 -> 0 | K57: =K38 -> 0 | L57: =L38 -> 0 | N57: =N38 -> 0 | O57: =O38 -> 0 | Q57: =Q38 -> 0 | R57: =R38 -> 0 | T57: =T38 -> 0 | U57: =U38 -> 0 | W57: =W38 -> 0 | X57: =X38 -> 0 | Z57: =Z38 -> 0 | AA57: =AA38 -> 0 | AC57: =AC38 -> 0 | AD57: =AD38 -> 0 | AF57: =AF38 -> 0 | AG57: =AG38 -> 0 | AI57: =AI38 -> 0 | AJ57: =AJ38 -> 0
A58: CCA (6% DB and 94% P) | E58: =-E95*$E$19 -> 0 | F58: =-E95*$F$19 -> 0 | H58: =-F95*$E$19 -> 0 | I58: =-F95*$F$19 -> 0 | K58: =-G95*$E$19 -> 0 | L58: =-G95*$F$19 -> 0 | N58: =-H95*$E$19 -> 0 | O58: =-H95*$F$19 -> 0 | Q58: =-I95*$E$19 -> 0 | R58: =-I95*$F$19 -> 0 | T58: =-J95*$E$19 -> 0 | U58: =-J95*$F$19 -> 0 | W58: =-K95*$E$19 -> 0 | X58: =-K95*$F$19 -> 0 | Z58: =-L95*$E$19 -> 0 | AA58: =-L95*$F$19 -> 0 | AC58: =-M95*$E$19 -> 0 | AD58: =-M95*$F$19 -> 0 | AF58: =-N95*$E$19 -> 0 | AG58: =-N95*$F$19 -> 0 | AI58: =-Q95*$E$19 -> 0 | AJ58: =-Q95*$F$19 -> 0
A59: Taxable income | E59: =SUM(E56:E58) -> 0 | F59: =SUM(F56:F58) -> 0 | H59: =SUM(H56:H58) -> 0 | I59: =SUM(I56:I58) -> 0 | K59: =SUM(K56:K58) -> 0 | L59: =SUM(L56:L58) -> 0 | N59: =SUM(N56:N58) -> 0 | O59: =SUM(O56:O58) -> 0 | Q59: =SUM(Q56:Q58) -> 0 | R59: =SUM(R56:R58) -> 0 | T59: =SUM(T56:T58) -> 0 | U59: =SUM(U56:U58) -> 0 | W59: =SUM(W56:W58) -> 0 | X59: =SUM(X56:X58) -> 0 | Z59: =SUM(Z56:Z58) -> 0 | AA59: =SUM(AA56:AA58) -> 0 | AC59: =SUM(AC56:AC58) -> 0 | AD59: =SUM(AD56:AD58) -> 0 | AF59: =SUM(AF56:AF58) -> 0 | AG59: =SUM(AG56:AG58) -> 0 | AI59: =SUM(AI56:AI58) -> 0 | AJ59: =SUM(AJ56:AJ58) -> 0
B60: =B27 -> 2012 | C60: =C27 -> 2022
A61: Tax Rate (to be entered) | E61: =IF(AND(E$53>=$B$60, E$53<$C$60),$B$61,$C$61) -> 0 | F61: =IF(AND(E$53>=$B$60, E$53<$C$60),$B$61,$C$61) -> 0 | H61: =IF(AND(H$53>=$B$60, H$53<$C$60),$B$61,$C$61) -> 0 | I61: =IF(AND(H$53>=$B$60, H$53<$C$60),$B$61,$C$61) -> 0 | K61: =IF(AND(K$53>=$B$60, K$53<$C$60),$B$61,$C$61) -> 0 | L61: =IF(AND(K$53>=$B$60, K$53<$C$60),$B$61,$C$61) -> 0 | N61: =IF(AND(N$53>=$B$60, N$53<$C$60),$B$61,$C$61) -> 0 | O61: =IF(AND(N$53>=$B$60, N$53<$C$60),$B$61,$C$61) -> 0 | Q61: =IF(AND(Q$53>=$B$60, Q$53<$C$60),$B$61,$C$61) -> 0 | R61: =IF(AND(Q$53>=$B$60, Q$53<$C$60),$B$61,$C$61) -> 0 | T61: =IF(AND(T$53>=$B$60, T$53<$C$60),$B$61,$C$61) -> 0 | U61: =IF(AND(T$53>=$B$60, T$53<$C$60),$B$61,$C$61) -> 0 | W61: =IF(AND(W$53>=$B$60, W$53<$C$60),$B$61,$C$61) -> 0 | X61: =IF(AND(W$53>=$B$60, W$53<$C$60),$B$61,$C$61) -> 0 | Z61: =IF(AND(Z$53>=$B$60, Z$53<$C$60),$B$61,$C$61) -> 0 | AA61: =IF(AND(Z$53>=$B$60, Z$53<$C$60),$B$61,$C$61) -> 0 | AC61: =IF(AND(AC$53>=$B$60, AC$53<$C$60),$B$61,$C$61) -> 0 | AD61: =IF(AND(AC$53>=$B$60, AC$53<$C$60),$B$61,$C$61) -> 0 | AF61: =IF(AND(AF$53>=$B$60, AF$53<$C$60),$B$61,$C$61) -> 0 | AG61: =IF(AND(AF$53>=$B$60, AF$53<$C$60),$B$61,$C$61) -> 0 | AI61: =IF(AND(AI$53>=$B$60, AI$53<$C$60),$B$61,$C$61) -> 0 | AJ61: =IF(AND(AI$53>=$B$60, AI$53<$C$60),$B$61,$C$61) -> 0
A63: Income Taxes Payable | E63: =E59*E61 -> 0 | F63: =F59*F61 -> 0 | H63: =H59*H61 -> 0 | I63: =I59*I61 -> 0 | K63: =K59*K61 -> 0 | L63: =L59*L61 -> 0 | N63: =N59*N61 -> 0 | O63: =O59*O61 -> 0 | Q63: =Q59*Q61 -> 0 | R63: =R59*R61 -> 0 | T63: =T59*T61 -> 0 | U63: =U59*U61 -> 0 | W63: =W59*W61 -> 0 | X63: =X59*X61 -> 0 | Z63: =Z59*Z61 -> 0 | AA63: =AA59*AA61 -> 0 | AC63: =AC59*AC61 -> 0 | AD63: =AD59*AD61 -> 0 | AF63: =AF59*AF61 -> 0 | AG63: =AG59*AG61 -> 0 | AI63: =AI59*AI61 -> 0 | AJ63: =AJ59*AJ61 -> 0
A64: Gross Up
A65: Income Taxes Payable | E65: =E63/(1-E61) -> 0 | F65: =F63/(1-F61) -> 0 | H65: =H63/(1-H61) -> 0 | I65: =I63/(1-I61) -> 0 | K65: =K63/(1-K61) -> 0 | L65: =L63/(1-L61) -> 0 | N65: =N63/(1-N61) -> 0 | O65: =O63/(1-O61) -> 0 | Q65: =Q63/(1-Q61) -> 0 | R65: =R63/(1-R61) -> 0 | T65: =T63/(1-T61) -> 0 | U65: =U63/(1-U61) -> 0 | W65: =W63/(1-W61) -> 0 | X65: =X63/(1-X61) -> 0 | Z65: =Z63/(1-Z61) -> 0 | AA65: =AA63/(1-AA61) -> 0 | AC65: =AC63/(1-AC61) -> 0 | AD65: =AD63/(1-AD61) -> 0 | AF65: =AF63/(1-AF61) -> 0 | AG65: =AG63/(1-AG61) -> 0 | AI65: =AI63/(1-AI61) -> 0 | AJ65: =AJ63/(1-AJ61) -> 0
A66: Grossed Up PILs | E66: =+E65 -> 0 | F66: =+F65 -> 0 | H66: =+H65 -> 0 | I66: =+I65 -> 0 | K66: =+K65 -> 0 | L66: =+L65 -> 0 | N66: =+N65 -> 0 | O66: =+O65 -> 0 | Q66: =+Q65 -> 0 | R66: =+R65 -> 0 | T66: =+T65 -> 0 | U66: =+U65 -> 0 | W66: =+W65 -> 0 | X66: =+X65 -> 0 | Z66: =+Z65 -> 0 | AA66: =+AA65 -> 0 | AC66: =+AC65 -> 0 | AD66: =+AD65 -> 0 | AF66: =+AF65 -> 0 | AG66: =+AG65 -> 0 | AI66: =+AI65 -> 0 | AJ66: =+AJ65 -> 0
J68: Test Year
E69: =F69-1 -> 2017 | F69: =G69-1 -> 2018 | G69: =H69-1 -> 2019 | H69: =I69-1 -> 2020 | I69: =J69-1 -> 2021 | J69: ='LDC Info'!E24 -> 2022 | K69: =J69+1 -> 2023 | L69: =K69+1 -> 2024 | M69: =L69+1 -> 2025 | N69: =M69+1 -> 2026 | O69: =N69+1 -> 2027
A70: Net Fixed Assets
A71: Enter applicable amortization in years: | B71: 40
A72: Opening Gross Fixed Assets | F72: =E74 -> 0 | G72: 0 | H72: 0 | I72: 0 | J72: 0 | K72: 0 | L72: 0 | M72: 0 | N72: 0 | O72: 0
A73: Capital Additions | E73: ='App.2-FA Proposed REG Invest.'!C62 -> 0 | F73: ='App.2-FA Proposed REG Invest.'!D62 -> 0 | G73: ='App.2-FA Proposed REG Invest.'!E62 -> 0 | H73: ='App.2-FA Proposed REG Invest.'!F62 -> 0 | I73: ='App.2-FA Proposed REG Invest.'!G62 -> 0 | J73: ='App.2-FA Proposed REG Invest.'!H62 -> 0 | K73: ='App.2-FA Proposed REG Invest.'!I62 -> 0 | L73: ='App.2-FA Proposed REG Invest.'!J62 -> 0 | M73: ='App.2-FA Proposed REG Invest.'!K62 -> 0 | N73: ='App.2-FA Proposed REG Invest.'!L62 -> 0 | O73: ='App.2-FA Proposed REG Invest.'!M62 -> 0
A74: Closing Gross Fixed Assets | E74: =SUM(E72:E73) -> 0 | F74: 0 | G74: 0 | H74: 0 | I74: 0 | J74: 0 | K74: 0 | L74: 0 | M74: 0 | N74: 0 | O74: =SUM(O72:O73) -> 0
A76: Opening Accumulated Amortization | F76: =+E79 -> 0 | G76: =+F79 -> 0 | H76: 0 | I76: 0 | J76: 0 | K76: 0 | L76: 0 | M76: 0 | N76: 0 | O76: 0
A77: Current Year Amortization (before additions) | E77: =IF(ISERROR(E72/$B$71), 0, E72/$B$71) -> 0 | F77: =IF(ISERROR(F72/$B$71), 0, F72/$B$71) -> 0 | G77: 0 | H77: 0 | I77: 0 | J77: 0 | K77: 0 | L77: 0 | M77: 0 | N77: 0 | O77: =IF(ISERROR(O72/$B$71), 0, O72/$B$71) -> 0
A78: Capital Additions Amortization (half year) | E78: =E73/$B$71/2 -> 0 | F78: =F73/$B$71/2 -> 0 | G78: 0 | H78: 0 | I78: 0 | J78: 0 | K78: 0 | L78: 0 | M78: 0 | N78: 0 | O78: =O73/$B$71/2 -> 0
A79: Closing Accumulated Amortization | E79: =SUM(E76+E77+E78) -> 0 | F79: 0 | G79: 0 | H79: 0 | I79: 0 | J79: 0 | K79: 0 | L79: 0 | M79: 0 | N79: 0 | O79: =SUM(O76+O77+O78) -> 0
A81: Opening Net Fixed Assets | E81: =E72-E76 -> 0 | F81: 0 | G81: 0 | H81: 0 | I81: 0 | J81: 0 | K81: 0 | L81: 0 | M81: 0 | N81: 0 | O81: =O72-O76 -> 0
A82: Closing Net Fixed Assets | E82: =E74-E79 -> 0 | F82: 0 | G82: 0 | H82: 0 | I82: 0 | J82: 0 | K82: 0 | L82: 0 | M82: 0 | N82: 0 | O82: =O74-O79 -> 0
A83: Average Net Fixed Assets | E83: =SUM(E81:E82)/2 -> 0 | F83: 0 | G83: 0 | H83: 0 | I83: 0 | J83: 0 | K83: 0 | L83: 0 | M83: 0 | N83: 0 | O83: =SUM(O81:O82)/2 -> 0
A85: UCC for PILs Calculation | J85: Test Year
E86: =E69 -> 2017 | F86: =F69 -> 2018 | G86: =G69 -> 2019 | H86: 2020 | I86: 2021 | J86: 2022 | K86: 2023 | L86: 2024 | M86: 2025 | N86: 2026 | O86: =O69 -> 2027
A88: Opening UCC | E88: =E72 -> 0 | F88: =E96 -> 0 | G88: 0 | H88: 0 | I88: 0 | J88: 0 | K88: 0 | L88: 0 | M88: 0 | N88: 0 | O88: 0
A89: Capital Additions | E89: =E73 -> 0 | F89: 0 | G89: 0 | H89: 0 | I89: 0 | J89: 0 | K89: 0 | L89: 0 | M89: 0 | N89: 0 | O89: =O73 -> 0
A90: UCC Before Half Year Rule | E90: =SUM(E88:E89) -> 0 | F90: 0 | G90: 0 | H90: 0 | I90: 0 | J90: 0 | K90: 0 | L90: 0 | M90: 0 | N90: 0 | O90: =SUM(O88:O89) -> 0
A91: Capital Additions (half year) | E91: =E89/2 -> 0 | F91: 0 | G91: 0 | H91: 0 | I91: 0 | J91: 0 | K91: 0 | L91: 0 | M91: 0 | N91: 0 | O91: =O89/2 -> 0
A92: Reduced UCC | E92: =E90-E91 -> 0 | F92: 0 | G92: 0 | H92: 0 | I92: 0 | J92: 0 | K92: 0 | L92: 0 | M92: 0 | N92: 0 | O92: =O90-O91 -> 0
A93: CCA Rate Class (to be entered)
A94: CCA Rate (to be entered)
A95: CCA | E95: =E92*$B$94 -> 0 | F95: =F92*$B$94 -> 0 | G95: 0 | H95: 0 | I95: 0 | J95: 0 | K95: 0 | L95: 0 | M95: 0 | N95: 0 | O95: =O92*$B$94 -> 0
A96: Closing UCC | E96: =E90-E95 -> 0 | F96: 0 | G96: 0 | H96: 0 | I96: 0 | J96: 0 | K96: 0 | L96: 0 | M96: 0 | N96: 0 | O96: =O90-O95 -> 0

Sheet App.2-FC Calc of REG Expansion
R1: File Number: | S1: 0
R2: Exhibit:
R3: Tab:
A4: TO BE UPDATED AT DRAFT RATE ORDER STAGE | R4: Schedule:
R5: Page:
R7: Date:
A9: Appendix 2-FC
A10: Calculation of Renewable Generation Connection Direct Benefits/Provincial Amount: Renewable Expansion Investments
A12: This table will calculate the distributor/provincial shares of the investments entered in Part B of Appendix 2-FA.
A13: Enter values in green shaded cells: WCA percentage, debt percentages, interest rates, kWh, tax rates, amortization period, CCA Class and percentage.
A14: For historical investments, enter these variables that were approved in your last cost of service test year. For 2021 and beyond, enter variables as in the application.
A15: Rate Riders related to the direct benefit portion of the renewable investments are not calculated for the Test Year as these assets and costs are already in the distributor's rate base/revenue requirement.
S16: Test Year
D17: =G17-1 -> 2017 | G17: =J17-1 -> 2018 | J17: =M17-1 -> 2019 | M17: =P17-1 -> 2020 | P17: =S17-1 -> 2021 | S17: ='LDC Info'!$E$24 -> 2022 | V17: =S17+1 -> 2023 | Y17: =V17+1 -> 2024 | Z17: 2016 | AB17: =Y17+1 -> 2025 | AE17: =AB17+1 -> 2026 | AH17: =AE17+1 -> 2027
E18: Direct Benefit | F18: Provincial | H18: Direct Benefit | I18: Provincial | K18: Direct Benefit | L18: Provincial | N18: Direct Benefit | O18: Provincial | Q18: Direct Benefit | R18: Provincial | T18: Direct Benefit | U18: Provincial | W18: Direct Benefit | X18: Provincial | Z18: Direct Benefit | AA18: Provincial | AC18: Direct Benefit | AD18: Provincial | AF18: Direct Benefit | AG18: Provincial | AI18: Direct Benefit | AJ18: Provincial
D19: Total | E19: 0.17 | F19: 0.83 | G19: Total | H19: 0.17 | I19: 0.83 | J19: Total | K19: 0.17 | L19: 0.83 | M19: Total | N19: 0.17 | O19: 0.83 | P19: Total | Q19: 0.17 | R19: 0.83 | S19: Total | T19: 0.17 | U19: 0.83 | V19: Total | W19: 0.17 | X19: 0.83 | Y19: Total | Z19: 0.17 | AA19: 0.83 | AB19: Total | AC19: 0.17 | AD19: 0.83 | AE19: Total | AF19: 0.17 | AG19: 0.83 | AH19: Total | AI19: 0.17 | AJ19: 0.83
A20: Net Fixed Assets (average) | D20: =E83 -> 0 | E20: =D20*E19 -> 0 | F20: =D20*F19 -> 0 | G20: =F83 -> 0 | H20: =G20*H19 -> 0 | I20: =G20*I19 -> 0 | J20: =G83 -> 0 | K20: =J20*K19 -> 0 | L20: =J20*L19 -> 0 | M20: =H83 -> 0 | N20: =M20*N19 -> 0 | O20: =M20*O19 -> 0 | P20: =I83 -> 0 | Q20: =P20*Q19 -> 0 | R20: =P20*R19 -> 0 | S20: =J83 -> 0 | T20: =S20*T19 -> 0 | U20: =S20*U19 -> 0 | V20: =K83 -> 0 | W20: =V20*W19 -> 0 | X20: =V20*X19 -> 0 | Y20: =L83 -> 0 | Z20: =Y20*Z19 -> 0 | AA20: =Y20*AA19 -> 0 | AB20: =M83 -> 0 | AC20: =AB20*AC19 -> 0 | AD20: =AB20*AD19 -> 0 | AE20: =N83 -> 0 | AF20: =AE20*AF19 -> 0 | AG20: =AE20*AG19 -> 0 | AH20: =O83 -> 0 | AI20: =AH20*AI19 -> 0 | AJ20: =AH20*AJ19 -> 0
A21: Incremental OM&A (on-going, N/A for Provincial Recovery) | D21: 0 | E21: =D21*E19 -> 0 | F21: =D21*F19 -> 0 | G21: 0 | H21: =G21*H19 -> 0 | I21: =G21*I19 -> 0 | J21: 0 | K21: =J21*K19 -> 0 | L21: =J21*L19 -> 0 | M21: 0 | N21: =M21*N19 -> 0 | O21: =M21*O19 -> 0 | P21: 0 | Q21: =P21*Q19 -> 0 | R21: =P21*R19 -> 0 | S21: 0 | T21: =S21*T19 -> 0 | U21: =S21*U19 -> 0 | V21: 0 | W21: =V21*W19 -> 0 | X21: =V21*X19 -> 0 | Y21: 0 | Z21: =Y21*Z19 -> 0 | AA21: =Y21*AA19 -> 0 | AB21: 0 | AC21: =AB21*AC19 -> 0 | AD21: =AB21*AD19 -> 0 | AE21: 0 | AF21: =AE21*AF19 -> 0 | AG21: =AE21*AG19 -> 0 | AH21: 0 | AI21: =AH21*AI19 -> 0 | AJ21: =AH21*AJ19 -> 0
A22: Incremental OM&A (start-up, applicable for Provincial Recovery) | D22: 0 | E22: =D22*E19 -> 0 | F22: =D22*F19 -> 0 | G22: 0 | H22: =G22*H19 -> 0 | I22: =G22*I19 -> 0 | J22: 0 | K22: =J22*K19 -> 0 | L22: =J22*L19 -> 0 | M22: 0 | N22: =M22*N19 -> 0 | O22: =M22*O19 -> 0 | P22: 0 | Q22: =P22*Q19 -> 0 | R22: =P22*R19 -> 0 | S22: 0 | T22: =S22*T19 -> 0 | U22: =S22*U19 -> 0 | V22: 0 | W22: =V22*W19 -> 0 | X22: =V22*X19 -> 0 | Y22: 0 | Z22: =Y22*Z19 -> 0 | AA22: =Y22*AA19 -> 0 | AB22: 0 | AC22: =AB22*AC19 -> 0 | AD22: =AB22*AD19 -> 0 | AE22: 0 | AF22: =AE22*AF19 -> 0 | AG22: =AE22*AG19 -> 0 | AH22: 0 | AI22: =AH22*AI19 -> 0 | AJ22: =AH22*AJ19 -> 0
A23: Rebasing Year vs. Test Year | B23: ='LDC Info'!E28 -> 2012 | C23: ='LDC Info'!E24 -> 2022
A24: Allowance for Working Capital (enter rate) | E24: =IF(AND(D$17>=$B$23, D$17<$C$23),(E21+E22)*$B$24,(E21+E22)*$C$24) -> 0 | F24: =IF(AND(D$17>=$B$23, D$17<$C$23),(F22)*$B$24,(F22)*$C$24) -> 0 | H24: =IF(AND(G$17>=$B$23, G$17<$C$23),(H21+H22)*$B$24,(H21+H22)*$C$24) -> 0 | I24: =IF(AND(G$17>=$B$23, G$17<$C$23),(I22)*$B$24,(I22)*$C$24) -> 0 | K24: =IF(AND(J$17>=$B$23, J$17<$C$23),(K21+K22)*$B$24,(K21+K22)*$C$24) -> 0 | L24: =IF(AND(J$17>=$B$23, J$17<$C$23),(L22)*$B$24,(L22)*$C$24) -> 0 | N24: =IF(AND(M$17>=$B$23, M$17<$C$23),(N21+N22)*$B$24,(N21+N22)*$C$24) -> 0 | O24: =IF(AND(M$17>=$B$23, M$17<$C$23),(O22)*$B$24,(O22)*$C$24) -> 0 | Q24: =IF(AND(P$17>=$B$23, P$17<$C$23),(Q21+Q22)*$B$24,(Q21+Q22)*$C$24) -> 0 | R24: =IF(AND(P$17>=$B$23, P$17<$C$23),(R22)*$B$24,(R22)*$C$24) -> 0 | T24: =IF(AND(S$17>=$B$23, S$17<$C$23),(T21+T22)*$B$24,(T21+T22)*$C$24) -> 0 | U24: =IF(AND(S$17>=$B$23, S$17<$C$23),(U22)*$B$24,(U22)*$C$24) -> 0 | W24: =IF(AND(V$17>=$B$23, V$17<$C$23),(W21+W22)*$B$24,(W21+W22)*$C$24) -> 0 | X24: =IF(AND(V$17>=$B$23, V$17<$C$23),(X22)*$B$24,(X22)*$C$24) -> 0 | Z24: =IF(AND(Y$17>=$B$23, Y$17<$C$23),(Z21+Z22)*$B$24,(Z21+Z22)*$C$24) -> 0 | AA24: =IF(AND(Y$17>=$B$23, Y$17<$C$23),(AA22)*$B$24,(AA22)*$C$24) -> 0 | AC24: =IF(AND(AB$17>=$B$23, AB$17<$C$23),(AC21+AC22)*$B$24,(AC21+AC22)*$C$24) -> 0 | AD24: =IF(AND(AB$17>=$B$23, AB$17<$C$23),(AD22)*$B$24,(AD22)*$C$24) -> 0 | AF24: =IF(AND(AE$17>=$B$23, AE$17<$C$23),(AF21+AF22)*$B$24,(AF21+AF22)*$C$24) -> 0 | AG24: =IF(AND(AE$17>=$B$23, AE$17<$C$23),(AG22)*$B$24,(AG22)*$C$24) -> 0 | AI24: =IF(AND(AH$17>=$B$23, AH$17<$C$23),(AI21+AI22)*$B$24,(AI21+AI22)*$C$24) -> 0 | AJ24: =IF(AND(AH$17>=$B$23, AH$17<$C$23),(AJ22)*$B$24,(AJ22)*$C$24) -> 0
A25: Rate Base | E25: =SUM(E20+E24) -> 0 | F25: =SUM(F20+F24) -> 0 | H25: =SUM(H20+H24) -> 0 | I25: =SUM(I20+I24) -> 0 | K25: =SUM(K20+K24) -> 0 | L25: =SUM(L20+L24) -> 0 | N25: =SUM(N20+N24) -> 0 | O25: =SUM(O20+O24) -> 0 | Q25: =SUM(Q20+Q24) -> 0 | R25: =SUM(R20+R24) -> 0 | T25: =SUM(T20+T24) -> 0 | U25: =SUM(U20+U24) -> 0 | W25: =SUM(W20+W24) -> 0 | X25: =SUM(X20+X24) -> 0 | Z25: =SUM(Z20+Z24) -> 0 | AA25: =SUM(AA20+AA24) -> 0 | AC25: =SUM(AC20+AC24) -> 0 | AD25: =SUM(AD20+AD24) -> 0 | AF25: =SUM(AF20+AF24) -> 0 | AG25: =SUM(AG20+AG24) -> 0 | AI25: =SUM(AI20+AI24) -> 0 | AJ25: =SUM(AJ20+AJ24) -> 0
B27: =B23 -> 2012 | C27: =C23 -> 2022
A28: Deemed ST Debt | B28: 0.04 | C28: 0.04 | E28: =E25*$B$28 -> 0 | F28: =F25*$B$28 -> 0 | H28: =H25*$B$28 -> 0 | I28: =I25*$B$28 -> 0 | K28: =K25*$B$28 -> 0 | L28: =L25*$B$28 -> 0 | N28: =N25*$B$28 -> 0 | O28: =O25*$B$28 -> 0 | Q28: =Q25*$B$28 -> 0 | R28: =R25*$B$28 -> 0 | T28: =T25*$C$28 -> 0 | U28: =U25*$C$28 -> 0 | W28: =W25*$C$28 -> 0 | X28: =X25*$C$28 -> 0 | Z28: =Z25*$C$28 -> 0 | AA28: =AA25*$C$28 -> 0 | AC28: =AC25*$C$28 -> 0 | AD28: =AD25*$C$28 -> 0 | AF28: =AF25*$C$28 -> 0 | AG28: =AG25*$C$28 -> 0 | AI28: =AI25*$C$28 -> 0 | AJ28: =AJ25*$C$28 -> 0
A29: Deemed LT Debt | B29: 0.56 | C29: 0.56 | E29: =E25*$B$29 -> 0 | F29: =F25*$B$29 -> 0 | H29: =H25*$B$29 -> 0 | I29: =I25*$B$29 -> 0 | K29: =K25*$B$29 -> 0 | L29: =L25*$B$29 -> 0 | N29: =N25*$B$29 -> 0 | O29: =O25*$B$29 -> 0 | Q29: =Q25*$B$29 -> 0 | R29: =R25*$B$29 -> 0 | T29: =T25*$C$29 -> 0 | U29: =U25*$C$29 -> 0 | W29: =W25*$C$29 -> 0 | X29: =X25*$C$29 -> 0 | Z29: =Z25*$C$29 -> 0 | AA29: =AA25*$C$29 -> 0 | AC29: =AC25*$C$29 -> 0 | AD29: =AD25*$C$29 -> 0 | AF29: =AF25*$C$29 -> 0 | AG29: =AG25*$C$29 -> 0 | AI29: =AI25*$C$29 -> 0 | AJ29: =AJ25*$C$29 -> 0
A30: Deemed Equity | B30: 0.4 | C30: 0.4 | E30: =E25*$B$30 -> 0 | F30: =F25*$B$30 -> 0 | H30: =H25*$B$30 -> 0 | I30: =I25*$B$30 -> 0 | K30: =K25*$B$30 -> 0 | L30: =L25*$B$30 -> 0 | N30: =N25*$B$30 -> 0 | O30: =O25*$B$30 -> 0 | Q30: =Q25*$B$30 -> 0 | R30: =R25*$B$30 -> 0 | T30: =T25*$C$30 -> 0 | U30: =U25*$C$30 -> 0 | W30: =W25*$C$30 -> 0 | X30: =X25*$C$30 -> 0 | Z30: =Z25*$C$30 -> 0 | AA30: =AA25*$C$30 -> 0 | AC30: =AC25*$C$30 -> 0 | AD30: =AD25*$C$30 -> 0 | AF30: =AF25*$C$30 -> 0 | AG30: =AG25*$C$30 -> 0 | AI30: =AI25*$C$30 -> 0 | AJ30: =AJ25*$C$30 -> 0
A32: ST Interest (enter rate) | E32: =E28*$B32 -> 0 | F32: 0 | H32: 0 | I32: 0 | K32: 0 | L32: 0 | N32: 0 | O32: 0 | Q32: 0 | R32: 0 | T32: =T28*$C32 -> 0 | U32: 0 | W32: =W28*$C32 -> 0 | X32: 0 | Z32: =Z28*$C32 -> 0 | AA32: 0 | AC32: =AC28*$C32 -> 0 | AD32: 0 | AF32: =AF28*$C32 -> 0 | AG32: 0 | AI32: =AI28*$C32 -> 0 | AJ32: 0
A33: LT Interest (enter rate) | E33: 0 | F33: 0 | H33: 0 | I33: 0 | K33: 0 | L33: 0 | N33: 0 | O33: 0 | Q33: 0 | R33: 0 | T33: 0 | U33: 0 | W33: 0 | X33: 0 | Z33: 0 | AA33: 0 | AC33: 0 | AD33: 0 | AF33: 0 | AG33: 0 | AI33: 0 | AJ33: 0
A34: Return on Equity (enter rate) | E34: 0 | F34: 0 | H34: 0 | I34: 0 | K34: 0 | L34: 0 | N34: 0 | O34: 0 | Q34: 0 | R34: 0 | T34: 0 | U34: 0 | W34: 0 | X34: 0 | Z34: 0 | AA34: 0 | AC34: 0 | AD34: 0 | AF34: 0 | AG34: 0 | AI34: 0 | AJ34: 0
A35: Cost of Capital Total | E35: =SUM(E32:E34) -> 0 | F35: =SUM(F32:F34) -> 0 | H35: =SUM(H32:H34) -> 0 | I35: =SUM(I32:I34) -> 0 | K35: =SUM(K32:K34) -> 0 | L35: =SUM(L32:L34) -> 0 | N35: =SUM(N32:N34) -> 0 | O35: =SUM(O32:O34) -> 0 | Q35: =SUM(Q32:Q34) -> 0 | R35: =SUM(R32:R34) -> 0 | T35: =SUM(T32:T34) -> 0 | U35: =SUM(U32:U34) -> 0 | W35: =SUM(W32:W34) -> 0 | X35: =SUM(X32:X34) -> 0 | Z35: =SUM(Z32:Z34) -> 0 | AA35: =SUM(AA32:AA34) -> 0 | AC35: =SUM(AC32:AC34) -> 0 | AD35: =SUM(AD32:AD34) -> 0 | AF35: =SUM(AF32:AF34) -> 0 | AG35: =SUM(AG32:AG34) -> 0 | AI35: =SUM(AI32:AI34) -> 0 | AJ35: =SUM(AJ32:AJ34) -> 0
A37: OM&A | E37: =E21+E22 -> 0 | F37: =F22 -> 0 | H37: =H21+H22 -> 0 | I37: =I22 -> 0 | K37: =K21+K22 -> 0 | L37: =L22 -> 0 | N37: =N21+N22 -> 0 | O37: =O22 -> 0 | Q37: =Q21+Q22 -> 0 | R37: =R22 -> 0 | T37: =T21+T22 -> 0 | U37: =U22 -> 0 | W37: =W21+W22 -> 0 | X37: =X22 -> 0 | Z37: =Z21+Z22 -> 0 | AA37: =AA22 -> 0 | AC37: =AC21+AC22 -> 0 | AD37: =AD22 -> 0 | AF37: =AF21+AF22 -> 0 | AG37: =AG22 -> 0 | AI37: =AI21+AI22 -> 0 | AJ37: =AJ22 -> 0
A38: Amortization | D38: =+E77+E78 -> 0 | E38: =D38*E$19 -> 0 | F38: =D38*F$19 -> 0 | G38: =+F77+F78 -> 0 | H38: =G38*H$19 -> 0 | I38: =G38*I$19 -> 0 | J38: =+G77+G78 -> 0 | K38: =J38*K$19 -> 0 | L38: =J38*L$19 -> 0 | M38: =+H77+H78 -> 0 | N38: =M38*N$19 -> 0 | O38: =M38*O$19 -> 0 | P38: =+I77+I78 -> 0 | Q38: =P38*Q$19 -> 0 | R38: =P38*R$19 -> 0 | S38: =+J77+J78 -> 0 | T38: =S38*T$19 -> 0 | U38: =S38*U$19 -> 0 | V38: =+K77+K78 -> 0 | W38: =V38*W$19 -> 0 | X38: =V38*X$19 -> 0 | Y38: =+L77+L78 -> 0 | Z38: =Y38*Z$19 -> 0 | AA38: =Y38*AA$19 -> 0 | AB38: =+M77+M78 -> 0 | AC38: =AB38*AC$19 -> 0 | AD38: =AB38*AD$19 -> 0 | AE38: =+N77+N78 -> 0 | AF38: =AE38*AF$19 -> 0 | AG38: =AE38*AG$19 -> 0 | AH38: =+O77+O78 -> 0 | AI38: =AH38*AI$19 -> 0 | AJ38: =AH38*AJ$19 -> 0
A39: Grossed-up PILs | E39: =+E66 -> 0 | F39: =+F66 -> 0 | H39: =+H66 -> 0 | I39: =+I66 -> 0 | K39: =+K66 -> 0 | L39: =+L66 -> 0 | N39: =+N66 -> 0 | O39: =+O66 -> 0 | Q39: =+Q66 -> 0 | R39: =+R66 -> 0 | T39: =+T66 -> 0 | U39: =+U66 -> 0 | W39: =+W66 -> 0 | X39: =+X66 -> 0 | Z39: =+Z66 -> 0 | AA39: =+AA66 -> 0 | AC39: =+AC66 -> 0 | AD39: =+AD66 -> 0 | AF39: =+AF66 -> 0 | AG39: =+AG66 -> 0 | AI39: =+AI66 -> 0 | AJ39: =+AJ66 -> 0
A41: Revenue Requirement | E41: =SUM(E35:E39) -> 0 | F41: =SUM(F35:F39) -> 0 | H41: =SUM(H35:H39) -> 0 | I41: =SUM(I35:I39) -> 0 | K41: =SUM(K35:K39) -> 0 | L41: =SUM(L35:L39) -> 0 | N41: =SUM(N35:N39) -> 0 | O41: =SUM(O35:O39) -> 0 | Q41: =SUM(Q35:Q39) -> 0 | R41: =SUM(R35:R39) -> 0 | T41: =SUM(T35:T39) -> 0 | U41: =SUM(U35:U39) -> 0 | W41: =SUM(W35:W39) -> 0 | X41: =SUM(X35:X39) -> 0 | Z41: =SUM(Z35:Z39) -> 0 | AA41: =SUM(AA35:AA39) -> 0 | AC41: =SUM(AC35:AC39) -> 0 | AD41: =SUM(AD35:AD39) -> 0 | AF41: =SUM(AF35:AF39) -> 0 | AG41: =SUM(AG35:AG39) -> 0 | AI41: =SUM(AI35:AI39) -> 0 | AJ41: =SUM(AJ35:AJ39) -> 0
A44: Provincial Rate Protection | F44: =F41 -> 0 | I44: =I41 -> 0 | L44: =L41 -> 0 | O44: =O41 -> 0 | R44: =R41 -> 0 | U44: =U41 -> 0 | X44: =X41 -> 0 | AA44: =AA41 -> 0 | AD44: =AD41 -> 0 | AG44: =AG41 -> 0 | AJ44: =AJ41 -> 0
A46: Monthly Amount Paid by IESO | F46: =F44/12 -> 0 | I46: =I44/12 -> 0 | L46: =L44/12 -> 0 | O46: =O44/12 -> 0 | R46: =R44/12 -> 0 | U46: =U44/12 -> 0 | X46: =X44/12 -> 0 | AA46: =AA44/12 -> 0 | AD46: =AD44/12 -> 0 | AG46: =AG44/12 -> 0 | AJ46: =AJ44/12 -> 0
A48: Note 1: The distributor should follow the regulatory accounting set out in the Accounting Procedure Handbook Guidance FAQs issued in March 2015. Q10 of the APH FAQs states that: “For approved eligible investments as defined under O.Reg. 330/09 under the OEB Act, a variance account will continue to be used for the purpose of recording variances between the revenue requirement based on actual costs of approved eligible investments and the revenue received from the IESO.” The answer for Q10 provides the accounting guidance for this variance account: “Distributors that have included eligible investments to connect qualifying facilities in their DS plans are to establish the variance Account 1533 Renewable Generation Connection Funding Adder Deferral Account, Sub-account Provincial Rate Protection Payment Variances following OEB approval for investments forecast to enter service beyond the test year for purposes of implementing rate protection pursuant to O.Reg. 330/09. The purpose of this variance account is to track the variance between the distributor’s revenue requirement associated with the portion of the actual capital and/or operating costs that are eligible for rate protection, as incurred by the distributor for eligible renewable enabling and expansion investments, and the rate protection payments collected from the IESO.” The answer further provides the journal entries to record the variances. Distributors should follow the instructions in the answer for recording the journal entries in the variance account 1533.
A50: Note 2: For the Test Year, Costs and Revenues of the Direct Benefit are to be included in the test year applicant Rate Base and Revenues.
A52: PILs Calculation | T52: Test Year
E53: =G17-1 -> 2017 | H53: =G17 -> 2018 | K53: =J17 -> 2019 | N53: =M17 -> 2020 | Q53: =P17 -> 2021 | T53: =S17 -> 2022 | W53: =V17 -> 2023 | Z53: =Y17 -> 2024 | AC53: =AB17 -> 2025 | AF53: =AE17 -> 2026 | AI53: =AH17 -> 2027
A54: Income Tax | E54: Direct Benefit | F54: Provincial | H54: Direct Benefit | I54: Provincial | K54: Direct Benefit | L54: Provincial | N54: Direct Benefit | O54: Provincial | Q54: Direct Benefit | R54: Provincial | T54: Direct Benefit | U54: Provincial | W54: Direct Benefit | X54: Provincial | Z54: Direct Benefit | AA54: Provincial | AC54: Direct Benefit | AD54: Provincial | AF54: Direct Benefit | AG54: Provincial | AI54: Direct Benefit | AJ54: Provincial
AB55: Total | AE55: Total | AH55: Total
A56: Net Income - ROE on Rate Base | E56: =E34 -> 0 | F56: =F34 -> 0 | H56: =H34 -> 0 | I56: =I34 -> 0 | K56: =K34 -> 0 | L56: =L34 -> 0 | N56: =N34 -> 0 | O56: =O34 -> 0 | Q56: =Q34 -> 0 | R56: =R34 -> 0 | T56: =T34 -> 0 | U56: =U34 -> 0 | W56: =W34 -> 0 | X56: =X34 -> 0 | Z56: =Z34 -> 0 | AA56: =AA34 -> 0 | AC56: =AC34 -> 0 | AD56: =AD34 -> 0 | AF56: =AF34 -> 0 | AG56: =AG34 -> 0 | AI56: =AI34 -> 0 | AJ56: =AJ34 -> 0
A57: Amortization (6% DB and 94% P) | E57: =E38 -> 0 | F57: =F38 -> 0 | H57: =H38 -> 0 | I57: =I38 -> 0 | K57: =K38 -> 0 | L57: =L38 -> 0 | N57: =N38 -> 0 | O57: =O38 -> 0 | Q57: =Q38 -> 0 | R57: =R38 -> 0 | T57: =T38 -> 0 | U57: =U38 -> 0 | W57: =W38 -> 0 | X57: =X38 -> 0 | Z57: =Z38 -> 0 | AA57: =AA38 -> 0 | AC57: =AC38 -> 0 | AD57: =AD38 -> 0 | AF57: =AF38 -> 0 | AG57: =AG38 -> 0 | AI57: =AI38 -> 0 | AJ57: =AJ38 -> 0
A58: CCA (6% DB and 94% P) | E58: =-E95*$E$19 -> 0 | F58: =-E95*$F$19 -> 0 | H58: =-F95*$E$19 -> 0 | I58: =-F95*$F$19 -> 0 | K58: =-G95*$E$19 -> 0 | L58: =-G95*$F$19 -> 0 | N58: =-H95*$E$19 -> 0 | O58: =-H95*$F$19 -> 0 | Q58: =-I95*$E$19 -> 0 | R58: =-I95*$F$19 -> 0 | T58: =-J95*$E$19 -> 0 | U58: =-J95*$F$19 -> 0 | W58: =-K95*$E$19 -> 0 | X58: =-K95*$F$19 -> 0 | Z58: =-L95*$E$19 -> 0 | AA58: =-L95*$F$19 -> 0 | AC58: =-M95*$E$19 -> 0 | AD58: =-M95*$F$19 -> 0 | AF58: =-N95*$E$19 -> 0 | AG58: =-N95*$F$19 -> 0 | AI58: =-Q95*$E$19 -> 0 | AJ58: =-Q95*$F$19 -> 0
A59: Taxable income | E59: =SUM(E56:E58) -> 0 | F59: =SUM(F56:F58) -> 0 | H59: =SUM(H56:H58) -> 0 | I59: =SUM(I56:I58) -> 0 | K59: =SUM(K56:K58) -> 0 | L59: =SUM(L56:L58) -> 0 | N59: =SUM(N56:N58) -> 0 | O59: =SUM(O56:O58) -> 0 | Q59: =SUM(Q56:Q58) -> 0 | R59: =SUM(R56:R58) -> 0 | T59: =SUM(T56:T58) -> 0 | U59: =SUM(U56:U58) -> 0 | W59: =SUM(W56:W58) -> 0 | X59: =SUM(X56:X58) -> 0 | Z59: =SUM(Z56:Z58) -> 0 | AA59: =SUM(AA56:AA58) -> 0 | AC59: =SUM(AC56:AC58) -> 0 | AD59: =SUM(AD56:AD58) -> 0 | AF59: =SUM(AF56:AF58) -> 0 | AG59: =SUM(AG56:AG58) -> 0 | AI59: =SUM(AI56:AI58) -> 0 | AJ59: =SUM(AJ56:AJ58) -> 0
B60: =B27 -> 2012 | C60: =C27 -> 2022
A61: Tax Rate (to be entered) | E61: =IF(AND(E$53>=$B$60, E$53<$C$60),$B$61,$C$61) -> 0 | F61: =IF(AND(E$53>=$B$60, E$53<$C$60),$B$61,$C$61) -> 0 | H61: =IF(AND(H$53>=$B$60, H$53<$C$60),$B$61,$C$61) -> 0 | I61: =IF(AND(H$53>=$B$60, H$53<$C$60),$B$61,$C$61) -> 0 | K61: =IF(AND(K$53>=$B$60, K$53<$C$60),$B$61,$C$61) -> 0 | L61: =IF(AND(K$53>=$B$60, K$53<$C$60),$B$61,$C$61) -> 0 | N61: =IF(AND(N$53>=$B$60, N$53<$C$60),$B$61,$C$61) -> 0 | O61: =IF(AND(N$53>=$B$60, N$53<$C$60),$B$61,$C$61) -> 0 | Q61: =IF(AND(Q$53>=$B$60, Q$53<$C$60),$B$61,$C$61) -> 0 | R61: =IF(AND(Q$53>=$B$60, Q$53<$C$60),$B$61,$C$61) -> 0 | T61: =IF(AND(T$53>=$B$60, T$53<$C$60),$B$61,$C$61) -> 0 | U61: =IF(AND(T$53>=$B$60, T$53<$C$60),$B$61,$C$61) -> 0 | W61: =IF(AND(W$53>=$B$60, W$53<$C$60),$B$61,$C$61) -> 0 | X61: =IF(AND(W$53>=$B$60, W$53<$C$60),$B$61,$C$61) -> 0 | Z61: =IF(AND(Z$53>=$B$60, Z$53<$C$60),$B$61,$C$61) -> 0 | AA61: =IF(AND(Z$53>=$B$60, Z$53<$C$60),$B$61,$C$61) -> 0 | AC61: =IF(AND(AC$53>=$B$60, AC$53<$C$60),$B$61,$C$61) -> 0 | AD61: =IF(AND(AC$53>=$B$60, AC$53<$C$60),$B$61,$C$61) -> 0 | AF61: =IF(AND(AF$53>=$B$60, AF$53<$C$60),$B$61,$C$61) -> 0 | AG61: =IF(AND(AF$53>=$B$60, AF$53<$C$60),$B$61,$C$61) -> 0 | AI61: =IF(AND(AI$53>=$B$60, AI$53<$C$60),$B$61,$C$61) -> 0 | AJ61: =IF(AND(AI$53>=$B$60, AI$53<$C$60),$B$61,$C$61) -> 0
A63: Income Taxes Payable | E63: =E59*E61 -> 0 | F63: =F59*F61 -> 0 | H63: =H59*H61 -> 0 | I63: =I59*I61 -> 0 | K63: =K59*K61 -> 0 | L63: =L59*L61 -> 0 | N63: =N59*N61 -> 0 | O63: =O59*O61 -> 0 | Q63: =Q59*Q61 -> 0 | R63: =R59*R61 -> 0 | T63: =T59*T61 -> 0 | U63: =U59*U61 -> 0 | W63: =W59*W61 -> 0 | X63: =X59*X61 -> 0 | Z63: =Z59*Z61 -> 0 | AA63: =AA59*AA61 -> 0 | AC63: =AC59*AC61 -> 0 | AD63: =AD59*AD61 -> 0 | AF63: =AF59*AF61 -> 0 | AG63: =AG59*AG61 -> 0 | AI63: =AI59*AI61 -> 0 | AJ63: =AJ59*AJ61 -> 0
A64: Gross Up
A65: Income Taxes Payable | E65: =E63/(1-E61) -> 0 | F65: =F63/(1-F61) -> 0 | H65: =H63/(1-H61) -> 0 | I65: =I63/(1-I61) -> 0 | K65: =K63/(1-K61) -> 0 | L65: =L63/(1-L61) -> 0 | N65: =N63/(1-N61) -> 0 | O65: =O63/(1-O61) -> 0 | Q65: =Q63/(1-Q61) -> 0 | R65: =R63/(1-R61) -> 0 | T65: =T63/(1-T61) -> 0 | U65: =U63/(1-U61) -> 0 | W65: =W63/(1-W61) -> 0 | X65: =X63/(1-X61) -> 0 | Z65: =Z63/(1-Z61) -> 0 | AA65: =AA63/(1-AA61) -> 0 | AC65: =AC63/(1-AC61) -> 0 | AD65: =AD63/(1-AD61) -> 0 | AF65: =AF63/(1-AF61) -> 0 | AG65: =AG63/(1-AG61) -> 0 | AI65: =AI63/(1-AI61) -> 0 | AJ65: =AJ63/(1-AJ61) -> 0
A66: Grossed Up PILs | E66: =+E65 -> 0 | F66: =+F65 -> 0 | H66: =+H65 -> 0 | I66: =+I65 -> 0 | K66: =+K65 -> 0 | L66: =+L65 -> 0 | N66: =+N65 -> 0 | O66: =+O65 -> 0 | Q66: =+Q65 -> 0 | R66: =+R65 -> 0 | T66: =+T65 -> 0 | U66: =+U65 -> 0 | W66: =+W65 -> 0 | X66: =+X65 -> 0 | Z66: =+Z65 -> 0 | AA66: =+AA65 -> 0 | AC66: =+AC65 -> 0 | AD66: =+AD65 -> 0 | AF66: =+AF65 -> 0 | AG66: =+AG65 -> 0 | AI66: =+AI65 -> 0 | AJ66: =+AJ65 -> 0
J68: Test Year
E69: =F69-1 -> 2017 | F69: =G69-1 -> 2018 | G69: =H69-1 -> 2019 | H69: =I69-1 -> 2020 | I69: =J69-1 -> 2021 | J69: ='LDC Info'!E24 -> 2022 | K69: =J69+1 -> 2023 | L69: =K69+1 -> 2024 | M69: =L69+1 -> 2025 | N69: =M69+1 -> 2026 | O69: =N69+1 -> 2027
A70: Net Fixed Assets
A71: Enter applicable amortization in years: | B71: 40
A72: Opening Gross Fixed Assets | F72: =E74 -> 0 | G72: 0 | H72: 0 | I72: 0 | J72: 0 | K72: 0 | L72: 0 | M72: 0 | N72: 0 | O72: 0
A73: Capital Additions | E73: ='App.2-FA Proposed REG Invest.'!C99 -> 0 | F73: ='App.2-FA Proposed REG Invest.'!D99 -> 0 | G73: ='App.2-FA Proposed REG Invest.'!E99 -> 0 | H73: ='App.2-FA Proposed REG Invest.'!F99 -> 0 | I73: ='App.2-FA Proposed REG Invest.'!G99 -> 0 | J73: ='App.2-FA Proposed REG Invest.'!H99 -> 0 | K73: ='App.2-FA Proposed REG Invest.'!I99 -> 0 | L73: ='App.2-FA Proposed REG Invest.'!J99 -> 0 | M73: ='App.2-FA Proposed REG Invest.'!K99 -> 0 | N73: ='App.2-FA Proposed REG Invest.'!L99 -> 0 | O73: ='App.2-FA Proposed REG Invest.'!M99 -> 0
A74: Closing Gross Fixed Assets | E74: =SUM(E72:E73) -> 0 | F74: 0 | G74: 0 | H74: 0 | I74: 0 | J74: 0 | K74: 0 | L74: 0 | M74: 0 | N74: 0 | O74: =SUM(O72:O73) -> 0
A76: Opening Accumulated Amortization | E76: 0 | F76: =+E79 -> 0 | G76: =+F79 -> 0 | H76: 0 | I76: 0 | J76: 0 | K76: 0 | L76: 0 | M76: 0 | N76: 0 | O76: 0
A77: Current Year Amortization (before additions) | E77: =IF(ISERROR(E72/$B$71), 0, E72/$B$71) -> 0 | F77: =IF(ISERROR(F72/$B$71), 0, F72/$B$71) -> 0 | G77: 0 | H77: 0 | I77: 0 | J77: 0 | K77: 0 | L77: 0 | M77: 0 | N77: 0 | O77: =IF(ISERROR(O72/$B$71), 0, O72/$B$71) -> 0
A78: Capital Additions Amortization (half year) | E78: =E73/$B$71/2 -> 0 | F78: =F73/$B$71/2 -> 0 | G78: 0 | H78: 0 | I78: 0 | J78: 0 | K78: 0 | L78: 0 | M78: 0 | N78: 0 | O78: =O73/$B$71/2 -> 0
A79: Closing Accumulated Amortization | E79: =SUM(E76+E77+E78) -> 0 | F79: 0 | G79: 0 | H79: 0 | I79: 0 | J79: 0 | K79: 0 | L79: 0 | M79: 0 | N79: 0 | O79: =SUM(O76+O77+O78) -> 0
A81: Opening Net Fixed Assets | E81: =E72-E76 -> 0 | F81: 0 | G81: 0 | H81: 0 | I81: 0 | J81: 0 | K81: 0 | L81: 0 | M81: 0 | N81: 0 | O81: =O72-O76 -> 0
A82: Closing Net Fixed Assets | E82: =E74-E79 -> 0 | F82: 0 | G82: 0 | H82: 0 | I82: 0 | J82: 0 | K82: 0 | L82: 0 | M82: 0 | N82: 0 | O82: =O74-O79 -> 0
A83: Average Net Fixed Assets | E83: =SUM(E81:E82)/2 -> 0 | F83: 0 | G83: 0 | H83: 0 | I83: 0 | J83: 0 | K83: 0 | L83: 0 | M83: 0 | N83: 0 | O83: =SUM(O81:O82)/2 -> 0
A85: UCC for PILs Calculation | J85: =J68 -> Test Year
E86: =E69 -> 2017 | F86: =F69 -> 2018 | G86: =G69 -> 2019 | H86: 2020 | I86: 2021 | J86: 2022 | K86: 2023 | L86: 2024 | M86: 2025 | N86: 2026 | O86: =O69 -> 2027
A88: Opening UCC | E88: =E72 -> 0 | F88: =E96 -> 0 | G88: 0 | H88: 0 | I88: 0 | J88: 0 | K88: 0 | L88: 0 | M88: 0 | N88: 0 | O88: 0
A89: Capital Additions | E89: =E73 -> 0 | F89: 0 | G89: 0 | H89: 0 | I89: 0 | J89: 0 | K89: 0 | L89: 0 | M89: 0 | N89: 0 | O89: =O73 -> 0
A90: UCC Before Half Year Rule | E90: =SUM(E88:E89) -> 0 | F90: 0 | G90: 0 | H90: 0 | I90: 0 | J90: 0 | K90: 0 | L90: 0 | M90: 0 | N90: 0 | O90: =SUM(O88:O89) -> 0
A91: Capital Additions (half year) | E91: =E89/2 -> 0 | F91: 0 | G91: 0 | H91: 0 | I91: 0 | J91: 0 | K91: 0 | L91: 0 | M91: 0 | N91: 0 | O91: =O89/2 -> 0
A92: Reduced UCC | E92: =E90-E91 -> 0 | F92: 0 | G92: 0 | H92: 0 | I92: 0 | J92: 0 | K92: 0 | L92: 0 | M92: 0 | N92: 0 | O92: =O90-O91 -> 0
A93: CCA Rate Class (to be entered)
A94: CCA Rate (to be entered)
A95: CCA | E95: =E92*$B$94 -> 0 | F95: =F92*$B$94 -> 0 | G95: 0 | H95: 0 | I95: 0 | J95: 0 | K95: 0 | L95: 0 | M95: 0 | N95: 0 | O95: =O92*$B$94 -> 0
A96: Closing UCC | E96: =E90-E95 -> 0 | F96: 0 | G96: 0 | H96: 0 | I96: 0 | J96: 0 | K96: 0 | L96: 0 | M96: 0 | N96: 0 | O96: =O90-O95 -> 0

Sheet App.2-G SQI
M1: File Number: | O1: =EBNUMBER -> EB-2021-0016
M2: Exhibit:
M3: Tab:
M4: Schedule:
M5: Page:
M7: Date:
A9: Appendix 2-G
A10: Service Reliability and Quality Indicators
A13: Service Reliability
A15: Index | B15: Including outages caused by loss of supply | G15: Excluding outages caused by loss of supply | L15: Excluding Major Event Days
B16: =TestYear-6 -> 2016 | C16: =TestYear-5 -> 2017 | D16: =TestYear-4 -> 2018 | E16: =TestYear-3 -> 2019 | F16: =TestYear-2 -> 2020 | G16: =B16 -> 2016 | H16: 2017 | I16: 2018 | J16: 2019 | K16: 2020 | L16: 2016 | M16: 2017 | N16: 2018 | O16: 2019 | P16: 2020
A17: SAIDI | B17: 0.4219085547 | C17: 0.6298531102 | D17: 2.949479541 | E17: 2.656003112 | F17: 5.447935698 | G17: 0.2503145176 | H17: 0.6298531102 | I17: 1.627315155 | J17: 1.847775228 | K17: 3.343021163 | L17: 0.4219085547 | M17: 0.6298531102 | N17: 2.949479541 | O17: 2.656003112 | P17: 5.447935698
A18: SAIFI | B18: 0.1731383834 | C18: 0.2051347554 | D18: 1.130048595 | E18: 1.313030489 | F18: 2.171370861 | G18: 0.08734136489 | H18: 0.2051347554 | I18: 0.4815695352 | J18: 0.7220635106 | K18: 1.146016053 | L18: 0.1731383834 | M18: 0.2051347554 | N18: 1.130048595 | O18: 1.313030489 | P18: 2.171370861
A20: 5 Year Historical Average
A21: SAIDI | F21: =IF(ISERROR(AVERAGE(B17:F17)), "", AVERAGE(B17:F17)) -> 2.421036003 | K21: =IF(ISERROR(AVERAGE(G17:K17)), "", AVERAGE(G17:K17)) -> 1.539655835 | P21: =IF(ISERROR(AVERAGE(L17:P17)), "", AVERAGE(L17:P17)) -> 2.421036003
A22: SAIFI | F22: =IF(ISERROR(AVERAGE(B18:F18)), "", AVERAGE(B18:F18)) -> 0.9985446166 | K22: =IF(ISERROR(AVERAGE(G18:K18)), "", AVERAGE(G18:K18)) -> 0.5284250438 | P22: =IF(ISERROR(AVERAGE(L18:P18)), "", AVERAGE(L18:P18)) -> 0.9985446166
A24: SAIDI = System Average Interruption Duration Index
A25: SAIFI = System Average Interruption Frequency Index
A27: Service Quality
A29: Indicator | E29: OEB Minimum Standard | G29: =B16 -> 2016 | H29: =C16 -> 2017 | I29: =D16 -> 2018 | J29: =E16 -> 2019 | K29: =F16 -> 2020
A30: Low Voltage Connections | E30: 0.9 | G30: 0.939 | H30: 0.9444 | I30: 0.9904 | J30: 0.9934 | K30: 0.995
A31: High Voltage Connections | E31: 0.9 | G31: 0 | H31: 1 | I31: 1 | J31: 0 | K31: 0
A32: Telephone Accessibility | E32: 0.65 | G32: 0.972 | H32: 0.966 | I32: 0.9625 | J32: 0.9769 | K32: 0.9508
A33: Appointments Met | E33: 0.9 | G33: 0.989 | H33: 0.9863 | I33: 1 | J33: 1 | K33: 0.9907
A34: Written Response to Enquires | E34: 0.8 | G34: 0.979 | H34: 0.989 | I34: 0.9923 | J34: 0.98 | K34: 0.9866
A35: Emergency Urban Response | E35: 0.8 | G35: 1 | H35: 0.8889 | I35: 1 | J35: 1 | K35: 1
A36: Emergency Rural Response | E36: 0.8 | G36: 0 | H36: 1 | I36: 1 | J36: 1 | K36: 0
A37: Telephone Call Abandon Rate | E37: 0.1 | G37: 0.001 | H37: 0.0009 | I37: 0.0016 | J37: 0.0034 | K37: 0.0029
A38: Appointment Scheduling | E38: 0.9 | G38: 0.9626168013 | H38: 0.9868420959 | I38: 0.9871794581 | J38: 0.9894737005 | K38: 0.9907407165
A39: Rescheduling a Missed Appointment | E39: 1 | G39: 1 | H39: 1 | I39: 1 | J39: 0 | K39: 0
A40: Reconnection Performance Standard | E40: 0.85 | G40: 1 | H40: 1 | I40: 0.9394 | J40: 1 | K40: 1

Sheet App.2-H_Other_Oper_Rev
K1: File Number: | L1: =EBNUMBER -> EB-2021-0016
K2: Exhibit:
K3: Tab:
A4: TO BE UPDATED AT THE DRAFT RATE ORDER STAGE | K4: Schedule:
K5: Page:
K7: Date:
A9: Appendix 2-H
A10: Other Operating Revenue
A12: USoA # | B12: USoA Description | C12: =D13 - 1 &" Actual"&CHAR(178) -> 2013 Actual² | D12: 2014 Actual² | E12: 2015 Actual² | F12: 2016 Actual² | G12: 2017 Actual² | H12: 2018 Actual² | I12: =I13 & " Actual" & CHAR(178) -> 2019 Actual² | J12: =J13& " Actual" -> 2020 Actual | K12: 2021 Actual | L12: Test Year | N12: CGAAP
C13: =D13-1 -> 2013 | D13: 2014 | E13: 2015 | F13: 2016 | G13: 2017 | H13: 2018 | I13: 2019 | J13: 2020 | K13: =BridgeYear -> 2021 | L13: =TestYear -> 2022 | N13: 2022
B14: Reporting Basis | C14: CGAAP | D14: CGAAP | E14: MIFRS | F14: MIFRS | G14: MIFRS | H14: MIFRS | I14: MIFRS | J14: MIFRS | K14: MIFRS | L14: MIFRS | N14: CGAAP
A15: 4235 | B15: Specific Service Charges | C15: -72073 | D15: -77125 | E15: -75229 | F15: -65796 | G15: -108781 | H15: -117560 | I15: -108676 | J15: -163733 | K15: -172365 | L15: -172365
A16: 4225 | B16: Late Payment Charges | C16: -111041 | D16: -107336 | E16: -120092 | F16: -122163 | G16: -42630 | H16: -97310 | I16: -93143 | J16: -86403 | K16: -100165 | L16: -100165
A17: 4082 | B17: Retail Services Revenues | C17: -16344 | D17: -15376 | E17: -12817 | F17: -12755 | G17: -10096 | H17: -10506 | I17: -10512 | J17: -10208 | K17: -9011 | L17: -9011
A19: 4210 | B19: Rent from Electric Property | C19: -46006 | D19: -46336 | E19: -45894 | F19: -46279 | G19: -46329 | H19: -49745 | I19: -65905 | J19: -66363 | K19: -65563 | L19: -61056
A20: 4215 | B20: Other Utility Operating Income | C20: -50086 | D20: -14720 | F20: -10445 | G20: 5126 | I20: -2314 | J20: -6928 | L20: -5964
A21: 4220 | B21: Other Electric Revenues | C21: -227226 | D21: -2983 | F21: 17998 | J21: -9741 | K21: -2566
A22: 4305 | B22: Regulatory Debits | C22: 459136 | F22: 163489
A23: 4320 | B23: Expenses of Electric Plant Leased to Others | F23: 12
A24: 4325 | B24: Revenues from Merchandise | C24: -22
A25: 4355 | B25: Gain on Disposition of Utility and Other Property | D25: -20000 | F25: -50385 | K25: -7851
A26: 4375 | B26: Revenues from Non Rate-Regulated Utility Operations | C26: -615056 | D26: -433414 | E26: -727084 | F26: -904863 | G26: -711502 | H26: -806066 | I26: -700502 | J26: -641314 | K26: -328256 | L26: -354555
A27: 4380 | B27: Expenses of Non Rate-Regulated Utility Operations | C27: 471978 | D27: 329185 | E27: 329072 | F27: 470223 | G27: 257651 | H27: 418032 | I27: 342822 | J27: 225375 | K27: 107793 | L27: 317340
A28: 4385 | B28: Non Rate-Regulated Utility Rental Income | C28: -548 | E28: -24582
A29: 4405 | B29: Interest and Dividend Income | C29: -189491 | D29: -183343 | E29: -42122 | F29: -56444 | G29: -77374 | H29: -128220 | I29: -196293 | J29: -141846 | K29: -100971 | L29: -100971
A53: Specific Service Charges | C53: =C15 -> -72073 | D53: -77125 | E53: -75229 | F53: -65796 | G53: -108781 | H53: -117560 | I53: -108676 | J53: -163733 | K53: -172365 | L53: -172365 | N53: =N15 -> 0
A54: Late Payment Charges | C54: =C16 -> -111041 | D54: -107336 | E54: -120092 | F54: -122163 | G54: -42630 | H54: -97310 | I54: -93143 | J54: -86403 | K54: -100165 | L54: -100165 | N54: =N16 -> 0
A55: Other Operating Revenues | C55: =C19+C20+C21+C17 -> -339662 | D55: =D19+D20+D21+D17 -> -79415 | E55: -58711 | F55: -51481 | G55: -51299 | H55: -60251 | I55: -78731 | J55: -93240 | K55: =K19+K20+K21+K17 -> -77140 | L55: =L19+L20+L21+L17 -> -76031
A56: Other Income or Deductions | C56: =C22+C23+C24+C25+C26+C27+C28+C29 -> 125997 | D56: =D22+D23+D24+D25+D26+D27+D28+D29 -> -307572 | E56: -464716 | F56: -377968 | G56: -531225 | H56: -516254 | I56: -553973 | J56: -557785 | K56: -329285 | L56: -138186
A57: Total | C57: =SUM(C53:C56) -> -396779 | D57: =SUM(D53:D56) -> -571448 | E57: =SUM(E53:E56) -> -718748 | F57: =SUM(F53:F56) -> -617408 | G57: =SUM(G53:G56) -> -733935 | H57: -791375 | I57: -834523 | J57: -901161 | K57: -678955 | L57: -486747 | N57: =SUM(N53:N56) -> 0
A59: Description Account(s)
A60: Specific Service Charges: 4235
A61: Late Payment Charges: 4225
A62: Other Distribution Revenues: 4082, 4084, 4090, 4205, 4210, 4215, 4220, 4230, 4240, 4245
A63: Other Income and Expenses: 4305, 4310, 4315, 4320, 4325, 4330, 4335, 4340, 4345, 4350, 4355, 4357, 4360, 4362, 4365, 4370, 4375, 4380, 4385, 4390, 4395, 4398, 4405, 4410, 4415, 4420
A66: Note: Add all applicable accounts listed above to the table and include all relevant information.
A68: Account Breakdown Details
A70: For each "Other Operating Revenue" and "Other Income or Deductions" Account, a detailed breakdown of the account components is required. See the example below for Account 4405, Interest and Dividend Income. Tables for the detailed breakdowns will be generated after cell B89 is filled in.
A73: Example: Account 4405 - Interest and Dividend Income
C74: =C12 -> 2013 Actual² | D74: 2014 Actual² | E74: 2015 Actual² | F74: 2016 Actual² | G74: 2017 Actual² | H74: 2018 Actual² | I74: 2019 Actual² | J74: 2020 Actual | K74: 2021 Actual | L74: Test Year | N74: =N12 -> CGAAP
C75: =C13 -> 2013 | D75: 2014 | E75: 2015 | F75: 2016 | G75: 2017 | H75: 2018 | I75: 2019 | J75: =J13 -> 2020 | K75: =K13 -> 2021 | L75: =L13 -> 2022 | N75: =N13 -> 2022
A76: Reporting Basis | C76: =IF(C14=0, "", C14) -> CGAAP | D76: CGAAP | E76: MIFRS | F76: MIFRS | G76: MIFRS | H76: MIFRS | I76: MIFRS | J76: MIFRS | K76: MIFRS | L76: MIFRS | N76: =IF(N14=0, "", N14) -> CGAAP
A77: Short-term Investment Interest
A78: Bank Deposit Interest
A79: Miscellaneous Interest Revenue
A80: etc.1
A83: Total | C83: =SUM(C77:C82) -> 0 | D83: 0 | E83: 0 | F83: 0 | G83: 0 | H83: 0 | I83: 0 | J83: 0 | K83: 0 | L83: 0 | N83: =SUM(N77:N82) -> 0
A86: Notes:
A87: 1 | B87: List and specify any other interest revenue.
A88: 2 | B88: For applicants rebasing under IFRS for the first time, in the transition year (2014) to IFRS, the applicant is to present information in both MIFRS and CGAAP. In column N, present CGAAP transition year information.
C89: Enter the number of "Other Operating Revenue" and "Other Income or Deductions" Accounts that require a detailed breakdown of the account components.
C94: =C$12 -> 2013 Actual² | D94: 2014 Actual² | E94: 2015 Actual² | F94: 2016 Actual² | G94: 2017 Actual² | H94: 2018 Actual² | I94: 2019 Actual² | J94: 2020 Actual | K94: 2021 Actual | L94: Test Year | N94: =N$12 -> CGAAP
C95: =C$13 -> 2013 | D95: 2014 | E95: 2015 | F95: 2016 | G95: 2017 | H95: 2018 | I95: 2019 | J95: 2020 | K95: 2021 | L95: 2022 | N95: =N$13 -> 2022
A96: Reporting Basis | C96: =IF(C34=0, "", C34) ->  | N96: =IF(N$14=0, "", N$14) -> CGAAP
A105: Total | C105: =SUM(C97:C104) -> 0 | D105: 0 | E105: 0 | F105: 0 | G105: 0 | H105: 0 | I105: 0 | J105: 0 | K105: 0 | L105: 0 | N105: =SUM(N97:N104) -> 0
C108: =C$12 -> 2013 Actual² | D108: 2014 Actual² | E108: 2015 Actual² | F108: 2016 Actual² | G108: 2017 Actual² | H108: 2018 Actual² | I108: 2019 Actual² | J108: 2020 Actual | K108: 2021 Actual | L108: Test Year | N108: =N$12 -> CGAAP
C109: =C$13 -> 2013 | D109: 2014 | E109: 2015 | F109: 2016 | G109: 2017 | H109: 2018 | I109: 2019 | J109: 2020 | K109: 2021 | L109: 2022 | N109: =N$13 -> 2022
A110: Reporting Basis | C110: =IF(C48=0, "", C48) ->  | N110: =IF(N$14=0, "", N$14) -> CGAAP
A119: Total | C119: =SUM(C111:C118) -> 0 | D119: 0 | E119: 0 | F119: 0 | G119: 0 | H119: 0 | I119: 0 | J119: 0 | K119: 0 | L119: 0 | N119: =SUM(N111:N118) -> 0
C122: =C$12 -> 2013 Actual² | D122: 2014 Actual² | E122: 2015 Actual² | F122: 2016 Actual² | G122: 2017 Actual² | H122: 2018 Actual² | I122: 2019 Actual² | J122: 2020 Actual | K122: 2021 Actual | L122: Test Year | N122: =N$12 -> CGAAP
C123: =C$13 -> 2013 | D123: 2014 | E123: 2015 | F123: 2016 | G123: 2017 | H123: 2018 | I123: 2019 | J123: 2020 | K123: 2021 | L123: 2022 | N123: =N$13 -> 2022
A124: Reporting Basis | C124: =IF(C62=0, "", C62) ->  | N124: =IF(N$14=0, "", N$14) -> CGAAP
A133: Total | C133: =SUM(C125:C132) -> 0 | D133: 0 | E133: 0 | F133: 0 | G133: 0 | H133: 0 | I133: 0 | J133: 0 | K133: 0 | L133: 0 | N133: =SUM(N125:N132) -> 0
C136: =C$12 -> 2013 Actual² | D136: 2014 Actual² | E136: 2015 Actual² | F136: 2016 Actual² | G136: 2017 Actual² | H136: 2018 Actual² | I136: 2019 Actual² | J136: 2020 Actual | K136: 2021 Actual | L136: Test Year | N136: =N$12 -> CGAAP
C137: =C$13 -> 2013 | D137: 2014 | E137: 2015 | F137: 2016 | G137: 2017 | H137: 2018 | I137: 2019 | J137: 2020 | K137: 2021 | L137: 2022 | N137: =N$13 -> 2022
A138: Reporting Basis | C138: =IF(C76=0, "", C76) -> CGAAP | D138: CGAAP | E138: MIFRS | F138: MIFRS | G138: MIFRS | H138: MIFRS | I138: MIFRS | J138: MIFRS | K138: MIFRS | L138: MIFRS | N138: =IF(N$14=0, "", N$14) -> CGAAP
A147: Total | C147: =SUM(C139:C146) -> 0 | D147: 0 | E147: 0 | F147: 0 | G147: 0 | H147: 0 | I147: 0 | J147: 0 | K147: 0 | L147: 0 | N147: =SUM(N139:N146) -> 0
C150: =C$12 -> 2013 Actual² | D150: 2014 Actual² | E150: 2015 Actual² | F150: 2016 Actual² | G150: 2017 Actual² | H150: 2018 Actual² | I150: 2019 Actual² | J150: 2020 Actual | K150: 2021 Actual | L150: Test Year | N150: =N$12 -> CGAAP
C151: =C$13 -> 2013 | D151: 2014 | E151: 2015 | F151: 2016 | G151: 2017 | H151: 2018 | I151: 2019 | J151: 2020 | K151: 2021 | L151: 2022 | N151: =N$13 -> 2022
A152: Reporting Basis | C152: =IF(C90=0, "", C90) ->  | N152: =IF(N$14=0, "", N$14) -> CGAAP
A161: Total | C161: =SUM(C153:C160) -> 0 | D161: 0 | E161: 0 | F161: 0 | G161: 0 | H161: 0 | I161: 0 | J161: 0 | K161: 0 | L161: 0 | N161: =SUM(N153:N160) -> 0
C164: =C$12 -> 2013 Actual² | D164: 2014 Actual² | E164: 2015 Actual² | F164: 2016 Actual² | G164: 2017 Actual² | H164: 2018 Actual² | I164: 2019 Actual² | J164: 2020 Actual | K164: 2021 Actual | L164: Test Year | N164: =N$12 -> CGAAP
C165: =C$13 -> 2013 | D165: 2014 | E165: 2015 | F165: 2016 | G165: 2017 | H165: 2018 | I165: 2019 | J165: 2020 | K165: 2021 | L165: 2022 | N165: =N$13 -> 2022
A166: Reporting Basis | C166: =IF(C104=0, "", C104) ->  | N166: =IF(N$14=0, "", N$14) -> CGAAP
A175: Total | C175: =SUM(C167:C174) -> 0 | D175: 0 | E175: 0 | F175: 0 | G175: 0 | H175: 0 | I175: 0 | J175: 0 | K175: 0 | L175: 0 | N175: =SUM(N167:N174) -> 0
C178: =C$12 -> 2013 Actual² | D178: 2014 Actual² | E178: 2015 Actual² | F178: 2016 Actual² | G178: 2017 Actual² | H178: 2018 Actual² | I178: 2019 Actual² | J178: 2020 Actual | K178: 2021 Actual | L178: Test Year | N178: =N$12 -> CGAAP
C179: =C$13 -> 2013 | D179: 2014 | E179: 2015 | F179: 2016 | G179: 2017 | H179: 2018 | I179: 2019 | J179: 2020 | K179: 2021 | L179: 2022 | N179: =N$13 -> 2022
A180: Reporting Basis | C180: =IF(C118=0, "", C118) ->  | N180: =IF(N$14=0, "", N$14) -> CGAAP
A189: Total | C189: =SUM(C181:C188) -> 0 | D189: 0 | E189: 0 | F189: 0 | G189: 0 | H189: 0 | I189: 0 | J189: 0 | K189: 0 | L189: 0 | N189: =SUM(N181:N188) -> 0
C192: =C$12 -> 2013 Actual² | D192: 2014 Actual² | E192: 2015 Actual² | F192: 2016 Actual² | G192: 2017 Actual² | H192: 2018 Actual² | I192: 2019 Actual² | J192: 2020 Actual | K192: 2021 Actual | L192: Test Year | N192: =N$12 -> CGAAP
C193: =C$13 -> 2013 | D193: 2014 | E193: 2015 | F193: 2016 | G193: 2017 | H193: 2018 | I193: 2019 | J193: 2020 | K193: 2021 | L193: 2022 | N193: =N$13 -> 2022
A194: Reporting Basis | C194: =IF(C132=0, "", C132) ->  | N194: =IF(N$14=0, "", N$14) -> CGAAP
A203: Total | C203: =SUM(C195:C202) -> 0 | D203: 0 | E203: 0 | F203: 0 | G203: 0 | H203: 0 | I203: 0 | J203: 0 | K203: 0 | L203: 0 | N203: =SUM(N195:N202) -> 0
C206: =C$12 -> 2013 Actual² | D206: 2014 Actual² | E206: 2015 Actual² | F206: 2016 Actual² | G206: 2017 Actual² | H206: 2018 Actual² | I206: 2019 Actual² | J206: 2020 Actual | K206: 2021 Actual | L206: Test Year | N206: =N$12 -> CGAAP
C207: =C$13 -> 2013 | D207: 2014 | E207: 2015 | F207: 2016 | G207: 2017 | H207: 2018 | I207: 2019 | J207: 2020 | K207: 2021 | L207: 2022 | N207: =N$13 -> 2022
A208: Reporting Basis | C208: =IF(C146=0, "", C146) ->  | N208: =IF(N$14=0, "", N$14) -> CGAAP
A217: Total | C217: =SUM(C209:C216) -> 0 | D217: 0 | E217: 0 | F217: 0 | G217: 0 | H217: 0 | I217: 0 | J217: 0 | K217: 0 | L217: 0 | N217: =SUM(N209:N216) -> 0
C220: =C$12 -> 2013 Actual² | D220: 2014 Actual² | E220: 2015 Actual² | F220: 2016 Actual² | G220: 2017 Actual² | H220: 2018 Actual² | I220: 2019 Actual² | J220: 2020 Actual | K220: 2021 Actual | L220: Test Year | N220: =N$12 -> CGAAP
C221: =C$13 -> 2013 | D221: 2014 | E221: 2015 | F221: 2016 | G221: 2017 | H221: 2018 | I221: 2019 | J221: 2020 | K221: 2021 | L221: 2022 | N221: =N$13 -> 2022
A222: Reporting Basis | C222: =IF(C160=0, "", C160) ->  | N222: =IF(N$14=0, "", N$14) -> CGAAP
A231: Total | C231: =SUM(C223:C230) -> 0 | D231: 0 | E231: 0 | F231: 0 | G231: 0 | H231: 0 | I231: 0 | J231: 0 | K231: 0 | L231: 0 | N231: =SUM(N223:N230) -> 0
C234: =C$12 -> 2013 Actual² | D234: 2014 Actual² | E234: 2015 Actual² | F234: 2016 Actual² | G234: 2017 Actual² | H234: 2018 Actual² | I234: 2019 Actual² | J234: 2020 Actual | K234: 2021 Actual | L234: Test Year | N234: =N$12 -> CGAAP
C235: =C$13 -> 2013 | D235: 2014 | E235: 2015 | F235: 2016 | G235: 2017 | H235: 2018 | I235: 2019 | J235: 2020 | K235: 2021 | L235: 2022 | N235: =N$13 -> 2022
A236: Reporting Basis | C236: =IF(C174=0, "", C174) ->  | N236: =IF(N$14=0, "", N$14) -> CGAAP
A245: Total | C245: =SUM(C237:C244) -> 0 | D245: 0 | E245: 0 | F245: 0 | G245: 0 | H245: 0 | I245: 0 | J245: 0 | K245: 0 | L245: 0 | N245: =SUM(N237:N244) -> 0
C248: =C$12 -> 2013 Actual² | D248: 2014 Actual² | E248: 2015 Actual² | F248: 2016 Actual² | G248: 2017 Actual² | H248: 2018 Actual² | I248: 2019 Actual² | J248: 2020 Actual | K248: 2021 Actual | L248: Test Year | N248: =N$12 -> CGAAP
C249: =C$13 -> 2013 | D249: 2014 | E249: 2015 | F249: 2016 | G249: 2017 | H249: 2018 | I249: 2019 | J249: 2020 | K249: 2021 | L249: 2022 | N249: =N$13 -> 2022
A250: Reporting Basis | C250: =IF(C188=0, "", C188) ->  | N250: =IF(N$14=0, "", N$14) -> CGAAP
A259: Total | C259: =SUM(C251:C258) -> 0 | D259: 0 | E259: 0 | F259: 0 | G259: 0 | H259: 0 | I259: 0 | J259: 0 | K259: 0 | L259: 0 | N259: =SUM(N251:N258) -> 0
C262: =C$12 -> 2013 Actual² | D262: 2014 Actual² | E262: 2015 Actual² | F262: 2016 Actual² | G262: 2017 Actual² | H262: 2018 Actual² | I262: 2019 Actual² | J262: 2020 Actual | K262: 2021 Actual | L262: Test Year | N262: =N$12 -> CGAAP
C263: =C$13 -> 2013 | D263: 2014 | E263: 2015 | F263: 2016 | G263: 2017 | H263: 2018 | I263: 2019 | J263: 2020 | K263: 2021 | L263: 2022 | N263: =N$13 -> 2022
A264: Reporting Basis | C264: =IF(C202=0, "", C202) ->  | N264: =IF(N$14=0, "", N$14) -> CGAAP
A273: Total | C273: =SUM(C265:C272) -> 0 | D273: 0 | E273: 0 | F273: 0 | G273: 0 | H273: 0 | I273: 0 | J273: 0 | K273: 0 | L273: 0 | N273: =SUM(N265:N272) -> 0
C276: =C$12 -> 2013 Actual² | D276: 2014 Actual² | E276: 2015 Actual² | F276: 2016 Actual² | G276: 2017 Actual² | H276: 2018 Actual² | I276: 2019 Actual² | J276: 2020 Actual | K276: 2021 Actual | L276: Test Year | N276: =N$12 -> CGAAP
C277: =C$13 -> 2013 | D277: 2014 | E277: 2015 | F277: 2016 | G277: 2017 | H277: 2018 | I277: 2019 | J277: 2020 | K277: 2021 | L277: 2022 | N277: =N$13 -> 2022
A278: Reporting Basis | C278: =IF(C216=0, "", C216) ->  | N278: =IF(N$14=0, "", N$14) -> CGAAP
A287: Total | C287: =SUM(C279:C286) -> 0 | D287: 0 | E287: 0 | F287: 0 | G287: 0 | H287: 0 | I287: 0 | J287: 0 | K287: 0 | L287: 0 | N287: =SUM(N279:N286) -> 0
C290: =C$12 -> 2013 Actual² | D290: 2014 Actual² | E290: 2015 Actual² | F290: 2016 Actual² | G290: 2017 Actual² | H290: 2018 Actual² | I290: 2019 Actual² | J290: 2020 Actual | K290: 2021 Actual | L290: Test Year | N290: =N$12 -> CGAAP
C291: =C$13 -> 2013 | D291: 2014 | E291: 2015 | F291: 2016 | G291: 2017 | H291: 2018 | I291: 2019 | J291: 2020 | K291: 2021 | L291: 2022 | N291: =N$13 -> 2022
A292: Reporting Basis | C292: =IF(C230=0, "", C230) ->  | N292: =IF(N$14=0, "", N$14) -> CGAAP
A301: Total | C301: =SUM(C293:C300) -> 0 | D301: 0 | E301: 0 | F301: 0 | G301: 0 | H301: 0 | I301: 0 | J301: 0 | K301: 0 | L301: 0 | N301: =SUM(N293:N300) -> 0
C304: =C$12 -> 2013 Actual² | D304: 2014 Actual² | E304: 2015 Actual² | F304: 2016 Actual² | G304: 2017 Actual² | H304: 2018 Actual² | I304: 2019 Actual² | J304: 2020 Actual | K304: 2021 Actual | L304: Test Year | N304: =N$12 -> CGAAP
C305: =C$13 -> 2013 | D305: 2014 | E305: 2015 | F305: 2016 | G305: 2017 | H305: 2018 | I305: 2019 | J305: 2020 | K305: 2021 | L305: 2022 | N305: =N$13 -> 2022
A306: Reporting Basis | C306: =IF(C244=0, "", C244) ->  | N306: =IF(N$14=0, "", N$14) -> CGAAP
A315: Total | C315: =SUM(C307:C314) -> 0 | D315: 0 | E315: 0 | F315: 0 | G315: 0 | H315: 0 | I315: 0 | J315: 0 | K315: 0 | L315: 0 | N315: =SUM(N307:N314) -> 0
C318: =C$12 -> 2013 Actual² | D318: 2014 Actual² | E318: 2015 Actual² | F318: 2016 Actual² | G318: 2017 Actual² | H318: 2018 Actual² | I318: 2019 Actual² | J318: 2020 Actual | K318: 2021 Actual | L318: Test Year | N318: =N$12 -> CGAAP
C319: =C$13 -> 2013 | D319: 2014 | E319: 2015 | F319: 2016 | G319: 2017 | H319: 2018 | I319: 2019 | J319: 2020 | K319: 2021 | L319: 2022 | N319: =N$13 -> 2022
A320: Reporting Basis | C320: =IF(C258=0, "", C258) ->  | N320: =IF(N$14=0, "", N$14) -> CGAAP
A329: Total | C329: =SUM(C321:C328) -> 0 | D329: 0 | E329: 0 | F329: 0 | G329: 0 | H329: 0 | I329: 0 | J329: 0 | K329: 0 | L329: 0 | N329: =SUM(N321:N328) -> 0
C332: =C$12 -> 2013 Actual² | D332: 2014 Actual² | E332: 2015 Actual² | F332: 2016 Actual² | G332: 2017 Actual² | H332: 2018 Actual² | I332: 2019 Actual² | J332: 2020 Actual | K332: 2021 Actual | L332: Test Year | N332: =N$12 -> CGAAP
C333: =C$13 -> 2013 | D333: 2014 | E333: 2015 | F333: 2016 | G333: 2017 | H333: 2018 | I333: 2019 | J333: 2020 | K333: 2021 | L333: 2022 | N333: =N$13 -> 2022
A334: Reporting Basis | C334: =IF(C272=0, "", C272) ->  | N334: =IF(N$14=0, "", N$14) -> CGAAP
A343: Total | C343: =SUM(C335:C342) -> 0 | D343: 0 | E343: 0 | F343: 0 | G343: 0 | H343: 0 | I343: 0 | J343: 0 | K343: 0 | L343: 0 | N343: =SUM(N335:N342) -> 0
C346: =C$12 -> 2013 Actual² | D346: 2014 Actual² | E346: 2015 Actual² | F346: 2016 Actual² | G346: 2017 Actual² | H346: 2018 Actual² | I346: 2019 Actual² | J346: 2020 Actual | K346: 2021 Actual | L346: Test Year | N346: =N$12 -> CGAAP
C347: =C$13 -> 2013 | D347: 2014 | E347: 2015 | F347: 2016 | G347: 2017 | H347: 2018 | I347: 2019 | J347: 2020 | K347: 2021 | L347: 2022 | N347: =N$13 -> 2022
A348: Reporting Basis | C348: =IF(C286=0, "", C286) ->  | N348: =IF(N$14=0, "", N$14) -> CGAAP
A357: Total | C357: =SUM(C349:C356) -> 0 | D357: 0 | E357: 0 | F357: 0 | G357: 0 | H357: 0 | I357: 0 | J357: 0 | K357: 0 | L357: 0 | N357: =SUM(N349:N356) -> 0
C360: =C$12 -> 2013 Actual² | D360: 2014 Actual² | E360: 2015 Actual² | F360: 2016 Actual² | G360: 2017 Actual² | H360: 2018 Actual² | I360: 2019 Actual² | J360: 2020 Actual | K360: 2021 Actual | L360: Test Year | N360: =N$12 -> CGAAP
C361: =C$13 -> 2013 | D361: 2014 | E361: 2015 | F361: 2016 | G361: 2017 | H361: 2018 | I361: 2019 | J361: 2020 | K361: 2021 | L361: 2022 | N361: =N$13 -> 2022
A362: Reporting Basis | C362: =IF(C300=0, "", C300) ->  | N362: =IF(N$14=0, "", N$14) -> CGAAP
A371: Total | C371: =SUM(C363:C370) -> 0 | D371: 0 | E371: 0 | F371: 0 | G371: 0 | H371: 0 | I371: 0 | J371: 0 | K371: 0 | L371: 0 | N371: =SUM(N363:N370) -> 0
C374: =C$12 -> 2013 Actual² | D374: 2014 Actual² | E374: 2015 Actual² | F374: 2016 Actual² | G374: 2017 Actual² | H374: 2018 Actual² | I374: 2019 Actual² | J374: 2020 Actual | K374: 2021 Actual | L374: Test Year | N374: =N$12 -> CGAAP
C375: =C$13 -> 2013 | D375: 2014 | E375: 2015 | F375: 2016 | G375: 2017 | H375: 2018 | I375: 2019 | J375: 2020 | K375: 2021 | L375: 2022 | N375: =N$13 -> 2022
A376: Reporting Basis | C376: =IF(C314=0, "", C314) ->  | N376: =IF(N$14=0, "", N$14) -> CGAAP
A385: Total | C385: =SUM(C377:C384) -> 0 | D385: 0 | E385: 0 | F385: 0 | G385: 0 | H385: 0 | I385: 0 | J385: 0 | K385: 0 | L385: 0 | N385: =SUM(N377:N384) -> 0
C388: =C$12 -> 2013 Actual² | D388: 2014 Actual² | E388: 2015 Actual² | F388: 2016 Actual² | G388: 2017 Actual² | H388: 2018 Actual² | I388: 2019 Actual² | J388: 2020 Actual | K388: 2021 Actual | L388: Test Year | N388: =N$12 -> CGAAP
C389: =C$13 -> 2013 | D389: 2014 | E389: 2015 | F389: 2016 | G389: 2017 | H389: 2018 | I389: 2019 | J389: 2020 | K389: 2021 | L389: 2022 | N389: =N$13 -> 2022
A390: Reporting Basis | C390: =IF(C328=0, "", C328) ->  | N390: =IF(N$14=0, "", N$14) -> CGAAP
A399: Total | C399: =SUM(C391:C398) -> 0 | D399: 0 | E399: 0 | F399: 0 | G399: 0 | H399: 0 | I399: 0 | J399: 0 | K399: 0 | L399: 0 | N399: =SUM(N391:N398) -> 0
C402: =C$12 -> 2013 Actual² | D402: 2014 Actual² | E402: 2015 Actual² | F402: 2016 Actual² | G402: 2017 Actual² | H402: 2018 Actual² | I402: 2019 Actual² | J402: 2020 Actual | K402: 2021 Actual | L402: Test Year | N402: =N$12 -> CGAAP
C403: =C$13 -> 2013 | D403: 2014 | E403: 2015 | F403: 2016 | G403: 2017 | H403: 2018 | I403: 2019 | J403: 2020 | K403: 2021 | L403: 2022 | N403: =N$13 -> 2022
A404: Reporting Basis | C404: =IF(C342=0, "", C342) ->  | N404: =IF(N$14=0, "", N$14) -> CGAAP
A413: Total | C413: =SUM(C405:C412) -> 0 | D413: 0 | E413: 0 | F413: 0 | G413: 0 | H413: 0 | I413: 0 | J413: 0 | K413: 0 | L413: 0 | N413: =SUM(N405:N412) -> 0
C416: =C$12 -> 2013 Actual² | D416: 2014 Actual² | E416: 2015 Actual² | F416: 2016 Actual² | G416: 2017 Actual² | H416: 2018 Actual² | I416: 2019 Actual² | J416: 2020 Actual | K416: 2021 Actual | L416: Test Year | N416: =N$12 -> CGAAP
C417: =C$13 -> 2013 | D417: 2014 | E417: 2015 | F417: 2016 | G417: 2017 | H417: 2018 | I417: 2019 | J417: 2020 | K417: 2021 | L417: 2022 | N417: =N$13 -> 2022
A418: Reporting Basis | C418: =IF(C356=0, "", C356) ->  | N418: =IF(N$14=0, "", N$14) -> CGAAP
A427: Total | C427: =SUM(C419:C426) -> 0 | D427: 0 | E427: 0 | F427: 0 | G427: 0 | H427: 0 | I427: 0 | J427: 0 | K427: 0 | L427: 0 | N427: =SUM(N419:N426) -> 0
C430: =C$12 -> 2013 Actual² | D430: 2014 Actual² | E430: 2015 Actual² | F430: 2016 Actual² | G430: 2017 Actual² | H430: 2018 Actual² | I430: 2019 Actual² | J430: 2020 Actual | K430: 2021 Actual | L430: Test Year | N430: =N$12 -> CGAAP
C431: =C$13 -> 2013 | D431: 2014 | E431: 2015 | F431: 2016 | G431: 2017 | H431: 2018 | I431: 2019 | J431: 2020 | K431: 2021 | L431: 2022 | N431: =N$13 -> 2022
A432: Reporting Basis | C432: =IF(C370=0, "", C370) ->  | N432: =IF(N$14=0, "", N$14) -> CGAAP
A441: Total | C441: =SUM(C433:C440) -> 0 | D441: 0 | E441: 0 | F441: 0 | G441: 0 | H441: 0 | I441: 0 | J441: 0 | K441: 0 | L441: 0 | N441: =SUM(N433:N440) -> 0
C444: =C$12 -> 2013 Actual² | D444: 2014 Actual² | E444: 2015 Actual² | F444: 2016 Actual² | G444: 2017 Actual² | H444: 2018 Actual² | I444: 2019 Actual² | J444: 2020 Actual | K444: 2021 Actual | L444: Test Year | N444: =N$12 -> CGAAP
C445: =C$13 -> 2013 | D445: 2014 | E445: 2015 | F445: 2016 | G445: 2017 | H445: 2018 | I445: 2019 | J445: 2020 | K445: 2021 | L445: 2022 | N445: =N$13 -> 2022
A446: Reporting Basis | C446: =IF(C384=0, "", C384) ->  | N446: =IF(N$14=0, "", N$14) -> CGAAP
A455: Total | C455: =SUM(C447:C454) -> 0 | D455: 0 | E455: 0 | F455: 0 | G455: 0 | H455: 0 | I455: 0 | J455: 0 | K455: 0 | L455: 0 | N455: =SUM(N447:N454) -> 0
C458: =C$12 -> 2013 Actual² | D458: 2014 Actual² | E458: 2015 Actual² | F458: 2016 Actual² | G458: 2017 Actual² | H458: 2018 Actual² | I458: 2019 Actual² | J458: 2020 Actual | K458: 2021 Actual | L458: Test Year | N458: =N$12 -> CGAAP
C459: =C$13 -> 2013 | D459: 2014 | E459: 2015 | F459: 2016 | G459: 2017 | H459: 2018 | I459: 2019 | J459: 2020 | K459: 2021 | L459: 2022 | N459: =N$13 -> 2022
A460: Reporting Basis | C460: =IF(C398=0, "", C398) ->  | N460: =IF(N$14=0, "", N$14) -> CGAAP
A469: Total | C469: =SUM(C461:C468) -> 0 | D469: 0 | E469: 0 | F469: 0 | G469: 0 | H469: 0 | I469: 0 | J469: 0 | K469: 0 | L469: 0 | N469: =SUM(N461:N468) -> 0
C472: =C$12 -> 2013 Actual² | D472: 2014 Actual² | E472: 2015 Actual² | F472: 2016 Actual² | G472: 2017 Actual² | H472: 2018 Actual² | I472: 2019 Actual² | J472: 2020 Actual | K472: 2021 Actual | L472: Test Year | N472: =N$12 -> CGAAP
C473: =C$13 -> 2013 | D473: 2014 | E473: 2015 | F473: 2016 | G473: 2017 | H473: 2018 | I473: 2019 | J473: 2020 | K473: 2021 | L473: 2022 | N473: =N$13 -> 2022
A474: Reporting Basis | C474: =IF(C412=0, "", C412) ->  | N474: =IF(N$14=0, "", N$14) -> CGAAP
A483: Total | C483: =SUM(C475:C482) -> 0 | D483: 0 | E483: 0 | F483: 0 | G483: 0 | H483: 0 | I483: 0 | J483: 0 | K483: 0 | L483: 0 | N483: =SUM(N475:N482) -> 0
C486: =C$12 -> 2013 Actual² | D486: 2014 Actual² | E486: 2015 Actual² | F486: 2016 Actual² | G486: 2017 Actual² | H486: 2018 Actual² | I486: 2019 Actual² | J486: 2020 Actual | K486: 2021 Actual | L486: Test Year | N486: =N$12 -> CGAAP
C487: =C$13 -> 2013 | D487: 2014 | E487: 2015 | F487: 2016 | G487: 2017 | H487: 2018 | I487: 2019 | J487: 2020 | K487: 2021 | L487: 2022 | N487: =N$13 -> 2022
A488: Reporting Basis | C488: =IF(C426=0, "", C426) ->  | N488: =IF(N$14=0, "", N$14) -> CGAAP
A497: Total | C497: =SUM(C489:C496) -> 0 | D497: 0 | E497: 0 | F497: 0 | G497: 0 | H497: 0 | I497: 0 | J497: 0 | K497: 0 | L497: 0 | N497: =SUM(N489:N496) -> 0
C500: =C$12 -> 2013 Actual² | D500: 2014 Actual² | E500: 2015 Actual² | F500: 2016 Actual² | G500: 2017 Actual² | H500: 2018 Actual² | I500: 2019 Actual² | J500: 2020 Actual | K500: 2021 Actual | L500: Test Year | N500: =N$12 -> CGAAP
C501: =C$13 -> 2013 | D501: 2014 | E501: 2015 | F501: 2016 | G501: 2017 | H501: 2018 | I501: 2019 | J501: 2020 | K501: 2021 | L501: 2022 | N501: =N$13 -> 2022
A502: Reporting Basis | C502: =IF(C440=0, "", C440) ->  | N502: =IF(N$14=0, "", N$14) -> CGAAP
A511: Total | C511: =SUM(C503:C510) -> 0 | D511: 0 | E511: 0 | F511: 0 | G511: 0 | H511: 0 | I511: 0 | J511: 0 | K511: 0 | L511: 0 | N511: =SUM(N503:N510) -> 0
C514: =C$12 -> 2013 Actual² | D514: 2014 Actual² | E514: 2015 Actual² | F514: 2016 Actual² | G514: 2017 Actual² | H514: 2018 Actual² | I514: 2019 Actual² | J514: 2020 Actual | K514: 2021 Actual | L514: Test Year | N514: =N$12 -> CGAAP
C515: =C$13 -> 2013 | D515: 2014 | E515: 2015 | F515: 2016 | G515: 2017 | H515: 2018 | I515: 2019 | J515: 2020 | K515: 2021 | L515: 2022 | N515: =N$13 -> 2022
A516: Reporting Basis | C516: =IF(C454=0, "", C454) ->  | N516: =IF(N$14=0, "", N$14) -> CGAAP
A525: Total | C525: =SUM(C517:C524) -> 0 | D525: 0 | E525: 0 | F525: 0 | G525: 0 | H525: 0 | I525: 0 | J525: 0 | K525: 0 | L525: 0 | N525: =SUM(N517:N524) -> 0
C528: =C$12 -> 2013 Actual² | D528: 2014 Actual² | E528: 2015 Actual² | F528: 2016 Actual² | G528: 2017 Actual² | H528: 2018 Actual² | I528: 2019 Actual² | J528: 2020 Actual | K528: 2021 Actual | L528: Test Year | N528: =N$12 -> CGAAP
C529: =C$13 -> 2013 | D529: 2014 | E529: 2015 | F529: 2016 | G529: 2017 | H529: 2018 | I529: 2019 | J529: 2020 | K529: 2021 | L529: 2022 | N529: =N$13 -> 2022
A530: Reporting Basis | C530: =IF(C468=0, "", C468) ->  | N530: =IF(N$14=0, "", N$14) -> CGAAP
A539: Total | C539: =SUM(C531:C538) -> 0 | D539: 0 | E539: 0 | F539: 0 | G539: 0 | H539: 0 | I539: 0 | J539: 0 | K539: 0 | L539: 0 | N539: =SUM(N531:N538) -> 0
C542: =C$12 -> 2013 Actual² | D542: 2014 Actual² | E542: 2015 Actual² | F542: 2016 Actual² | G542: 2017 Actual² | H542: 2018 Actual² | I542: 2019 Actual² | J542: 2020 Actual | K542: 2021 Actual | L542: Test Year | N542: =N$12 -> CGAAP
C543: =C$13 -> 2013 | D543: 2014 | E543: 2015 | F543: 2016 | G543: 2017 | H543: 2018 | I543: 2019 | J543: 2020 | K543: 2021 | L543: 2022 | N543: =N$13 -> 2022
A544: Reporting Basis | C544: =IF(C482=0, "", C482) ->  | N544: =IF(N$14=0, "", N$14) -> CGAAP
A553: Total | C553: =SUM(C545:C552) -> 0 | D553: 0 | E553: 0 | F553: 0 | G553: 0 | H553: 0 | I553: 0 | J553: 0 | K553: 0 | L553: 0 | N553: =SUM(N545:N552) -> 0
C556: =C$12 -> 2013 Actual² | D556: 2014 Actual² | E556: 2015 Actual² | F556: 2016 Actual² | G556: 2017 Actual² | H556: 2018 Actual² | I556: 2019 Actual² | J556: 2020 Actual | K556: 2021 Actual | L556: Test Year | N556: =N$12 -> CGAAP
C557: =C$13 -> 2013 | D557: 2014 | E557: 2015 | F557: 2016 | G557: 2017 | H557: 2018 | I557: 2019 | J557: 2020 | K557: 2021 | L557: 2022 | N557: =N$13 -> 2022
A558: Reporting Basis | C558: =IF(C496=0, "", C496) ->  | N558: =IF(N$14=0, "", N$14) -> CGAAP
A567: Total | C567: =SUM(C559:C566) -> 0 | D567: 0 | E567: 0 | F567: 0 | G567: 0 | H567: 0 | I567: 0 | J567: 0 | K567: 0 | L567: 0 | N567: =SUM(N559:N566) -> 0

Sheet Hidden_Other Revenue (hidden)
A1: Utility Name | B1: EB Number | C1: Test Year | D1: Bridge Year | E1: Last Rebasing Year | F1: Heading | G1: Year | H1: Amount
A2: ='LDC Info'!$E$14 -> E.L.K. Energy Inc. | B2: =EBNUMBER -> EB-2021-0016 | C2: =TestYear -> 2022 | D2: =BridgeYear -> 2021 | E2: =RebaseYear -> 2012 | F2: Specific Service Charges | G2: ='App.2-H_Other_Oper_Rev'!C13 -> 2013 | H2: ='App.2-H_Other_Oper_Rev'!C53 -> -72073
A3: ='LDC Info'!$E$14 -> E.L.K. Energy Inc. | B3: EB-2021-0016 | C3: 2022 | D3: 2021 | E3: 2012 | F3: Late Payment Charges | G3: ='App.2-H_Other_Oper_Rev'!C13 -> 2013 | H3: ='App.2-H_Other_Oper_Rev'!C54 -> -111041
A4: ='LDC Info'!$E$14 -> E.L.K. Energy Inc. | B4: EB-2021-0016 | C4: 2022 | D4: 2021 | E4: 2012 | F4: Other Operating Revenues | G4: ='App.2-H_Other_Oper_Rev'!C13 -> 2013 | H4: ='App.2-H_Other_Oper_Rev'!C55 -> -339662
A5: ='LDC Info'!$E$14 -> E.L.K. Energy Inc. | B5: EB-2021-0016 | C5: 2022 | D5: 2021 | E5: 2012 | F5: Other Income or Deductions | G5: ='App.2-H_Other_Oper_Rev'!C13 -> 2013 | H5: ='App.2-H_Other_Oper_Rev'!C56 -> 125997
A6: ='LDC Info'!$E$14 -> E.L.K. Energy Inc. | B6: EB-2021-0016 | C6: 2022 | D6: 2021 | E6: 2012 | F6: Specific Service Charges | G6: ='App.2-H_Other_Oper_Rev'!D13 -> 2014 | H6: ='App.2-H_Other_Oper_Rev'!D53 -> -77125
A7: ='LDC Info'!$E$14 -> E.L.K. Energy Inc. | B7: EB-2021-0016 | C7: 2022 | D7: 2021 | E7: 2012 | F7: Late Payment Charges | G7: ='App.2-H_Other_Oper_Rev'!D13 -> 2014 | H7: ='App.2-H_Other_Oper_Rev'!D54 -> -107336
A8: ='LDC Info'!$E$14 -> E.L.K. Energy Inc. | B8: EB-2021-0016 | C8: 2022 | D8: 2021 | E8: 2012 | F8: Other Operating Revenues | G8: ='App.2-H_Other_Oper_Rev'!D13 -> 2014 | H8: ='App.2-H_Other_Oper_Rev'!D55 -> -79415
A9: ='LDC Info'!$E$14 -> E.L.K. Energy Inc. | B9: EB-2021-0016 | C9: 2022 | D9: 2021 | E9: 2012 | F9: Other Income or Deductions | G9: ='App.2-H_Other_Oper_Rev'!D13 -> 2014 | H9: ='App.2-H_Other_Oper_Rev'!D56 -> -307572
A10: ='LDC Info'!$E$14 -> E.L.K. Energy Inc. | B10: EB-2021-0016 | C10: 2022 | D10: 2021 | E10: 2012 | F10: Specific Service Charges | G10: ='App.2-H_Other_Oper_Rev'!E13 -> 2015 | H10: ='App.2-H_Other_Oper_Rev'!E53 -> -75229
A11: ='LDC Info'!$E$14 -> E.L.K. Energy Inc. | B11: EB-2021-0016 | C11: 2022 | D11: 2021 | E11: 2012 | F11: Late Payment Charges | G11: ='App.2-H_Other_Oper_Rev'!E13 -> 2015 | H11: ='App.2-H_Other_Oper_Rev'!E54 -> -120092
A12: ='LDC Info'!$E$14 -> E.L.K. Energy Inc. | B12: EB-2021-0016 | C12: 2022 | D12: 2021 | E12: 2012 | F12: Other Operating Revenues | G12: ='App.2-H_Other_Oper_Rev'!E13 -> 2015 | H12: ='App.2-H_Other_Oper_Rev'!E55 -> -58711
A13: ='LDC Info'!$E$14 -> E.L.K. Energy Inc. | B13: EB-2021-0016 | C13: 2022 | D13: 2021 | E13: 2012 | F13: Other Income or Deductions | G13: ='App.2-H_Other_Oper_Rev'!E13 -> 2015 | H13: ='App.2-H_Other_Oper_Rev'!E56 -> -464716
A14: ='LDC Info'!$E$14 -> E.L.K. Energy Inc. | B14: EB-2021-0016 | C14: 2022 | D14: 2021 | E14: 2012 | F14: Specific Service Charges | G14: ='App.2-H_Other_Oper_Rev'!F13 -> 2016 | H14: ='App.2-H_Other_Oper_Rev'!F53 -> -65796
A15: ='LDC Info'!$E$14 -> E.L.K. Energy Inc. | B15: EB-2021-0016 | C15: 2022 | D15: 2021 | E15: 2012 | F15: Late Payment Charges | G15: ='App.2-H_Other_Oper_Rev'!F13 -> 2016 | H15: ='App.2-H_Other_Oper_Rev'!F54 -> -122163
